Workbook

Sheet GESTION CONTRACTUAL NACION
B1: Tipo Modalidad | C1: 59 | D1: M-9: GESTIÓN CONTRACTUAL
B2: Formulario | C2: 423 | D2: F5.1:CONTRATOS REGIDOS POR LEY 80/93, 1150/2007 Y DEMÁS DISPOSIC REGLAMEN(Registre cifras EN PESOS)
B3: Moneda Informe | C3: 1
B4: Entidad | C4: 124
B5: Fecha | C5: 2015-09-30
B6: Periodicidad | C6: 3 | D6: TRIMESTRAL
A8: [1] | B8: 0 CONTRATOS QUE SE RIGEN POR LEY 80 DE 1993, LEY 1150 DE 2007 Y DEMÁS DISPOSICIONES REGLAMENTARIAS (Registre las cifras EN PESOS)
C9: 2 | D9: 3 | E9: 4 | F9: 8 | G9: 12 | H9: 16 | J9: 20 | K9: 24 | L9: 28 | N9: 32 | O9: 36 | P9: 40 | Q9: 44 | R9: 48 | T9: 52 | U9: 56 | V9: 60 | W9: 64 | X9: 68 | Y9: 72 | AA9: 76 | AB9: 80 | AC9: 84 | AD9: 88 | AG9: 92 | AH9: 96 | AI9: 100 | AJ9: 104 | AK9: 108 | AL9: 112 | AM9: 116 | AN9: 120 | AO9: 124 | AP9: 128 | AQ9: 132 | AR9: 136 | AS9: 140 | AT9: 144 | AU9: 148 | AV9: 152 | AW9: 156 | AX9: 160 | AZ9: 164 | BJ9: 168 | BK9: 172 | BL9: 176 | BM9: 180 | BN9: 184 | BO9: 188 | BP9: 192 | BQ9: 196
C10: FORMULARIO CON INFORMACIÓN | D10: JUSTIFICACIÓN | E10: NÚMERO DE CONTRATO | F10: FECHA SUSCRIPCIÓN CONTRATO | G10: CANTIDAD DE VECES REGISTRADO EN EL SIRECI | H10: OBJETO DEL CONTRATO | I10: DEPENDENCIA | J10: MODALIDAD DE SELECCIÓN | K10: CLASE DE CONTRATO | L10: DESCRIBA OTRA CLASE DE CONTRATO | M10: NUMERO DE INVITACION | N10: CÓDIGO SECOP | O10: VALOR INICIAL DEL CONTRATO (En pesos) | P10: RECURSOS PROVIENEN DE CONTRATO o CONVENIO INTERADTIVO? | Q10: ENTIDAD DE DONDE PROVIENEN LOS RECURSOS : NIT | R10: ENTIDAD DE DONDE PROVIENEN LOS RECURSOS : DÍGITO DE VERIFICACIÓN DEL NIT | S10: VALOR MENSUAL DEL CONTRATO | T10: CONTRATISTA : NATURALEZA | U10: CONTRATISTA : TIPO IDENTIFICACIÓN | V10: CONTRATISTA : NÚMERO DE CÉDULA o RUT | W10: CONTRATISTA : NÚMERO DEL NIT | X10: CONTRATISTA : DÍGITO DE VERIFICACIÓN (NIT o RUT) | Y10: CONTRATISTA : CÉDULA EXTRANJERÍA | Z10: LUGAR DE EXPEDICION DE LA CEDULA | AA10: CONTRATISTA : NOMBRE COMPLETO | AB10: GARANTÍAS : TIPO DE GARANTÍA | AC10: GARANTÍAS : RIESGOS ASEGURADOS | AD10: GARANTÍAS : FECHA DE EXPEDICIÓN DE GARANTÍAS | AE10: NOMBRE ASEGURADORA | AF10: NUMERO POLIZA | AG10: TIPO DE SEGUIMIENTO | AH10: INTERVENTOR : TIPO IDENTIFICACIÓN | AI10: INTERVENTOR : NÚMERO DE CÉDULA o RUT | AJ10: INTERVENTOR : NÚMERO DEL NIT | AK10: INTERVENTOR : DÍGITO DE VERIFICACIÓN (NIT o RUT) | AL10: INTERVENTOR : CÉDULA EXTRANJERÍA | AM10: INTERVENTOR : NOMBRE COMPLETO | AN10: SUPERVISOR : TIPO IDENTIFICACIÓN | AO10: SUPERVISOR : NÚMERO DE CÉDULA o RUT | AP10: SUPERVISOR : NÚMERO DEL NIT | AR10: SUPERVISOR : CÉDULA EXTRANJERÍA | AS10: SUPERVISOR : NOMBRE COMPLETO | AT10: PLAZO DEL CONTRATO | AU10: ANTICIPOS o PAGO ANTICIPADO | AV10: ANTICIPOS o PAGO ANTICIPADO : VALOR TOTAL | AW10: ADICIONES | AX10: ADICIONES : VALOR TOTAL | AY10: FECHA ADICION | AZ10: ADICIONES : NÚMERO DE DÍAS | BA10: FECHA PRORROGA | BB10: SUSPENSIÓN | BC10: TIEMPO SUSPENSIÓN | BD10: FECHA SUSPENSIÓN | BE10: VALOR REDUCCION | BF10: NUMERO DE DIAS REDUCCION | BG10: FECHA REDUCCION | BH10: MODIFICACION | BI10: FECHA MODIFICACION | BJ10: FECHA INICIO CONTRATO | BK10: FECHA TERMINACIÓN CONTRATO | BL10: FECHA LIQUIDACIÓN CONTRATO | BM10: PORCENTAJE DE AVANCE FÍSICO PROGRAMADO | BN10: PORCENTAJE DE AVANCE FÍSICO REAL | BO10: PORCENTAJE AVANCE PRESUPUESTAL PROGRAMADO | BP10: PORCENTAJE AVANCE PRESUPUESTAL REAL | BQ10: OBSERVACIONES | BR10: SUBPROGRAMA | BS10: FUENTE | BT10: Nº DEL CDP | BU10: VALOR CDP | BV10: FECHA DEL CDP | BW10: REGISTRO PRESUPUESTAL DEFINITIVO | BX10: VALOR REGISTRO | BY10: FECHA DE RPD | BZ10: Valor ejecutado ENERO | CA10: Valor ejecutado FEBRERO | CB10: Valor ejecutado MARZO | CC10: VALOR EJECUTADO ABRIL | CD10: Valor ejecutado MAYO | CE10: Valor ejecutado JUNIO | CF10: Valor ejecutado JULIO | CG10: Valor ejecutado AGOSTO | CH10: Valor ejecutado SEPTIEMBRE | CI10: Valor ejecutado OCTUBRE | CJ10: Valor ejecutado NOVIEMBRE | CK10: Valor ejecutado DICIEMBRE | CL10: Valor ejecutado | CM10: Valor por ejecutar | CN10: Numero expediente | CO10: Afiliacion ARL
CP11: CPS | CR11: TRIMESTRE I
A12: 1 | B12: FILA_1 | C12: 1 SI | E12: 001 | F12: 2017-01-11 | G12: 2 DOS VECES | H12: PRESTACION DE SERVICIOS TECNICOS Y DE APOYO A LA GESTION PARA REALIZAR LA EJECUCION PRESUPUESTAL DEL AREA PROTEGIDA, DINAMIZAR LOS PROCESOS ADMINISTRATIVOS Y APOYAR EN EL SEGUIMIENTO A LA IMPLEMENTACION DE LAS ACCIONES DEFINIDAS EN EL PLAN ESTRATEGICO DEL PLAN DE MANEJO, PLAN OPERATIVO ANUAL Y DEMAS HERRAMIENTAS DE PLANEACION PARA EL SFF COROTA | I12: SFF ISLA DE LA COROTA | J12: 2 CONTRATACIÓN DIRECTA | K12: 14 PRESTACIÓN DE SERVICIOS | M12: CONTRATACION DIRECTA | N12: 80161500 Cód. 80161500 - Servicios de apoyo a la gestión | O12: 16983000 | S12: 1698300 | T12: 1 PERSONA NATURAL | U12: 2 RUT - REGISTRO ÚNICO TRIBUTARIO | V12: 30723177 | X12: 8 DV 7 | Z12: PASTO | AA12: ROSA MAGDALENA ORTIZ TOBON | AB12: 1 PÓLIZA | AC12: 2 CUMPLIMIENTO | AD12: 2017-01-12 | AE12: SEGUROS DEL ESTADO | AF12: 41-44-101184577 | AG12: 2 SUPERVISOR | AN12: 3 CÉDULA DE CIUDADANÍA | AO12: 12973611 | AS12: IVAN MAURICIO ZAMBRANO PATIÑO | AT12: 300 | AU12: 3 NO PACTADOS | AV12: 0 | AW12: 3 ADICIÓN EN VALOR y EN TIEMPO | AX12: 1924740 | AY12: 2017-11-01 | AZ12: 34 | BA12: 2017-11-01 | BJ12: 2017-01-12 | BK12: 2017-12-15 | BM12: 100 | BN12: 100 | BO12: 100 | BP12: 100 | BQ12: ADICION Y PRORROGA N°01 AL CPS001/2017 POR EL CUAL SE ADICIONA LA SUMA DE $1.924.740 Y EN TIEMPO POR (34) DIAS MAS EL 01/11/2017 | BR12: POA PLANEACION INTERNA SIIF FORTALECIMIENTO | BS12: NACION | BT12: 4517 | BU12: 16983000 | BV12: 2017-01-11 | BW12: 5217 | BX12: 16983000 | BY12: 2017-01-12 | BZ12: 1075590 | CA12: 1698300 | CB12: 1698300 | CC12: 1698300 | CD12: 1698300 | CE12: 1698300 | CF12: 1698300 | CG12: 1698300 | CH12: 1698300 | CI12: 1698300 | CJ12: 1698300 | CK12: 849150 | CL12: =BZ12+CA12+CB12+CC12+CD12+CE12+CF12+CG12+CH12+CI12+CJ12+CK12 -> 18907740 | CM12: =O12+AX12-BE12-BZ12-CA12-CB12-CC12-CD12-CE12-CF12-CG12-CH12-CI12-CJ12-CK12 -> 0 | CP12: CPS | CR12: 2017-09-30
A13: 2 | B13: FILA_2 | C13: 1 SI | E13: 002 | F13: 2017-01-11 | G13: 2 DOS VECES | H13: PRESTACION DE SERVICIOS TECNICOS Y DE APOYO A LA GESTION ADMINISTRATIVA DEL PNN CUEVA DE LOS GUACHAROS, DINAMIZAR LOS PROCESOS ADMINISTRATIVOS, TECNICOS Y OPERATIVOS DEL PARQUE, CON EL FIN DE APOYAR EN EL SEGUIMIENTO A LA IMPLEMENTACION DE LAS ACCIONES DEFINIDAS EN EL PLAN ESTRATEGICOS DEL PLAN DE MANEJO, PLAN OPERATIVO ANUAL Y DEMAS HERRAMIENTAS DE PLANEACION | I13: PNN CUEVA DE LOS GUACHAROS | J13: 2 CONTRATACIÓN DIRECTA | K13: 14 PRESTACIÓN DE SERVICIOS | M13: CONTRATACION DIRECTA | N13: 80161500 Cód. 80161500 - Servicios de apoyo a la gestión | O13: 20196000 | S13: 2019600 | T13: 1 PERSONA NATURAL | U13: 2 RUT - REGISTRO ÚNICO TRIBUTARIO | V13: 36287806 | X13: 3 DV 2 | Z13: PITALITO | AA13: JUDITH ECHEVERRY ORTEGA | AB13: 1 PÓLIZA | AC13: 2 CUMPLIMIENTO | AD13: 2017-01-11 | AE13: LIBERTY SEGUROS | AF13: 2752800 | AG13: 2 SUPERVISOR | AN13: 3 CÉDULA DE CIUDADANÍA | AO13: 19165522 | AQ13: 11 NO SE DILIGENCIA INFORMACIÓN PARA ESTE FORMULARIO EN ESTE PERÍODO DE REPORTE | AS13: ITALO RODRIGUEZ AGUAZACO | AT13: 300 | AU13: 3 NO PACTADOS | AV13: 0 | AW13: 3 ADICIÓN EN VALOR y EN TIEMPO | AX13: 2356200 | AY13: 2017-11-08 | AZ13: 35 | BA13: 2017-11-08 | BJ13: 2017-01-11 | BK13: 2017-12-15 | BM13: 100 | BN13: 100 | BO13: 100 | BP13: 100 | BQ13: ADICION Y PRORROGA N°01 AL CPS002/2017 POR EL CUAL SE ADICIONA LA SUMA DE $2.356.200 Y SE PRORROGA EL PLAZO DE EJECUCIÓN EN (35 DIAS MAS) EL 08/11/2017 | BR13: POA PLANEACION INTERNA SIIF FORTALECIMIENTO | BS13: NACION | BT13: 4617 | BU13: 20196000 | BV13: 2017-01-11 | BW13: 5117 | BX13: 20196000 | BY13: 2017-01-11 | BZ13: 1346400 | CA13: 2019600 | CB13: 2019600 | CC13: 2019600 | CD13: 2019600 | CE13: 2019600 | CF13: 2019600 | CG13: 2019600 | CH13: 2019600 | CI13: 2019600 | CJ13: 2019600 | CK13: 1009800 | CL13: =BZ13+CA13+CB13+CC13+CD13+CE13+CF13+CG13+CH13+CI13+CJ13+CK13 -> 22552200 | CM13: 0 | CP13: CPS | CR13: 2017-09-30
A14: 3 | B14: FILA_3 | C14: 1 SI | E14: 003 | F14: 2017-01-11 | G14: 2 DOS VECES | H14: PRESTACION DE SERVICIOS TECNICOS Y DE APOYO A LA GESTION PARA REALIZAR LA EJECUCION PRESUPUESTAL DEL AREA PROTEGIDA , DINAMIZAR LOS PROCESOS ADMINISTRATIVOS Y APOYAR EN EL SEGUIMIENTO A LA IMPLEMENTACION DE LAS ACCIONES DEFINIDAS EN EL PLAN ESTRATEGICO DEL PLAN DE MANEJO, PLAN OPERATIVO ANUAL Y DEMAS HERRAMIENTAS DE PLANEACION PARA EL PNN LOS NEVADOS | I14: PNN LOS NEVADOS | J14: 2 CONTRATACIÓN DIRECTA | K14: 14 PRESTACIÓN DE SERVICIOS | M14: CONTRATACION DIRECTA | N14: 80161500 Cód. 80161500 - Servicios de apoyo a la gestión | O14: 24378000 | S14: 2437800 | T14: 1 PERSONA NATURAL | U14: 2 RUT - REGISTRO ÚNICO TRIBUTARIO | V14: 41943079 | X14: 8 DV 7 | Z14: ARMENIA | AA14: GLORIA ESPERANZA TORRES MORALES | AB14: 1 PÓLIZA | AC14: 2 CUMPLIMIENTO | AD14: 2017-01-12 | AE14: SEGUROS DEL ESTADO | AF14: 42-44-101097142 | AG14: 2 SUPERVISOR | AN14: 3 CÉDULA DE CIUDADANÍA | AO14: 79121466 | AQ14: 11 NO SE DILIGENCIA INFORMACIÓN PARA ESTE FORMULARIO EN ESTE PERÍODO DE REPORTE | AS14: EFRAIM AUGUSTO RODRIGUEZ VARON | AT14: 300 | AU14: 3 NO PACTADOS | AV14: 0 | AW14: 3 ADICIÓN EN VALOR y EN TIEMPO | AX14: 2762840 | AY14: 2017-11-03 | AZ14: 34 | BA14: 2017-11-03 | BJ14: 2017-01-12 | BK14: 2017-12-15 | BM14: 100 | BN14: 100 | BO14: 100 | BP14: 100 | BQ14: ADICIÓN Y PRORROGA N°01 AL CPS003/2017 POR EL CUAL SE ADICIONA LA SUMA DE $2.762.840 Y EN TIEMPO POR (34) DIAS MAS EL 03/11/2017 | BR14: POA PLANEACION INTERNA SIIF FORTALECIMIENTO | BS14: NACION | BT14: 4817 | BU14: 24378000 | BV14: 2017-01-11 | BW14: 5317 | BX14: 24378000 | BY14: 2017-01-12 | BZ14: 1543940 | CA14: 2437800 | CB14: 2437800 | CC14: 2437800 | CD14: 2437800 | CE14: 2437800 | CF14: 2437800 | CG14: 2437800 | CH14: 2437800 | CI14: 2437800 | CJ14: 2437800 | CK14: 1218900 | CL14: 27140840 | CM14: 0 | CP14: CPS | CR14: 2017-09-30
A15: 4 | B15: FILA_4 | C15: 1 SI | E15: 004 | F15: 2017-01-11 | G15: 2 DOS VECES | H15: PRESTAR LOS SERVICIOS TECNICOS Y DE APOYO A LA GESTION DE LA DTAO, CON LO RELACIONADO A LA ADMINISTRACION DE LOS PROCESOS Y GESTION DE RECURSOS FISICOS EN EL AREA ADMINISTRATIVA Y FINANCIERA, ENMARCADO EN EL SISTEMA DE GESTION DE CALIDAD PARA EL DESARROLLO INSTITUCIONAL Y DE ESTA MANERA APUNTAR AL CUMPLIMIENTO DE LAS METAS INSTITUCIONALES | I15: DTAO | J15: 2 CONTRATACIÓN DIRECTA | K15: 14 PRESTACIÓN DE SERVICIOS | M15: CONTRATACION DIRECTA | N15: 80161500 Cód. 80161500 - Servicios de apoyo a la gestión | O15: 24378000 | S15: 2437800 | T15: 1 PERSONA NATURAL | U15: 2 RUT - REGISTRO ÚNICO TRIBUTARIO | V15: 93294050 | X15: 9 DV 8 | Z15: LIBANO | AA15: JOSE EDILBERTO RUBIANO ORTEGON | AB15: 1 PÓLIZA | AC15: 2 CUMPLIMIENTO | AD15: 2017-01-11 | AE15: SEGUROS DEL ESTADO | AF15: 65-44-101140604 | AG15: 2 SUPERVISOR | AN15: 3 CÉDULA DE CIUDADANÍA | AO15: 24582254 | AQ15: 11 NO SE DILIGENCIA INFORMACIÓN PARA ESTE FORMULARIO EN ESTE PERÍODO DE REPORTE | AS15: MONICA MARIA RODRIGUEZ ARIAS | AT15: 300 | AU15: 3 NO PACTADOS | AV15: 0 | AW15: 3 ADICIÓN EN VALOR y EN TIEMPO | AX15: 2519060 | AY15: 07/11/2017-30/11/2017 | AZ15: 31 | BA15: 07/11/2017-30/11/2017 | BJ15: 2017-01-11 | BK15: 2017-12-11 | BM15: 100 | BN15: 100 | BO15: 100 | BP15: 100 | BQ15: ADICION Y PRORROGA N°01 AL CPS004/2017 POR EL CUAL SE ADICIONA LA SUMA DE $1.625.200 Y SE PRORROGA EL PLAZO DE EJECUCIÓN EN (20) DIAS MAS EL 07/11/2017, ADICION Y PRORROGA N°02 AL CPS004/2017 POR EL CUAL SE ADICIONA LA SUMA DE $893.860 Y EN TIEMPO POR (11) DIAS MAS EL 30/11/2017 | BR15: POA PLANEACION INTERNA SIIF FORTALECIMIENTO | BS15: NACION | BT15: 4717 | BU15: 24378000 | BV15: 2017-01-11 | BW15: 5017 | BX15: 24378000 | BY15: 2017-01-11 | BZ15: 1625200 | CA15: 2437800 | CB15: 2437800 | CC15: 2437800 | CD15: 2437800 | CE15: 2437800 | CF15: 2437800 | CG15: 2437800 | CH15: 2437800 | CI15: 2437800 | CJ15: 2437800 | CK15: 893860 | CL15: 26897060 | CM15: 0 | CP15: CPS | CR15: 2017-09-30
A16: 5 | B16: FILA_5 | C16: 1 SI | E16: 005 | F16: 2017-01-12 | G16: 2 DOS VECES | H16: PRESTACION DE SERVICIOS TECNICOS Y DE APOYO A LA GESTION PARA ADELANTAR LABORES ADMINISTRATIVAS DEL PNN PURACE, DESARROLLANDO TRAMITES Y PROCESOS QUE LE COMPETEN AL AREA PROTEGIDA ADSCRITA A LA DTAO PARA LA VIGENCIA 2017 | I16: PNN PURACE | J16: 2 CONTRATACIÓN DIRECTA | K16: 14 PRESTACIÓN DE SERVICIOS | M16: CONTRATACION DIRECTA | N16: 80161500 Cód. 80161500 - Servicios de apoyo a la gestión | O16: 20196000 | S16: 2019600 | T16: 1 PERSONA NATURAL | U16: 2 RUT - REGISTRO ÚNICO TRIBUTARIO | V16: 1061709910 | X16: 6 DV 5 | Z16: POPAYAN | AA16: ANA MARIA ERAZO CASTRO | AB16: 1 PÓLIZA | AC16: 2 CUMPLIMIENTO | AD16: 2017-01-12 | AE16: CONFIANZA | AF16: 30 GU137911 | AG16: 2 SUPERVISOR | AN16: 3 CÉDULA DE CIUDADANÍA | AO16: 10537064 | AQ16: 11 NO SE DILIGENCIA INFORMACIÓN PARA ESTE FORMULARIO EN ESTE PERÍODO DE REPORTE | AS16: ISAAC BEDOYA DORADO | AT16: 300 | AU16: 3 NO PACTADOS | AV16: 0 | AW16: 3 ADICIÓN EN VALOR y EN TIEMPO | AX16: 2288880 | AY16: 2017-11-10 | AZ16: 34 | BA16: 2017-11-10 | BJ16: 2017-01-12 | BK16: 2017-12-15 | BM16: 100 | BN16: 100 | BO16: 100 | BP16: 100 | BQ16: ADICIÓN Y PRORROGA N°01 AL CPS005/2017 POR EL CUAL SE ADICIONA LA SUMA DE $2.288.880 Y SE PRORROGA EL PLAZO DE EJECUCIÓN EN (34) DIAS EL 10/11/2017 | BR16: POA PLANEACION INTERNA SIIF FORTALECIMIENTO | BS16: NACION | BT16: 5017 | BU16: 20196000 | BV16: 2017-01-12 | BW16: 5417 | BX16: 20196000 | BY16: 2017-01-12 | BZ16: 1279080 | CA16: 2019600 | CB16: 2019600 | CC16: 2019600 | CD16: 2019600 | CE16: 2019600 | CF16: 2019600 | CG16: 2019600 | CH16: 2019600 | CI16: 2019600 | CJ16: 2019600 | CK16: 1009800 | CL16: 22484880 | CM16: 0 | CP16: CPS | CR16: 2017-09-30
A17: 6 | B17: FILA_6 | C17: 1 SI | E17: 006 | F17: 2017-01-12 | G17: 2 DOS VECES | H17: PRESTACION DE SERVICIOS TECNICOS Y DE APOYO A LA GESTION PARA REALIZAR LA EJECUCION PRESUPUESTAL DEL AREA PROTEGIDA Y DINAMIZAR LOS PROCESOS ADMINISTRATIVOS DERIVADOS DE LA IMPLEMENTACION DEL PLAN OPERATIVO ANUAL, DEL SANTUARIO SFF OTUN QUIMBAYA | I17: SFF OTUN QUIMBAYA | J17: 2 CONTRATACIÓN DIRECTA | K17: 14 PRESTACIÓN DE SERVICIOS | M17: CONTRATACION DIRECTA | N17: 80161500 Cód. 80161500 - Servicios de apoyo a la gestión | O17: 16983000 | S17: 1698300 | T17: 1 PERSONA NATURAL | U17: 2 RUT - REGISTRO ÚNICO TRIBUTARIO | V17: 1088282343 | X17: 2 DV 1 | Z17: PEREIRA | AA17: PAULA MARCELA RAMOS BETANCUR | AB17: 1 PÓLIZA | AC17: 2 CUMPLIMIENTO | AD17: 2017-01-13 | AE17: SEGUROS DEL ESTADO | AF17: 55-44-101046499 | AG17: 2 SUPERVISOR | AN17: 3 CÉDULA DE CIUDADANÍA | AO17: 52110135 | AQ17: 11 NO SE DILIGENCIA INFORMACIÓN PARA ESTE FORMULARIO EN ESTE PERÍODO DE REPORTE | AS17: GLORIA TERESITA SERNA ALZATE | AT17: 300 | AU17: 3 NO PACTADOS | AV17: 0 | AW17: 3 ADICIÓN EN VALOR y EN TIEMPO | AX17: 1868130 | AY17: 2017-11-08 | AZ17: 33 | BA17: 2017-11-08 | BJ17: 2017-01-13 | BK17: 2017-12-15 | BM17: 100 | BN17: 100 | BO17: 100 | BP17: 100 | BQ17: ADICION Y PRORROGA N°01 AL CPS006/2017 POR EL CUAL SE ADICIONA LA SUMA DE $1.868.130 Y EN TIEMPO POR (33) DIAS MAS EL 08/11/2017 | BR17: POA PLANEACION INTERNA SIIF FORTALECIMIENTO | BS17: NACION | BT17: 5117 | BU17: 16983000 | BV17: 2017-01-12 | BW17: 5517 | BX17: 16983000 | BY17: 2017-01-12 | BZ17: 1018980 | CA17: 1698300 | CB17: 1698300 | CC17: 1698300 | CD17: 1698300 | CE17: 1698300 | CF17: 1698300 | CG17: 1698300 | CH17: 1698300 | CI17: 1698300 | CJ17: 1698300 | CK17: 849150 | CL17: 18851130 | CM17: 0 | CP17: CPS | CR17: 2017-09-30
A18: 7 | B18: FILA_7 | C18: 1 SI | E18: 007 | F18: 2017-01-12 | G18: 2 DOS VECES | H18: PRESTACION DE SERVICIOS COMO TECNICO ADMINISTRATIVO Y DE APOYO A LA GESTION, PARA LOS PROCESOS DE CONTRATACION, EJECUCION Y SEGUIMIENTO A LOS RECURSOS PRESUPUESTALES ASIGNADOS PARA LA GESTION DEL AREA PROTEGIDA, QUE PERMITAN ALCANZAR LAS METAS TRAZADAS EN EL PLAN OPERATIVO ANUAL DEL PNN NEVADO DEL HUILA | I18: PNN NEVADO DEL HUILA | J18: 2 CONTRATACIÓN DIRECTA | K18: 14 PRESTACIÓN DE SERVICIOS | M18: CONTRATACION DIRECTA | N18: 80161500 Cód. 80161500 - Servicios de apoyo a la gestión | O18: 20196000 | S18: 2019600 | T18: 1 PERSONA NATURAL | U18: 2 RUT - REGISTRO ÚNICO TRIBUTARIO | V18: 1110454070 | X18: 5 DV 4 | Z18: IBAGUE | AA18: LAURA XIMENA TRIANA QUINTERO | AB18: 1 PÓLIZA | AC18: 2 CUMPLIMIENTO | AD18: 2017-01-13 | AE18: SEGUROS DEL ESTADO | AF18: 25-44-101100808 | AG18: 2 SUPERVISOR | AN18: 3 CÉDULA DE CIUDADANÍA | AO18: 79144591 | AQ18: 11 NO SE DILIGENCIA INFORMACIÓN PARA ESTE FORMULARIO EN ESTE PERÍODO DE REPORTE | AS18: SANTIAGO FELIPE DUARTE GOMEZ | AT18: 300 | AU18: 3 NO PACTADOS | AV18: 0 | AW18: 3 ADICIÓN EN VALOR y EN TIEMPO | AX18: 2221560 | AY18: 2017-11-09 | AZ18: 33 | BA18: 2017-11-09 | BJ18: 2017-01-13 | BK18: 2017-12-15 | BM18: 100 | BN18: 100 | BO18: 100 | BP18: 100 | BQ18: ADICION Y PRORROGA N°01 AL CPS007/2017 POR EL CUAL SE ADICIONA LA SUMA DE $2.221.560 Y SE PRORROGA EL PLAZO DE EJECUCIÓN EN (33) DIAS MAS | BR18: POA PLANEACION INTERNA SIIF FORTALECIMIENTO | BS18: NACION | BT18: 5217 | BU18: 20196000 | BV18: 2017-01-12 | BW18: 6717 | BX18: 20196000 | BY18: 2017-01-13 | BZ18: 1211760 | CA18: 2019600 | CB18: 2019600 | CC18: 2019600 | CD18: 2019600 | CE18: 2019600 | CF18: 2019600 | CG18: 2019600 | CH18: 2019600 | CI18: 2019600 | CJ18: 2019600 | CK18: 1009800 | CL18: 22417560 | CM18: 0 | CP18: CPS | CR18: 2017-09-30
A19: 8 | B19: FILA_8 | C19: 1 SI | E19: 008 | F19: 2017-01-16 | G19: 2 DOS VECES | H19: PRESTACION DE SERVICIOS PROFESIONALES Y DE APOYO A LA GESTION PARA ACOMPAÑAR Y FORTALECER LOS PROCESOS, PROGRAMAS Y ESTRATEGIAS ENTORNO A LA GESTION TECNICA, DOCUMENTAL Y DE ANALISIS RELACIONADOS CON LA RESTAURACION ECOLOGICA, LA GESTION PREVENTIVA A NUEVAS OCUPACIONES Y LOS SISTEMAS SOSTENIBLES, ASI COMO REALIZAR LA IMPLEMENTACION DEL PLAN ESTRATEGICO TERRITORIAL Y LOS PLANES ESTRATEGICOS DE LAS AREAS PROTEGIDAS CON ENFASIS EN LOS AMBITOS Y PROCESOS EN EL MARCO DEL SISTEMA NACIONAL DE AREAS PROTEGIDAS Y DEL SUBSISTEMA ANDES OCCIDENTALES | I19: DTAO | J19: 2 CONTRATACIÓN DIRECTA | K19: 14 PRESTACIÓN DE SERVICIOS | M19: CONTRATACION DIRECTA | N19: 80161500 Cód. 80161500 - Servicios de apoyo a la gestión | O19: 40902000 | S19: 4090200 | T19: 1 PERSONA NATURAL | U19: 2 RUT - REGISTRO ÚNICO TRIBUTARIO | V19: 53001713 | X19: 1 DV 0 | Z19: BOGOTA | AA19: SANDRA TATIANA LOSADA ROJAS | AB19: 1 PÓLIZA | AC19: 2 CUMPLIMIENTO | AD19: 2017-01-18 | AE19: SEGUROS MUNDIAL | AF19: CBO-100000269 | AG19: 2 SUPERVISOR | AN19: 3 CÉDULA DE CIUDADANÍA | AO19: 10282381 | AQ19: 11 NO SE DILIGENCIA INFORMACIÓN PARA ESTE FORMULARIO EN ESTE PERÍODO DE REPORTE | AS19: JORGE EDUARDO CEBALLOS BETANCUR | AT19: 300 | AU19: 3 NO PACTADOS | AV19: 0 | AW19: 4 NO SE HA ADICIONADO NI EN VALOR y EN TIEMPO | AX19: 0 | BE19: 11452560 | BF19: 84 | BG19: 27/02/2017-26/09/2017 | BH19: ACTA DE SUSPENSIÓN N°1 A PARTIR DEL DIA 2 DE FEBRERO AL 07 DE JUNIO DE 2017 POR LICENCIA DE MATERNIDAD, OTRO SI DE MODIFICACION N°02 AL TIEMPO Y VALOR DEL CPS 008/2017 POR EL CUAL SE REDUCE EL VALOR DEL CONTRATO EN $136,340 Y EL PLAZO DE EJECUCIÓN EN (01) DIA, EL 26/09/2017, SE REPORTA EN EL CUARTO TRIMESTRE POR MODIFICACION TODA VEZ QUE NO SE REPORTO EN EL TERCER TRIMESTRE | BI19: 03/02/2017-26/09/2017 | BJ19: 2017-01-18 | BK19: 2017-12-30 | BM19: 100 | BN19: 100 | BO19: 100 | BP19: 100 | BQ19: EL CONTRATO PRESENTA SUSPENCIÓN DEL 02/02/2017 AL 07/06/2017 (LICENCIA DE MATERNIDAD) FECHA DEL 03/02/2017, TAMBIEN SE REALIZA OTRO SI DE MODIFICACION POR REDUCCION EN VALOR ($11.316.220) Y TIEMPO DE 83 DIAS CON FECHA DEL 27/02/2017 OTRO SI DE MODIFICACION N°02 AL TIEMPO Y VALOR DEL CPS 008/2017 POR EL CUAL SE REDUCE EL VALOR DEL CONTRATO EN $136,340 Y EL PLAZO DE EJECUCIÓN EN (01) DIA EL 26/09/2017, SE REPORTA EN EL CUARTO TRIMESTRE TODA VEZ QUE NO SE REPORTO EN EL TERCER TRIMESTRE. | BR19: POA Y SIIF SANEAMIENTO | BS19: NACION | BT19: 5817 | BU19: 40902000 | BV19: 2017-01-16 | BW19: 7217 | BX19: 40902000 | BY19: 2017-01-17 | BZ19: 1772420 | CE19: 3135820 | CF19: 4090200 | CG19: 4090200 | CH19: 4090200 | CI19: 4090200 | CJ19: 4090200 | CK19: 4090200 | CL19: 29449440 | CM19: 0 | CP19: CPS | CR19: 2017-09-30
A20: 9 | B20: FILA_9 | C20: 1 SI | E20: 009 | F20: 2017-01-16 | G20: 3 TRES VECES | H20: PRESTACION DE SERVICIOS PROFESIONALES Y DE APOYO A LA GESTION, COMO ABOGADA DE LA DTAO Y SUSAREAS ADSCRITAS, PARA APOYAR LOS PROCESOS RELACIONADOS CON EL USO, REGULACION Y APROVECHAMIENTO DE LOS RECURSOS NATURALES; ASI COMO LOS DEMAS PROCESOS Y PROCEDIMIENTOS DERIVADOS DE LA GESTION JURIDICA DE LA ENTIDAD | I20: DTAO | J20: 2 CONTRATACIÓN DIRECTA | K20: 14 PRESTACIÓN DE SERVICIOS | M20: CONTRATACION DIRECTA | N20: 80161500 Cód. 80161500 - Servicios de apoyo a la gestión | O20: 35598000 | S20: 3559800 | T20: 1 PERSONA NATURAL | U20: 2 RUT - REGISTRO ÚNICO TRIBUTARIO | V20: 32119648 | X20: 2 DV 1 | Z20: TARAZA | AA20: LUZ DARY CEBALLOS VELASQUEZ | AB20: 1 PÓLIZA | AC20: 2 CUMPLIMIENTO | AD20: 2017-01-17 | AE20: SEGUROS DEL ESTADO | AF20: 65-44-101140996 | AG20: 2 SUPERVISOR | AN20: 3 CÉDULA DE CIUDADANÍA | AO20: 24582254 | AQ20: 11 NO SE DILIGENCIA INFORMACIÓN PARA ESTE FORMULARIO EN ESTE PERÍODO DE REPORTE | AS20: MONICA MARIA RODRIGUEZ ARIAS | AT20: 300 | AU20: 3 NO PACTADOS | AV20: 0 | AW20: 3 ADICIÓN EN VALOR y EN TIEMPO | AX20: 5221040 | AY20: 09/11/2017-13/12/2017 | AZ20: 44 | BA20: 09/11/2017-13/12/2017 | BJ20: 2017-01-17 | BK20: 2017-12-30 | BL20: 2018-02-09 | BM20: 100 | BN20: 100 | BO20: 100 | BP20: 100 | BQ20: ADICION Y PRORROGA N°01 AL CPS009/2017 POR EL CUAL SE ADICIONA LA SUMA DE $3.441.140 Y SE PRORROGA EL PLAZO DE EJECUCIÓN POR (29) DIAS MAS EL 09/11/2017, ADICION Y PRORROGA N°02 AL CPS009/2017 POR EL CUAL SE ADICIONA LA SUMA DE $1.779.900 Y SE PRORROGA EL PLAZO DE EJECUCIÓN POR (15) DIAS MAS EL 13/12/2017, ACTA DE LIQUIDACION BILATERAL DEL CPS009/2017 EL 09/02/2018 | BR20: POA REGULACION SIIF AUTORIDAD AMBIENTAL | BS20: NACION | BT20: 5617 | BU20: 35598000 | BV20: 2017-01-13 | BW20: 7317 | BX20: 35598000 | BY20: 2017-01-17 | BZ20: 1661240 | CA20: 3559800 | CB20: 3559800 | CC20: 3559800 | CD20: 3559800 | CE20: 3559800 | CF20: 3559800 | CG20: 3559800 | CH20: 3559800 | CI20: 3559800 | CJ20: 3559800 | CK20: 3559800 | CL20: 40819040 | CM20: 0 | CP20: CPS | CR20: 2017-09-30
A21: 10 | B21: FILA_10 | C21: 1 SI | E21: 010 | F21: 2017-01-16 | G21: 2 DOS VECES | H21: PRESTACION DE SERVICIOS ASISTENCIALES Y DE APOYO A LA GESTION ADMINISTRATIVA PARA REALIZAR ACTIVIDADES DE RECEPTCIONISTA, ATENCION AL USUARIO Y GESTION Y ADMINISTRACION DE LA INFORMACION COMO PARTE DE LA IMPLEMENTACION DEL SISTEMA DE CALIDAD DE LA GESTION EN LA DTAO, EN ARAS DE MEJORAR LA EFICIENCIA INSTITUCIONAL | I21: DTAO | J21: 2 CONTRATACIÓN DIRECTA | K21: 14 PRESTACIÓN DE SERVICIOS | M21: CONTRATACION DIRECTA | N21: 80161500 Cód. 80161500 - Servicios de apoyo a la gestión | O21: 13800600 | S21: 1380060 | T21: 1 PERSONA NATURAL | U21: 2 RUT - REGISTRO ÚNICO TRIBUTARIO | V21: 1046953005 | X21: 5 DV 4 | Z21: URAMITA | AA21: NAZLY VIVIANA PARRA MANCO | AB21: 1 PÓLIZA | AC21: 2 CUMPLIMIENTO | AD21: 2017-01-16 | AE21: SEGUROS DEL ESTADO | AF21: 65-44-101140829 | AG21: 2 SUPERVISOR | AN21: 3 CÉDULA DE CIUDADANÍA | AO21: 24582254 | AQ21: 11 NO SE DILIGENCIA INFORMACIÓN PARA ESTE FORMULARIO EN ESTE PERÍODO DE REPORTE | AS21: MONICA MARIA RODRIGUEZ ARIAS | AT21: 300 | AU21: 3 NO PACTADOS | AV21: 0 | AW21: 3 ADICIÓN EN VALOR y EN TIEMPO | AX21: 2070090 | AY21: 10/11/2017-13/12/2017 | AZ21: 45 | BA21: 10/11/2017-13/12/2017 | BJ21: 2017-01-16 | BK21: 2017-12-30 | BM21: 100 | BN21: 100 | BO21: 100 | BP21: 100 | BQ21: ADICION Y PRORROGA N°01 AL CPS010/2017 POR EL CUAL SE ADICIONA LA SUMA DE $1.380.060 Y EL PLAZO DE EJECUCIÓN POR (30) DIAS MAS EL 10/11/2017, ADICION Y PRORROGA N°02 AL CPS010/2017 POR EL CUAL SE ADICIONA LA SUMA DE $690.030 Y EN TIEMPO POR (15) DIAS MAS EL 13/12/2017 | BR21: POA PLANEACION INTERNA SIIF FORTALECIMIENTO | BS21: NACION | BT21: 5717 | BU21: 13800600 | BV21: 2017-01-16 | BW21: 7017 | BX21: 13800600 | BY21: 2017-01-16 | BZ21: 690030 | CA21: 1380060 | CB21: 1380060 | CC21: 1380060 | CD21: 1380060 | CE21: 1380060 | CF21: 1380060 | CG21: 1380060 | CH21: 1380060 | CI21: 1380060 | CJ21: 1380060 | CK21: 1380060 | CL21: 15870690 | CM21: 0 | CP21: CPS | CR21: 2017-09-30
A22: 11 | B22: FILA_11 | C22: 1 SI | E22: 011 | F22: 2017-01-16 | G22: 3 TRES VECES | H22: PRESTACION DE SERVICIOS PROFESIONALES Y DE APOYO A LA GESTION PARA BRINDAR ASESORIA EN LO RELACIONADO EN LA BIOLOGIA DE LA CONSERVACION ACOMPAÑANDO Y FORTALECIENDO LOS PROCESOS, PROGRAMAS Y ESTRATEGIAS PARA EL DIAGNOSTICO DEL ESTADO DE CONSERVACION DE LOS VOC, LA PLANIFICACION E IMPLEMENTACION DE ACCIONES PARA MITIGAR AMENAZAS Y SU MONITOREO EN EL SUBSISTEMA ANDES OCCIDENTALES APOYANDO LA ADMINISTRACION DE LAS AREAS PROTEGIDAS Y LA CORRDINACION DEL SINAP, EN LA DTAO DE PNN DE COLOMBIA | I22: DTAO | J22: 2 CONTRATACIÓN DIRECTA | K22: 14 PRESTACIÓN DE SERVICIOS | M22: CONTRATACION DIRECTA | N22: 80161500 Cód. 80161500 - Servicios de apoyo a la gestión | O22: 49878000 | S22: 4987800 | T22: 1 PERSONA NATURAL | U22: 2 RUT - REGISTRO ÚNICO TRIBUTARIO | V22: 75093305 | X22: 3 DV 2 | Z22: MANIZALES | AA22: NESTOR JAVIER RONCANCIO DUQUE | AB22: 1 PÓLIZA | AC22: 2 CUMPLIMIENTO | AD22: 2017-01-17 | AE22: SEGUROS DEL ESTADO | AF22: 65-44-101140891 | AG22: 2 SUPERVISOR | AN22: 3 CÉDULA DE CIUDADANÍA | AO22: 10282381 | AQ22: 11 NO SE DILIGENCIA INFORMACIÓN PARA ESTE FORMULARIO EN ESTE PERÍODO DE REPORTE | AS22: JORGE EDUARDO CEBALLOS BETANCUR | AT22: 300 | AU22: 3 NO PACTADOS | AV22: 0 | AW22: 3 ADICIÓN EN VALOR y EN TIEMPO | AX22: 8606080 | AY22: 28/09/2017-10/11/2017-15/12/2017 | AZ22: 36 | BA22: 10/11/2017-15/12/2017 | BH22: OTRO SI MODIFICATORIO N°01 AL CPS011 DEL 16/01/2017 POR EL CUAL SE ADICIONA $1,470,160 MCTE Y EL OTRO SI MODIFICATORIO TIENE POR OBJETO MODIFICAR LAS OBLIGACIONES TECNICAS EL 28/09/2017 | BI22: 2017-09-28 | BJ22: 2017-01-17 | BK22: 2017-12-22 | BM22: 100 | BN22: 100 | BO22: 100 | BP22: 100 | BQ22: ADICION Y OTRO SI MODIFICATORIO N° 01 AL CPS 011 POR EL CUAL SE ADICIONA $1,470,160 Y SE MODIFICAN LAS OBLIGACIONES TECNICAS EL 28/09/2017, SE REPORTA EN EL CUARTO TRIMESTRE POR MODIFICACIÓN Y ADICIÓN TODA VEZ QUE NO SE REPORTO EN EL TERCER TRIMESTRE,ADICION N°02 Y PRORROGA N°01 AL POR EL CUAL SE ADICIONA EL VALOR DE $5.748.380 Y SE PRORROGA EL PLAZO DE EJECUCIÓN EN (29) DIAS MAS EL 10/11/2017, ADICION N°3 Y PRORROGA N°2 POR EL CUAL SE ADICIONA LA SUMA DE $1.387.540 Y SE PRORROGA EL PLAZO DE EJECUCION POR (7) DIAS MAS EL 15/12/2017, SE REPORTA EN EL PRIMER TRIMESTRE DEL 2018 POR ADICION N°03 Y PRORROGA N°2 TODA VEZ QUE NO SE REPORTO EN EL TRIMESTRE CORRESPONDIENTE. | BR22: POA INVESTIGACION Y MONITOREO SIIF CONOCIMIENTO VOC | BS22: NACION | BT22: 6017 | BU22: 49878000 | BV22: 2017-01-16 | BW22: 7117 | BX22: 49878000 | BY22: 2017-01-17 | BZ22: 2327640 | CA22: 4987800 | CB22: 4987800 | CC22: 4987800 | CD22: 4987800 | CE22: 4987800 | CF22: 4987800 | CG22: 4987800 | CH22: 4987800 | CI22: 5946600 | CJ22: 5946600 | CK22: 4360840 | CL22: 58484080 | CM22: 0 | CP22: CPS | CR22: 2017-09-30
A23: 12 | B23: FILA_12 | C23: 1 SI | E23: 012 | F23: 2017-01-17 | G23: 2 DOS VECES | H23: PRESTACION DE SERVICIOS PROFESIONALES Y DE APOYO A LA GESTION EN EL FORTALECIMIENTO DE LA INFRAESTRUCTURA TECNOLOGICA, ADMINISTRACION Y USO DE LOS SISTEMAS DE INFORMACION E INFRAESTRUCTURA TECNOLOGICA, DE LA DTAO Y SUS AREAS PROTEGIDAS | I23: DTAO | J23: 2 CONTRATACIÓN DIRECTA | K23: 14 PRESTACIÓN DE SERVICIOS | M23: CONTRATACION DIRECTA | N23: 80161500 Cód. 80161500 - Servicios de apoyo a la gestión | O23: 35598000 | S23: 3559800 | T23: 1 PERSONA NATURAL | U23: 2 RUT - REGISTRO ÚNICO TRIBUTARIO | V23: 1037591480 | X23: 3 DV 2 | Z23: ENVIGADO | AA23: JORGE HUMBERTO MUÑOZ HICAPIE | AB23: 1 PÓLIZA | AC23: 2 CUMPLIMIENTO | AD23: 2017-01-17 | AE23: SEGUROS DEL ESTADO | AF23: 65-44-101140892 | AG23: 2 SUPERVISOR | AN23: 3 CÉDULA DE CIUDADANÍA | AO23: 24582254 | AQ23: 11 NO SE DILIGENCIA INFORMACIÓN PARA ESTE FORMULARIO EN ESTE PERÍODO DE REPORTE | AS23: MONICA MARIA RODRIGUEZ ARIAS | AT23: 300 | AU23: 3 NO PACTADOS | AV23: 0 | AW23: 3 ADICIÓN EN VALOR y EN TIEMPO | AX23: 3441140 | AY23: 2017-11-09 | AZ23: 29 | BA23: 2017-11-09 | BJ23: 2017-01-17 | BK23: 2017-12-15 | BM23: 100 | BN23: 100 | BO23: 100 | BP23: 100 | BQ23: ADICION Y PRORROGA N°01 AL CPS012/2017 POR EL CUAL SE ADICIONA LA SUMA DE $3.441.140 Y SE PRORROGA EL PLAZO DE EJECUCI´PON POR (29) DIAS MAS EL 09/11/2017 | BR23: POA PLANEACION INTERNA SIIF FORTALECIMIENTO | BS23: NACION | BT23: 5917 | BU23: 35598000 | BV23: 2017-01-16 | BW23: 7517 | BX23: 35598000 | BY23: 2017-01-17 | BZ23: 1661240 | CA23: 3559800 | CB23: 3559800 | CC23: 3559800 | CD23: 3559800 | CE23: 3559800 | CF23: 3559800 | CG23: 3559800 | CH23: 3559800 | CI23: 3559800 | CJ23: 3559800 | CK23: 1779900 | CL23: 39039140 | CM23: 0 | CP23: CPS | CR23: 2017-09-30
A24: 13 | B24: FILA_13 | C24: 1 SI | E24: 013 | F24: 2017-01-17 | G24: 2 DOS VECES | H24: PRESTACION DE SERVICIOS PROFESIONALES Y DE APOYO A LA GESTION PARA EL AREA DE CONTRATOS DE LA DTAO DE PNN DE COLOMBIA PARA APOYAR LOS PROCESOS PRE-CONTRACTUALES, CONTRACTUALES Y POSTCONTRACTUALES, PROCESOS DE SELECCIÓN Y CONTRATACION DIRECTA, QUE SE ADELANTAN EN LA ENTIDAD CON RECURSOS DE GOBIERNO NACIONAL Y FONAM, TRAMITE DE ADICIONES, MODIFICACIONES, SUSPENCIONES Y PRORROGAS DE LOS CONTRATOS, ASI COMO LA ASESORIA EN TODO LO RELACIONADO CON LA NORMATIVIDAD AGRARIA Y USO, OCUPACION Y TENENCIA. | I24: DTAO | J24: 2 CONTRATACIÓN DIRECTA | K24: 14 PRESTACIÓN DE SERVICIOS | M24: CONTRATACION DIRECTA | N24: 80161500 Cód. 80161500 - Servicios de apoyo a la gestión | O24: 12340640 | S24: 3559800 | T24: 1 PERSONA NATURAL | U24: 2 RUT - REGISTRO ÚNICO TRIBUTARIO | V24: 1066728202 | X24: 10 DV 9 | Z24: PLANETA RICA | AA24: ANA MILENA FERNANDEZ ALVAREZ | AB24: 1 PÓLIZA | AC24: 2 CUMPLIMIENTO | AD24: 2017-01-17 | AE24: SEGUROS DEL ESTADO | AF24: 65-44-101140893 | AG24: 2 SUPERVISOR | AN24: 3 CÉDULA DE CIUDADANÍA | AO24: 24582254 | AQ24: 11 NO SE DILIGENCIA INFORMACIÓN PARA ESTE FORMULARIO EN ESTE PERÍODO DE REPORTE | AS24: MONICA MARIA RODRIGUEZ ARIAS | AT24: 105 | AU24: 3 NO PACTADOS | AV24: 0 | AW24: 4 NO SE HA ADICIONADO NI EN VALOR y EN TIEMPO | AX24: 0 | BJ24: 2017-01-17 | BK24: 2017-05-04 | BL24: 2017-05-04 | BM24: 100 | BN24: 100 | BO24: 100 | BP24: 100 | BQ24: EL CPS 013 DEL 17 DE ENERO DE 2017 SE LIQUIDA BILATERALMENTE | BR24: POA Y SIIF SANEAMIENTO | BS24: NACION | BT24: 6217 | BU24: 12340640 | BV24: 2017-01-17 | BW24: 7617 | BX24: 12340640 | BY24: 2017-01-17 | BZ24: 1661240 | CA24: 3559800 | CB24: 3559800 | CC24: 3559800 | CL24: 12340640 | CM24: 0 | CP24: CPS | CR24: 2017-09-30
A25: 14 | B25: FILA_14 | C25: 1 SI | E25: 014 | F25: 2017-01-17 | G25: 2 DOS VECES | H25: PRESTACION DE SERVICIOS TECNICOS Y DE APOYO A LA GESTION ADMINISTRATIVA PARA REALIZAR LA EJECUCION PRESUPUESTAL DEL AREA PROTEGIDA, DINAMIZAR LOS PROCESOS ADMINISTRATIVOS Y APOYAR EN EL SEGUIMIENTO A LA IMPLEMENTACION DE LAS ACCIONES DEFINIDAS EN EL PLAN OPERATIVO ANUAL 2017 Y DEL SISTEMA DE PLANEACION INSTITUCIONAL DEL PNN | I25: PNN TATAMA | J25: 2 CONTRATACIÓN DIRECTA | K25: 14 PRESTACIÓN DE SERVICIOS | M25: CONTRATACION DIRECTA | N25: 80161500 Cód. 80161500 - Servicios de apoyo a la gestión | O25: 20196000 | S25: 2019600 | T25: 1 PERSONA NATURAL | U25: 2 RUT - REGISTRO ÚNICO TRIBUTARIO | V25: 25195555 | X25: 4 DV 3 | Z25: SANTUARIO | AA25: LUZ ADRIANA RENDON MARIN | AB25: 1 PÓLIZA | AC25: 2 CUMPLIMIENTO | AD25: 2017-01-18 | AE25: CONFIANZA | AF25: 23 GU050100 | AG25: 2 SUPERVISOR | AN25: 3 CÉDULA DE CIUDADANÍA | AO25: 79125719 | AQ25: 11 NO SE DILIGENCIA INFORMACIÓN PARA ESTE FORMULARIO EN ESTE PERÍODO DE REPORTE | AS25: JUAN CARLOS TRONCOSO SAAVEDRA | AT25: 300 | AU25: 3 NO PACTADOS | AV25: 0 | AW25: 3 ADICIÓN EN VALOR y EN TIEMPO | AX25: 1884960 | AY25: 2017-11-09 | AZ25: 28 | BA25: 2017-11-09 | BJ25: 2017-01-18 | BK25: 2017-12-15 | BM25: 100 | BN25: 100 | BO25: 100 | BP25: 100 | BQ25: ADICION Y PRORROGA N°01 AL CPS014/2017 POR EL CUAL SE ADICIONA LA SUMA DE $1.884.960 Y SE PRORROGA EL PLAZO DE EJECUCIÓN POR (28) DIAS MAS EL 09/11/2017 | BR25: POA PLANEACION INTERNA SIIF FORTALECIMIENTO | BS25: NACION | BT25: 6117 | BU25: 20196000 | BV25: 2017-01-17 | BW25: 7717 | BX25: 20196000 | BY25: 2017-01-18 | BZ25: 875160 | CA25: 2019600 | CB25: 2019600 | CC25: 2019600 | CD25: 2019600 | CE25: 2019600 | CF25: 2019600 | CG25: 2019600 | CH25: 2019600 | CI25: 2019600 | CJ25: 2019600 | CK25: 1009800 | CL25: 22080960 | CM25: 0 | CP25: CPS | CR25: 2017-09-30
A26: 15 | B26: FILA_15 | C26: 1 SI | E26: 015 | F26: 2017-01-17 | G26: 2 DOS VECES | H26: PRESTACION DE SERVICIOS TECNICOS Y DE APOYO A LA GESTION PARA REALIZAR LA EJECUCION PRESUPUESTAL DEL AREA PROTEGIDA, DINAMIZAR LOS PROCESOS ADMINISTRATIVOS Y APOYAR EN EL SEGUIMIENTO A LA IMPLEMENTACION DE LAS ACCIONES DEFINIDAS EN EL PLAN ESTRATEGICO DEL PLAN DE MANEJO, PLAN OPERATIVO ANUAL Y DEMAS HERRAMIENTAS DE PLANEACION PARA EL PNN SELVA DE FLORENCIA | I26: PNN SELVA DE FLORENCIA | J26: 2 CONTRATACIÓN DIRECTA | K26: 14 PRESTACIÓN DE SERVICIOS | M26: CONTRATACION DIRECTA | N26: 80161500 Cód. 80161500 - Servicios de apoyo a la gestión | O26: 20196000 | S26: 2019600 | T26: 1 PERSONA NATURAL | U26: 2 RUT - REGISTRO ÚNICO TRIBUTARIO | V26: 30226156 | X26: 1 DV 0 | Z26: SAMANA | AA26: DIANA MARCELA PATIÑO SANCHEZ | AB26: 1 PÓLIZA | AC26: 2 CUMPLIMIENTO | AD26: 2017-01-18 | AE26: SEGUROS DEL ESTADO | AF26: 65-44-101140916 | AG26: 2 SUPERVISOR | AN26: 3 CÉDULA DE CIUDADANÍA | AO26: 10258001 | AQ26: 11 NO SE DILIGENCIA INFORMACIÓN PARA ESTE FORMULARIO EN ESTE PERÍODO DE REPORTE | AS26: HUGO FERNANDO BALLESTEROS BOTERO | AT26: 300 | AU26: 3 NO PACTADOS | AV26: 0 | AW26: 3 ADICIÓN EN VALOR y EN TIEMPO | AX26: 1884960 | AY26: 2017-11-10 | AZ26: 28 | BA26: 2017-11-10 | BJ26: 2017-01-18 | BK26: 2017-12-15 | BM26: 100 | BN26: 100 | BO26: 100 | BP26: 100 | BQ26: ADICION Y PRORROGA N|01 AL CPS 015/2017 POR EL CUAL SE ADICIONA LA SUMA DE $1.884.960 Y SE PRORROGA EL PLAZO DE EJECUCIÓN POR (28) DIAS MAS EL 10/11/2017 | BR26: POA PLANEACION INTERNA SIIF FORTALECIMIENTO | BS26: NACION | BT26: 6517 | BU26: 20196000 | BV26: 2017-01-17 | BW26: 7817 | BX26: 20196000 | BY26: 2017-01-18 | BZ26: 875160 | CA26: 2019600 | CB26: 2019600 | CC26: 2019600 | CD26: 2019600 | CE26: 2019600 | CF26: 2019600 | CG26: 2019600 | CH26: 2019600 | CI26: 2019600 | CJ26: 2019600 | CK26: 1009800 | CL26: 22080960 | CM26: 0 | CP26: CPS | CR26: 2017-09-30
A27: 16 | B27: FILA_16 | C27: 1 SI | E27: 016 | F27: 2017-01-17 | G27: 1 PRIMER VEZ | H27: PRESTAR LOS SERVICIOS PROFESIONALES Y DE APOYO A LA GESTION EN EL AREA DE CONTRATOS DE LA DTAO DE PNN DE COLOMBIA, CON LA FINALIDAD DE DAR CUMPLIMIENTO A LAS METAS Y OBJETIVOS INSTITUCIONALES Y FORTALECER LA GESTION JURIDICA ADMINISTRATIVA COMO TAMBIEN APOYAR EN LOS PROCESOS MISIONALES DE LA ENTIDAD | I27: DTAO | J27: 2 CONTRATACIÓN DIRECTA | K27: 14 PRESTACIÓN DE SERVICIOS | M27: CONTRATACION DIRECTA | N27: 80161500 Cód. 80161500 - Servicios de apoyo a la gestión | O27: 9088200 | S27: 2019600 | T27: 1 PERSONA NATURAL | U27: 2 RUT - REGISTRO ÚNICO TRIBUTARIO | V27: 8106567 | X27: 2 DV 1 | Z27: SABANETA | AA27: CESAR AUGUSTO PINO ORTIZ | AB27: 1 PÓLIZA | AC27: 2 CUMPLIMIENTO | AD27: 2017-01-17 | AE27: SEGUROS DEL ESTADO | AF27: 65-44-101140894 | AG27: 2 SUPERVISOR | AN27: 3 CÉDULA DE CIUDADANÍA | AO27: 24582254 | AQ27: 11 NO SE DILIGENCIA INFORMACIÓN PARA ESTE FORMULARIO EN ESTE PERÍODO DE REPORTE | AS27: MONICA MARIA RODRIGUEZ ARIAS | AT27: 135 | AU27: 3 NO PACTADOS | AV27: 0 | AW27: 4 NO SE HA ADICIONADO NI EN VALOR y EN TIEMPO | AX27: 0 | BJ27: 2017-01-17 | BK27: 2017-03-02 | BL27: 2017-03-02 | BM27: 100 | BN27: 100 | BO27: 100 | BP27: 100 | BQ27: EL CONTRATO SE TERMINA DE MANERA ANTICIPADA EL 28/02/2017 Y ES LIQUIDADO EL 02/03/2017 | BR27: POA PLANEACION INTERNA SIIF FORTALECIMIENTO | BS27: NACION | BT27: 6317 | BU27: 9088200 | BV27: 2017-01-17 | BW27: 7417 | BX27: 9088200 | BY27: 2017-01-17 | BZ27: 942480 | CA27: 2019600 | CL27: 2962080 | CM27: 6126120 | CP27: CPS | CR27: 2017-09-30
A28: 17 | B28: FILA_17 | C28: 1 SI | E28: 017 | F28: 2017-01-17 | G28: 1 PRIMER VEZ | H28: PRESTACION DE SERVICIOS TECNICOS Y DE APOYO A LA GESTION EN LOS PROCESOS Y PROCEDIMIENTOS ADMINISTRATIVOS, IMPLEMENTACION DEL SISTEMA DE GESTION DE CALIDAD DEL SISTEMA DE PNN PARA LA VIGENCIA 2017 | I28: PNN CVDJC | J28: 2 CONTRATACIÓN DIRECTA | K28: 14 PRESTACIÓN DE SERVICIOS | M28: CONTRATACION DIRECTA | N28: 80161500 Cód. 80161500 - Servicios de apoyo a la gestión | O28: 16983000 | S28: 1698300 | T28: 1 PERSONA NATURAL | U28: 2 RUT - REGISTRO ÚNICO TRIBUTARIO | V28: 80022533 | X28: 2 DV 1 | Z28: BOGOTA | AA28: RICARDO ANDRES BARCO GIRALDO | AB28: 1 PÓLIZA | AC28: 2 CUMPLIMIENTO | AD28: 2017-01-19 | AE28: CONFIANZA | AF28: 30 GU138046 | AG28: 2 SUPERVISOR | AN28: 3 CÉDULA DE CIUDADANÍA | AO28: 10537381 | AQ28: 11 NO SE DILIGENCIA INFORMACIÓN PARA ESTE FORMULARIO EN ESTE PERÍODO DE REPORTE | AS28: RICHARD MARINO MUÑOZ MOLANO | AT28: 300 | AU28: 3 NO PACTADOS | AV28: 0 | AW28: 4 NO SE HA ADICIONADO NI EN VALOR y EN TIEMPO | AX28: 0 | BJ28: 2017-01-19 | BK28: 2017-03-02 | BL28: 2017-03-02 | BM28: 100 | BN28: 100 | BO28: 100 | BP28: 100 | BQ28: EL CONTRATO SE TERMINA DE MANERA ANTICIPADA EL 28/02/2017 Y ES LIQUIDADO EL 02/03/2017 | BR28: POA PLANEACION INTERNA SIIF FORTALECIMIENTO | BS28: NACION | BT28: 6617 | BU28: 16983000 | BV28: 2017-01-17 | BW28: 9217 | BX28: 16983000 | BY28: 2017-01-19 | BZ28: 679320 | CA28: 1698300 | CL28: 2377620 | CM28: 14605380 | CP28: CPS | CR28: 2017-09-30
A29: 18 | B29: FILA_18 | C29: 1 SI | E29: 018 | F29: 2017-01-18 | G29: 2 DOS VECES | H29: PRESTACION DE SERVICIOS OPERATIVOS Y DE APOYO A LA GESTION ADMINISTRATIVA, COMO PARTE DE LA IMPLEMENTACION DEL SISTEMA DE GESTION EN EL PNN CVDJC DENTRO DE LA SUBSEDE DE LA DTAO - POPAYAN | I29: PNN CVDJC | J29: 2 CONTRATACIÓN DIRECTA | K29: 14 PRESTACIÓN DE SERVICIOS | M29: CONTRATACION DIRECTA | N29: 80161500 Cód. 80161500 - Servicios de apoyo a la gestión | O29: 13464000 | S29: 1224000 | T29: 1 PERSONA NATURAL | U29: 2 RUT - REGISTRO ÚNICO TRIBUTARIO | V29: 34544209 | X29: 1 DV 0 | Z29: POPAYAN | AA29: GLADYS MARINA RIASCOS GUACHETA | AB29: 1 PÓLIZA | AC29: 2 CUMPLIMIENTO | AD29: 2017-01-18 | AE29: CONFIANZA | AF29: 30 GU138018 | AG29: 2 SUPERVISOR | AN29: 3 CÉDULA DE CIUDADANÍA | AO29: 24582254 | AQ29: 11 NO SE DILIGENCIA INFORMACIÓN PARA ESTE FORMULARIO EN ESTE PERÍODO DE REPORTE | AS29: MONICA MARIA RODRIGUEZ ARIAS | AT29: 330 | AU29: 3 NO PACTADOS | AV29: 0 | AW29: 4 NO SE HA ADICIONADO NI EN VALOR y EN TIEMPO | AX29: 0 | BJ29: 2017-01-18 | BK29: 2017-12-17 | BM29: 100 | BN29: 100 | BO29: 100 | BP29: 100 | BR29: POA PLANEACION INTERNA SIIF FORTALECIMIENTO | BS29: NACION | BT29: 6417 | BU29: 13464000 | BV29: 2017-01-17 | BW29: 7917 | BX29: 13464000 | BY29: 2017-01-18 | BZ29: 530400 | CA29: 1224000 | CB29: 1224000 | CC29: 1224000 | CD29: 1224000 | CE29: 1224000 | CF29: 1224000 | CG29: 1224000 | CH29: 1224000 | CI29: 1224000 | CJ29: 1224000 | CK29: 693600 | CL29: 13464000 | CM29: 0 | CP29: CPS | CR29: 2017-09-30
A30: 19 | B30: FILA_19 | C30: 1 SI | E30: 019 | F30: 2017-01-19 | G30: 2 DOS VECES | H30: PRESTACION DE SERVICIOS TECNICOS Y DE APOYO A LA GESTION DEL PNN LAS HERMOSAS - GLORIA VALENCIA DE CASTAÑO PARA ADELANTAR PROCESOS DE CONTRATACION Y DE SEGUIMIENTO A LA EJECUCION PRESUPUESTAL ASIGNADA AL AREA PROTEGIDA POR RECURSOS DE GOBIERNO NACIONAL, FONAM Y PROYECTOS DE COOPERACION, COMO TAMBIEN REALIZAR ACOMPAÑAMIENTO AL EQUIPO EN TEMAS ADMINISTRATIVOS Y EN LOS INSTRUMENTOS DE GESTION EN CUMPLIMIENTO A LA METAS INSTITUCIONALES | I30: PNN LAS HERMOSAS | J30: 2 CONTRATACIÓN DIRECTA | K30: 14 PRESTACIÓN DE SERVICIOS | M30: CONTRATACION DIRECTA | N30: 80161500 Cód. 80161500 - Servicios de apoyo a la gestión | O30: 20196000 | S30: 2019600 | T30: 1 PERSONA NATURAL | U30: 2 RUT - REGISTRO ÚNICO TRIBUTARIO | V30: 52751572 | X30: 3 DV 2 | Z30: BOGOTA | AA30: JOHANA CAROLINA OSORIO PEREA | AB30: 1 PÓLIZA | AC30: 2 CUMPLIMIENTO | AD30: 2017-01-19 | AE30: SEGUROS DEL ESTADO | AF30: 45-44-101079317 | AG30: 2 SUPERVISOR | AN30: 3 CÉDULA DE CIUDADANÍA | AO30: 79576238 | AQ30: 11 NO SE DILIGENCIA INFORMACIÓN PARA ESTE FORMULARIO EN ESTE PERÍODO DE REPORTE | AS30: GERMAN ALBERTO RODRIGUEZ PENAGOS | AT30: 300 | AU30: 3 NO PACTADOS | AV30: 0 | AW30: 3 ADICIÓN EN VALOR y EN TIEMPO | AX30: 1817640 | AY30: 2017-11-07 | AZ30: 27 | BA30: 2017-11-07 | BJ30: 2017-01-19 | BK30: 2017-12-15 | BM30: 100 | BN30: 100 | BO30: 100 | BP30: 100 | BQ30: ADICION Y PRORROGA N|01 AL CPS019/2017 POR EL CUAL SE ADICIONA LA SUMA DE $ 1.817.640 Y SE PRORROGA EL PLAZO DE EJECUCIÓN EN 27 DIAS MAS EL 07/11/2017 | BR30: POA PLANEACION INTERNA SIIF FORTALECIMIENTO | BS30: NACION | BT30: 6717 | BU30: 20196000 | BV30: 2017-01-18 | BW30: 9117 | BX30: 20196000 | BY30: 2017-01-19 | BZ30: 807840 | CA30: 2019600 | CB30: 2019600 | CC30: 2019600 | CD30: 2019600 | CE30: 2019600 | CF30: 2019600 | CG30: 2019600 | CH30: 2019600 | CI30: 2019600 | CJ30: 2019600 | CK30: 1009800 | CL30: 22013640 | CM30: 0 | CP30: CPS | CR30: 2017-09-30
A31: 20 | B31: FILA_20 | C31: 1 SI | E31: 020 | F31: 2017-01-19 | G31: 2 DOS VECES | H31: PRESTACION DE SERVICIOS OPERATIVOS Y DE APOYO EN LA GESTION PARA REALIZAR EL EJERCICIO DE LA AUTORIDAD AMBIENTAL EN ACTIVIDADES DE PREVENCION, VIGILANCIA Y CONTROL, APOYO EN ECOTURISMO, MANTENIMIENTO Y ASEO DE INFRAESTRUCTURA Y ACTIVIDADES DE ERRADICACION DE LA ESPECIE INVASORA CROSCO MIA X CROSCOSMIFLORA, CON EL FIN DE DISMINUIR LAS PRESIONES QUE AFECTAN LA DINAMICA NATURAL DEL SFF ISLA DE LA COROTA | I31: SFF ISLA DE LA COROTA | J31: 2 CONTRATACIÓN DIRECTA | K31: 14 PRESTACIÓN DE SERVICIOS | M31: CONTRATACION DIRECTA | N31: 80161500 Cód. 80161500 - Servicios de apoyo a la gestión | O31: 12240000 | S31: 1224000 | T31: 1 PERSONA NATURAL | U31: 2 RUT - REGISTRO ÚNICO TRIBUTARIO | V31: 1085244106 | X31: 2 DV 1 | Z31: PASTO | AA31: JOSE LUIS LOPEZ MESIAS | AB31: 1 PÓLIZA | AC31: 2 CUMPLIMIENTO | AD31: 2017-01-20 | AE31: SEGUROS DEL ESTADO | AF31: 41-44-101184936 | AG31: 2 SUPERVISOR | AN31: 3 CÉDULA DE CIUDADANÍA | AO31: 12973611 | AQ31: 11 NO SE DILIGENCIA INFORMACIÓN PARA ESTE FORMULARIO EN ESTE PERÍODO DE REPORTE | AS31: IVAN MAURICIO ZAMBRANO PATIÑO | AT31: 300 | AU31: 3 NO PACTADOS | AV31: 0 | AW31: 3 ADICIÓN EN VALOR y EN TIEMPO | AX31: 1060800 | AY31: 2017-11-01 | AZ31: 26 | BA31: 2017-11-01 | BJ31: 2017-01-20 | BK31: 2017-12-15 | BM31: 100 | BN31: 100 | BO31: 100 | BP31: 100 | BQ31: ADICION Y PRORROGA N°01 AL CPS020/2017 POR EL CUAL SE ADICIONA LA SUMA DE $1.060.800 Y EN TIEMPO POR (26) DIAS MAS EL 01/11/2017 | BR31: POA REGULACION SIIF AUTORIDAD AMBIENTAL | BS31: NACION | BT31: 7217 | BU31: 12240000 | BV31: 2017-01-19 | BW31: 9717 | BX31: 12240000 | BY31: 2017-01-20 | BZ31: 448800 | CA31: 1224000 | CB31: 1224000 | CC31: 1224000 | CD31: 1224000 | CE31: 1224000 | CF31: 1224000 | CG31: 1224000 | CH31: 1224000 | CI31: 1224000 | CJ31: 1224000 | CK31: 612000 | CL31: 13300800 | CM31: =O31+AX31-BE31-BZ31-CA31-CB31-CC31-CD31-CE31-CF31-CG31-CH31-CI31-CJ31-CK31 -> 0 | CP31: CPS | CR31: 2017-09-30
A32: 21 | B32: FILA_21 | C32: 1 SI | E32: 021 | F32: 2017-01-19 | G32: 2 DOS VECES | H32: PRESTACION DE SERVICIOS OPERATIVOS Y DE APOYO A LA GESTION PARA REALIZAR ACTIVIDADES DE PREVENCION, VIGILANCIA Y CONTROL, MONITOREO, ERRADICACION DE LA ESPECIE INVASORA CROCOMIA X CROSCOSMIFLORA, APOYO EN ECOTURISMO, MONTENIMIENTO Y ASEO DE LOS BIENES MUEBLES E INMUEBLES, DEL SFF ISLA DE LA COROTA | I32: SFF ISLA DE LA COROTA | J32: 2 CONTRATACIÓN DIRECTA | K32: 14 PRESTACIÓN DE SERVICIOS | M32: CONTRATACION DIRECTA | N32: 80161500 Cód. 80161500 - Servicios de apoyo a la gestión | O32: 12240000 | S32: 1224000 | T32: 1 PERSONA NATURAL | U32: 2 RUT - REGISTRO ÚNICO TRIBUTARIO | V32: 12745277 | X32: 5 DV 4 | Z32: PASTO | AA32: OWER EDUARDO JURADO ARCINIEGAS | AB32: 1 PÓLIZA | AC32: 2 CUMPLIMIENTO | AD32: 2017-01-20 | AE32: SEGUROS DEL ESTADO | AF32: 41-44-101184934 | AG32: 2 SUPERVISOR | AN32: 3 CÉDULA DE CIUDADANÍA | AO32: 12973611 | AQ32: 11 NO SE DILIGENCIA INFORMACIÓN PARA ESTE FORMULARIO EN ESTE PERÍODO DE REPORTE | AS32: IVAN MAURICIO ZAMBRANO PATIÑO | AT32: 300 | AU32: 3 NO PACTADOS | AV32: 0 | AW32: 3 ADICIÓN EN VALOR y EN TIEMPO | AX32: 1060800 | AY32: 2017-11-01 | AZ32: 26 | BA32: 2017-11-01 | BJ32: 2017-01-20 | BK32: 2017-12-15 | BM32: 100 | BN32: 100 | BO32: 100 | BP32: 100 | BQ32: ADICION Y PRORROGA N°01 AL CPS021/2017 POR EL CUAL SE ADICIONA LA SUMA DE $1.060.800 Y EN TIEMPO POR (26) DIAS MAS EL 01/11/2017 | BR32: POA REGULACION SIIF AUTORIDAD AMBIENTAL | BS32: NACION | BT32: 7317 | BU32: 12240000 | BV32: 2017-01-19 | BW32: 9817 | BX32: 12240000 | BY32: 2017-01-20 | BZ32: 448800 | CA32: 1224000 | CB32: 1224000 | CC32: 1224000 | CD32: 1224000 | CE32: 1224000 | CF32: 1224000 | CG32: 1224000 | CH32: 1224000 | CI32: 1224000 | CJ32: 1224000 | CK32: 612000 | CL32: =BZ32+CA32+CB32+CC32+CD32+CE32+CF32+CG32+CH32+CI32+CJ32+CK32 -> 13300800 | CM32: 0 | CP32: CPS | CR32: 2017-09-30
A33: 22 | B33: FILA_22 | C33: 1 SI | E33: 022 | F33: 2017-01-20 | G33: 2 DOS VECES | H33: PRESTACION DE SERVICIOS PROFESIONALES Y DE APOYO A LA GESTION PARA LA CONSTRUCCION PARTICIPATIVA DEL PLAN DE MANEJO, PLAN DE ORDENAMIENTO ECOTURISTICO Y CAPACIDAD DE CARGA DEL SENDERO DE INTERPRETACION AMBIENTAL "EL QUICHE" EN CONJUNTO CON LAS INSTITUCIONES, ORGANIZACIONES Y ACTORES LOCALES, Y ELABORACION DE DOCUMENTOS RELACIONADOS CON LA PROPUESTA DE UNA ZONA CON FUNCION AMORTIGUADORA EN EL SFF ISLA DE LA COROTA | I33: SFF ISLA DE LA COROTA | J33: 2 CONTRATACIÓN DIRECTA | K33: 14 PRESTACIÓN DE SERVICIOS | M33: CONTRATACION DIRECTA | N33: 80161500 Cód. 80161500 - Servicios de apoyo a la gestión | O33: 29172000 | S33: 2917200 | T33: 1 PERSONA NATURAL | U33: 2 RUT - REGISTRO ÚNICO TRIBUTARIO | V33: 30711748 | X33: 1 DV 0 | Z33: PASTO | AA33: MIRIAM JUDITH HERRERA ROMO | AB33: 1 PÓLIZA | AC33: 2 CUMPLIMIENTO | AD33: 2017-01-20 | AE33: SEGUROS DEL ESTADO | AF33: 41-44-101184933 | AG33: 2 SUPERVISOR | AN33: 3 CÉDULA DE CIUDADANÍA | AO33: 12973611 | AQ33: 11 NO SE DILIGENCIA INFORMACIÓN PARA ESTE FORMULARIO EN ESTE PERÍODO DE REPORTE | AS33: IVAN MAURICIO ZAMBRANO PATIÑO | AT33: 300 | AU33: 3 NO PACTADOS | AV33: 0 | AW33: 3 ADICIÓN EN VALOR y EN TIEMPO | AX33: 2528240 | AY33: 2017-11-01 | AZ33: 26 | BA33: 2017-11-01 | BJ33: 2017-01-20 | BK33: 2017-12-15 | BM33: 100 | BN33: 100 | BO33: 100 | BP33: 100 | BQ33: ADICIÓN Y PRORROGA N°01 AL CPS022/2017 POR EL CUAL SE ADICIONA LA SUMA DE $2.528.240 Y EN TIEMPO POR (26) DIAS MAS EL 01/11/2017 | BR33: POA ZONAS DE INFLUENCIA SIIF COORDINACION SINAP | BS33: NACION | BT33: 6817 | BU33: 29172000 | BV33: 2017-01-18 | BW33: 9917 | BX33: 29172000 | BY33: 2017-01-20 | BZ33: 1069640 | CA33: 2917200 | CB33: 2917200 | CC33: 2917200 | CD33: 2917200 | CE33: 2917200 | CF33: 2917200 | CG33: 2917200 | CH33: 2917200 | CI33: 2917200 | CJ33: 2917200 | CK33: 1458600 | CL33: 31700240 | CM33: 0 | CP33: CPS | CR33: 2017-09-30
A34: 23 | B34: FILA_23 | C34: 1 SI | E34: 023 | F34: 2017-01-20 | G34: 2 DOS VECES | H34: PRESTACION DE SERVICIOS OPERATIVOS Y DE APOYO A LA GESTION DEL PNN TATAMA PARA REALIZAR ACTIVIDADES RELACIONADAS MONITOREO DE LOS VOC, PREVENCION, CONTROL Y VIGILANCIA QUE CONTRIBUYA A MINIMIZAR LAS PRESIONES Y AMENAZAS A LOS ELEMENTOS NATURALES DEL AREA PROTEGIDA, PARA REGULAR Y CONTROLAR EL USO Y APROVECHAMIENTO DE LOS RECURSOS NATURALES TANTO AL INTERIOR DEL PARQUE, COMO EN SU ZONA DE INFLUENCIA, EN CUMPLIMIENTO DE LAS MMETAS RELACIONADAS EN EL SUBPROGRAMA: "MONITOREO DE LOS VOC Y REGULAR Y CONTROLAR EL USO Y APROVECHAMIENTO DE LOS RECURSOS NATURALES EN LAS AREAS DEL SPNN" | I34: PNN TATAMA | J34: 2 CONTRATACIÓN DIRECTA | K34: 14 PRESTACIÓN DE SERVICIOS | M34: CONTRATACION DIRECTA | N34: 80161500 Cód. 80161500 - Servicios de apoyo a la gestión | O34: 12240000 | S34: 1224000 | T34: 1 PERSONA NATURAL | U34: 2 RUT - REGISTRO ÚNICO TRIBUTARIO | V34: 9957887 | X34: 7 DV 6 | Z34: SANTUARIO | AA34: JHON EDUAR ROJAS OSORIO | AB34: 1 PÓLIZA | AC34: 2 CUMPLIMIENTO | AD34: 2017-01-23 | AE34: CONFIANZA | AF34: 23 GU050218 | AG34: 2 SUPERVISOR | AN34: 3 CÉDULA DE CIUDADANÍA | AO34: 79125719 | AQ34: 11 NO SE DILIGENCIA INFORMACIÓN PARA ESTE FORMULARIO EN ESTE PERÍODO DE REPORTE | AS34: JUAN CARLOS TRONCOSO SAAVEDRA | AT34: 300 | AU34: 3 NO PACTADOS | AV34: 0 | AW34: 3 ADICIÓN EN VALOR y EN TIEMPO | AX34: 938400 | AY34: 2017-11-08 | AZ34: 23 | BA34: 2017-11-08 | BJ34: 2017-01-23 | BK34: 2017-12-15 | BM34: 100 | BN34: 100 | BO34: 100 | BP34: 100 | BQ34: ADICION Y PRORROGA N°01 AL CPS 023/2017 POR EL CUAL SE ADICIONA LA SUMA DE 938.400 Y SE PRORROGA EL PLAZO DE EJECUCIÓNE EN 23 DIAS MAS EL 08/11/2017 | BR34: POA Y SIIF CONOCIMIENTO VOC | BS34: NACION | BT34: 8317 | BU34: 12240000 | BV34: 2017-01-20 | BW34: 10317 | BX34: 12240000 | BY34: 2017-01-23 | BZ34: 326400 | CA34: 1224000 | CB34: 1224000 | CC34: 1224000 | CD34: 1224000 | CE34: 1224000 | CF34: 1224000 | CG34: 1224000 | CH34: 1224000 | CI34: 1224000 | CJ34: 1224000 | CK34: 612000 | CL34: 13178400 | CM34: 0 | CP34: CPS | CR34: 2017-09-30
A35: 24 | B35: FILA_24 | C35: 1 SI | E35: 024 | F35: 2017-01-20 | G35: 2 DOS VECES | H35: PRESTACION DE SERVICIOS OPERATIVOS Y DE APOYO A LA GESTION DEL PNN TATAMA PARA REALIZAR ACTIVIDADES RELACIONADAS CON EL MONITOREO DE LOS VOC, PREVENCION, VIGILANCIA Y CONTROL, DE APOYO A LOS ACUERDOS DE MANEJO CON COMUNIDADES ETNICAS EN DESARROLLO DE LA ESTRATEGIA DE RELACIONAMIENTO CON CADA UNA DE ELLAS, ASI MISMOO APOYAR EL CUMPLIMIENTO DE LOS PLANES DE TRABAJO SUSCRITOS CON ELLAS ENMARCADOSEN EL ORDENAMIENTO DEL TERRITORIO EN ZONA DE INFLUENCIA DEL PARUQE DONDE HAY TERRITORIOS COLECTIVOS, EN CUMPLIMIENTO DE LAS METAS RELACIONADAS EN EL SUBPROGRAMA DE "REGULACION DE USOS" | I35: PNN TATAMA | J35: 2 CONTRATACIÓN DIRECTA | K35: 14 PRESTACIÓN DE SERVICIOS | M35: CONTRATACION DIRECTA | N35: 80161500 Cód. 80161500 - Servicios de apoyo a la gestión | O35: 12240000 | S35: 1224000 | T35: 1 PERSONA NATURAL | U35: 2 RUT - REGISTRO ÚNICO TRIBUTARIO | V35: 82361782 | X35: 9 DV 8 | Z35: TADO | AA35: JOSE OCTAVIANO MOSQUERA BUENAÑOS | AB35: 1 PÓLIZA | AC35: 2 CUMPLIMIENTO | AD35: 2017-01-23 | AE35: CONFIANZA | AF35: 23 GU050219 | AG35: 2 SUPERVISOR | AN35: 3 CÉDULA DE CIUDADANÍA | AO35: 79125719 | AQ35: 11 NO SE DILIGENCIA INFORMACIÓN PARA ESTE FORMULARIO EN ESTE PERÍODO DE REPORTE | AS35: JUAN CARLOS TRONCOSO SAAVEDRA | AT35: 300 | AU35: 3 NO PACTADOS | AV35: 0 | AW35: 3 ADICIÓN EN VALOR y EN TIEMPO | AX35: 938400 | AY35: 2017-11-08 | AZ35: 23 | BA35: 2017-11-08 | BJ35: 2017-01-23 | BK35: 2017-12-15 | BM35: 100 | BN35: 100 | BO35: 100 | BP35: 100 | BQ35: ADICION Y PRORROGA N°01 AL CPS024/2017 POR EL CUAL SE ADICIONA LA SUMA DE $938.400 Y SE PRORROGA EL PLAZO DE EJECUCIÓN POR (23) DIAS MAS EL 08/11/2017 | BR35: POA REGULACION SIIF AUTORIDAD AMBIENTAL | BS35: NACION | BT35: 8217 | BU35: 12240000 | BV35: 2017-01-20 | BW35: 10217 | BX35: 12240000 | BY35: 2017-01-23 | BZ35: 326400 | CA35: 1224000 | CB35: 1224000 | CC35: 1224000 | CD35: 1224000 | CE35: 1224000 | CF35: 1224000 | CG35: 1224000 | CH35: 1224000 | CI35: 1224000 | CJ35: 1224000 | CK35: 612000 | CL35: 13178400 | CM35: 0 | CP35: CPS | CR35: 2017-09-30
A36: 25 | B36: FILA_25 | C36: 1 SI | E36: 025 | F36: 2017-01-20 | G36: 2 DOS VECES | H36: PRESTACION DE SERVICIOS OPERATIVOS Y DE APOY A LA GESTION DEL PNN TATAMA, PARA LA REALIZACION DE ACTIVIDADES ENCAMINADAS AL MONITOREO DE ESPECIES AL INTERIOR DEL AREA PROTEGIDA Y A LA IMPLEMENTACION DEL PLAN LOCAL DE PREVENCION, VIGILANCIA Y CONTROL, RESTAURACION ECOLOGICA, EN COORDINACION CON LAS AUTORIDADES COMPETENTES CUANDO HAYA LUGAR, CON LA FINALIDAD DE REALIZAR EL CONTROL Y REDUCIR LAS PRESIONES SOBRE LOS RECURSOS NATURALES Y LOS VALORES OBJETO DE COSERVACION | I36: PNN TATAMA | J36: 2 CONTRATACIÓN DIRECTA | K36: 14 PRESTACIÓN DE SERVICIOS | M36: CONTRATACION DIRECTA | N36: 80161500 Cód. 80161500 - Servicios de apoyo a la gestión | O36: 12240000 | S36: 1224000 | T36: 1 PERSONA NATURAL | U36: 2 RUT - REGISTRO ÚNICO TRIBUTARIO | V36: 9957426 | X36: 5 DV 4 | Z36: SANTUARIO | AA36: JOSE NARCISO GOMEZ GONZALEZ | AB36: 1 PÓLIZA | AC36: 2 CUMPLIMIENTO | AD36: 2017-01-23 | AE36: CONFIANZA | AF36: 23 GU050217 | AG36: 2 SUPERVISOR | AN36: 3 CÉDULA DE CIUDADANÍA | AO36: 79125719 | AQ36: 11 NO SE DILIGENCIA INFORMACIÓN PARA ESTE FORMULARIO EN ESTE PERÍODO DE REPORTE | AS36: JUAN CARLOS TRONCOSO SAAVEDRA | AT36: 300 | AU36: 3 NO PACTADOS | AV36: 0 | AW36: 3 ADICIÓN EN VALOR y EN TIEMPO | AX36: 938400 | AY36: 2017-11-08 | AZ36: 23 | BA36: 2017-11-08 | BJ36: 2017-01-23 | BK36: 2017-12-15 | BM36: 100 | BN36: 100 | BO36: 100 | BP36: 100 | BQ36: ADICION Y PRORROGA N°01 AL CPS 025/2017 POR EL CUAL SE ADICIONA LA SUMA DE $938.400 Y EL PLAZO DE EJECUCIÓN EN 23 DIAS MAS EL 08/11/2017 | BR36: POA REGULACION SIIF AUTORIDAD AMBIENTAL | BS36: NACION | BT36: 8417 | BU36: 12240000 | BV36: 2017-01-20 | BW36: 10117 | BX36: 12240000 | BY36: 2017-01-23 | BZ36: 326400 | CA36: 1224000 | CB36: 1224000 | CC36: 1224000 | CD36: 1224000 | CE36: 1224000 | CF36: 1224000 | CG36: 1224000 | CH36: 1224000 | CI36: 1224000 | CJ36: 1224000 | CK36: 612000 | CL36: 13178400 | CM36: 0 | CP36: CPS | CR36: 2017-09-30
A37: 26 | B37: FILA_26 | C37: 1 SI | E37: 026 | F37: 2017-01-20 | G37: 2 DOS VECES | H37: PRESTACION DE SERVICIOS TECNICOS Y DE APOYO A LA GESTION, PARA DINAMIZAR LA IMPLEMENTACION DEL PROGRAMA DE MONITOREO SOBRE LOS VALORES OBJETO DE CONSERVACION DEFINIDOS PARA EL AREA PROTEGIDA ASI COMO GENERAR EL SEGUIMIENTO Y CONTROL AL CUMPLIMIENTO DE LAS OBLIGACIONES CONTRACTUALES Y COMPROMISOS LABORALES DEL EQUIPO DE TRABAJO; EN FUNCION DE LAS METAS ESTABLECIDAS EN EL PLAN ESTRATEGICO DEL PLAN DE MANEJO DEL PNN LOS NEVADOS | I37: PNN LOS NEVADOS | J37: 2 CONTRATACIÓN DIRECTA | K37: 14 PRESTACIÓN DE SERVICIOS | M37: CONTRATACION DIRECTA | N37: 80161500 Cód. 80161500 - Servicios de apoyo a la gestión | O37: 24378000 | S37: 2437800 | T37: 1 PERSONA NATURAL | U37: 2 RUT - REGISTRO ÚNICO TRIBUTARIO | V37: 80222817 | X37: 5 DV 4 | Z37: BOGOTA | AA37: EDGAR FABIAN PESCADOR CASTILLO | AB37: 1 PÓLIZA | AC37: 2 CUMPLIMIENTO | AD37: 2017-01-24 | AE37: CONFIANZA | AF37: 28 GU003369 | AG37: 2 SUPERVISOR | AN37: 3 CÉDULA DE CIUDADANÍA | AO37: 79121466 | AQ37: 11 NO SE DILIGENCIA INFORMACIÓN PARA ESTE FORMULARIO EN ESTE PERÍODO DE REPORTE | AS37: EFRAIM AUGUSTO RODRIGUEZ VARON | AT37: 300 | AU37: 3 NO PACTADOS | AV37: 0 | AW37: 3 ADICIÓN EN VALOR y EN TIEMPO | AX37: 1787720 | AY37: 2017-11-03 | AZ37: 22 | BA37: 2017-11-03 | BJ37: 2017-01-24 | BK37: 2017-12-15 | BM37: 100 | BN37: 100 | BO37: 100 | BP37: 100 | BQ37: ADICION Y PRORROGA N°01 AL CPS026/2017 POR EL CUAL SE ADICIONA LA SUMA DE $1.787.720 Y EN TIEMPO POR (22) DIAS EL 03/11/2017 | BR37: POA Y SIIF CONOCIMIENTO VOC | BS37: NACION | BT37: 8117 | BU37: 24378000 | BV37: 2017-01-20 | BW37: 10517 | BX37: 24378000 | BY37: 2017-01-23 | BZ37: 568820 | CA37: 2437800 | CB37: 2437800 | CC37: 2437800 | CD37: 2437800 | CE37: 2437800 | CF37: 2437800 | CG37: 2437800 | CH37: 2437800 | CI37: 2437800 | CJ37: 2437800 | CK37: 1218900 | CL37: 26165720 | CM37: 0 | CP37: CPS | CR37: 2017-09-30
A38: 27 | B38: FILA_27 | C38: 1 SI | E38: 027 | F38: 2017-01-23 | G38: 1 PRIMER VEZ | H38: PRESTACION DE SERVICIOS TECNICOS Y DE APOYO A LA GESTION DEL SFF GALERAS , ESPECIFICAMENTE EN EL DESARROLLO DE ACTIVIDADES, TRAMITES Y PROCESOS ADMINISTRATIVOS QUE REALIZA EL AREA PROTEGIDA, LOS CUALES DEBEN RESPONDER A LAS NORMAS TECNICAS DE CALIDAD, NORMAS DE ARCHIVO GENERAL, MODELO ESTANDAR DE CONTROL INTERNO Y EN SI AL SISTEMA INTEGRADO DE GESTION DE LA ENTIDAD | I38: SFF GALERAS | J38: 2 CONTRATACIÓN DIRECTA | K38: 14 PRESTACIÓN DE SERVICIOS | M38: CONTRATACION DIRECTA | N38: 80161500 Cód. 80161500 - Servicios de apoyo a la gestión | O38: 16983000 | S38: 1698300 | T38: 1 PERSONA NATURAL | U38: 2 RUT - REGISTRO ÚNICO TRIBUTARIO | V38: 30734329 | X38: 8 DV 7 | Z38: PASTO | AA38: RUTH AMPARO CORDOBA QUIÑONEZ | AB38: 1 PÓLIZA | AC38: 2 CUMPLIMIENTO | AD38: 2017-01-23 | AE38: SEGUROS DEL ESTADO | AF38: 41-44-101185010 | AG38: 2 SUPERVISOR | AN38: 3 CÉDULA DE CIUDADANÍA | AO38: 30705143 | AQ38: 11 NO SE DILIGENCIA INFORMACIÓN PARA ESTE FORMULARIO EN ESTE PERÍODO DE REPORTE | AS38: NANCY LOPEZ DE VILES | AT38: 300 | AU38: 3 NO PACTADOS | AV38: 0 | AW38: 4 NO SE HA ADICIONADO NI EN VALOR y EN TIEMPO | BJ38: 2017-01-23 | BK38: 2017-11-22 | BM38: 100 | BN38: 100 | BO38: 100 | BP38: 100 | BR38: POA PLANEACION INTERNA SIIF FORTALECIMIENTO | BS38: NACION | BT38: 7617 | BU38: 16983000 | BV38: 2017-01-20 | BW38: 10417 | BX38: 16983000 | BY38: 2017-01-23 | BZ38: 452880 | CA38: 1698300 | CB38: 1698300 | CC38: 1698300 | CD38: 1698300 | CE38: 1698300 | CF38: 1698300 | CG38: 1698300 | CH38: 1698300 | CI38: 1698300 | CJ38: 1245420 | CK38: 0 | CL38: =BZ38+CA38+CB38+CC38+CD38+CE38+CF38+CG38+CH38+CI38+CJ38+CK38 -> 16983000 | CM38: 0 | CP38: CPS | CR38: 2017-12-30
A39: 28 | B39: FILA_28 | C39: 1 SI | E39: 028 | F39: 2017-01-24 | G39: 2 DOS VECES | H39: PRESTACION DE SERVICIOS OPERATIVOS Y DE APOYO A LA GESTION EN LA EJECUCION DE ACTIVIDADES DE PREVENCION, CONTROL Y VIGILANCIA; Y PRESENCIA INSTITUCIONAL; EN EL SFF GALERAS - SECTOR LAGUNA NEGRA, ASÍ COMO APOYAR EVENTUALMENTE LA ATENCION DE INCENDIOS Y OTRAS ACTIVIDADES EN TODO EL SANTUARIO, DE ACUERDO A LA PROGRAMACION DE LA JEFE DEL AREA PROTEGIDA | I39: SFF GALERAS | J39: 2 CONTRATACIÓN DIRECTA | K39: 14 PRESTACIÓN DE SERVICIOS | M39: CONTRATACION DIRECTA | N39: 80161500 Cód. 80161500 - Servicios de apoyo a la gestión | O39: 12240000 | S39: 1224000 | T39: 1 PERSONA NATURAL | U39: 2 RUT - REGISTRO ÚNICO TRIBUTARIO | V39: 87490974 | X39: 7 DV 6 | Z39: CONSACA | AA39: JUAN CARLOS NARVAEZ ARMERO | AB39: 1 PÓLIZA | AC39: 2 CUMPLIMIENTO | AD39: 2017-01-27 | AE39: SEGUROS DEL ESTADO | AF39: 41-44-101185148 | AG39: 2 SUPERVISOR | AN39: 3 CÉDULA DE CIUDADANÍA | AO39: 30705143 | AQ39: 11 NO SE DILIGENCIA INFORMACIÓN PARA ESTE FORMULARIO EN ESTE PERÍODO DE REPORTE | AS39: NANCY LOPEZ DE VILES | AT39: 300 | AU39: 3 NO PACTADOS | AV39: 0 | AW39: 3 ADICIÓN EN VALOR y EN TIEMPO | AX39: 775200 | AY39: 2017-11-07 | AZ39: 19 | BA39: 2017-11-07 | BJ39: 2017-01-27 | BK39: 2017-12-15 | BM39: 100 | BN39: 100 | BO39: 100 | BP39: 100 | BQ39: ADICION Y PRORROGA N|01 AL CPS028/2017 POR EL CUAL SE ADICIONA LA SUMA DE $775.200 Y SE PRORROGA EL PLAZO DE EJECUCIÓN EN (19) DIAS MAS EL 07/11/2017 | BR39: POA REGULACION SIIF AUTORIDAD AMBIENTAL | BS39: NACION | BT39: 8817 | BU39: 12240000 | BV39: 2017-01-23 | BW39: 12917 | BX39: 12240000 | BY39: 2017-01-25 | BZ39: 163200 | CA39: 1224000 | CB39: 1224000 | CC39: 1224000 | CD39: 1224000 | CE39: 1224000 | CF39: 1224000 | CG39: 1224000 | CH39: 1224000 | CI39: 1224000 | CJ39: 1224000 | CK39: 612000 | CL39: 13015200 | CM39: 0 | CP39: CPS | CR39: 2017-12-30
A40: 29 | B40: FILA_29 | C40: 1 SI | E40: 029 | F40: 2017-01-23 | G40: 2 DOS VECES | H40: PRESTACION DE SERVICIOS OPERATIVOS Y DE APOYO A LA GESTION PARA REALIZAR ACTIVIDADES RELACIONADAS EN EL PLAN Y PROTOCOLO DE PREVENCION, VIGILANCIA Y CONTROL DEL PNN LOS NEVADOS, A TRAVES DE ACCIONES ENCAMINADAS A PREVENIR, MITIGAR Y CORREGIR PRESIONES QUE AFECTAN LA INTEGRIDAD ECOLOGICA Y LA REPRESENTATIVIDAD ECOSISTEMICA DEL AREA PROTEGIDA | I40: PNN LOS NEVADOS | J40: 2 CONTRATACIÓN DIRECTA | K40: 14 PRESTACIÓN DE SERVICIOS | M40: CONTRATACION DIRECTA | N40: 80161500 Cód. 80161500 - Servicios de apoyo a la gestión | O40: 12240000 | S40: 1224000 | T40: 1 PERSONA NATURAL | U40: 2 RUT - REGISTRO ÚNICO TRIBUTARIO | V40: 4564680 | X40: 4 DV 3 | Z40: SALENTO | AA40: CARLOS ALBERTO GARCIA MANRIQUE | AB40: 1 PÓLIZA | AC40: 2 CUMPLIMIENTO | AD40: 2017-01-24 | AE40: SEGUROS DEL ESTADO | AF40: 60-44-101003611 | AG40: 2 SUPERVISOR | AN40: 3 CÉDULA DE CIUDADANÍA | AO40: 79121466 | AQ40: 11 NO SE DILIGENCIA INFORMACIÓN PARA ESTE FORMULARIO EN ESTE PERÍODO DE REPORTE | AS40: EFRAIM AUGUSTO RODRIGUEZ VARON | AT40: 300 | AU40: 3 NO PACTADOS | AV40: 0 | AW40: 3 ADICIÓN EN VALOR y EN TIEMPO | AX40: 897600 | AY40: 2017-11-08 | AZ40: 22 | BA40: 2017-11-08 | BJ40: 2017-01-24 | BK40: 2017-12-15 | BM40: 100 | BN40: 100 | BO40: 100 | BP40: 100 | BQ40: ADICION Y PRORROGA N°01 AL CPS029/2017 POR EL CUAL SE ADICIONA LA SUMA DE $897.600 Y EN TIEMPO POR (22) DIAS MAS EL 08/11/2017 | BR40: POA REGULACION SIIF AUTORIDAD AMBIENTAL | BS40: NACION | BT40: 7017 | BU40: 12240000 | BV40: 2017-01-19 | BW40: 10917 | BX40: 12240000 | BY40: 2017-01-24 | BZ40: 285600 | CA40: 1224000 | CB40: 1224000 | CC40: 1224000 | CD40: 1224000 | CE40: 1224000 | CF40: 1224000 | CG40: 1224000 | CH40: 1224000 | CI40: 1224000 | CJ40: 1224000 | CK40: 612000 | CL40: 13137600 | CM40: 0 | CP40: CPS | CR40: 2017-12-30
A41: 30 | B41: FILA_30 | C41: 1 SI | E41: 030 | F41: 2017-01-24 | G41: 2 DOS VECES | H41: PRESTACION DE SERVICIOS TECNICOS Y DE APOYO A LA GESTION, PARA LA GENERACION DE LA CARTOGRAFIA ASOCIADA A LAS DIFERENTES SITUACIONES DE MANEJO IDENTIFICADAS POR EL PARQUE, ESPECIFICAMENTE LAS RELACIONA CON EL USO, OCUPACION Y TENENCIA, PREVENCION, VIGILANCIA Y CONTROL, MONITOREO E INVESTIGACIONES, GESTION DEL RIESGO, ADEMAS DE APOYO A PROYECTOS ESPECIALES COMO GEOPARQUE, CON EL FIN DE CONSOLIDAR EL SISTEMA DE INFORMACION GEOGRAFICA DEL AREA PROTEGIDA, INSUMO PARA LA PLANIFICACION, GESTION Y TOMA DE DECISIONES, APORTANDO EL CUMPLIMIENTO DE LAS METAS DEL PLAN DE MANEJO | I41: PNN LOS NEVADOS | J41: 2 CONTRATACIÓN DIRECTA | K41: 14 PRESTACIÓN DE SERVICIOS | M41: CONTRATACION DIRECTA | N41: 80161500 Cód. 80161500 - Servicios de apoyo a la gestión | O41: 20196000 | S41: 2019600 | T41: 1 PERSONA NATURAL | U41: 2 RUT - REGISTRO ÚNICO TRIBUTARIO | V41: 75100203 | X41: 1 DV 0 | Z41: MANIZALES | AA41: LUIS FERNANDO GOMEZ GIRALDO | AB41: 1 PÓLIZA | AC41: 2 CUMPLIMIENTO | AD41: 2017-01-24 | AE41: SEGUROS DEL ESTADO | AF41: 42--4-1010-97460 | AG41: 2 SUPERVISOR | AN41: 3 CÉDULA DE CIUDADANÍA | AO41: 79121466 | AQ41: 11 NO SE DILIGENCIA INFORMACIÓN PARA ESTE FORMULARIO EN ESTE PERÍODO DE REPORTE | AS41: EFRAIM AUGUSTO RODRIGUEZ VARON | AT41: 300 | AU41: 3 NO PACTADOS | AV41: 0 | AW41: 3 ADICIÓN EN VALOR y EN TIEMPO | AX41: 1481040 | AY41: 2017-11-07 | AZ41: 22 | BA41: 2017-11-07 | BJ41: 2017-01-24 | BK41: 2017-12-15 | BM41: 100 | BN41: 100 | BO41: 100 | BP41: 100 | BQ41: ADICION Y PRORROGA N°01 AL CPS030/2017 POR EL CUAL SE ADICIONA LA SUMA DE $1.481.040 Y SE PRORROGA EL PLAZO DE EJECUCIÓN POR (22) DIAS MAS EL 07/11/2017 | BR41: POA Y SIIF SANEAMIENTO | BS41: NACION | BT41: 8917 | BU41: 20196000 | BV41: 2017-01-23 | BW41: 11017 | BX41: 20196000 | BY41: 2017-01-24 | BZ41: 471240 | CA41: 2019600 | CB41: 2019600 | CC41: 2019600 | CD41: 2019600 | CE41: 2019600 | CF41: 2019600 | CG41: 2019600 | CH41: 2019600 | CI41: 2019600 | CJ41: 2019600 | CK41: 1009800 | CL41: 21677040 | CM41: 0 | CP41: CPS | CR41: 2017-12-30
A42: 31 | B42: FILA_31 | C42: 1 SI | E42: 031 | F42: 2017-01-23 | G42: 2 DOS VECES | H42: PRESTACION DE SERVICIOS TECNICOS Y DE APOYO A LA GESTION ADMINISTRATIVA DEL PNN LAS ORQUIDEAS PARA ADELANTAR LOS TRAMITES Y PROCESOS DE LA PLANEACION DEL AREA, LA EJECUCION PRESUPUESTAL, APOYO Y SEGUIMIENTO A LA CONTRATACION Y PROYECTOS CON LOS QUE CUENTA EL PARQUE | I42: PNN LAS ORQUIDEAS | J42: 2 CONTRATACIÓN DIRECTA | K42: 14 PRESTACIÓN DE SERVICIOS | M42: CONTRATACION DIRECTA | N42: 80161500 Cód. 80161500 - Servicios de apoyo a la gestión | O42: 20196000 | S42: 2019600 | T42: 1 PERSONA NATURAL | U42: 2 RUT - REGISTRO ÚNICO TRIBUTARIO | V42: 1035859381 | X42: 8 DV 7 | Z42: GIRARDOTA | AA42: LUIS FELIPE GOMEZ PEREZ | AB42: 1 PÓLIZA | AC42: 2 CUMPLIMIENTO | AD42: 2017-01-25 | AE42: SEGUROS DEL ESTADO | AF42: 65-44-101141424 | AG42: 2 SUPERVISOR | AN42: 3 CÉDULA DE CIUDADANÍA | AO42: 71621569 | AQ42: 11 NO SE DILIGENCIA INFORMACIÓN PARA ESTE FORMULARIO EN ESTE PERÍODO DE REPORTE | AS42: JOHN JAIRO RESTREPO SALAZAR | AT42: 300 | AU42: 3 NO PACTADOS | AV42: 0 | AW42: 3 ADICIÓN EN VALOR y EN TIEMPO | AX42: 1413720 | AY42: 2017-11-07 | AZ42: 21 | BA42: 2017-11-07 | BJ42: 2017-01-25 | BK42: 2017-12-15 | BM42: 100 | BN42: 100 | BO42: 100 | BP42: 100 | BQ42: ADICION Y PRORROGA N|01 AL CPS031/2017 POR EL CUAL SE ADICIONA LA SUMA DE $1.413.720 Y SE PRORROGA EL PLAZO DE EJECUCIÓN EN (21) DIAS MAS. | BR42: POA PLANEACION INTERNA SIIF FORTALECIMIENTO | BS42: NACION | BT42: 7517 | BU42: 20196000 | BV42: 2017-01-20 | BW42: 10717 | BX42: 20196000 | BY42: 2017-01-23 | BZ42: 403920 | CA42: 2019600 | CB42: 2019600 | CC42: 2019600 | CD42: 2019600 | CE42: 2019600 | CF42: 2019600 | CG42: 2019600 | CH42: 2019600 | CI42: 2019600 | CJ42: 2019600 | CK42: 1009800 | CL42: 21609720 | CM42: 0 | CP42: CPS | CR42: 2017-12-30
A43: 32 | B43: FILA_32 | C43: 1 SI | E43: 032 | F43: 2017-01-23 | G43: 2 DOS VECES | H43: PRESTACION DE SERVICIOS OPERATIVOS Y DE APOYO A LA GESTION PARA REALIZAR ACTIVIDADES RELACIONADAS EN EL PLAN Y PROTOCOLO DE PREVENCION, VIGILANCIA Y CONTROL DEL PNN LOS NEVADOS, A TRAVES DE ACCIONES ENCAMINADAS A PREVENIR, MITIGAR Y CORREGIR PRESIONES QUE AFECTAN LA INTEGRIDAD ECOLOGICA Y LA REPRESENTATIVIDAD ECOSISTEMICA DEL AREA PROTEGIDA | I43: PNN LOS NEVADOS | J43: 2 CONTRATACIÓN DIRECTA | K43: 14 PRESTACIÓN DE SERVICIOS | M43: CONTRATACION DIRECTA | N43: 80161500 Cód. 80161500 - Servicios de apoyo a la gestión | O43: 12240000 | S43: 1224000 | T43: 1 PERSONA NATURAL | U43: 2 RUT - REGISTRO ÚNICO TRIBUTARIO | V43: 15940067 | X43: 1 DV 0 | Z43: SALAMINA | AA43: BERNARDO MOLINA ECHEVERRI | AB43: 1 PÓLIZA | AC43: 2 CUMPLIMIENTO | AD43: 2017-01-24 | AE43: CONFIANZA | AF43: 16 GU061641 | AG43: 2 SUPERVISOR | AN43: 3 CÉDULA DE CIUDADANÍA | AO43: 79121466 | AQ43: 11 NO SE DILIGENCIA INFORMACIÓN PARA ESTE FORMULARIO EN ESTE PERÍODO DE REPORTE | AS43: EFRAIM AUGUSTO RODRIGUEZ VARON | AT43: 300 | AU43: 3 NO PACTADOS | AV43: 0 | AW43: 3 ADICIÓN EN VALOR y EN TIEMPO | AX43: 897600 | AY43: 2017-11-03 | AZ43: 22 | BA43: 2017-11-03 | BJ43: 2017-01-24 | BK43: 2017-12-15 | BM43: 100 | BN43: 100 | BO43: 100 | BP43: 100 | BQ43: ADICION Y PRORROGA N°01 AL CPS032/2017 POR EL CUAL SE ADICIONA LA SUMA DE $897.600 Y PRORROGA EL PLAZO DE EJECUCIÓN POR 22 DIAS MAS EL 03/11/2017 | BR43: POA REGULACION SIIF AUTORIDAD AMBIENTAL | BS43: NACION | BT43: 7117 | BU43: 12240000 | BV43: 2017-01-19 | BW43: 10817 | BX43: 12240000 | BY43: 2017-01-24 | BZ43: 285600 | CA43: 1224000 | CB43: 1224000 | CC43: 1224000 | CD43: 1224000 | CE43: 1224000 | CF43: 1224000 | CG43: 1224000 | CH43: 1224000 | CI43: 1224000 | CJ43: 1224000 | CK43: 612000 | CL43: 13137600 | CM43: 0 | CP43: CPS | CR43: 2017-12-30
A44: 33 | B44: FILA_33 | C44: 1 SI | E44: 033 | F44: 2017-01-24 | G44: 2 DOS VECES | H44: PRESTACION DE SERVICIOS OPERATIVOS Y DE APOYO A LA GESTION EN LA EJECUCION DE ACTIVIDADES DE PREVENCION, CONTROL Y VIGILANCIA; PRESENCIA INSTITUCIONAL; APOYO EN LA IMPLEMENTACION DEL ECOTURISMO EN EL SFF GALERAS - SECTOR TELPIS, ASI COMO APOYAR EVENTUALMENTE LA ATENCION DE INCENDIOS Y OTRAS ACTIVIDADES EN TODO EL SANTUARIO, DE ACUERDO A LA PROGRAMACION DE LA JEFE DEL AREA PROTEGIDA | I44: SFF GALERAS | J44: 2 CONTRATACIÓN DIRECTA | K44: 14 PRESTACIÓN DE SERVICIOS | M44: CONTRATACION DIRECTA | N44: 80161500 Cód. 80161500 - Servicios de apoyo a la gestión | O44: 12240000 | S44: 1224000 | T44: 1 PERSONA NATURAL | U44: 2 RUT - REGISTRO ÚNICO TRIBUTARIO | V44: 12747655 | X44: 5 DV 4 | Z44: PASTO | AA44: OSCAR ANDREZ RODRIGUEZ CORDOBA | AB44: 1 PÓLIZA | AC44: 2 CUMPLIMIENTO | AD44: 2017-01-25 | AE44: SEGUROS DEL ESTADO | AF44: 41-44-101185048 | AG44: 2 SUPERVISOR | AN44: 3 CÉDULA DE CIUDADANÍA | AO44: 30705143 | AQ44: 11 NO SE DILIGENCIA INFORMACIÓN PARA ESTE FORMULARIO EN ESTE PERÍODO DE REPORTE | AS44: NANCY LOPEZ DE VILES | AT44: 300 | AU44: 3 NO PACTADOS | AV44: 0 | AW44: 3 ADICIÓN EN VALOR y EN TIEMPO | AX44: 856800 | AY44: 2017-11-07 | AZ44: 21 | BA44: 2017-11-07 | BJ44: 2017-01-25 | BK44: 2017-12-15 | BM44: 100 | BN44: 100 | BO44: 100 | BP44: 100 | BQ44: ADICION Y PRORROGA N°01 AL CPS033/2017 POR ECUAL SE ADICIONA LA SUMA DE $856.800 Y SE PRORROGA EL PLAZO DE EJECUCIÓN EN (21) DIAS MAS EL 07/11/2017 | BR44: POA REGULACION SIIF AUTORIDAD AMBIENTAL | BS44: NACION | BT44: 8717 | BU44: 12240000 | BV44: 2017-01-23 | BW44: 11117 | BX44: 12240000 | BY44: 2017-01-24 | BZ44: 244800 | CA44: 1224000 | CB44: 1224000 | CC44: 1224000 | CD44: 1224000 | CE44: 1224000 | CF44: 1224000 | CG44: 1224000 | CH44: 1224000 | CI44: 1224000 | CJ44: 1224000 | CK44: 612000 | CL44: 13096800 | CM44: =O44+AX44-BE44-BZ44-CA44-CB44-CC44-CD44-CE44-CF44-CG44-CH44-CI44-CJ44-CK44 -> 0 | CP44: CPS | CR44: 2017-12-30
A45: 34 | B45: FILA_34 | C45: 1 SI | E45: 034 | F45: 2017-01-24 | G45: 2 DOS VECES | H45: PRESTACION DE SERVICIOS OPERATIVOS Y DE APOYO A LA GESTION PARA REALIZAR ACTIVIDADES RELACIONADAS CON LA IMPLEMENTACION DEL PLAN DE MANEJO DEL PARQUES, EN ESPECIFICO LAS ASOCIADAS CON EL PROTOCOLO DE PREVENCION, VIGILANCIA Y CONTROL, PLAN DE ORDENAMIENTO ECOTURISTICO, PROGRAMA DE MONITOREO Y GESTION DEL RIESGO DEL PNN LOS NEVADOS, A TRAVES DE ACCIONES ENCAMINADAS A PREVENIR, MITIGAR Y CORREGIR PRESIONES UE AFECTAN LA INTEGRIDAD ECOLOGICA Y LA REPRESENTATIVIDAD ECOSISTEMICA DEL AREA PROTEGIDA | I45: PNN LOS NEVADOS | J45: 2 CONTRATACIÓN DIRECTA | K45: 14 PRESTACIÓN DE SERVICIOS | M45: CONTRATACION DIRECTA | N45: 80161500 Cód. 80161500 - Servicios de apoyo a la gestión | O45: 12240000 | S45: 1224000 | T45: 1 PERSONA NATURAL | U45: 2 RUT - REGISTRO ÚNICO TRIBUTARIO | V45: 1104697983 | X45: 5 DV 4 | Z45: LIBANO | AA45: BRAYHAN BERMUDEZ PATIÑO | AB45: 1 PÓLIZA | AC45: 2 CUMPLIMIENTO | AD45: 2017-01-26 | AE45: SEGUROS DEL ESTADO | AF45: 42-44-101097534 | AG45: 2 SUPERVISOR | AN45: 3 CÉDULA DE CIUDADANÍA | AO45: 79121466 | AQ45: 11 NO SE DILIGENCIA INFORMACIÓN PARA ESTE FORMULARIO EN ESTE PERÍODO DE REPORTE | AS45: EFRAIM AUGUSTO RODRIGUEZ VARON | AT45: 300 | AU45: 3 NO PACTADOS | AV45: 0 | AW45: 3 ADICIÓN EN VALOR y EN TIEMPO | AX45: 816000 | AY45: 2017-11-08 | AZ45: 20 | BA45: 2017-11-08 | BJ45: 2017-01-26 | BK45: 2017-12-15 | BM45: 100 | BN45: 100 | BO45: 100 | BP45: 100 | BQ45: ADICION Y PRORROGA N°01 AL CPS034/2017 POR EL CUAL SE ADICIONA LA SUMA DE $816.000 Y EN TIEMPO POR (20) DIAS MAS EL 08/11/2017 | BR45: POA Y SIIF SANEAMIENTO | BS45: NACION | BT45: 9117 | BU45: 12240000 | BV45: 2017-01-24 | BW45: 12817 | BX45: 12240000 | BY45: 2017-01-25 | BZ45: 204000 | CA45: 1224000 | CB45: 1224000 | CC45: 1224000 | CD45: 1224000 | CE45: 1224000 | CF45: 1224000 | CG45: 1224000 | CH45: 1224000 | CI45: 1224000 | CJ45: 1224000 | CK45: 612000 | CL45: 13056000 | CM45: 0 | CP45: CPS | CR45: 2017-12-30
A46: 35 | B46: FILA_35 | C46: 1 SI | E46: 035 | F46: 2017-01-24 | G46: 2 DOS VECES | H46: PRESTACION DE SERVICIOS OPERATIVOS Y DE APOYO A LA GESTION PARA REALIZAR ACTIVIDADES QUE PERMITAN MANTENER ADECUADAMENTE EL FLUJO DE LAS LABORES ADMINISTRATIVAS Y OPERATIVASA EN LOS SFF COROTA Y GALERAS | I46: SFF ISLA DE LA COROTA - SFF GALERAS | J46: 2 CONTRATACIÓN DIRECTA | K46: 14 PRESTACIÓN DE SERVICIOS | M46: CONTRATACION DIRECTA | N46: 80161500 Cód. 80161500 - Servicios de apoyo a la gestión | O46: 12240000 | S46: 1224000 | T46: 1 PERSONA NATURAL | U46: 2 RUT - REGISTRO ÚNICO TRIBUTARIO | V46: 30737756 | X46: 3 DV 2 | Z46: PASTO | AA46: MARY RAQUEL NARVAEZ TABLA | AB46: 1 PÓLIZA | AC46: 2 CUMPLIMIENTO | AD46: 2017-01-25 | AE46: SEGUROS DEL ESTADO | AF46: 41-44-101185076 | AG46: 2 SUPERVISOR | AN46: 3 CÉDULA DE CIUDADANÍA | AO46: 30705143 | AQ46: 11 NO SE DILIGENCIA INFORMACIÓN PARA ESTE FORMULARIO EN ESTE PERÍODO DE REPORTE | AS46: NANCY LOPEZ DE VILES | AT46: 300 | AU46: 3 NO PACTADOS | AV46: 0 | AW46: 3 ADICIÓN EN VALOR y EN TIEMPO | AX46: 856800 | AY46: 2017-11-07 | AZ46: 21 | BA46: 2017-11-07 | BJ46: 2017-01-25 | BK46: 2017-12-15 | BM46: 100 | BN46: 100 | BO46: 100 | BP46: 100 | BQ46: EL CONTRATO CUENTA CON DOS SUPERVISORES DEL SFF COROTA Y SFF GALERAS, ADICION Y PRORROGA N°01 AL CPS035/2017 POR MEDIO DEL CUAL SE ADICIONA LA SUMA DE $856.800 Y EL PLAZO DE EJECUCIÓN POR (21) DIAS MAS EL 07/11/2017 | BR46: POA Y SIIF FORTALECIMIENTO | BS46: NACION | BT46: 8517 | BU46: 12240000 | BV46: 2017-01-20 | BW46: 11217 | BX46: 12240000 | BY46: 2017-01-24 | BZ46: 244800 | CA46: 1224000 | CB46: 1224000 | CC46: 1224000 | CD46: 1224000 | CE46: 1224000 | CF46: 1224000 | CG46: 1224000 | CH46: 1224000 | CI46: 1224000 | CJ46: 1224000 | CK46: 612000 | CL46: 13096800 | CM46: 0 | CP46: CPS | CR46: 2017-12-30
A47: 36 | B47: FILA_36 | C47: 1 SI | E47: 036 | F47: 2017-01-24 | G47: 2 DOS VECES | H47: PRESTACION DE SERVICIOS OPERATIVOS Y DE APOYO A LA GESTION , EN EL EJERCICIO DE LA AUTORIDAD AMBIENTAL, APOYO EN ECOTURISMO Y EN EL MANTENIMIENTO DE INFRAESTRUCTURA PERTENENCIENTE AL SFF ISLA DE LA COROTA, DE PARQUES NACIONALES NATURALES DE COLOMBIA | I47: SFF ISLA DE LA COROTA | J47: 2 CONTRATACIÓN DIRECTA | K47: 14 PRESTACIÓN DE SERVICIOS | M47: CONTRATACION DIRECTA | N47: 80161500 Cód. 80161500 - Servicios de apoyo a la gestión | O47: 12240000 | S47: 1224000 | T47: 1 PERSONA NATURAL | U47: 2 RUT - REGISTRO ÚNICO TRIBUTARIO | V47: 27091975 | X47: 4 DV 3 | Z47: PASTO | AA47: RUBY JOJOA JOJOA | AB47: 1 PÓLIZA | AC47: 2 CUMPLIMIENTO | AD47: 2017-01-25 | AE47: SEGUROS DEL ESTADO | AF47: 41-44-101185047 | AG47: 2 SUPERVISOR | AN47: 3 CÉDULA DE CIUDADANÍA | AO47: 12973611 | AQ47: 11 NO SE DILIGENCIA INFORMACIÓN PARA ESTE FORMULARIO EN ESTE PERÍODO DE REPORTE | AS47: IVAN MAURICIO ZAMBRANO PATIÑO | AT47: 300 | AU47: 3 NO PACTADOS | AV47: 0 | AW47: 3 ADICIÓN EN VALOR y EN TIEMPO | AX47: 856800 | AY47: 2017-11-01 | AZ47: 21 | BA47: 2017-11-01 | BJ47: 2017-01-25 | BK47: 2017-12-15 | BM47: 100 | BN47: 100 | BO47: 100 | BP47: 100 | BQ47: ADICIÓN Y PRORROGA N°01 AL CPS036/2017 POR EL CUAL SE ADICIONA LA SUMA DE $856.800 Y EN TIEMPO POR (21) DIAS MAS EL 01/11/2017 | BR47: POA REGULACION SIIF AUTORIDAD AMBIENTAL | BS47: NACION | BT47: 7917 | BU47: 12240000 | BV47: 2017-01-20 | BW47: 11317 | BX47: 12240000 | BY47: 2017-01-24 | BZ47: 244800 | CA47: 1224000 | CB47: 1224000 | CC47: 1224000 | CD47: 1224000 | CE47: 1224000 | CF47: 1224000 | CG47: 1224000 | CH47: 1224000 | CI47: 1224000 | CJ47: 1224000 | CK47: 612000 | CL47: 13096800 | CM47: 0 | CP47: CPS | CR47: 2017-12-30
A48: 37 | B48: FILA_37 | C48: 1 SI | E48: 037 | F48: 2017-01-24 | G48: 2 DOS VECES | H48: PRESTACION DE SERVICIOS PROFESIONALES Y DE APOYO A LA GESTION DEL PNN SELVA DE FLORENCIA, CON EL FIN DE ORDENAR USOS, ACTIVIDADES Y OCUPACION EN EL PNN SELVA DE FLORENCIA, INCORPORANDO ACTORES SOCIALES INSTITUCIONALES ESTRATEICOS E PROCESOS ORIENTADOS AL SANEAMIENTO DEL AREA PROTEGIDA, A LA IMPLEMENTACION DEL PROTOCOLO DE PREVENCION, VIGILANCIA Y CONTROL, Y AL DESARROLLO DEL PROGRAMA DE MONITOREO (ESTADO Y PRESION SOBRE LOS VALORES OBJETO DE CONSERVACION), DEFINIDOS PARA EL PARQUES | I48: PNN SELVA DE FLORENCIA | J48: 2 CONTRATACIÓN DIRECTA | K48: 14 PRESTACIÓN DE SERVICIOS | M48: CONTRATACION DIRECTA | N48: 80161500 Cód. 80161500 - Servicios de apoyo a la gestión | O48: 29172000 | S48: 2917200 | T48: 1 PERSONA NATURAL | U48: 2 RUT - REGISTRO ÚNICO TRIBUTARIO | V48: 24339448 | X48: 2 DV 1 | Z48: MANIZALES | AA48: AMILVIA ACOSTA CASTAÑEDA | AB48: 1 PÓLIZA | AC48: 2 CUMPLIMIENTO | AD48: 2017-01-25 | AE48: LIBERTY SEGUROS | AF48: 2758876 | AG48: 2 SUPERVISOR | AN48: 3 CÉDULA DE CIUDADANÍA | AO48: 10258001 | AQ48: HUGO FERNANDO BALLESTEROS BOTERO | AS48: HUGO FERNANDO BALLESTEROS BOTERO | AT48: 300 | AU48: 3 NO PACTADOS | AV48: 0 | AW48: 3 ADICIÓN EN VALOR y EN TIEMPO | AX48: 2042040 | AY48: 2017-11-08 | AZ48: 21 | BA48: 2017-11-08 | BJ48: 2017-01-25 | BK48: 2017-12-15 | BM48: 100 | BN48: 100 | BO48: 100 | BP48: 100 | BQ48: ADICION Y PRORROGA N°01 AL CPS037/2017 POR EL CUAL SE ADICIONA LA SUMA DE $2.042.040 Y EN TIEMPO DE EJECUCIÓN POR 21 DIAS MAS EL 08/11/2017 | BR48: POA Y SIIF SANEAMIENTO | BS48: NACION | BT48: 9017 | BU48: 29172000 | BV48: 2017-01-24 | BW48: 11417 | BX48: 29172000 | BY48: 2017-01-25 | BZ48: 583440 | CA48: 2917200 | CB48: 2917200 | CC48: 2917200 | CD48: 2917200 | CE48: 2917200 | CF48: 2917200 | CG48: 2917200 | CH48: 2917200 | CI48: 2917200 | CJ48: 2917200 | CK48: 1458600 | CL48: 31214040 | CM48: 0 | CP48: CPS | CR48: 2017-12-30
A49: 38 | B49: FILA_38 | C49: 1 SI | E49: 038 | F49: 2017-01-24 | G49: 3 TRES VECES | H49: PRESTACION DE SERVICIOS TECNICOS Y DE APOYO A LA GESTION DE LOS PARQUES NEVADOS, HERMOSAS Y NEVADO DEL HUILA, PARA ADELANTAR ACTIVIDADES ADMINISTRATIVAS Y SECRETARIALES EN LA OFICINA DEL CORREDOR DE CORDILLERA CENTRAL | I49: PNN LOS NEVADOS - HERMOSAS - NEVADO DEL HUILA | J49: 2 CONTRATACIÓN DIRECTA | K49: 14 PRESTACIÓN DE SERVICIOS | M49: CONTRATACION DIRECTA | N49: 80161500 Cód. 80161500 - Servicios de apoyo a la gestión | O49: 8491500 | S49: 1698300 | T49: 1 PERSONA NATURAL | U49: 2 RUT - REGISTRO ÚNICO TRIBUTARIO | V49: 1082772237 | X49: 2 DV 1 | Z49: SAN AGUSTIN | AA49: MAURA ALEJANDRA SAMBONI | AB49: 1 PÓLIZA | AC49: 2 CUMPLIMIENTO | AD49: 2017-01-26 | AE49: SEGUROS DEL ESTADO | AF49: 25-44-101101396 | AG49: 2 SUPERVISOR | AN49: 3 CÉDULA DE CIUDADANÍA | AO49: 79576238 | AQ49: 11 NO SE DILIGENCIA INFORMACIÓN PARA ESTE FORMULARIO EN ESTE PERÍODO DE REPORTE | AS49: GERMAN ALBERTO RODRIGUEZ PENAGOS | AT49: 150 | AU49: 3 NO PACTADOS | AV49: 0 | AW49: 4 NO SE HA ADICIONADO NI EN VALOR y EN TIEMPO | AX49: 0 | BJ49: 2017-01-26 | BK49: 2017-07-10 | BL49: 2017-07-10 | BM49: 100 | BN49: 100 | BO49: 100 | BP49: 100 | BQ49: ACTA DE LIQUIDACIÓN BILATERAL DEL CPS 038 SUSCRITO EL 24 DE ENERO DE 2017 Y LIQUIDADO EL 10/07/2017 | BR49: POA PLANACION INTERNA SIIF FORTALECIMIENTO | BS49: NACION | BT49: 9317 | BU49: 8491500 | BV49: 2017-01-24 | BW49: 13117 | BX49: 8491500 | BY49: 2017-01-25 | BZ49: 283050 | CA49: 1698300 | CB49: 1698300 | CC49: 1698300 | CD49: 1698300 | CE49: 1415250 | CF49: 0 | CG49: 0 | CH49: 0 | CI49: 0 | CJ49: 0 | CL49: =BZ49+CA49+CB49+CC49+CD49+CE49+CF49+CG49+CH49+CI49+CJ49+CK49 -> 8491500 | CM49: 0 | CP49: CPS | CR49: 2017-12-30
A50: 39 | B50: FILA_39 | C50: 1 SI | E50: 039 | F50: 2017-01-25 | G50: 2 DOS VECES | H50: PRESTACION DE SERVICIOS PROFESIONALES Y DE APOYO A LA GESTION PARA LA IMPLEMENTACION DEL PROTOCOLO DE PREVENCION, VIGILANCIA Y CONTROL, Y LA FORMULACION DE PROYECTOS PARA EL AREA PROTEGIDA | I50: SFF OTUN QUIMBAYA | J50: 2 CONTRATACIÓN DIRECTA | K50: 14 PRESTACIÓN DE SERVICIOS | M50: CONTRATACION DIRECTA | N50: 80161500 Cód. 80161500 - Servicios de apoyo a la gestión | O50: 32946000 | S50: 3294600 | T50: 1 PERSONA NATURAL | U50: 2 RUT - REGISTRO ÚNICO TRIBUTARIO | V50: 75101063 | X50: 1 DV 0 | Z50: MANIZALES | AA50: FELIPE ALBERTO BEDOYA ZULUAGA | AB50: 1 PÓLIZA | AC50: 2 CUMPLIMIENTO | AD50: 2017-02-01 | AE50: CONFIANZA | AF50: 16 GU061874 | AG50: 2 SUPERVISOR | AN50: 3 CÉDULA DE CIUDADANÍA | AO50: 52110135 | AQ50: 11 NO SE DILIGENCIA INFORMACIÓN PARA ESTE FORMULARIO EN ESTE PERÍODO DE REPORTE | AS50: GLORIA TERESITA SERNA ALZATE | AT50: 300 | AU50: 3 NO PACTADOS | AV50: 0 | AW50: 3 ADICIÓN EN VALOR y EN TIEMPO | AX50: 1208020 | AY50: 2017-11-30 | AZ50: 11 | BA50: 2017-11-30 | BJ50: 2017-02-01 | BK50: 2017-12-11 | BM50: 100 | BN50: 100 | BO50: 100 | BP50: 100 | BQ50: ADICION Y PRORROGA #01 AL CPS039/2017 POR EL CUAL SE ADICIONA LA SUMA DE $1.208.020 Y SE PRORROGA EL PLAZO DE EJECUCIÓN POR (11) DIAS MAS EL 30/11/2017 | BR50: POA REGULACION SIIF AUTORIDAD AMBIENTAL | BS50: NACION | BT50: 10017 | BU50: 32946000 | BV50: 2017-01-25 | BW50: 13017 | BX50: 32946000 | BY50: 2017-01-25 | BZ50: 0 | CA50: 3294600 | CB50: 3294600 | CC50: 3294600 | CD50: 3294600 | CE50: 3294600 | CF50: 3294600 | CG50: 3294600 | CH50: 3294600 | CI50: 3294600 | CJ50: 3294600 | CK50: 1208020 | CL50: 34154020 | CM50: 0 | CP50: CPS | CR50: 2017-12-30
A51: 40 | B51: FILA_40 | C51: 1 SI | E51: 040 | F51: 2017-02-01 | G51: 2 DOS VECES | H51: PRESTACION DE SERVICIOS PROFESIONALES Y DE APOYO A LA GESTION PARA LA GENERACION Y ANALISIS DE LA INFORMACION GEORREFERENCIADA, ANALISIS TEMATICO DE INFORMACION CARTOGRAFICA RELACIONADA CON LOS PROCESOS DE USO, OCUPACION Y TENENCIA, ANALISOS A NOVEL DE PAISAJE E INTERPRETACION DE COBERTURAS DE LA TIERRA, EN EL MARCO DEL SUBSISTEMA ANDES OCCIDENTALES, CON REFERENCIA EN EL PLAN ESTRATEGICO DE LA DTAO Y LOS PLANES ESTRATEGICOS DE SUS AREAS PROTEGIDAS ADSCRITAS | I51: DTAO | J51: 2 CONTRATACIÓN DIRECTA | K51: 14 PRESTACIÓN DE SERVICIOS | M51: CONTRATACION DIRECTA | N51: 80161500 Cód. 80161500 - Servicios de apoyo a la gestión | O51: 40902000 | S51: 4090200 | T51: 1 PERSONA NATURAL | U51: 2 RUT - REGISTRO ÚNICO TRIBUTARIO | V51: 1045497551 | X51: 5 DV 4 | Z51: TURBO | AA51: RICARDO JOSE PEREZ MONTALVO | AB51: 1 PÓLIZA | AC51: 2 CUMPLIMIENTO | AD51: 2017-02-01 | AE51: SEGUROS DEL ESTADO | AF51: 65-44-101141928 | AG51: 2 SUPERVISOR | AN51: 3 CÉDULA DE CIUDADANÍA | AO51: 10282381 | AQ51: 11 NO SE DILIGENCIA INFORMACIÓN PARA ESTE FORMULARIO EN ESTE PERÍODO DE REPORTE | AS51: JORGE EDUARDO CEBALLOS BETANCUR | AT51: 300 | AU51: 3 NO PACTADOS | AV51: 0 | AW51: 3 ADICIÓN EN VALOR y EN TIEMPO | AX51: 2045100 | AY51: 2017-11-21 | AZ51: 15 | BA51: 2017-11-21 | BJ51: 2017-02-01 | BK51: 2017-12-15 | BM51: 100 | BN51: 100 | BO51: 100 | BP51: 100 | BQ51: ADICION Y PRORROGA N|01 AL CPS040/2017 POR EL CUAL SE ADICIONA LA SUMA DE $2.045.100 Y EN TIEMPO POR (15) DIAS MAS EL 21/11/2017 | BR51: POA Y SIIF SANEAMIENTO | BS51: NACION | BT51: 9717 | BU51: 40902000 | BV51: 2017-01-25 | BW51: 16117 | BX51: 40902000 | BY51: 2017-02-01 | BZ51: 0 | CA51: 4090200 | CB51: 4090200 | CC51: 4090200 | CD51: 4090200 | CE51: 4090200 | CF51: 4090200 | CG51: 4090200 | CH51: 4090200 | CI51: 4090200 | CJ51: 4090200 | CK51: 2045100 | CL51: 42947100 | CM51: 0 | CP51: CPS | CR51: 2017-12-30
A52: 41 | B52: FILA_41 | C52: 1 SI | E52: 041 | F52: 2017-02-01 | G52: 2 DOS VECES | H52: PRESTACION DE SERVICIOS PROFESIONALES Y DE APOYO A LA GESTION PARA DESARROLLAR ESTRATEGIAS DE COMUNICACIONALES CON EL FIN DE ARTICULAR LAS INSTANCIAS NACIONALES Y REGIONALES, PARA DIVULGAR LOS PROCESOS EN PRO DEL RELACIONAMIENTO INTERINSTITUCIONAL, CONTRIBUYENDO ASI AL POSICIONAMIENTO DEL PLAN ESTRATEGICO DE LA DTAO Y LOS PLANES ESTRATEGICOS DE SUS AREAS PROTEGIDAS ADSCRITAS | I52: DTAO | J52: 2 CONTRATACIÓN DIRECTA | K52: 14 PRESTACIÓN DE SERVICIOS | M52: CONTRATACION DIRECTA | N52: 80161500 Cód. 80161500 - Servicios de apoyo a la gestión | O52: 35598000 | S52: 3559800 | T52: 1 PERSONA NATURAL | U52: 2 RUT - REGISTRO ÚNICO TRIBUTARIO | V52: 32298168 | X52: 5 DV 4 | Z52: ENVIGADO | AA52: PAULA CRISTINA MOSQUERA CORREA | AB52: 1 PÓLIZA | AC52: 2 CUMPLIMIENTO | AD52: 2017-02-01 | AE52: SEGUROS DEL ESTADO | AF52: 65-44-101141929 | AG52: 2 SUPERVISOR | AN52: 3 CÉDULA DE CIUDADANÍA | AO52: 10282381 | AQ52: 11 NO SE DILIGENCIA INFORMACIÓN PARA ESTE FORMULARIO EN ESTE PERÍODO DE REPORTE | AS52: JORGE EDUARDO CEBALLOS BETANCUR | AT52: 300 | AU52: 3 NO PACTADOS | AV52: 0 | AW52: 3 ADICIÓN EN VALOR y EN TIEMPO | AX52: 1779900 | AY52: 2017-11-09 | AZ52: 15 | BA52: 2017-11-09 | BJ52: 2017-02-01 | BK52: 2017-12-15 | BM52: 100 | BN52: 100 | BO52: 100 | BP52: 100 | BQ52: ADICIÓN Y PRORROGA N|01 AL CPS041/2017 POR EL CUAL SE ADICIONA LA SUMA DE $1.779.900 Y SE PRORROGA EL PLAZO DE EJECUCIÓN POR (15) DIAS MAS EL 09/11/2017 | BR52: POA POSICIONAMIENTO SIIF VALORACION SOCIAL | BS52: NACION | BT52: 7817 | BU52: 35598000 | BV52: 2017-01-20 | BW52: 16417 | BX52: 35598000 | BY52: 2017-02-01 | BZ52: 0 | CA52: 3559800 | CB52: 3559800 | CC52: 3559800 | CD52: 3559800 | CE52: 3559800 | CF52: 3559800 | CG52: 3559800 | CH52: 3559800 | CI52: 3559800 | CJ52: 3559800 | CK52: 1779900 | CL52: 37377900 | CM52: 0 | CP52: CPS | CR52: 2017-12-30
A53: 42 | B53: FILA_42 | C53: 1 SI | E53: 042 | F53: 2017-01-26 | G53: 2 DOS VECES | H53: PRESTACION DE SERVICIOS OPERATIVOS Y DE APOYO A LA GESTION DEL PNN SELVA DE FLORENCIA, PARA LA REALIZACION DE ACTIVIDADES ENCAMINADAS AL MONITOREO DE ESPECIES AL INTERIOR DEL AREA PROTEGIDA Y A LA IMPLEMENTACION DEL PLAN LOCAL DE PREVENCION, VIGILANCIA Y CONTROL, RESTAURACION ECOLOGICA, EN COORDINACION CON LAS AUTORIDADES COMPETENTES CUANDI HAYA LUGAR, CON LA FINALIDAD DE REALIZAR EL CONTROL Y REDUCIR LAS PRESIONES SOBRE LOS RECURSOS NATURALES Y LOS VALORES OBJETO DE CONSERVACION | I53: PNN SELVA DE FLORENCIA | J53: 2 CONTRATACIÓN DIRECTA | K53: 14 PRESTACIÓN DE SERVICIOS | M53: CONTRATACION DIRECTA | N53: 80161500 Cód. 80161500 - Servicios de apoyo a la gestión | O53: 12240000 | S53: 1224000 | T53: 1 PERSONA NATURAL | U53: 2 RUT - REGISTRO ÚNICO TRIBUTARIO | V53: 16113101 | X53: 2 DV 1 | Z53: SAMANA | AA53: OSCAR JAVIER MAHECHA LEON | AB53: 1 PÓLIZA | AC53: 2 CUMPLIMIENTO | AD53: 2017-01-26 | AE53: CONFIANZA | AF53: 2759804 | AG53: 2 SUPERVISOR | AN53: 3 CÉDULA DE CIUDADANÍA | AO53: 10258001 | AQ53: 11 NO SE DILIGENCIA INFORMACIÓN PARA ESTE FORMULARIO EN ESTE PERÍODO DE REPORTE | AS53: HUGO FERNANDO BALLESTEROS BOTERO | AT53: 300 | AU53: 3 NO PACTADOS | AV53: 0 | AW53: 3 ADICIÓN EN VALOR y EN TIEMPO | AX53: 816000 | AY53: 2017-11-20 | AZ53: 20 | BA53: 2017-11-20 | BJ53: 2017-01-26 | BK53: 2017-12-15 | BM53: 100 | BN53: 100 | BO53: 100 | BP53: 100 | BQ53: ADICION Y PRORROGA N|01 AL CPS042/2017 POR EL CUAL SE ADICIONA LA SUMA DE $ 816.000 Y EN TIEMPO POR (20) DIAS MAS EL 20/11/2017 | BR53: POA Y SIIF SANEAMIENTO | BS53: NACION | BT53: 9217 | BU53: 12240000 | BV53: 2017-01-24 | BW53: 14017 | BX53: 12240000 | BY53: 2017-01-26 | BZ53: 204000 | CA53: 1224000 | CB53: 1224000 | CC53: 1224000 | CD53: 1224000 | CE53: 1224000 | CF53: 1224000 | CG53: 1224000 | CH53: 1224000 | CI53: 1224000 | CJ53: 1224000 | CK53: 612000 | CL53: 13056000 | CM53: 0 | CP53: CPS | CR53: 2017-12-30
A54: 43 | B54: FILA_43 | C54: 1 SI | E54: 043 | F54: 2017-01-26 | G54: 2 DOS VECES | H54: PRESTACION DE SERVICIOS OPERATIVOS Y DE APOYO A LA GESTION DEL PNN SELVA DE FLORENCIA PARA LA REALIZACION DE ACTIVIDADES ENCAMINADAS AL MONITOREO DE ESPECIES AL INTERIOR DEL AREA PROTEGIDA Y A LA IMPLEMENTACION DEL PLAN LOCAL DE PREVENCION, VIGILANCIA Y CONTROL, RESTAURACION ECOLOGICA, EN COORDINACION CON LAS AUTORIDADES COMPETENTES CUANDO HAYA LUGAR, CON LA FINALIDAD DE REALIZAR EL CONTROL Y REDUCIR LAS PRESIONES SOBRE LOS RECURSOS NATURALES Y LOS VALORES OBJETO DE CONSERVACION | I54: PNN SELVA DE FLORENCIA | J54: 2 CONTRATACIÓN DIRECTA | K54: 14 PRESTACIÓN DE SERVICIOS | M54: CONTRATACION DIRECTA | N54: 80161500 Cód. 80161500 - Servicios de apoyo a la gestión | O54: 12240000 | S54: 1224000 | T54: 1 PERSONA NATURAL | U54: 2 RUT - REGISTRO ÚNICO TRIBUTARIO | V54: 16113291 | X54: 1 DV 0 | Z54: SAMANA | AA54: URIEL RODRIGO QUICENO MOLANO | AB54: 1 PÓLIZA | AC54: 2 CUMPLIMIENTO | AD54: 2017-01-26 | AE54: SEGUROS DEL ESTADO | AF54: 25-44-101101429 | AG54: 2 SUPERVISOR | AN54: 3 CÉDULA DE CIUDADANÍA | AO54: 10258001 | AQ54: 11 NO SE DILIGENCIA INFORMACIÓN PARA ESTE FORMULARIO EN ESTE PERÍODO DE REPORTE | AS54: HUGO FERNANDO BALLESTEROS BOTERO | AT54: 300 | AU54: 3 NO PACTADOS | AV54: 0 | AW54: 3 ADICIÓN EN VALOR y EN TIEMPO | AX54: 816000 | AY54: 2017-11-20 | AZ54: 20 | BA54: 2017-11-20 | BJ54: 2017-01-26 | BK54: 2017-12-15 | BM54: 100 | BN54: 100 | BO54: 100 | BP54: 100 | BQ54: ADICION Y PRORROGA N°01 AL CPS043/2017 POR EL CUAL SE ADICIONA LA SUMA DE $816.000 Y EN TIEMPO POR (20) DIAS MAS EL 20/11/2017 | BR54: POA Y SIIF CONOCIMIENTO VOC | BS54: NACION | BT54: 9417 | BU54: 12240000 | BV54: 2017-01-24 | BW54: 14117 | BX54: 12240000 | BY54: 2017-01-26 | BZ54: 204000 | CA54: 1224000 | CB54: 1224000 | CC54: 1224000 | CD54: 1224000 | CE54: 1224000 | CF54: 1224000 | CG54: 1224000 | CH54: 1224000 | CI54: 1224000 | CJ54: 1224000 | CK54: 612000 | CL54: 13056000 | CM54: 0 | CP54: CPS | CR54: 2017-12-30
A55: 44 | B55: FILA_44 | C55: 1 SI | E55: 044 | F55: 2017-01-26 | G55: 2 DOS VECES | H55: PRESTACION DE SERVICIOS OPERATIVOS Y DE APOYO A LA GESTION DEL PNN SELVA DE FLORENCIA PARA LA REALIZACION DE ACTIVIDADES ENCAMINADAS AL MONITOREO DE ESPECIES AL INTERIOR DEL AREA PROTEGIDA A LA IMPLEMENTACION DEL PLAN LOCAL DE PREVENCION, VIGILANCIA Y CONTROL, RESTAURACION ECOLOGICA, EN COORDINACION CON LAS AUTORIDADES COMPETENTES CUANDO HAYA LUGAR, CON LA FINALIDAD DE REALIZAR EL CONTROL Y REDUCIR LAS PRESIONES SOBRE LOS RECURSOS NATURALES Y LOS VALORES OBJETO DE CONSERVACION | I55: PNN SELVA DE FLORENCIA | J55: 2 CONTRATACIÓN DIRECTA | K55: 14 PRESTACIÓN DE SERVICIOS | M55: CONTRATACION DIRECTA | N55: 80161500 Cód. 80161500 - Servicios de apoyo a la gestión | O55: 12240000 | S55: 1224000 | T55: 1 PERSONA NATURAL | U55: 2 RUT - REGISTRO ÚNICO TRIBUTARIO | V55: 16115477 | X55: 3 DV 2 | Z55: SAMANA | AA55: ALEXIS MARIN PATIÑO | AB55: 1 PÓLIZA | AC55: 2 CUMPLIMIENTO | AD55: 2017-01-26 | AE55: SEGUROS DEL ESTADO | AF55: 25-44-101101430 | AG55: 2 SUPERVISOR | AN55: 3 CÉDULA DE CIUDADANÍA | AO55: 10258001 | AQ55: 11 NO SE DILIGENCIA INFORMACIÓN PARA ESTE FORMULARIO EN ESTE PERÍODO DE REPORTE | AS55: HUGO FERNANDO BALLESTEROS BOTERO | AT55: 300 | AU55: 3 NO PACTADOS | AV55: 0 | AW55: 3 ADICIÓN EN VALOR y EN TIEMPO | AX55: 816000 | AY55: 2017-11-03 | AZ55: 20 | BA55: 2017-11-03 | BJ55: 2017-01-26 | BK55: 2017-12-15 | BM55: 100 | BN55: 100 | BO55: 100 | BP55: 100 | BQ55: ADICION Y PRORROGA N°01 AL CPS044/2017 POR MEDIO DEL CUAL SE ADICIONA LA SUMA DE $816.000 Y SE PRORROGA EL PLAZO DE EJECUCIÓN EN (20) DIAS MAS EL 03/11/2017 | BR55: POA REGULACION SIIF AUTORIDAD AMBIENTAL | BS55: NACION | BT55: 10117 | BU55: 12240000 | BV55: 2017-01-25 | BW55: 13917 | BX55: 12240000 | BY55: 2017-01-26 | BZ55: 204000 | CA55: 1224000 | CB55: 1224000 | CC55: 1224000 | CD55: 1224000 | CE55: 1224000 | CF55: 1224000 | CG55: 1224000 | CH55: 1224000 | CI55: 1224000 | CJ55: 1224000 | CK55: 612000 | CL55: 13056000 | CM55: 0 | CP55: CPS | CR55: 2017-12-30
A56: 45 | B56: FILA_45 | C56: 1 SI | E56: 045 | F56: 2017-01-26 | G56: 2 DOS VECES | H56: PRESTACION DE SERVICIOS OPERATIVOS Y DE APOYO A LA GESTION DEL PNN SELVA DE FLORENCIA PARA LA REALIZACION DE ACTIVIDADES ENCAMINADAS AL MONITOREO DE ESPECIEES AL INTERIOR DEL AREA PROTEGIDA Y A LA IMPLEMENTACION DEL PLAN LOCAL DE PREVENCION, VIGILANCIA Y CONTROL, RESTAURACION ECOLOGICA, EN COORDINACION CON LAS AUTORIDADES COMPETENTES CUANDO HAYA LUGAR, CON LA FINALIDAD DE REALIZAR EL CONTROL Y REDUCIR LAS PRESIONES SOBRE LOS RECURSOS NATURALES Y LOS VALORES OBJETO DE CONSERVACION | I56: PNN SELVA DE FLORENCIA | J56: 2 CONTRATACIÓN DIRECTA | K56: 14 PRESTACIÓN DE SERVICIOS | M56: CONTRATACION DIRECTA | N56: 80161500 Cód. 80161500 - Servicios de apoyo a la gestión | O56: 12240000 | S56: 1224000 | T56: 1 PERSONA NATURAL | U56: 2 RUT - REGISTRO ÚNICO TRIBUTARIO | V56: 16112727 | X56: 6 DV 5 | Z56: SAMANA | AA56: DIDIER CEIR ALVAREZ LOPEZ | AB56: 1 PÓLIZA | AC56: 2 CUMPLIMIENTO | AD56: 2017-02-01 | AE56: ASEGURADORA SOLIDARIA | AF56: 500-47-994000014764 | AG56: 2 SUPERVISOR | AN56: 3 CÉDULA DE CIUDADANÍA | AO56: 10258001 | AQ56: 11 NO SE DILIGENCIA INFORMACIÓN PARA ESTE FORMULARIO EN ESTE PERÍODO DE REPORTE | AS56: HUGO FERNANDO BALLESTEROS BOTERO | AT56: 300 | AU56: 3 NO PACTADOS | AV56: 0 | AW56: 3 ADICIÓN EN VALOR y EN TIEMPO | AX56: 612000 | AY56: 2017-11-21 | AZ56: 15 | BA56: 2017-11-21 | BJ56: 2017-02-01 | BK56: 2017-12-15 | BM56: 100 | BN56: 100 | BO56: 100 | BP56: 100 | BQ56: ADICION Y PRORROGA N°01 AL CPS 045/2017 POR EL CUAL SE ADICION ALA SUMA DE $612.000 Y EN TIEMPO POR (15) DIAS MAS EL 21/11/2017 | BR56: POA Y SIIF SANEAMIENTO | BS56: NACION | BT56: 10217 | BU56: 12240000 | BV56: 2017-01-25 | BW56: 15517 | BX56: 12240000 | BY56: 2017-02-01 | BZ56: 0 | CA56: 1224000 | CB56: 1224000 | CC56: 1224000 | CD56: 1224000 | CE56: 1224000 | CF56: 1224000 | CG56: 1224000 | CH56: 1224000 | CI56: 1224000 | CJ56: 1224000 | CK56: 612000 | CL56: 12852000 | CM56: 0 | CP56: CPS | CR56: 2017-12-30
A57: 46 | B57: FILA_46 | C57: 1 SI | E57: 046 | F57: 2017-01-26 | G57: 2 DOS VECES | H57: PRESTACION DE SERVICIOS OPERATIVOS Y DE APOYO A LA GESTION DEL PNN SELVA DE FLORENCIA PARA LA REALIZACION DE ACTIVIDADES ENCAMINADAS AL MONITOREO DE ESPECIES AL INTERIOR DEL AREA PROTEGIDA A LA IMPLEMENTACION DEL PLAN LOCAL DE PREVENCION, VOGOLANCIA Y CONTROL, RESTAURACION ECOLOGICA, EN COORDINACION CON LAS AUTORIDADES COMPETENTES CUANDO HAYA LUGAR, CON LA FINALIDAD DE REALIZAR EL CONTROL Y REDUCIR LAS PRESIONES SOBRE LOS RECURSOS NATURALES Y LOS VALORES OBJETO DE CON CONSERVACION | I57: PNN SELVA DE FLORENCIA | J57: 2 CONTRATACIÓN DIRECTA | K57: 14 PRESTACIÓN DE SERVICIOS | M57: CONTRATACION DIRECTA | N57: 80161500 Cód. 80161500 - Servicios de apoyo a la gestión | O57: 12240000 | S57: 1224000 | T57: 1 PERSONA NATURAL | U57: 2 RUT - REGISTRO ÚNICO TRIBUTARIO | V57: 1061656136 | X57: 2 DV 1 | Z57: SAMANA | AA57: ALEJANDRO LOPEZ MAYA | AB57: 1 PÓLIZA | AC57: 2 CUMPLIMIENTO | AD57: 2017-01-26 | AE57: SEGUROS DEL ESTADO | AF57: 25-44-101101431 | AG57: 2 SUPERVISOR | AN57: 3 CÉDULA DE CIUDADANÍA | AO57: 10258001 | AQ57: 11 NO SE DILIGENCIA INFORMACIÓN PARA ESTE FORMULARIO EN ESTE PERÍODO DE REPORTE | AS57: HUGO FERNANDO BALLESTEROS BOTERO | AT57: 300 | AU57: 3 NO PACTADOS | AV57: 0 | AW57: 3 ADICIÓN EN VALOR y EN TIEMPO | AX57: 816000 | AY57: 2017-11-08 | AZ57: 20 | BA57: 2017-11-08 | BJ57: 2017-01-26 | BK57: 2017-12-15 | BM57: 100 | BN57: 100 | BO57: 100 | BP57: 100 | BQ57: ADICION Y PRORROGA N°01 AL CPS 04/2017 POR EL CUAL SE ADICION LA SUMA DE $816.000 Y EN TIEMPO POR (20) DIAS MAS EL 08/11/2017 | BR57: POA Y SIIF SANEAMIENTO | BS57: NACION | BT57: 10417 | BU57: 12240000 | BV57: 2017-01-25 | BW57: 13717 | BX57: 12240000 | BY57: 2017-01-26 | BZ57: 204000 | CA57: 1224000 | CB57: 1224000 | CC57: 1224000 | CD57: 1224000 | CE57: 1224000 | CF57: 1224000 | CG57: 1224000 | CH57: 1224000 | CI57: 1224000 | CJ57: 1224000 | CK57: 612000 | CL57: 13056000 | CM57: 0 | CP57: CPS | CR57: 2017-12-30
A58: 47 | B58: FILA_47 | C58: 1 SI | E58: 047 | F58: 2017-01-26 | G58: 2 DOS VECES | H58: PRESTACION DE SERVICIOS OPERATIVOS Y DE APOYO A LA GESTION DEL PNN SELVA BDE FLORENCIA PARA LA REALIZACION DE ACTIVIDADES ENCAMINADAS AL MONITOREO DE ESPECIES AL INTERIOR DEL AREA PROTEGIDA Y A LA IMPLEMENTACION DEL PLAN LOCAL DE PREVENCION, VIGILANCIA Y CONTROL, RESTAURACION ECOLOGICA, EN COORDINACION CON LAS AUTORIDADES COMPETENTES CUANDO HAYA LUGAR, CON LA FINALIDAD DE REALIZAR EL CONTROL Y REDUCIR LAS NPRESIONES SOBRE LOS RECURSOS NATURALES Y LOS VALORES OBJETO DE CONSERVACION | I58: PNN SELVA DE FLORENCIA | J58: 2 CONTRATACIÓN DIRECTA | K58: 14 PRESTACIÓN DE SERVICIOS | M58: CONTRATACION DIRECTA | N58: 80161500 Cód. 80161500 - Servicios de apoyo a la gestión | O58: 12240000 | S58: 1224000 | T58: 1 PERSONA NATURAL | U58: 2 RUT - REGISTRO ÚNICO TRIBUTARIO | V58: 10174606 | X58: 7 DV 6 | Z58: LA DORADA | AA58: JOSE ORLANDO MARULANDA ARCILA | AB58: 1 PÓLIZA | AC58: 2 CUMPLIMIENTO | AD58: 2017-01-26 | AE58: LIBERTY SEGUROS | AF58: 2759817 | AG58: 2 SUPERVISOR | AN58: 3 CÉDULA DE CIUDADANÍA | AO58: 10258001 | AQ58: 11 NO SE DILIGENCIA INFORMACIÓN PARA ESTE FORMULARIO EN ESTE PERÍODO DE REPORTE | AS58: HUGO FERNANDO BALLESTEROS BOTERO | AT58: 300 | AU58: 3 NO PACTADOS | AV58: 0 | AW58: 3 ADICIÓN EN VALOR y EN TIEMPO | AX58: 816000 | AY58: 2017-11-20 | AZ58: 20 | BA58: 2017-11-20 | BJ58: 2017-01-26 | BK58: 2017-12-15 | BM58: 100 | BN58: 100 | BO58: 100 | BP58: 100 | BQ58: ADICION Y PRORROGA N|01 AL CPS047/2017 POR EL CUAL SE ADICIONA LA SUMA DE $816.000 Y EN TIEMPO POR (20) DIAS MAS EL 20/11/2017 | BR58: POA REGULACION SIIF AUTORIDAD AMBIENTAL | BS58: NACION | BT58: 10317 | BU58: 12240000 | BV58: 2017-01-25 | BW58: 13817 | BX58: 12240000 | BY58: 2017-01-26 | BZ58: 204000 | CA58: 1224000 | CB58: 1224000 | CC58: 1224000 | CD58: 1224000 | CE58: 1224000 | CF58: 1224000 | CG58: 1224000 | CH58: 1224000 | CI58: 1224000 | CJ58: 1224000 | CK58: 612000 | CL58: 13056000 | CM58: 0 | CP58: CPS | CR58: 2017-12-30
A59: 48 | B59: FILA_48 | C59: 1 SI | E59: 048 | F59: 2017-01-25 | G59: 2 DOS VECES | H59: PRESTACION DE SERVICIOS OPERATIVOS Y DE APOYO A LA GESTION DEL PNN TATAMA PARA DESARROLLAR ACTIVIDADES DE TIPO ADMINISTRATIVO EN LA SEDE DEL PARQUE, ASI MISMO APOYAR EN LA REALIZACION DE ACTIVIDADES RELACIONADAS EN LA CONSTRUCCION DE LA ACTIVIDAD ECOTURISTICA DEL AREA PROTEGIDA | I59: PNN TATAMA | J59: 2 CONTRATACIÓN DIRECTA | K59: 14 PRESTACIÓN DE SERVICIOS | M59: CONTRATACION DIRECTA | N59: 80161500 Cód. 80161500 - Servicios de apoyo a la gestión | O59: 10200000 | S59: 1020000 | T59: 1 PERSONA NATURAL | U59: 2 RUT - REGISTRO ÚNICO TRIBUTARIO | V59: 25196350 | X59: 6 DV 5 | Z59: SANTUARIO | AA59: YANGELA YULIET RODRIGUEZ RIVERA | AB59: 1 PÓLIZA | AC59: 2 CUMPLIMIENTO | AD59: 2017-01-26 | AE59: CONFIANZA | AF59: 23 GU050342 | AG59: 2 SUPERVISOR | AN59: 3 CÉDULA DE CIUDADANÍA | AO59: 79125719 | AQ59: 11 NO SE DILIGENCIA INFORMACIÓN PARA ESTE FORMULARIO EN ESTE PERÍODO DE REPORTE | AS59: JUAN CARLOS TRONCOSO SAAVEDRA | AT59: 300 | AU59: 3 NO PACTADOS | AV59: 0 | AW59: 4 NO SE HA ADICIONADO NI EN VALOR y EN TIEMPO | AX59: 680000 | AY59: 2017-11-07 | AZ59: 20 | BA59: 2017-11-07 | BJ59: 2017-01-26 | BK59: 2017-12-15 | BM59: 100 | BN59: 100 | BO59: 100 | BP59: 100 | BQ59: ADICION Y PRORROGA N°01 AL CPS048/2017 POR EL CUAL SE ADICIONA LA SUMA DE $680.000 Y EN TIEMPO POR (20) DIAS MAS EL 07/11/2017 | BR59: POA Y SIIF FORTALECIMIENTO | BS59: NACION | BT59: 9617 | BU59: 10200000 | BV59: 2017-01-25 | BW59: 13217 | BX59: 10200000 | BY59: 2017-01-25 | BZ59: 170000 | CA59: 1020000 | CB59: 1020000 | CC59: 1020000 | CD59: 1020000 | CE59: 1020000 | CF59: 1020000 | CG59: 1020000 | CH59: 1020000 | CI59: 1020000 | CJ59: 1020000 | CK59: 510000 | CL59: 10880000 | CM59: 0 | CP59: CPS | CR59: 2017-12-30
A60: 49 | B60: FILA_49 | C60: 1 SI | E60: 049 | F60: 2017-01-25 | G60: 2 DOS VECES | H60: PRESTACION DE SERVICIOS OPERATIVOS DE APOYO EN LA GESTION DEL PNN TATAMA PARA REALIZAR ACTIVIDADES DE MONITOREO DE LOS VOC, PREVENCION, VIGILANCIA Y CONTROL Y EDUCACION AMBIENTAL QUE CONTRIBUYA AL CONOCIMIENTO DEL ESTADO DE LOS VOC, REDUCIR LAS PRESIONES Y AMENAZAS QUE PUEDAN AFECTAR LA BASE NATURAL DEL AREA PROTEGISA Y VALORAR CADA UNO DE ESTOS RECURSOS NATURALES POR LA POBLACION EDUCATIVA Y LA SOCIEDAD EN EL MUNCIPIO DE EL AGUILA - VALLE | I60: PNN TATAMA | J60: 2 CONTRATACIÓN DIRECTA | K60: 14 PRESTACIÓN DE SERVICIOS | M60: CONTRATACION DIRECTA | N60: 80161500 Cód. 80161500 - Servicios de apoyo a la gestión | O60: 12240000 | S60: 1224000 | T60: 1 PERSONA NATURAL | U60: 2 RUT - REGISTRO ÚNICO TRIBUTARIO | V60: 1045047356 | X60: 5 DV 4 | Z60: TAMESIS | AA60: LUIS GUILLERMO GALLEGO PATIÑO | AB60: 1 PÓLIZA | AC60: 2 CUMPLIMIENTO | AD60: 2017-01-26 | AE60: CONFIANZA | AF60: 23 GU050344 | AG60: 2 SUPERVISOR | AN60: 3 CÉDULA DE CIUDADANÍA | AO60: 79125719 | AQ60: 11 NO SE DILIGENCIA INFORMACIÓN PARA ESTE FORMULARIO EN ESTE PERÍODO DE REPORTE | AS60: JUAN CARLOS TRONCOSO SAAVEDRA | AT60: 300 | AU60: 3 NO PACTADOS | AV60: 0 | AW60: 3 ADICIÓN EN VALOR y EN TIEMPO | AX60: 816000 | AY60: 2017-11-03 | AZ60: 20 | BA60: 2017-11-03 | BJ60: 2017-01-26 | BK60: 2017-12-15 | BM60: 100 | BN60: 100 | BO60: 100 | BP60: 100 | BQ60: ADICION Y PRORROGA N°01 AL CPS049/2017 POR EL CUAL SE ADICIONA LA SUMA DE $816.000 Y SE PRORROGA EL PLAZO DE EJECUCIÓN EN (20) DIAS MAS EL 03/11/2017 | BR60: POA REGULACION SIIF AUTORIDAD AMBIENTAL | BS60: NACION | BT60: 9917 | BU60: 12240000 | BV60: 2017-01-25 | BW60: 13317 | BX60: 12240000 | BY60: 2017-01-25 | BZ60: 204000 | CA60: 1224000 | CB60: 1224000 | CC60: 1224000 | CD60: 1224000 | CE60: 1224000 | CF60: 1224000 | CG60: 1224000 | CH60: 1224000 | CI60: 1224000 | CJ60: 1224000 | CK60: 612000 | CL60: 13056000 | CM60: 0 | CP60: CPS | CR60: 2017-12-30
A61: 50 | B61: FILA_50 | C61: 1 SI | E61: 050 | F61: 2017-02-01 | G61: 2 DOS VECES | H61: PRESTACION DE SERVICIOS PROFESIONALES Y DE APOYO A LA GESTIN EN SISTEMATIZACION DE LA GESTION Y LOS PROCESOS, BAJO EL DISEÑO DE HERRAMIENTAS COMUNICAIONALES QUE SIRVAN DE APOYO PARA EL POSICIONAMIENTO Y DIVULGACION, APORTADO AL PLAN ESTRATEGICO TERRITORIAL DE LA DTAO Y SUS AREAS PROTEGIDAS | I61: DTAO | J61: 2 CONTRATACIÓN DIRECTA | K61: 14 PRESTACIÓN DE SERVICIOS | M61: CONTRATACION DIRECTA | N61: 80161500 Cód. 80161500 - Servicios de apoyo a la gestión | O61: 24378000 | S61: 2437800 | T61: 1 PERSONA NATURAL | U61: 2 RUT - REGISTRO ÚNICO TRIBUTARIO | V61: 1152436540 | X61: 1 DV 0 | Z61: MEDELLIN | AA61: JACKELINE OSORNO LOPEZ | AB61: 1 PÓLIZA | AC61: 2 CUMPLIMIENTO | AD61: 2017-02-01 | AE61: SEGUROS DEL ESTADO | AF61: 65-44-101141930 | AG61: 2 SUPERVISOR | AN61: 3 CÉDULA DE CIUDADANÍA | AO61: 10282381 | AQ61: 11 NO SE DILIGENCIA INFORMACIÓN PARA ESTE FORMULARIO EN ESTE PERÍODO DE REPORTE | AS61: JORGE EDUARDO CEBALLOS BETANCUR | AT61: 300 | AU61: 3 NO PACTADOS | AV61: 0 | AW61: 3 ADICIÓN EN VALOR y EN TIEMPO | AX61: 1218900 | AY61: 2017-11-09 | AZ61: 15 | BA61: 2017-11-09 | BJ61: 2017-02-01 | BK61: 2017-12-15 | BM61: 100 | BN61: 100 | BO61: 100 | BP61: 100 | BQ61: ADICION Y PRORROGA N°01 AL CPS050/2017 POR EL CUAL SE ADICIONA LA SUMA DE $1.218.900 Y SE PRORROGA EL PLAZO DE EJECUCIÓN POR (15) DIAS MAS EL 09/11/2017 | BR61: POA Y SIIF VALORACION SOCIAL | BS61: NACION | BT61: 7717 | BU61: 24378000 | BV61: 2017-01-20 | BW61: 16317 | BX61: 24378000 | BY61: 2017-02-01 | BZ61: 0 | CA61: 2437800 | CB61: 2437800 | CC61: 2437800 | CD61: 2437800 | CE61: 2437800 | CF61: 2437800 | CG61: 2437800 | CH61: 2437800 | CI61: 2437800 | CJ61: 2437800 | CK61: 1218900 | CL61: 25596900 | CM61: 0 | CP61: CPS | CR61: 2017-12-30
A62: 51 | B62: FILA_51 | C62: 1 SI | E62: 051 | F62: 2017-01-25 | G62: 3 TRES VECES | H62: PRESTACION DE SERVICIOS OPERATIVOS Y DE APOYO A LA GESTION EN LA EJECUCION DE ACTIVIDADES DE PRENENCION Y, CONTROL Y VIGILANCIA, ASI COMO REALIZACION DE ACTIVIDADES QUE FORTALEZCAN LA PRESENCIA INSTITUCIONAL EN EL SFF GALERAS Y SU AREA DE INFLUENCIA | I62: PNN GALERAS | J62: 2 CONTRATACIÓN DIRECTA | K62: 14 PRESTACIÓN DE SERVICIOS | M62: CONTRATACION DIRECTA | N62: 80161500 Cód. 80161500 - Servicios de apoyo a la gestión | O62: 12240000 | S62: 1224000 | T62: 1 PERSONA NATURAL | U62: 2 RUT - REGISTRO ÚNICO TRIBUTARIO | V62: 12970214 | X62: 5 DV 4 | Z62: PASTO | AA62: FRANCO HERNANDO GOMEZ MARTINEZ | AB62: 1 PÓLIZA | AC62: 2 CUMPLIMIENTO | AD62: 2017-01-26 | AE62: SEGUROS DEL ESTADO | AF62: 41-44-101185106 | AG62: 2 SUPERVISOR | AN62: 3 CÉDULA DE CIUDADANÍA | AO62: 30705143 | AQ62: 11 NO SE DILIGENCIA INFORMACIÓN PARA ESTE FORMULARIO EN ESTE PERÍODO DE REPORTE | AS62: NANCY LOPEZ DE VILES | AT62: 300 | AU62: 3 NO PACTADOS | AV62: 0 | AW62: 3 ADICIÓN EN VALOR y EN TIEMPO | AX62: 816000 | AY62: 2017-11-07 | AZ62: 20 | BA62: 2017-11-07 | BH62: OTROSI MODIFICATORIO N°01 AL CPS 051/2017 POR EL CUAL S EMODIFICA LA CLAUSULA NOVENA "CUENTA DEL CONTRATISTA, OTRO SI MODIFICATORIO NN|02 DEL CPS051/2017 POR EL CUAL SE MODIFICACLA CLAUSULA SEGUNDA"OBLIGACIONES DEL CONTRATISTA" | BI62: 24/05/2017-22/06/2017 | BJ62: 2017-01-26 | BK62: 2017-12-15 | BM62: 100 | BN62: 100 | BO62: 100 | BP62: 100 | BQ62: OTRO SI MODIFICATORIO 01 DEL 24/05/2017 POR EL CUAL SE MODIFICA LA CLAUSULA NOVENA DEL CPS NACIÓN 051 DE 2017, "CUENTA DEL CONTRATISTA, OTRO SI MODIFICATORIO 02 DEL 22/06/2017 POR EL CUAL SE MODIFICA LA CLAUSULA SEGUNDA:OBLIGACIONES DEL CONTRATISTA, ADICION Y PRORROGA N|01 AL CPS051/2017 POR EL CUAL SE ADICIONA EL VALOR DE $816.000 Y SE PRORROGA EL PLAZO DE EJECUCIÓN EN (20) DIAS MAS EL 07/11/2017 | BR62: POA REGULACION SIIF AUTORIDAD AMBIENTAL | BS62: NACION | BT62: 10517 | BU62: 12240000 | BV62: 2017-01-25 | BW62: 13517 | BX62: 12240000 | BY62: 2017-01-26 | BZ62: 204000 | CA62: 1224000 | CB62: 1224000 | CC62: 1224000 | CD62: 1224000 | CE62: 1224000 | CF62: 1224000 | CG62: 1224000 | CH62: 1224000 | CI62: 1224000 | CJ62: 1224000 | CK62: 612000 | CL62: 13056000 | CM62: 0 | CP62: CPS | CR62: 2017-12-30
A63: 52 | B63: FILA_52 | C63: 1 SI | E63: 052 | F63: 2017-01-25 | G63: 2 DOS VECES | H63: PRESTACION DE SERVICIOS PROFESIONALES PARA ACOMPAÑAR EL DESARROLLO, IMPLEMENTACION Y SEGUIMIENTO DE LA PLANEACION ESTRATEGICA DE ESTRUCTURACION, AJUSTE FORMULACION Y RETROALIMENTACION DE LA PLANEACION INSTITUCIONAL Y TERRITORIAL EN EL MARCO DEL SUBSISTEMA ANDES OCCIDENTALES | I63: DTAO | J63: 2 CONTRATACIÓN DIRECTA | K63: 14 PRESTACIÓN DE SERVICIOS | M63: CONTRATACION DIRECTA | N63: 80161500 Cód. 80161500 - Servicios de apoyo a la gestión | O63: 35598000 | S63: 3559800 | T63: 1 PERSONA NATURAL | U63: 2 RUT - REGISTRO ÚNICO TRIBUTARIO | V63: 1053803622 | X63: 2 DV 1 | Z63: MANIZALES | AA63: YENNY CAROLINA CASTAÑEDA CRUZ | AB63: 1 PÓLIZA | AC63: 2 CUMPLIMIENTO | AD63: 2017-01-26 | AE63: SEGUROS DEL ESTADO | AF63: 16 GU061751 | AG63: 2 SUPERVISOR | AN63: 3 CÉDULA DE CIUDADANÍA | AO63: 10282381 | AQ63: 11 NO SE DILIGENCIA INFORMACIÓN PARA ESTE FORMULARIO EN ESTE PERÍODO DE REPORTE | AS63: JORGE EDUARDO CEBALLOS BETANCUR | AT63: 300 | AU63: 3 NO PACTADOS | AV63: 0 | AW63: 3 ADICIÓN EN VALOR y EN TIEMPO | AX63: 4153100 | AY63: 15/11/2017-15/12/2017 | AZ63: 35 | BA63: 15/11/2017-15/12/2017 | BJ63: 2017-01-26 | BK63: 2017-12-30 | BM63: 100 | BN63: 100 | BO63: 100 | BP63: 100 | BQ63: ADICION Y PRORROGA N°01 AL CPS052/2017 POR EL CUAL SE ADICIONA LA SUMA DE $2.373.200 Y EN TIEMPO POR (20) DIAS MAS EL 15/11/2017, ADICION Y PRORROGA N|02 AL CPS052/2017 POR EL CUAL SE ADICIONA LA SUMA DE $1.779.900 Y EN TIMPO POR (15) DIAS MAS EL 15/12/2017 | BR63: POA PLANEACION INTERNA SIIF FORTALECIMIENTO | BS63: NACION | BT63: 9817 | BU63: 3598000 | BV63: 2017-01-25 | BW63: 13417 | BX63: 35598000 | BY63: 2017-01-26 | BZ63: 593300 | CA63: 3559800 | CB63: 3559800 | CC63: 3559800 | CD63: 3559800 | CE63: 3559800 | CF63: 3559800 | CG63: 3559800 | CH63: 3559800 | CI63: 3559800 | CJ63: 3559800 | CK63: 3559800 | CL63: 39751100 | CM63: 0 | CP63: CPS | CR63: 2017-12-30
A64: 53 | B64: FILA_53 | C64: 1 SI | E64: 053 | F64: 2017-01-25 | G64: 3 TRES VECES | H64: PRESTACION DE SERVICIOS TECNICOS Y DE APOYO A LA GESTION PARA ASISTIR, APOYAR GESTIONAR, EJECUTAR Y REALIZAR SEGUIMIENTO Y CONTROL A LA GESTION DEL DIRECTOR TERRITORIAL, LABOR TRANSVERSAL A TODA LA GESTION DE LA DTAO, COMO PARTE DE UN SISTEMA DE GESTION DE CALIDAD DE ESTA, EN ARAS DE MEJORAR LA EFICIENCIA INSTITUCIONAL | I64: DTAO | J64: 2 CONTRATACIÓN DIRECTA | K64: 14 PRESTACIÓN DE SERVICIOS | M64: CONTRATACION DIRECTA | N64: 80161500 Cód. 80161500 - Servicios de apoyo a la gestión | O64: 20196000 | S64: 2019600 | T64: 1 PERSONA NATURAL | U64: 2 RUT - REGISTRO ÚNICO TRIBUTARIO | V64: 1152449149 | X64: 2 DV 1 | Z64: MEDELLIN | AA64: LAURA MEJIA TORO | AB64: 1 PÓLIZA | AC64: 2 CUMPLIMIENTO | AD64: 2017-01-26 | AE64: SEGUROS DEL ESTADO | AF64: 65-44-101141541 | AG64: 2 SUPERVISOR | AN64: 3 CÉDULA DE CIUDADANÍA | AO64: 10282381 | AQ64: 11 NO SE DILIGENCIA INFORMACIÓN PARA ESTE FORMULARIO EN ESTE PERÍODO DE REPORTE | AS64: JORGE EDUARDO CEBALLOS BETANCUR | AT64: 300 | AU64: 3 NO PACTADOS | AV64: 0 | AW64: 3 ADICIÓN EN VALOR y EN TIEMPO | AX64: 1077120 | AY64: 15/11/2017-30/11/2017 | AZ64: 16 | BA64: 15/11/2017-30/11/2017 | BH64: OTROSI MODIFICATORIO N° 01 POR CAMBIO DEL NUMERO DEL CONTRATO ANTERIORMENTE EL N° 43 Y FINALMENTE AL N° 53 | BI64: 2017-01-31 | BJ64: 2017-01-26 | BK64: 2017-12-11 | BL64: 2018-01-29 | BM64: 100 | BN64: 100 | BO64: 100 | BP64: 100 | BQ64: OTROSI MODIFICATORIO N° 01 POR CAMBIO DEL NUMERO DEL CONTRATO ANTERIORMENTE EL N° 43 Y FINALMENTE AL N° 53, ADICION Y PRORROGA N°01 POR EL CUAL SE ADICIONA LA SUMA DE $336.600 Y SE PRORROGA EL PLAZO DE EJECUCIÓN EN 5 DIAS MAS EL 15/11/2017, ADICION Y PRORROGA N°02 AL CPS053/2017 POR EL CUAL SE ADICIONA LA SUMA DE $740.520 Y EN TIEMPO POR (11) DIAS MAS EL 30/11/2017, ACTA DE TERMINACION Y LIQUIDACION BILATERAL DEL CPS053/2017 EL 29/01/2018 | BR64: POA PLANEACION INTERNA SIIF FORTALECIMIENTO | BS64: NACION | BT64: 10617 | BU64: 20196000 | BV64: 2017-01-25 | BW64: 13617 | BX64: 20196000 | BY64: 2017-01-26 | BZ64: 336600 | CA64: 2019600 | CB64: 2019600 | CC64: 2019600 | CD64: 2019600 | CE64: 2019600 | CF64: 2019600 | CG64: 2019600 | CH64: 2019600 | CI64: 2019600 | CJ64: 2019600 | CK64: 740520 | CL64: 21273120 | CM64: 0 | CP64: CPS | CR64: 2017-12-30
A65: 54 | B65: FILA_54 | C65: 1 SI | E65: 054 | F65: 2017-02-01 | G65: 2 DOS VECES | H65: PRESTACION DE SERVICIOS PROFESIONALES Y DE APOYO A LA GESTION PARA LA PLANEACION ESTRATEGICA Y LA GESTION SOCIOINSTITUCIONAL A NIVEL POLITICO, TECNICO, FINANCIERO Y DE PARTICIPACION, CON ENFASIS E LOS AMBITOS Y PROCESOS CON LOS QUE INTERACTUA EN EL MARCO DEL SUBSISTEMA ANDES OCCIDENTALES, CON REFERENCIA EN EL PLAN ESTRATEGICO DE LA DTAO Y LOS PLANES ESTRATEGICOS DE SUS AREAS PROTEGIDAS ADSCRITAS | I65: DTAO | J65: 2 CONTRATACIÓN DIRECTA | K65: 14 PRESTACIÓN DE SERVICIOS | M65: CONTRATACION DIRECTA | N65: 80161500 Cód. 80161500 - Servicios de apoyo a la gestión | O65: 59466000 | S65: 5946600 | T65: 1 PERSONA NATURAL | U65: 2 RUT - REGISTRO ÚNICO TRIBUTARIO | V65: 10283991 | X65: 5 DV 4 | Z65: MANIZALES | AA65: RICARDO AGUDELO SALAZAR | AB65: 1 PÓLIZA | AC65: 2 CUMPLIMIENTO | AD65: 2017-02-01 | AE65: SEGUROS DEL ESTADO | AF65: 65-44-101141846 | AG65: 2 SUPERVISOR | AN65: 3 CÉDULA DE CIUDADANÍA | AO65: 10282381 | AQ65: 11 NO SE DILIGENCIA INFORMACIÓN PARA ESTE FORMULARIO EN ESTE PERÍODO DE REPORTE | AS65: JORGE EDUARDO CEBALLOS BETANCUR | AT65: 300 | AU65: 3 NO PACTADOS | AV65: 0 | AW65: 3 ADICIÓN EN VALOR y EN TIEMPO | AX65: 2973300 | AY65: 2017-11-15 | AZ65: 15 | BA65: 2017-11-15 | BJ65: 2017-02-01 | BK65: 2017-12-15 | BM65: 100 | BN65: 100 | BO65: 100 | BP65: 100 | BQ65: ADICION Y PRORROGA N°01 AL CPS 054/2017 POR EL CUAL SE ADICIONA LA SUMA DE $2.973.300 Y SE PRORROGA EL PLAZO DE EJECUCIÓN EN 15 DIAS MAS EL 15/11/2017 | BR65: POA PARTICIPACION ACTORES SINAP SIIF COORDINACION SINAP | BS65: NACION | BT65: 10717 | BU65: 59466000 | BV65: 2017-01-26 | BW65: 16617 | BX65: 59466000 | BY65: 2017-02-01 | BZ65: 0 | CA65: 5946600 | CB65: 5946600 | CC65: 5946600 | CD65: 5946600 | CE65: 5946600 | CF65: 5946600 | CG65: 5946600 | CH65: 5946600 | CI65: 5946600 | CJ65: 5946600 | CK65: 2973300 | CL65: 62439300 | CM65: 0 | CP65: CPS | CR65: 2017-12-30
A66: 55 | B66: FILA_55 | C66: 1 SI | E66: 055 | F66: 2017-02-01 | G66: 2 DOS VECES | H66: PRESTACION DE SERVICIOS TECNICO Y DE APOYO A LA GESTION PARA ACOMPAÑAR LOS PROCESOS DE FORTALECIMIENTO, CONSOLIDACION E INCLUSION DE LAS RESERVAS NATURALES DE LA SOCIEDAD CIVIL COMO ESTRATEGIAS DE CONSERVACIOB DEL SINAP, EN EL MARCO DEL SUBSISTEMA ANDES OCCIDENTALES, CON REFERENCIA EN EL PLAN ESTRATEGICOS EN EL PLAN ESTRATEGICO DE LA DTAO Y LOS PLANES ESTRATEGICOS DE SUS AREAS PROTEGIDAS | I66: DTAO | J66: 2 CONTRATACIÓN DIRECTA | K66: 14 PRESTACIÓN DE SERVICIOS | M66: CONTRATACION DIRECTA | N66: 80161500 Cód. 80161500 - Servicios de apoyo a la gestión | O66: 20196000 | S66: 2019600 | T66: 1 PERSONA NATURAL | U66: 2 RUT - REGISTRO ÚNICO TRIBUTARIO | V66: 4377191 | X66: 2 DV 1 | Z66: ARMENIA | AA66: JUAN CARLOS JARAMILLO RAMIREZ | AB66: 1 PÓLIZA | AC66: 2 CUMPLIMIENTO | AD66: 2017-02-01 | AE66: SEGUROS DEL ESTADO | AF66: 65-44-101141931 | AG66: 2 SUPERVISOR | AN66: 3 CÉDULA DE CIUDADANÍA | AO66: 10282381 | AQ66: 11 NO SE DILIGENCIA INFORMACIÓN PARA ESTE FORMULARIO EN ESTE PERÍODO DE REPORTE | AS66: JORGE EDUARDO CEBALLOS BETANCUR | AT66: 300 | AU66: 3 NO PACTADOS | AV66: 0 | AW66: 3 ADICIÓN EN VALOR y EN TIEMPO | AX66: 1009800 | AY66: 2017-11-09 | AZ66: 15 | BA66: 2017-11-09 | BJ66: 2017-02-01 | BK66: 2017-12-15 | BM66: 100 | BN66: 100 | BO66: 100 | BP66: 100 | BQ66: ADICION Y PRORROGA N°01 AL CPS055/2017 POR EL CUAL SE ADICIONA LA SUMA DE $1,009.800 Y SE PRORROGA EL PLAZO DE EJECUCIUÓN POR (15) DIAS MAS EL 09/11/2017 | BR66: POA ACTORES SINAP SIIF COORDINACION SINAP | BS66: NACION | BT66: 11317 | BU66: 20196000 | BV66: 2017-01-27 | BW66: 16517 | BX66: 20196000 | BY66: 2017-02-01 | BZ66: 0 | CA66: 2019600 | CB66: 2019600 | CC66: 2019600 | CD66: 2019600 | CE66: 2019600 | CF66: 2019600 | CG66: 2019600 | CH66: 2019600 | CI66: 2019600 | CJ66: 2019600 | CK66: 1009800 | CL66: 21205800 | CM66: 0 | CP66: CPS | CR66: 2017-12-30
A67: 56 | B67: FILA_56 | C67: 1 SI | E67: 056 | F67: 2017-02-01 | G67: 2 DOS VECES | H67: PRESTACION DE SERVICIOS PROFESIONALES Y DE APOYO EN LA PRECISION DE LIMITES DE LAS AREAS PROTEGIDAS DE PNN DE COLOMBIA A ESCALA 1:25.000, Y EN LA GENERACION DE INFORMACION GEOREFERENCIADA, E INFORMACION CARTOGRAFICA RELACIONADA CON LOS PROCESOS DE USO, OCUPACION Y TENENCIA EN EL MARCO DEL SUBSISTEMA ANDES OCCIDENTALES, REFERENCIA EN EL PLAN ESTRATEGICO DE LA DTAO Y LOS PLANES ESTRATEGICOS DE SUS AREAS PROTEGIDAS ADSCRITAS | I67: DTAO | J67: 2 CONTRATACIÓN DIRECTA | K67: 14 PRESTACIÓN DE SERVICIOS | M67: CONTRATACION DIRECTA | N67: 80161500 Cód. 80161500 - Servicios de apoyo a la gestión | O67: 24378000 | S67: 2437800 | T67: 1 PERSONA NATURAL | U67: 2 RUT - REGISTRO ÚNICO TRIBUTARIO | V67: 3377499 | X67: 10 DV 9 | Z67: ANDES | AA67: EDWAR HENRY GUARIN GALEANO | AB67: 1 PÓLIZA | AC67: 2 CUMPLIMIENTO | AD67: 2017-02-01 | AE67: SEGUROS DEL ESTADO | AF67: 65-44-101141932 | AG67: 2 SUPERVISOR | AN67: 3 CÉDULA DE CIUDADANÍA | AO67: 10282381 | AQ67: 11 NO SE DILIGENCIA INFORMACIÓN PARA ESTE FORMULARIO EN ESTE PERÍODO DE REPORTE | AS67: JORGE EDUARDO CEBALLOS BETANCUR | AT67: 300 | AU67: 3 NO PACTADOS | AV67: 0 | AW67: 3 ADICIÓN EN VALOR y EN TIEMPO | AX67: 1218900 | AY67: 2017-11-15 | AZ67: 15 | BA67: 2017-11-15 | BJ67: 2017-02-01 | BK67: 2017-12-15 | BM67: 100 | BN67: 100 | BO67: 100 | BP67: 100 | BQ67: ADICION Y PRORROGA N°01 AL CPS056/2017 POR EL CUAL SE ADICIONA LA SUMA DE $1.218.9000 Y EN TIEMPO POR (15) DIAS MAS EL 15/11/2017 | BR67: POA Y SIIF SANEAMIENTO | BS67: NACION | BT67: 11017 | BU67: 24378000 | BV67: 2017-01-26 | BW67: 16217 | BX67: 24378000 | BY67: 2017-02-01 | BZ67: 0 | CA67: 2437800 | CB67: 2437800 | CC67: 2437800 | CD67: 2437800 | CE67: 2437800 | CF67: 2437800 | CG67: 2437800 | CH67: 2437800 | CI67: 2437800 | CJ67: 2437800 | CK67: 1218900 | CL67: 25596900 | CM67: 0 | CP67: CPS | CR67: 2017-12-30
A68: 57 | B68: FILA_57 | C68: 1 SI | E68: 057 | F68: 2017-01-26 | G68: 2 DOS VECES | H68: PRESTACION DE SERVICIOS PROFESIONALES Y DE APOYO A LA GESTION DEL SFF GALERAS ESPECIFICACMENTE EN LA IMPLEMENTACION Y AJUSTE DEL PROGRAMA DE MONITOREO DEL AREA PROTEGIDA, EVALUACION DE LOS VALORES OBJETO DE CONSERVACION DEL SSF GALERAS | I68: SFF GALERAS | J68: 2 CONTRATACIÓN DIRECTA | K68: 14 PRESTACIÓN DE SERVICIOS | M68: CONTRATACION DIRECTA | N68: 80161500 Cód. 80161500 - Servicios de apoyo a la gestión | O68: 29172000 | S68: 2917200 | T68: 1 PERSONA NATURAL | U68: 2 RUT - REGISTRO ÚNICO TRIBUTARIO | V68: 36950098 | X68: 9 DV 8 | Z68: PASTO | AA68: CAROLA LUCIA LARA JIMINEZ | AB68: 1 PÓLIZA | AC68: 2 CUMPLIMIENTO | AD68: 2017-01-30 | AE68: SEGUROS DEL ESTADO | AF68: 41-44-101185258 | AG68: 2 SUPERVISOR | AN68: 3 CÉDULA DE CIUDADANÍA | AO68: 30705143 | AQ68: 11 NO SE DILIGENCIA INFORMACIÓN PARA ESTE FORMULARIO EN ESTE PERÍODO DE REPORTE | AS68: NANCY LOPEZ DE VILES | AT68: 300 | AU68: 3 NO PACTADOS | AV68: 0 | AW68: 3 ADICIÓN EN VALOR y EN TIEMPO | AX68: 1555840 | AY68: 2017-11-07 | AZ68: 16 | BA68: 2017-11-07 | BJ68: 2017-01-30 | BK68: 2017-12-15 | BM68: 100 | BN68: 100 | BO68: 100 | BP68: 100 | BQ68: ADICION Y PRORROGA N|01 AL CPS057/2017 POR EL CUAL SE ADICIONA LA SUMA DE $ 1.555.840 Y SE PRORROGA EL PLAZO DE EJECUCIÓN EN 16 DIAS MAS EL 07/11/2017 | BR68: POA Y SIIF CONOCIMIENTO VOC | BS68: NACION | BT68: 10917 | BU68: 29172000 | BV68: 2017-01-26 | BW68: 14417 | BX68: 29172000 | BY68: 2017-01-30 | BZ68: 97240 | CA68: 2917200 | CB68: 2917200 | CC68: 2917200 | CD68: 2917200 | CE68: 2917200 | CF68: 2917200 | CG68: 2917200 | CH68: 2917200 | CI68: 2917200 | CJ68: 2917200 | CK68: 1458600 | CL68: 30727840 | CM68: 0 | CP68: CPS | CR68: 2017-12-30
A69: 58 | B69: FILA_58 | C69: 1 SI | E69: 058 | F69: 2017-01-26 | G69: 2 DOS VECES | H69: PRESTACION DE SERVICIOS PROFESIONALES Y DE APOYO A LA GESTION, PARA DINAMIZAR LOS PROCESOS DE ORDENAMIENTO AMBIENTAL DEL TERRITORIO, MONITOREO Y OFERTA DE SERVICIOS ECOSISTEMICOS, QUE CONTRIBUYAN A MEJORAR LA CAPACIDAD DE MANEJO Y A LA REDUCCION DE IMPACTOS Y PRESIONES EN EL AREA PROTEGIDA, ASI COMO AL FORTALECIMIENTO DE LA GESTION DEL PNN LOS NEVADOS | I69: PNN LOS NEVADOS | J69: 2 CONTRATACIÓN DIRECTA | K69: 14 PRESTACIÓN DE SERVICIOS | M69: CONTRATACION DIRECTA | N69: 80161500 Cód. 80161500 - Servicios de apoyo a la gestión | O69: 29172000 | S69: 2917200 | T69: 1 PERSONA NATURAL | U69: 2 RUT - REGISTRO ÚNICO TRIBUTARIO | V69: 1053785392 | X69: 5 DV 4 | Z69: MANIZALES | AA69: MATEO BARCO LARGO | AB69: 1 PÓLIZA | AC69: 2 CUMPLIMIENTO | AD69: 2017-01-30 | AE69: SEGUROS DEL ESTADO | AF69: 42-44-101097591 | AG69: 2 SUPERVISOR | AN69: 3 CÉDULA DE CIUDADANÍA | AO69: 79121466 | AQ69: 11 NO SE DILIGENCIA INFORMACIÓN PARA ESTE FORMULARIO EN ESTE PERÍODO DE REPORTE | AS69: EFRAIM AUGUSTO RODRIGUEZ VARON | AT69: 300 | AU69: 3 NO PACTADOS | AV69: 0 | AW69: 3 ADICIÓN EN VALOR y EN TIEMPO | AX69: 1555840 | AY69: 2017-11-03 | AZ69: 16 | BA69: 2017-11-03 | BJ69: 2017-01-30 | BK69: 2017-12-15 | BM69: 100 | BN69: 100 | BO69: 100 | BP69: 100 | BQ69: ADICION Y PRORROGA N°01 AL CPS058/2017 POR EL CUAL SE ADICIONA LA SUMA DE $1.555840 Y SE PRORROGA EL PLAZO DE EJECUCIÓN EN (16) DIAS MAS EL 03/11/2017 | BR69: POA REGULACION SIIF AUTORIDAD AMBIENTAL | BS69: NACION | BT69: 11117 | BU69: 29172000 | BV69: 2017-01-26 | BW69: 14217 | BX69: 29172000 | BY69: 2017-01-30 | BZ69: 97240 | CA69: 2917200 | CB69: 2917200 | CC69: 2917200 | CD69: 2917200 | CE69: 2917200 | CF69: 2917200 | CG69: 2917200 | CH69: 2917200 | CI69: 2917200 | CJ69: 2917200 | CK69: 1458600 | CL69: 30727840 | CM69: 0 | CP69: CPS | CR69: 2017-12-30
A70: 59 | B70: FILA_59 | C70: 1 SI | E70: 059 | F70: 2017-01-27 | G70: 1 PRIMER VEZ | H70: PRESTACION DE SERVICIOS OPERATIVOS Y DE APOYO A LA GESTION PARA REALIZAR ACCIONES DE PRESENCIA INSTITUCIONAL; PREVENCION, CONTROL Y VIGILANCIA EN EL SFF GALERAS, ASI COMO APOYAR EVENTUALMENTE LA ATENCION DE INCENDIOS Y OTRAS ACTIVIDADES EN TODO EL SANTUARIO, DE ACUERDO A LA PROGRAMACION DE LA JEFE DEL AREA PROTEGIDA | I70: SFF GALERAS | J70: 2 CONTRATACIÓN DIRECTA | K70: 14 PRESTACIÓN DE SERVICIOS | M70: CONTRATACION DIRECTA | N70: 80161500 Cód. 80161500 - Servicios de apoyo a la gestión | O70: 2448000 | S70: 1224000 | T70: 1 PERSONA NATURAL | U70: 2 RUT - REGISTRO ÚNICO TRIBUTARIO | V70: 98215251 | X70: 3 DV 2 | Z70: LA FLORIDA | AA70: JAIME ARMANDO RAMOS VALENCIA | AB70: 1 PÓLIZA | AC70: 2 CUMPLIMIENTO | AD70: 2017-01-30 | AE70: SEGUROS DEL ESTADO | AF70: 41-44-101185240 | AG70: 2 SUPERVISOR | AN70: 3 CÉDULA DE CIUDADANÍA | AO70: 30705143 | AQ70: 11 NO SE DILIGENCIA INFORMACIÓN PARA ESTE FORMULARIO EN ESTE PERÍODO DE REPORTE | AS70: NANCY LOPEZ DE VILES | AT70: 60 | AU70: 3 NO PACTADOS | AV70: 0 | AW70: 4 NO SE HA ADICIONADO NI EN VALOR y EN TIEMPO | AX70: 0 | BJ70: 2017-01-30 | BK70: 2017-03-29 | BM70: 100 | BN70: 100 | BO70: 100 | BP70: 100 | BR70: POA Y SIIF SANEAMIENTO | BS70: NACION | BT70: 11617 | BU70: 2448000 | BV70: 2017-01-27 | BW70: 14317 | BX70: 2448000 | BY70: 2017-01-30 | BZ70: 40800 | CA70: 1224000 | CB70: =1142400+40800 -> 1183200 | CC70: 0 | CD70: 0 | CE70: 0 | CF70: 0 | CG70: 0 | CH70: 0 | CI70: 0 | CJ70: 0 | CK70: 0 | CL70: 2448000 | CM70: 0 | CP70: CPS | CR70: 2017-12-30
A71: 60 | B71: FILA_60 | C71: 1 SI | E71: 060 | F71: 2017-02-01 | G71: 2 DOS VECES | H71: PRESTACION DE SERVICIOS PROFESIONALES Y DE APOYO A LA GESTION INHERENTES AL SEGUIMIENTO DEL ORDENAMIENTO ECOTURISTICO Y FORTALECIMIENTO RELACIONAMIENTO SECTORIAL DE ECOTURISMO PRESENTES EN EL SUBSISTEMA ANDES OCCIDENTALES CON REFERENCIA EN EL PLAN ESTRATEGICO DE LA DTAO Y SUS AREAS PROTEGIDAS ADSCRITAS, COMO TAMBIEN APOYAR EL SEGUIMIENTO PRESUPUESTAL DEL AREA ADMINSITRATIVA Y FINANCIERA | I71: DTAO | J71: 2 CONTRATACIÓN DIRECTA | K71: 14 PRESTACIÓN DE SERVICIOS | M71: CONTRATACION DIRECTA | N71: 80161500 Cód. 80161500 - Servicios de apoyo a la gestión | O71: 29172000 | S71: 2917200 | T71: 1 PERSONA NATURAL | U71: 2 RUT - REGISTRO ÚNICO TRIBUTARIO | V71: 30315553 | X71: 4 DV 3 | Z71: MANIZALES | AA71: LINA PATRICIA LOPEZ JIMENEZ | AB71: 1 PÓLIZA | AC71: 2 CUMPLIMIENTO | AD71: 2017-02-01 | AE71: SEGUROS DEL ESTADO | AF71: 65-44-101141933 | AG71: 2 SUPERVISOR | AN71: 3 CÉDULA DE CIUDADANÍA | AO71: 10282381 | AQ71: 11 NO SE DILIGENCIA INFORMACIÓN PARA ESTE FORMULARIO EN ESTE PERÍODO DE REPORTE | AS71: JORGE EDUARDO CEBALLOS BETANCUR | AT71: 300 | AU71: 3 NO PACTADOS | AV71: 0 | AW71: 4 NO SE HA ADICIONADO NI EN VALOR y EN TIEMPO | AX71: 0 | BJ71: 2017-02-01 | BK71: 2017-11-30 | BM71: 100 | BN71: 100 | BO71: 100 | BP71: 100 | BR71: POA Y SIIF VALORACION SOCIAL | BS71: NACION | BT71: 11517 | BU71: 29172000 | BV71: 2017-01-27 | BW71: 16817 | BX71: 29172000 | BY71: 2017-02-01 | BZ71: 0 | CA71: 2917200 | CB71: 2917200 | CC71: 2917200 | CD71: 2917200 | CE71: 2917200 | CF71: 2917200 | CG71: 2917200 | CH71: 2917200 | CI71: 2917200 | CJ71: 2917200 | CL71: 29172000 | CM71: 0 | CP71: CPS | CR71: 2017-12-30
A72: 61 | B72: FILA_61 | C72: 1 SI | E72: 061 | F72: 2017-01-30 | G72: 2 DOS VECES | H72: PRESTACION DE SERVICIOS PROFESIONALES Y DE APOYO A LA GESTION, PARA EL DESARROLLO Y POSICIONAMIENTO DE LAS TEMATICAS RELACIONADAS CON LA DEFINICION DE UNA ZONA CON FUNCION AMORTIGUADORA, CASO CORREDORES DE CONSERVACION, RESERVAS NATURALES DE LA SOCIEDAD CIVIL Y OTRAS ACCIONES COMPLEMENTARIAS DE CONSERVACION, GENERANDO PROCESOS DE EDUCACION AMBIENTAL, PARTICIPACION COMUNITARIA Y DIVULGACION Y COMUNICACION ESTRATEGICA, EN EL MARCO DE LA IMPLEMENTACION DEL PLAN DE MANEJO DEL PNN LOS NEVADOS | I72: PNN LOS NEVADOS | J72: 2 CONTRATACIÓN DIRECTA | K72: 14 PRESTACIÓN DE SERVICIOS | M72: CONTRATACION DIRECTA | N72: 80161500 Cód. 80161500 - Servicios de apoyo a la gestión | O72: 29172000 | S72: 2917200 | T72: 1 PERSONA NATURAL | U72: 2 RUT - REGISTRO ÚNICO TRIBUTARIO | V72: 24340774 | X72: 9 DV 8 | Z72: MANIZALES | AA72: CRISTINA ARISTIZABAL CARDONA | AB72: 1 PÓLIZA | AC72: 2 CUMPLIMIENTO | AD72: 2017-02-01 | AE72: CONFIANZA | AF72: 16 GU061894 | AG72: 2 SUPERVISOR | AN72: 3 CÉDULA DE CIUDADANÍA | AO72: 79121466 | AQ72: 11 NO SE DILIGENCIA INFORMACIÓN PARA ESTE FORMULARIO EN ESTE PERÍODO DE REPORTE | AS72: EFRAIM AUGUSTO RODRIGUEZ VARON | AT72: 300 | AU72: 3 NO PACTADOS | AV72: 0 | AW72: 3 ADICIÓN EN VALOR y EN TIEMPO | AX72: 1458600 | AY72: 2017-11-03 | AZ72: 15 | BA72: 2017-11-03 | BJ72: 2017-02-01 | BK72: 2017-12-15 | BM72: 100 | BN72: 100 | BO72: 100 | BP72: 100 | BQ72: ADICION Y PRORROGA N°01 AL CPS061/2017 POR EL CUAL SE ADICIONA LA SUMA de $1.458.600 Y EN TIEMPO POR (15) DIAS MAS EL 03/11/2017 | BR72: POA Y SIIF VALORACION SOCIAL | BS72: NACION | BT72: 11417 | BU72: 29172000 | BV72: 2017-01-27 | BW72: 15917 | BX72: 29172000 | BY72: 2017-02-01 | BZ72: 0 | CA72: 2917200 | CB72: 2917200 | CC72: 2917200 | CD72: 2917200 | CE72: 2917200 | CF72: 2917200 | CG72: 2917200 | CH72: 2917200 | CI72: 2917200 | CJ72: 2917200 | CK72: 1458600 | CL72: 30630600 | CM72: 0 | CP72: CPS | CR72: 2017-12-30
A73: 62 | B73: FILA_62 | C73: 1 SI | E73: 062 | F73: 2017-02-01 | G73: 2 DOS VECES | H73: PRESTACION DE SERVICIOS PROFESIONALES Y DE APOYO A LA GESTION PARA LA IMPLEMENTACION DEL PLAN DE ORDENAMIENTO ECOTURISTICO, ASI COMO EL ACOMPAÑAMIENTO Y SEGUIMIENTO AL CONTRATO DE ECOTURISMO COMUNITARIO QUE OPERA EN EL AREA PROTEGIDA | I73: SFF OTUN QUIMBAYA | J73: 2 CONTRATACIÓN DIRECTA | K73: 14 PRESTACIÓN DE SERVICIOS | M73: CONTRATACION DIRECTA | N73: 80161500 Cód. 80161500 - Servicios de apoyo a la gestión | O73: 29172000 | S73: 2917200 | T73: 1 PERSONA NATURAL | U73: 2 RUT - REGISTRO ÚNICO TRIBUTARIO | V73: 30339937 | X73: 2 DV 1 | Z73: MANIZALES | AA73: FRANCIA ELENA OROZCO MONTOYA | AB73: 1 PÓLIZA | AC73: 2 CUMPLIMIENTO | AD73: 2017-02-01 | AE73: CONFIANZA | AF73: 16 GU061917 | AG73: 2 SUPERVISOR | AN73: 3 CÉDULA DE CIUDADANÍA | AO73: 52110135 | AQ73: 11 NO SE DILIGENCIA INFORMACIÓN PARA ESTE FORMULARIO EN ESTE PERÍODO DE REPORTE | AS73: GLORIA TERESITA SERNA ALZATE | AT73: 300 | AU73: 3 NO PACTADOS | AV73: 0 | AW73: 3 ADICIÓN EN VALOR y EN TIEMPO | AX73: 1458600 | AY73: 2017-11-08 | AZ73: 15 | BA73: 2017-11-08 | BJ73: 2017-02-01 | BK73: 2017-12-15 | BM73: 100 | BN73: 100 | BO73: 100 | BP73: 100 | BQ73: ADICION Y PRORROGA N°01 AL CPS062/2017 POR EL CUAL SE ADICIONA LA SUMA DE $1.458.600 Y EN TIEMPO POR (15) DIAS MAS EL 08/11/2017 | BR73: POA Y SIIF VALORACION SOCIAL | BS73: NACION | BT73: 12317 | BU73: 29172000 | BV73: 2017-01-30 | BW73: 16717 | BX73: 29172000 | BY73: 2017-02-01 | BZ73: 0 | CA73: 2917200 | CB73: 2917200 | CC73: 2917200 | CD73: 2917200 | CE73: 2917200 | CF73: 2917200 | CG73: 2917200 | CH73: 2917200 | CI73: 2917200 | CJ73: 2917200 | CK73: 1458600 | CL73: 30630600 | CM73: 0 | CP73: CPS | CR73: 2017-12-30
A74: 63 | B74: FILA_63 | C74: 1 SI | E74: 063 | F74: 2017-01-30 | G74: 2 DOS VECES | H74: PRESTACION DE SERVICIOS OPERATIVOS Y DE APOYO A LA GESTION EN LA EJECUCION DE ACTIVIDADES DE PREVENCION, CONTROL Y VIGILANCIA, ASI COMO REALIZACION DE ACTIVIDADES QUE FORTALEZCAN LA PRESENCIA INSTITUCIONAL EN EL SSF GALERAS Y SU AREA DE INFLUENCIA | I74: SFF GALERAS | J74: 2 CONTRATACIÓN DIRECTA | K74: 14 PRESTACIÓN DE SERVICIOS | M74: CONTRATACION DIRECTA | N74: 80161500 Cód. 80161500 - Servicios de apoyo a la gestión | O74: 12240000 | S74: 1224000 | T74: 1 PERSONA NATURAL | U74: 2 RUT - REGISTRO ÚNICO TRIBUTARIO | V74: 36751992 | X74: 5 DV 4 | Z74: PASTO | AA74: GLORIA CRISTINA PAZ MENESES | AB74: 1 PÓLIZA | AC74: 2 CUMPLIMIENTO | AD74: 2017-01-31 | AE74: SEGUROS DEL ESTADO | AF74: 41-44-101185312 | AG74: 2 SUPERVISOR | AN74: 3 CÉDULA DE CIUDADANÍA | AO74: 30705143 | AQ74: 11 NO SE DILIGENCIA INFORMACIÓN PARA ESTE FORMULARIO EN ESTE PERÍODO DE REPORTE | AS74: NANCY LOPEZ DE VILES | AT74: 300 | AU74: 3 NO PACTADOS | AV74: 0 | AW74: 3 ADICIÓN EN VALOR y EN TIEMPO | AX74: 612000 | AY74: 2017-11-01 | AZ74: 15 | BA74: 2017-11-01 | BJ74: 2017-01-31 | BK74: 2017-12-15 | BM74: 100 | BN74: 100 | BO74: 100 | BP74: 100 | BQ74: ADICION Y PRORROGA N°01 AL CPS063/2017 POR EL CUAL SE ADICIONA EL VALOR DEL CONTRATO $612.000 Y SE PRORROGA EL PLAZO DE EJECUCIÓN EN 15 DIAS MAS | BR74: POA REGULACION SIIF AUTORIDAD AMBIENTAL | BS74: NACION | BT74: 11717 | BU74: 12240000 | BV74: 2017-01-27 | BW74: 14717 | BX74: 12240000 | BY74: 2017-01-31 | BZ74: 0 | CA74: 1224000 | CB74: 1224000 | CC74: 1224000 | CD74: 1224000 | CE74: 1224000 | CF74: 1224000 | CG74: 1224000 | CH74: 1224000 | CI74: 1224000 | CJ74: 1224000 | CK74: 612000 | CL74: 12852000 | CM74: 0 | CP74: CPS | CR74: 2017-12-30
A75: 64 | B75: FILA_64 | C75: 1 SI | E75: 064 | F75: 2017-02-01 | G75: 2 DOS VECES | H75: PRESTACION DE SERVICIOS PROFESIONALES Y DE APOYO A LA GESTION ACOMPAÑANDO Y FORTALECIENDO LA COORDINACION DEL SINAP Y LA COORDINACION DEL SIRAP ANDES OCCIDENTALES DESDE EL ENFOQUE DEL PLAN ESTRATEGICO TERRITORIAL, EN ARTICULACION CON LAS AREAS PROTEGIDAS Y ESTRATEGIAS NACIONALES Y REGIONALES DE CONSERVACION, LOS SUBSISTEMAS REGIONALES DE AREAS PROTEGIDAS DE LA REGION ANDES OCCIDENTALES Y LOS PROCESOS TERRITORIALES DE ORDENAMIENTO AMBIENTAL | I75: DTAO | J75: 2 CONTRATACIÓN DIRECTA | K75: 14 PRESTACIÓN DE SERVICIOS | M75: CONTRATACION DIRECTA | N75: 80161500 Cód. 80161500 - Servicios de apoyo a la gestión | O75: 49878000 | S75: 4987800 | T75: 1 PERSONA NATURAL | U75: 2 RUT - REGISTRO ÚNICO TRIBUTARIO | V75: 8105933 | X75: 9 DV 8 | Z75: SABANETA | AA75: JUAN ESTEBAN HINCAPIE POSADA | AB75: 1 PÓLIZA | AC75: 2 CUMPLIMIENTO | AD75: 2017-02-01 | AE75: SEGUROS DEL ESTADO | AF75: 65-44-101141847 | AG75: 2 SUPERVISOR | AN75: 3 CÉDULA DE CIUDADANÍA | AO75: 10282381 | AQ75: 11 NO SE DILIGENCIA INFORMACIÓN PARA ESTE FORMULARIO EN ESTE PERÍODO DE REPORTE | AS75: JORGE EDUARDO CEBALLOS BETANCUR | AT75: 300 | AU75: 3 NO PACTADOS | AV75: 0 | AW75: 4 NO SE HA ADICIONADO NI EN VALOR y EN TIEMPO | AX75: 0 | BJ75: 2017-02-01 | BK75: 2017-08-02 | BL75: 2017-08-02 | BM75: 100 | BN75: 100 | BO75: 100 | BP75: 100 | BQ75: ACTA DE TERMINACIÓN Y LIQUIDACIÓN ANTICIPADA BILATERAL DEL CONTRATO DE PRESTACIÓN DE SERVICIOS NACIÓN 064 DEL 01/02/2017 | BR75: POA ACTORES SINAP SIIF COORDINACION SINAP | BS75: NACION | BT75: 12417 | BU75: 49878000 | BV75: 2017-01-30 | BW75: 15217 | BX75: 49878000 | BY75: 2017-02-01 | BZ75: 0 | CA75: 4987800 | CB75: 4987800 | CC75: 4987800 | CD75: 4987800 | CE75: 4987800 | CF75: 4987800 | CG75: 0 | CH75: 0 | CI75: 0 | CJ75: 0 | CK75: 0 | CL75: 29926800 | CM75: 19951200 | CP75: CPS | CR75: 2017-12-30
A76: 65 | B76: FILA_65 | C76: 1 SI | E76: 065 | F76: 2017-01-30 | G76: 2 DOS VECES | H76: PRESTACION DE SERVICIOS OPERATIVOS Y DE APOYO A LA GESTION PARA PREVENIR LAS PRESIONES Y AMENAZAS SOBRE LOS VOC DEL PNN CUEVA DE LOS GUCHAROS, MEDIANTE ACCIONES DE PREVENCION, CONTROL Y VIGILANCIA DEL AREA PROTEGIDA | I76: PNN CUEVA DE LOS GUACHAROS | J76: 2 CONTRATACIÓN DIRECTA | K76: 14 PRESTACIÓN DE SERVICIOS | M76: CONTRATACION DIRECTA | N76: 80161500 Cód. 80161500 - Servicios de apoyo a la gestión | O76: 12240000 | S76: 1224000 | T76: 1 PERSONA NATURAL | U76: 2 RUT - REGISTRO ÚNICO TRIBUTARIO | V76: 1081698070 | X76: 8 DV 7 | Z76: PALESTINA | AA76: DEIVER IMBACHI SAMBONI | AB76: 1 PÓLIZA | AC76: 2 CUMPLIMIENTO | AD76: 2017-02-01 | AE76: LIBERTY SEGUROS | AF76: 2762160 | AG76: 2 SUPERVISOR | AN76: 3 CÉDULA DE CIUDADANÍA | AO76: 19165522 | AQ76: 11 NO SE DILIGENCIA INFORMACIÓN PARA ESTE FORMULARIO EN ESTE PERÍODO DE REPORTE | AS76: ITALO RODRIGUEZ AGIAZACO | AT76: 300 | AU76: 3 NO PACTADOS | AV76: 0 | AW76: 3 ADICIÓN EN VALOR y EN TIEMPO | AX76: 448800 | AY76: 2017-11-30 | AZ76: 11 | BA76: 2017-11-30 | BJ76: 2017-02-01 | BK76: 2017-12-11 | BM76: 100 | BN76: 100 | BO76: 100 | BP76: 100 | BQ76: ADICION Y PRORROGA #01 AL CPS 065/2017 POR EL CUAL SE ADICIONA LA SUMA DE $448.800 Y SE PRORROGA EL PLAZO DE EJECUCIÓN EN (11) DIAS MAS EL 30/11/2017 | BR76: POA REGULACION SIIF AUTORIDAD AMBIENTAL | BS76: NACION | BT76: 10817 | BU76: 12240000 | BV76: 2017-01-26 | BW76: 16017 | BX76: 12240000 | BY76: 2017-02-01 | BZ76: 0 | CA76: 1224000 | CB76: 1224000 | CC76: 1224000 | CD76: 1224000 | CE76: 1224000 | CF76: 1224000 | CG76: 1224000 | CH76: 1224000 | CI76: 1224000 | CJ76: 1224000 | CK76: 448800 | CL76: 12688800 | CM76: =O76+AX76-BE76-BZ76-CA76-CB76-CC76-CD76-CE76-CF76-CG76-CH76-CI76-CJ76-CK76 -> 0 | CP76: CPS | CR76: 2017-12-30
A77: 66 | B77: FILA_66 | C77: 1 SI | E77: 066 | F77: 2017-02-01 | G77: 2 DOS VECES | H77: PRESTACION DE SERVICIOS TECNICOS Y DE APOYO A LA GESTION PARA EL DESARROLLO DE ACCIONES QUE FACILITEN IMPLEMENTACION DE LA LINEA ESTRATEGICA DE USO, OCUPACION Y TENENCIA Y DINAMICE EL RELACIONAMIENTO CON ACTORES SOCIALES E INSTITUCIONALES ESTRATEGICOS PARA LA GESTION DEL PNN LAS HERMOSAS Y DEL CORREDOR DE CORDILLERA CENTRAL | I77: PNN PNN HERMOSAS Y CORDILLERA CENTRAL | J77: 2 CONTRATACIÓN DIRECTA | K77: 14 PRESTACIÓN DE SERVICIOS | M77: CONTRATACION DIRECTA | N77: 80161500 Cód. 80161500 - Servicios de apoyo a la gestión | O77: 20196000 | S77: 2019600 | T77: 1 PERSONA NATURAL | U77: 2 RUT - REGISTRO ÚNICO TRIBUTARIO | V77: 14192232 | X77: 7 DV 6 | Z77: PLANADAS | AA77: PABLO PAYA COPAQUE | AB77: 1 PÓLIZA | AC77: 2 CUMPLIMIENTO | AD77: 2017-02-01 | AE77: SEGUROS DEL ESTADO | AF77: 25-45-101025690 | AG77: 2 SUPERVISOR | AN77: 3 CÉDULA DE CIUDADANÍA | AO77: 79576238 | AQ77: 11 NO SE DILIGENCIA INFORMACIÓN PARA ESTE FORMULARIO EN ESTE PERÍODO DE REPORTE | AS77: GERMAN ALBERTO RODRIGUEZ PENAGOS | AT77: 300 | AU77: 3 NO PACTADOS | AV77: 0 | AW77: 3 ADICIÓN EN VALOR y EN TIEMPO | AX77: 1009800 | AY77: 2017-11-07 | AZ77: 15 | BA77: 2017-11-07 | BJ77: 2017-02-01 | BK77: 2017-12-15 | BM77: 100 | BN77: 100 | BO77: 100 | BP77: 100 | BQ77: ADICION Y PRORROGA N°01 AL CPS066/2017 POR EL CUAL SE ADICIONA LA SUMA DE $1.009.800 Y SE PRORROGA EL PLAZO DE EJECUCIÓN POR (15) DIAS MAS EL 07/11/2017 | BR77: POA Y SIIF SANEAMIENTO | BS77: NACION | BT77: 12617 | BU77: 20196000 | BV77: 2017-01-30 | BW77: 15317 | BX77: 20196000 | BY77: 2017-02-01 | BZ77: 0 | CA77: 2019600 | CB77: 2019600 | CC77: 2019600 | CD77: 2019600 | CE77: 2019600 | CF77: 2019600 | CG77: 2019600 | CH77: 2019600 | CI77: 2019600 | CJ77: 2019600 | CK77: 1009800 | CL77: =BZ77+CA77+CB77+CC77+CD77+CE77+CF77+CG77+CH77+CI77+CJ77+CK77 -> 21205800 | CM77: 0 | CP77: CPS | CR77: 2017-12-30
A78: 67 | B78: FILA_67 | C78: 1 SI | E78: 067 | F78: 2017-02-01 | G78: 2 DOS VECES | H78: PRESTACION DE SERVICIOS PROFESIONALES Y DE APOYO A LA GESTION PARA EL BUEN RELACIONAMIENTO Y DESARROLLO DE ACCIONES QUE CONTRIBUYAN A LA CONSERVACION DEL PNN NHU, A TRAVES DE ESTRATEGIAS ESPECIALES DE MANEJO CON LAS COMUNIDADES INDIGENAS QUE TIENEN TERRITORIO COMPARTIDO CON EL PNN NHU EN LOS DEPARTAMENTOS DE TOLIMA Y CAUCA | I78: PNN NEVADO DEL HUILA | J78: 2 CONTRATACIÓN DIRECTA | K78: 14 PRESTACIÓN DE SERVICIOS | M78: CONTRATACION DIRECTA | N78: 80161500 Cód. 80161500 - Servicios de apoyo a la gestión | O78: 35598000 | S78: 3559800 | T78: 1 PERSONA NATURAL | U78: 2 RUT - REGISTRO ÚNICO TRIBUTARIO | V78: 79879906 | X78: 9 DV 8 | Z78: BOGOTA | AA78: DIDIER ALFONSO ASTUDILLO ORTIZ | AB78: 1 PÓLIZA | AC78: 2 CUMPLIMIENTO | AD78: 2017-02-03 | AE78: SEGUROS DEL ESTADO | AF78: 40-44-101042050 | AG78: 2 SUPERVISOR | AN78: 3 CÉDULA DE CIUDADANÍA | AO78: 79144591 | AQ78: 11 NO SE DILIGENCIA INFORMACIÓN PARA ESTE FORMULARIO EN ESTE PERÍODO DE REPORTE | AS78: SANTIAGO FELIPE DUARTE GOMEZ | AT78: 300 | AU78: 3 NO PACTADOS | AV78: 0 | AW78: 4 NO SE HA ADICIONADO NI EN VALOR y EN TIEMPO | AX78: 0 | BJ78: 2017-02-03 | BK78: 2017-08-23 | BL78: 2017-08-23 | BM78: 100 | BN78: 100 | BO78: 100 | BP78: 100 | BQ78: ACTA DE TERMINACIÓN Y LIQUIDACIÓN ANTICIPADA DEL CPS067 DEL 01 DE FEBRERO DE 2017 | BR78: POA Y SIIF ESTRATEGIAS ESPECIALES DE MANEJO | BS78: NACION | BT78: 12717 | BU78: 35598000 | BV78: 2017-01-31 | BW78: 15017 | BX78: 35598000 | BY78: 2017-02-01 | BZ78: 0 | CA78: 3322480 | CB78: 3559800 | CC78: 3559800 | CD78: 3559800 | CE78: 3559800 | CF78: 3559800 | CG78: 0 | CH78: 0 | CI78: 0 | CJ78: 0 | CL78: 21121480 | CM78: 14476520 | CP78: CPS | CR78: 2017-12-30
A79: 68 | B79: FILA_68 | C79: 1 SI | E79: 068 | F79: 2017-01-31 | G79: 2 DOS VECES | H79: PRESTACION DE SERVICIOS OPERATIVOS Y DE APOYO A LA GESTION EN LA EJECUCION DE ACTIVIDADES DE PREVENCION, CONTROL Y VIGILANCIA, ASI COMO REALIZACION DE ACTIVIDADES QUE FORTALEZCAN LA PRESENCIA INSTITUCIONAL EN EL SFF GALERAS Y SU AREA DE INFLUENCIA | I79: SFF GALERAS | J79: 2 CONTRATACIÓN DIRECTA | K79: 14 PRESTACIÓN DE SERVICIOS | M79: CONTRATACION DIRECTA | N79: 80161500 Cód. 80161500 - Servicios de apoyo a la gestión | O79: 12240000 | S79: 1224000 | T79: 1 PERSONA NATURAL | U79: 2 RUT - REGISTRO ÚNICO TRIBUTARIO | V79: 5379720 | X79: 1 DV 0 | Z79: YACUANQUER | AA79: LUIS ALFONSO POPAYAN ZAMBRANO | AB79: 1 PÓLIZA | AC79: 2 CUMPLIMIENTO | AD79: 2017-02-01 | AE79: SEGUROS DEL ESTADO | AF79: 41-44-101185412 | AG79: 2 SUPERVISOR | AN79: 3 CÉDULA DE CIUDADANÍA | AO79: 30705143 | AQ79: 11 NO SE DILIGENCIA INFORMACIÓN PARA ESTE FORMULARIO EN ESTE PERÍODO DE REPORTE | AS79: NANCY LOPEZ DE VILES | AT79: 300 | AU79: 3 NO PACTADOS | AV79: 0 | AW79: 3 ADICIÓN EN VALOR y EN TIEMPO | AX79: 612000 | AY79: 2017-11-01 | AZ79: 15 | BA79: 2017-11-01 | BJ79: 2017-02-01 | BK79: 2017-12-15 | BM79: 100 | BN79: 100 | BO79: 100 | BP79: 100 | BQ79: ADICION Y PRORROGA N°01 AL CPS068/2017 POR EL CUAL SE ADICIONA AL CONTRATO LA SUMA DE $612.000 Y SE PRORROGA EL PLAZO DE EEJECUCIÓN POR (15) DIAS MAS | BR79: POA REGULACION SIIF AUTORIDAD AMBIENTAL | BS79: NACION | BT79: 12817 | BU79: 12240000 | BV79: 2017-01-31 | BW79: 15817 | BX79: 12240000 | BY79: 2017-02-01 | BZ79: 0 | CA79: 1224000 | CB79: 1224000 | CC79: 1224000 | CD79: 1224000 | CE79: 1224000 | CF79: 1224000 | CG79: 1224000 | CH79: 1224000 | CI79: 1224000 | CJ79: 1224000 | CK79: 612000 | CL79: 12852000 | CM79: 0 | CP79: CPS | CR79: 2017-12-30
A80: 69 | B80: FILA_69 | C80: 1 SI | E80: 069 | F80: 2017-01-31 | G80: 3 TRES VECES | H80: PRESTACION DE SERVICIOS PROFESIONALES Y DE APOYO A LA GESTION DEL SFF GALERAS EN EL MARCO DE LOS PROCESOS ADELANTADOS POR EL AREA PROTEGIDA RELACIONADOS CON ARTICULACION DE ACTORES, SISTEMA DEPARTAMENTAL Y REGIONAL DE AREAS PRETEGIDAS, ZONA CON FUNCION AMORTIGUADORA, IMPLEMENTACION DEL PLAN DE ORDENAMIENTO ECOTURISTICO DEL SANTUARIO Y APOYO A LA COORDINACION PROYECTO AREAS PROTEGIDAS DIVERSIDAD BIOLOGICA - FASE II | I80: SFF GALERAS | J80: 2 CONTRATACIÓN DIRECTA | K80: 14 PRESTACIÓN DE SERVICIOS | M80: CONTRATACION DIRECTA | N80: 80161500 Cód. 80161500 - Servicios de apoyo a la gestión | O80: 29172000 | S80: 2917200 | T80: 1 PERSONA NATURAL | U80: 2 RUT - REGISTRO ÚNICO TRIBUTARIO | V80: 59314475 | X80: 9 DV 8 | Z80: PASTO | AA80: DIANA EUGENIA VILLAREAL ROMERO | AB80: 1 PÓLIZA | AC80: 2 CUMPLIMIENTO | AD80: 2017-02-01 | AE80: SEGUROS DEL ESTADO | AF80: 41-44-101185411 | AG80: 2 SUPERVISOR | AN80: 3 CÉDULA DE CIUDADANÍA | AO80: 30705143 | AQ80: 11 NO SE DILIGENCIA INFORMACIÓN PARA ESTE FORMULARIO EN ESTE PERÍODO DE REPORTE | AS80: NANCY LOPEZ DE VILES | AT80: 300 | AU80: 3 NO PACTADOS | AV80: 0 | AW80: 3 ADICIÓN EN VALOR y EN TIEMPO | AX80: 1458600 | AY80: 2017-11-07 | AZ80: 15 | BA80: 2017-11-07 | BH80: OTRO SI MODIFICATORIO N°01 DEL CPS 069/2017 POR EL CUAL SE MODIFICA LA CLAUSULA SEGUNDA: OBLIGACIONES DEL CONTRATISTA | BI80: 2017-09-20 | BJ80: 2017-02-01 | BK80: 2017-12-15 | BM80: 100 | BN80: 100 | BO80: 100 | BP80: 100 | BQ80: OTRO SI MODIFICATORIO N°01 DEL CPS 069/2017 POR EL CUAL SE MODIFICA LA CLAUSULA SEGUNDA: OBLIGACIONES DEL CONTRATISTA EL 20/09/2017, ADICION Y PRORROGA N°01 AL CPS069/2017 POR EL CUAL SE ADICIONA LA SUMA DE $1.458.600 Y SE PRORROGA EL PLAZO DE EJECUCIÓN POR (15) DIAS MAS EL 07/11/2017 | BR80: POA ZONAS DE INFLUENCIA SIIF COORDINACION SINAP | BS80: NACION | BT80: 12017 | BU80: 29172000 | BV80: 2017-01-30 | BW80: 15717 | BX80: 29172000 | BY80: 2017-02-01 | BZ80: 0 | CA80: 2917200 | CB80: 2917200 | CC80: 2917200 | CD80: 2917200 | CE80: 2917200 | CF80: 2917200 | CG80: 2917200 | CH80: 2917200 | CI80: 2917200 | CJ80: 2917200 | CK80: 1458600 | CL80: 30630600 | CM80: 0 | CP80: CPS | CR80: 2017-12-30
A81: 70 | B81: FILA_70 | C81: 1 SI | E81: 070 | F81: 2017-02-01 | G81: 2 DOS VECES | H81: PRESTACION DE SERVICIOS OPERATIVOS Y DE APOYO A LA GESTION DEL PNN SELVA DE FLORENCIA, PARA LA REALIZACION DE ACTIVIDADES ENCAMINADAS AL MONITOREO DEL ESTADO Y PRESIONES SOBRE LOS VALORES OBJETO DE CONSERVACION DEFINIDOS AL INTERIOR DEL PARQUE Y A LA IMPLEMENTACION DEL PLAN LOCAL DE PREVENCION, VIGILANCIA Y CONTROL, CON LA FINALIDAD DE MEJORAR LA EFECTIVIDAD EN LA ADMINISTRACION Y MANEJO DEL AREA PROTEGIDA | I81: PNN SELVA DE FLORENCIA | J81: 2 CONTRATACIÓN DIRECTA | K81: 14 PRESTACIÓN DE SERVICIOS | M81: CONTRATACION DIRECTA | N81: 80161500 Cód. 80161500 - Servicios de apoyo a la gestión | O81: 12240000 | S81: 1224000 | T81: 1 PERSONA NATURAL | U81: 2 RUT - REGISTRO ÚNICO TRIBUTARIO | V81: 1061655111 | X81: 4 DV 3 | Z81: SAMANA | AA81: JOHAN ANDRES GIRALDO ROMERO | AB81: 1 PÓLIZA | AC81: 2 CUMPLIMIENTO | AD81: 2017-02-01 | AE81: ASEGURADORA SOLIDARIA | AF81: 500-47-994000014780 | AG81: 2 SUPERVISOR | AN81: 3 CÉDULA DE CIUDADANÍA | AO81: 10258001 | AQ81: 11 NO SE DILIGENCIA INFORMACIÓN PARA ESTE FORMULARIO EN ESTE PERÍODO DE REPORTE | AS81: HUGO FERNANDO BALLESTEROS BOTERO | AT81: 300 | AU81: 3 NO PACTADOS | AV81: 0 | AW81: 4 NO SE HA ADICIONADO NI EN VALOR y EN TIEMPO | AX81: 0 | BJ81: 2017-02-01 | BK81: 2017-10-12 | BL81: 2017-10-12 | BM81: 100 | BN81: 100 | BO81: 100 | BP81: 100 | BQ81: ACTA DE TERMINACIÓN Y LIQUIDACIÓN ANTICIPADA BILATERAL DEL CPS070/2017 EL 12/10/2017 | BR81: POA INVESTIGACION Y MONITOREO SIIF CONOCIMIENTO VOC | BS81: NACION | BT81: 12217 | BU81: 12240000 | BV81: 2017-01-30 | BW81: 17317 | BX81: 12240000 | BY81: 2017-02-01 | BZ81: 0 | CA81: 1224000 | CB81: 1224000 | CC81: 1224000 | CD81: 1224000 | CE81: 1224000 | CF81: 1224000 | CG81: 1224000 | CH81: 1224000 | CL81: =BZ81+CA81+CB81+CC81+CD81+CE81+CF81+CG81+CH81+CI81+CJ81+CK81 -> 9792000 | CM81: 2448000 | CP81: CPS | CR81: 2017-12-30
A82: 71 | B82: FILA_71 | C82: 1 SI | E82: 071 | F82: 2017-02-01 | G82: 2 DOS VECES | H82: PRESTACION DE SERVICIOS PROFESIONALES Y DE APOYO A LA GESTION PARA GENERAR, FORTALECER Y ARTICULAR LAS DIFERENTES ESTRATEGIAS DE EDUCACION AMBIENTAL PARA LA CONSERVACION, ASI COMO EL SEGUIMIENTO Y APOYO A LOS PROCESOS ECO-TURISTICOS QUE SE DESARROLLAN EN EL MARCO DEL SUBSISTEMA NDES OCCIDENTALES, CON REFERENCIA EN EL PLAN ESTRATEGICO DE LA DTAO Y LOS PLANES ESTRATEGICOS DE SUS AREAS PROTEGIDAS ADSCRITAS | I82: DTAO | J82: 2 CONTRATACIÓN DIRECTA | K82: 14 PRESTACIÓN DE SERVICIOS | M82: CONTRATACION DIRECTA | N82: 80161500 Cód. 80161500 - Servicios de apoyo a la gestión | O82: 32946000 | S82: 3294600 | T82: 1 PERSONA NATURAL | U82: 2 RUT - REGISTRO ÚNICO TRIBUTARIO | V82: 1027882736 | X82: 6 DV 5 | Z82: ANDES | AA82: PAULA ANDREA SALAZAR MONCADA | AB82: 1 PÓLIZA | AC82: 2 CUMPLIMIENTO | AD82: 2017-02-01 | AE82: SEGUROS DEL ESTADO | AF82: 65-44-101141934 | AG82: 2 SUPERVISOR | AN82: 3 CÉDULA DE CIUDADANÍA | AO82: 10282381 | AQ82: 11 NO SE DILIGENCIA INFORMACIÓN PARA ESTE FORMULARIO EN ESTE PERÍODO DE REPORTE | AS82: JORGE EDUARDO CEBALLOS BETANCUR | AT82: 300 | AU82: 3 NO PACTADOS | AV82: 0 | AW82: 3 ADICIÓN EN VALOR y EN TIEMPO | AX82: 1647300 | AY82: 2017-11-27 | AZ82: 15 | BA82: 2017-11-27 | BJ82: 2017-02-01 | BK82: 2017-12-15 | BM82: 100 | BN82: 100 | BO82: 100 | BP82: 100 | BQ82: ADICION Y PRORROGA N°01 AL CPS071/2017 POR EL CUAL SE ADICIONA LA SUMA DE $1.647.300 Y EN TIEMPO POR (15) DIAS MAS EL 27/11/2017 | BR82: POA Y SIIF VALORACION SOCIAL | BS82: NACION | BT82: 12917 | BU82: 32946000 | BV82: 2017-01-31 | BW82: 16917 | BX82: 32946000 | BY82: 2017-02-01 | BZ82: 0 | CA82: 3294600 | CB82: 3294600 | CC82: 3294600 | CD82: 3294600 | CE82: 3294600 | CF82: 3294600 | CG82: 3294600 | CH82: 3294600 | CI82: 3294600 | CJ82: 3294600 | CK82: 1647300 | CL82: 34593300 | CM82: 0 | CP82: CPS | CR82: 2017-12-30
A83: 72 | B83: FILA_72 | C83: 1 SI | E83: 072 | F83: 2017-02-01 | G83: 2 DOS VECES | H83: PRESTACION DE SERVICIOS OPERATIVOS Y DE APOYO A LA GESTION EN LA EJECUCION DE ACTIVIDADES DE PREVENCION, CONTROL Y VIGILANCIA, ASI COMO REALIZACION DE ACTIVIDADES QUE FORTALEZCAN LA PRESENCIA INSTITUCIONAL EN EL SFF GALERAS Y SU AREA DE INFLUENCIA | I83: SFF GALERAS | J83: 2 CONTRATACIÓN DIRECTA | K83: 14 PRESTACIÓN DE SERVICIOS | M83: CONTRATACION DIRECTA | N83: 80161500 Cód. 80161500 - Servicios de apoyo a la gestión | O83: 7344000 | S83: 1224000 | T83: 1 PERSONA NATURAL | U83: 2 RUT - REGISTRO ÚNICO TRIBUTARIO | V83: 87490574 | X83: 4 DV 3 | Z83: CONSACA | AA83: FRANCIS BERNEL GOMEZ ORDOÑEZ | AB83: 1 PÓLIZA | AC83: 2 CUMPLIMIENTO | AD83: 2017-02-01 | AE83: SEGUROS DEL ESTADO | AF83: 41-44-101185408 | AG83: 2 SUPERVISOR | AN83: 3 CÉDULA DE CIUDADANÍA | AO83: 30705143 | AQ83: 11 NO SE DILIGENCIA INFORMACIÓN PARA ESTE FORMULARIO EN ESTE PERÍODO DE REPORTE | AS83: NANCY LOPEZ DE VILES | AT83: 180 | AU83: 3 NO PACTADOS | AV83: 0 | AW83: 4 NO SE HA ADICIONADO NI EN VALOR y EN TIEMPO | AX83: 0 | BJ83: 2017-02-01 | BK83: 2017-07-30 | BM83: 100 | BN83: 100 | BO83: 100 | BP83: 100 | BR83: POA REGULACION SIIF AUTORIDAD AMBIENTAL | BS83: NACION | BT83: 13317 | BU83: 7344000 | BV83: 2017-01-31 | BW83: 15117 | BX83: 7344000 | BY83: 2017-02-01 | BZ83: 0 | CA83: 1224000 | CB83: 1224000 | CC83: 1224000 | CD83: 1224000 | CE83: 1224000 | CF83: 1224000 | CG83: 0 | CH83: 0 | CI83: 0 | CJ83: 0 | CL83: 7344000 | CM83: 0 | CP83: CPS | CR83: 2017-12-30
A84: 73 | B84: FILA_73 | C84: 1 SI | E84: 073 | F84: 2017-02-01 | G84: 3 TRES VECES | H84: PRESTACION DE SERVICIOS TECNICOS Y DE APOYO A LA GESTION EN LA DTAO, CON EL OBJETIVO DE BRINDAR SOPORTE Y ASESORIA TECNICA EN LA ELABORACION, DISEÑO Y ANALISIS DE CONTEXTO BINACIONALES, REGIONALES Y LOCALES, PLANES DE MANEJO, ESTRATEGIAS PAEA LA CONSERVACION DE RECURSOS NATURALES E INFORMACION GEOGRAFICA PARA LA TOMA DE DECISIONES DE LA DTAO Y SUS AREAS PROTEGIDAS ADSCRITAS, EN EL MARCO DEL PLAN DE ACCION INSTITUCIONAL Y BAJO LAS DIRECTRICES Y LINEAMIENTOS DE LA DTAO Y EL NIVEL CENTRAL | I84: DTAO | J84: 2 CONTRATACIÓN DIRECTA | K84: 14 PRESTACIÓN DE SERVICIOS | M84: CONTRATACION DIRECTA | N84: 80161500 Cód. 80161500 - Servicios de apoyo a la gestión | O84: 24378000 | S84: 2437800 | T84: 1 PERSONA NATURAL | U84: 2 RUT - REGISTRO ÚNICO TRIBUTARIO | V84: 10530051 | X84: 7 DV 6 | Z84: POPAYAN | AA84: PEDRO JULIAN SEGURA ZUÑIGA | AB84: 1 PÓLIZA | AC84: 2 CUMPLIMIENTO | AD84: 2017-02-01 | AE84: SEGUROS MUNDIAL | AF84: CP-100000092 | AG84: 2 SUPERVISOR | AN84: 3 CÉDULA DE CIUDADANÍA | AO84: 10282381 | AQ84: 11 NO SE DILIGENCIA INFORMACIÓN PARA ESTE FORMULARIO EN ESTE PERÍODO DE REPORTE | AS84: JORGE EDUARDO CEBALLOS BETANCUR | AT84: 300 | AU84: 3 NO PACTADOS | AV84: 0 | AW84: 3 ADICIÓN EN VALOR y EN TIEMPO | AX84: 1218900 | AY84: 2017-11-15 | AZ84: 15 | BA84: 2017-11-15 | BH84: OTRO SI MODIFICATORIO N°01 DEL CPS073/2017 POR EL CUAL SE MODIFICA LA CLAUSULA SEGUNDA:OBLIGACIONES DEL CONTRATISTA Y EL PARAGRAFO 2° DE LA CLAUSULA SEPTIMA FORMA DE PAGO | BI84: 2017-09-21 | BJ84: 2017-02-01 | BK84: 2017-12-15 | BM84: 100 | BN84: 100 | BO84: 100 | BP84: 100 | BQ84: DTAO-OTRO SI MODIFICATORIO N°01 DEL CPS073/2017 POR EL CUAL SE MODIFICA LA CLAUSULA SEGUNDA:OBLIGACIONES DEL CONTRATISTA Y EL PARAGRAFO 2° DE LA CLAUSULA SEPTIMA FORMA DE PAGO, EL 21/09/2017, ADICION Y PRORROGA N°01 AL CPS073/2017 POR EL CUAL SE ADICIONA LA SUMA DE $1.218.900 Y EN TIEMPO OPR (15) DIAS MAS EL 15/11/2017 | BR84: POA Y SIIF SANEAMIENTO | BS84: NACION | BT84: 13117 | BU84: 24378000 | BV84: 2017-01-31 | BW84: 15417 | BX84: 24378000 | BY84: 2017-02-01 | BZ84: 0 | CA84: 2437800 | CB84: 2437800 | CC84: 2437800 | CD84: 2437800 | CE84: 2437800 | CF84: 2437800 | CG84: 2437800 | CH84: 2437800 | CI84: 2437800 | CJ84: 2437800 | CK84: 1218900 | CL84: 25596900 | CM84: 0 | CP84: CPS | CR84: 2017-12-30
A85: 74 | B85: FILA_74 | C85: 1 SI | E85: 074 | F85: 2017-02-01 | G85: 2 DOS VECES | H85: PRESTACION DE SERVICIOS PROFESIONALES Y DE APOYO A LA GESTION PARA ADELANTAR PROCESOS QUE FACILITEB LA ACTUALIZACION E IMPLEMENTACION DEL PLAN DE MANEJO DEL PNN LAS HERMOSAS - GLORIA VALENCIA DE CASTAÑO, ESPECIALMENTE EN LA LINEAS ESTRATEGICAS DE USO, OCUPACION Y TENENCIA Y ORDENAMIENTO | I85: PNN LAS HERMOSAS | J85: 2 CONTRATACIÓN DIRECTA | K85: 14 PRESTACIÓN DE SERVICIOS | M85: CONTRATACION DIRECTA | N85: 80161500 Cód. 80161500 - Servicios de apoyo a la gestión | O85: 40902000 | S85: 4090200 | T85: 1 PERSONA NATURAL | U85: 2 RUT - REGISTRO ÚNICO TRIBUTARIO | V85: 1113632937 | X85: 10 DV 9 | Z85: PALMIRA | AA85: LINA MARIA CAICEDO COLORADO | AB85: 1 PÓLIZA | AC85: 2 CUMPLIMIENTO | AD85: 2017-02-02 | AE85: SEGUROS DEL ESTADO | AF85: 45-44-101079851 | AG85: 2 SUPERVISOR | AN85: 3 CÉDULA DE CIUDADANÍA | AO85: 79576238 | AQ85: 11 NO SE DILIGENCIA INFORMACIÓN PARA ESTE FORMULARIO EN ESTE PERÍODO DE REPORTE | AS85: GERMAN ALBERTO RODRIGUEZ PENAGOS | AT85: 300 | AU85: 3 NO PACTADOS | AV85: 0 | AW85: 4 NO SE HA ADICIONADO NI EN VALOR y EN TIEMPO | AX85: 0 | BJ85: 2017-02-02 | BK85: 2017-07-10 | BL85: 2017-07-10 | BM85: 100 | BN85: 100 | BO85: 100 | BP85: 100 | BQ85: ACTA DE TERMINACIÓN Y LIQUIDACIÓN ANTICIPADA BILATERAL DEL CPS 074 DEL 01 DE FEBRERO DE 2017 | BR85: POA ACTORES SINAP SIIF COORDINACION SINAP | BS85: NACION | BT85: 12117 | BU85: 40902000 | BV85: 2017-01-30 | BW85: 15617 | BX85: 40902000 | BY85: 2017-02-01 | BZ85: 0 | CA85: 3953860 | CB85: 4090200 | CC85: 4090200 | CD85: 4090200 | CE85: 4090200 | CF85: 0 | CG85: 0 | CH85: 0 | CI85: 0 | CJ85: 0 | CL85: 20314660 | CM85: 20587340 | CP85: CPS | CR85: 2017-12-30
A86: 75 | B86: FILA_75 | C86: 1 SI | E86: 075 | F86: 2017-02-01 | G86: 3 TRES VECES | H86: PRESTACION DE SERVICIOS PROFESIONALES Y DE APOYO A LA GESTION DEL SFF GALERAS, ESPECIFICAMENTE EN LO RELACIONADO CON EL LEVANTAMIENTO DE FICHAS DE CARACTERIZACION DE UN CORREDOR PREDIAL DE ACUERDO A LOS LINEAMIENTOS DE PARQUES NACIONALES; APOYAR EL PROCESO DE RESTAURACION ECOLOGICA DENTRO DEL AREA PROTEGIDA; Y LA CARACTERIZACION DE UN CORREDOR DE CONSERVACION EN LA ZONA DE INFLUENCIA DEL | I86: SFF GALERAS | J86: 2 CONTRATACIÓN DIRECTA | K86: 14 PRESTACIÓN DE SERVICIOS | M86: CONTRATACION DIRECTA | N86: 80161500 Cód. 80161500 - Servicios de apoyo a la gestión | O86: 29172000 | S86: 2917200 | T86: 1 PERSONA NATURAL | U86: 2 RUT - REGISTRO ÚNICO TRIBUTARIO | V86: 1085250031 | X86: 1 DV 0 | Z86: PASTO | AA86: DAVID HERMOGENES OJEDA TUQUERRES | AB86: 1 PÓLIZA | AC86: 2 CUMPLIMIENTO | AD86: 2017-02-01 | AE86: SEGUROS DEL ESTADO | AF86: 41-44-101185421 | AG86: 2 SUPERVISOR | AN86: 3 CÉDULA DE CIUDADANÍA | AO86: 30705143 | AQ86: 11 NO SE DILIGENCIA INFORMACIÓN PARA ESTE FORMULARIO EN ESTE PERÍODO DE REPORTE | AS86: NANCY LOPEZ DE VILES | AT86: 300 | AU86: 3 NO PACTADOS | AV86: 0 | AW86: 4 NO SE HA ADICIONADO NI EN VALOR y EN TIEMPO | AX86: 0 | BB86: ACTA DE SUSPENSION N° 001 DEL CPS075/2017 POR INCAPACIDAD MEDICA, ACTA DE SUSPENSION N° 002 DEL CPS075/2017 POR INCAPACIDAD MEDICA, | BC86: 40 | BD86: 18/09/2017-26/09/2017 | BJ86: 2017-02-01 | BK86: 2017-10-26 | BL86: 2017-10-26 | BM86: 100 | BN86: 100 | BO86: 100 | BP86: 100 | BQ86: ACTA DE SUSPENSIÓN N°001 AL CPS075/2017 POR EL CUAL SE SUSPENDE EL PLAZO D EEJECUCIÓN DEL CONTRATO A PARTIR DEL 16/09/2017 HASTA EL 25/09/2017, INCLUSIVE EL 18/09/2017, ACTA DE SUSPENSIÓN N002 POR EL CUAL SE SUSPENDE EL PLAZO DE EJECUCIÓN DEL CONTRATO A PARTIR DEL 26/09/2017 HASTA EL 25/10/2017 INCLUSIVE, EL 26/09/2017, ACTA D ETERMINACION ANTICIPADA Y LIQUIDACION BILATERAL DEL CPS075/2017 EL 26/10/2017 | BR86: POA REGULACION SIIF AUTORIDAD AMBIENTAL | BS86: NACION | BT86: 13017 | BU86: 29172000 | BV86: 2017-01-31 | BW86: 17117 | BX86: 29172000 | BY86: 2017-02-01 | BZ86: 0 | CA86: 2917200 | CB86: 2917200 | CC86: 2917200 | CD86: 2917200 | CE86: 2917200 | CF86: 2917200 | CG86: 2917200 | CH86: 1458600 | CL86: 21879000 | CM86: 7293000 | CP86: CPS | CR86: 2017-12-30
A87: 76 | B87: FILA_76 | C87: 1 SI | E87: 076 | F87: 2017-02-01 | G87: 2 DOS VECES | H87: PRESTACION DE SERVICIOS OPERATIVOS PARA LA IMPLEMENTACION DEL PLAN DE MANEJO DEL PARQUE, REALIZAR ACTIVIDADES DE EDUCACION AMBIENTAL, MONITOREO, PREVENCION, CONTROL Y VIGILANCIA, CONTRIBUYENDO A MANTENER LOS ECOSISTEMAS Y LA AREAS DE INFLUENCIA DEL AREA PROTEGIDA PNN CVDJC | I87: PNN CVDJC | J87: 2 CONTRATACIÓN DIRECTA | K87: 14 PRESTACIÓN DE SERVICIOS | M87: CONTRATACION DIRECTA | N87: 80161500 Cód. 80161500 - Servicios de apoyo a la gestión | O87: 12240000 | S87: 1224000 | T87: 1 PERSONA NATURAL | U87: 2 RUT - REGISTRO ÚNICO TRIBUTARIO | V87: 4764070 | X87: 10 DV 9 | Z87: SANTA ROSA | AA87: EDILSON EMIRO GOMEZ GUAMANGA | AB87: 1 PÓLIZA | AC87: 2 CUMPLIMIENTO | AD87: 2017-02-02 | AE87: CONFIANZA | AF87: 30 GU138610 | AG87: 2 SUPERVISOR | AN87: 3 CÉDULA DE CIUDADANÍA | AO87: 10537381 | AQ87: 11 NO SE DILIGENCIA INFORMACIÓN PARA ESTE FORMULARIO EN ESTE PERÍODO DE REPORTE | AS87: RICHARD MARINO MUÑOZ MOLANO | AT87: 300 | AU87: 3 NO PACTADOS | AV87: 0 | AW87: 3 ADICIÓN EN VALOR y EN TIEMPO | AX87: 571200 | AY87: 2017-11-16 | AZ87: 14 | BA87: 2017-11-16 | BJ87: 2017-02-02 | BK87: 2017-12-15 | BM87: 100 | BN87: 100 | BO87: 100 | BP87: 100 | BQ87: DICION Y PRORROGA N°01 AL CPS076/2017 POR EL CUAL SE ADICIONA LA SUMA DE $571.200 Y EN TIEMPO POR (14) DIAS MAS EL 16/11/2017 | BR87: POA REGULACION SIIF AUTORIDAD AMBIENTAL | BS87: NACION | BT87: 13417 | BU87: 12240000 | BV87: 2017-01-31 | BW87: 17417 | BX87: 12240000 | BY87: 2017-02-01 | BZ87: 0 | CA87: 1183200 | CB87: 1224000 | CC87: 1224000 | CD87: 1224000 | CE87: 1224000 | CF87: 1224000 | CG87: 1224000 | CH87: 1224000 | CI87: 1224000 | CJ87: 1224000 | CK87: 612000 | CL87: 12811200 | CM87: 0 | CP87: CPS | CR87: 2017-12-30
A88: 77 | B88: FILA_77 | C88: 1 SI | E88: 077 | F88: 2017-02-01 | G88: 2 DOS VECES | H88: CONTRATO DE PRESTACION DE SERVICIOS PROFESIONALES Y DE APOYO A LA GESTION PARA ADELANTAR PROCESOS QUE FACILITEN LA ACTUALIZACION E IMPLEMENTACION DEL PLAN DE MANEJO DEL PNN LAS HERMOSAS - GLORIA VALENCIA DE CASTAÑO | I88: PNN LAS HERMOSAS | J88: 2 CONTRATACIÓN DIRECTA | K88: 14 PRESTACIÓN DE SERVICIOS | M88: CONTRATACION DIRECTA | N88: 80161500 Cód. 80161500 - Servicios de apoyo a la gestión | O88: 29172000 | S88: 2917200 | T88: 1 PERSONA NATURAL | U88: 2 RUT - REGISTRO ÚNICO TRIBUTARIO | V88: 1033708054 | X88: 10 DV 9 | Z88: BOGOTA | AA88: LILIANA MARIBEL MORA GONZALEZ | AB88: 1 PÓLIZA | AC88: 2 CUMPLIMIENTO | AD88: 2017-02-01 | AE88: SEGUROS DEL ESTADO | AF88: 15-46-101003347 | AG88: 2 SUPERVISOR | AN88: 3 CÉDULA DE CIUDADANÍA | AO88: 79576238 | AQ88: 11 NO SE DILIGENCIA INFORMACIÓN PARA ESTE FORMULARIO EN ESTE PERÍODO DE REPORTE | AS88: GERMAN ALBERTO RODRIGUEZ PENAGOS | AT88: 300 | AU88: 3 NO PACTADOS | AV88: 0 | AW88: 4 NO SE HA ADICIONADO NI EN VALOR y EN TIEMPO | AX88: 0 | BJ88: 2017-02-01 | BK88: 2017-07-10 | BL88: 2017-07-10 | BM88: 100 | BN88: 100 | BO88: 100 | BP88: 100 | BQ88: ACTA TERMINACIÓN Y LIQUIDACIÓN ANTICIPADA BILATERAL DEL CPS N° 077 DEL 01 DE FEBRERO DE 2017 | BR88: POA Y SIIF SANEAMIENTO | BS88: NACION | BT88: 13517 | BU88: 29172000 | BV88: 2017-02-01 | BW88: 17217 | BX88: 29172000 | BY88: 2017-02-01 | BZ88: 0 | CA88: 2917200 | CB88: 2917200 | CC88: 2917200 | CD88: 2917200 | CE88: 2917200 | CF88: 0 | CG88: 0 | CH88: 0 | CI88: 0 | CJ88: 0 | CL88: 14586000 | CM88: 14586000 | CP88: CPS | CR88: 2017-12-30
A89: 78 | B89: FILA_78 | C89: 1 SI | E89: 078 | F89: 2017-02-01 | G89: 2 DOS VECES | H89: PRESTACION DE SERVICIOS OPERATIVOS Y DE APOYO EN LA GESTION DEL PNN TATAMA PARA REALIZAR ACTIVIDADES RELACIONADAS CON MONITOREO DE LOS VOC, EDUCACION AMBIENTAL, PREVENCION , VIGILANCIA Y CONTROL, DE APORO A LOS ACUERDOS DE MANEJO CON LAS COMUNIDADES ETNICAS DE NOVITA Y SAN JOSE DEL PALMA EN DESARROLLO DE LA ESTRATEGIA RELACIONAMIENTO CON UNA DE ELLAS, ASI MISMO APOYAR EL CUMPLIMIENTO DE LOS PLANES DE TRABAJO SUSCRITOS CON ELLAS ENMARCADOS EN EL ORDENAMIENTO DEL TERRITORIO Y DE NEGOCIACION POLITICA EN ZONA DE INFLUENCIA DEL PARQUE DONDE HAY TERRITORIOS COLECTIVOS Y COMUNIDADES CAMPESINAS | I89: PNN TATAMA | J89: 2 CONTRATACIÓN DIRECTA | K89: 14 PRESTACIÓN DE SERVICIOS | M89: CONTRATACION DIRECTA | N89: 80161500 Cód. 80161500 - Servicios de apoyo a la gestión | O89: 12240000 | S89: 1224000 | T89: 1 PERSONA NATURAL | U89: 2 RUT - REGISTRO ÚNICO TRIBUTARIO | V89: 1003852404 | X89: 2 DV 1 | Z89: SAN JOSE DEL PALMER | AA89: LEOMEDE SANCHEZ PEREA | AB89: 1 PÓLIZA | AC89: 2 CUMPLIMIENTO | AD89: 2017-02-01 | AE89: CONFIANZA | AF89: 23 GU050469 | AG89: 2 SUPERVISOR | AN89: 3 CÉDULA DE CIUDADANÍA | AO89: 79125719 | AQ89: 11 NO SE DILIGENCIA INFORMACIÓN PARA ESTE FORMULARIO EN ESTE PERÍODO DE REPORTE | AS89: JUAN CARLOS TRONCOSO SAAVEDRA | AT89: 300 | AU89: 3 NO PACTADOS | AV89: 0 | AW89: 4 NO SE HA ADICIONADO NI EN VALOR y EN TIEMPO | AX89: 0 | BJ89: 2017-02-01 | BK89: 2017-11-30 | BM89: 100 | BN89: 100 | BO89: 100 | BP89: 100 | BR89: POA Y SIIF FORTALECIMIENTO | BS89: NACION | BT89: 13917 | BU89: 12240000 | BV89: 2017-02-01 | BW89: 17517 | BX89: 12240000 | BY89: 2017-02-01 | BZ89: 0 | CA89: 1224000 | CB89: 1224000 | CC89: 1224000 | CD89: 1224000 | CE89: 1224000 | CF89: 1224000 | CG89: 1224000 | CH89: 1224000 | CI89: 1224000 | CJ89: 1224000 | CL89: 12240000 | CM89: 0 | CP89: CPS | CR89: 2017-12-30
A90: 79 | B90: FILA_79 | C90: 1 SI | E90: 079 | F90: 2017-02-02 | G90: 2 DOS VECES | H90: PRESTACION DE SERVICIOS TECNICOS Y DE APOYO A LA GESTION, PARA REALIZAR ACTIVIDADES DE ADMINISTRACION DEL ARCHIVO DE LA DTAO, TIENDA DE PARQUES Y CENTRO DE DOCUMENTACION IMPLEMENTANDO ESTRATEGIAS EDUCATIVAS QUE PERMITAN FORTALECER TEMAS AMBIENTALES, COMO TAMBIEN APOYAR ACCIONES DE POSICIONAMIENTO Y ECOTURISMO ESDE LA GESTION ADMINISTRATIVA, QUE PERMITAN APORTAR AL CUMPLIMIENTO DE PLANEACION INTERNA Y LOS PROCESOS DE VALORACION SOCIAL | I90: DTAO | J90: 2 CONTRATACIÓN DIRECTA | K90: 14 PRESTACIÓN DE SERVICIOS | M90: CONTRATACION DIRECTA | N90: 80161500 Cód. 80161500 - Servicios de apoyo a la gestión | O90: 13800600 | S90: 1380060 | T90: 1 PERSONA NATURAL | U90: 2 RUT - REGISTRO ÚNICO TRIBUTARIO | V90: 1047970408 | X90: 5 DV 4 | Z90: SONSON | AA90: TATIANA LOPEZ HENAO | AB90: 1 PÓLIZA | AC90: 2 CUMPLIMIENTO | AD90: 2017-02-02 | AE90: SEGUROS DEL ESTADO | AF90: 65-44-101142055 | AG90: 2 SUPERVISOR | AN90: 3 CÉDULA DE CIUDADANÍA | AO90: 24582254 | AQ90: 11 NO SE DILIGENCIA INFORMACIÓN PARA ESTE FORMULARIO EN ESTE PERÍODO DE REPORTE | AS90: MONICA MARIA RODRIGUEZ ARIAS | AT90: 300 | AU90: 3 NO PACTADOS | AV90: 0 | AW90: 3 ADICIÓN EN VALOR y EN TIEMPO | AX90: 644028 | AY90: 2017-11-09 | AZ90: 14 | BA90: 2017-11-09 | BJ90: 2017-02-02 | BK90: 2017-12-15 | BM90: 100 | BN90: 100 | BO90: 100 | BP90: 100 | BQ90: ADICIÓN Y PRORROGA N°01 AL CPS079/2017 POR EL CUAL SE ADICIONA LA SUMA DE $644.028 Y EL PLAZO DE EJECUCIÓN EN (14) DIAS MAS EL 09/11/2017 | BR90: POA PLANEACION INTERNA SIIF FORTALECIMIENTO | BS90: NACION | BT90: 13617 | BU90: 13800600 | BV90: 2017-02-01 | BW90: 17817 | BX90: 13800600 | BY90: 2017-02-02 | BZ90: 0 | CA90: 1334058 | CB90: 1380060 | CC90: 1380060 | CD90: 1380060 | CE90: 1380060 | CF90: 1380060 | CG90: 1380060 | CH90: 1380060 | CI90: 1380060 | CJ90: 1380060 | CK90: 690030 | CL90: 14444628 | CM90: 0 | CP90: CPS | CR90: 2017-12-30
A91: 80 | B91: FILA_80 | C91: 1 SI | E91: 080 | F91: 2017-02-02 | G91: 3 TRES VECES | H91: PRESTACION DE SERVICIOS PROFESIONALES Y DE APOYO A LA GESTION PARA IMPLEMENTAR UN PLAN DE GESTION PSICOSOCIAL Y DE BIENESTAR EN LA DTAO, ARAS DE MEJORAR LA EFICIENCIA INSTITUCIONAL | I91: DTAO | J91: 2 CONTRATACIÓN DIRECTA | K91: 14 PRESTACIÓN DE SERVICIOS | M91: CONTRATACION DIRECTA | N91: 80161500 Cód. 80161500 - Servicios de apoyo a la gestión | O91: 20451000 | S91: 3974430 | T91: 1 PERSONA NATURAL | U91: 2 RUT - REGISTRO ÚNICO TRIBUTARIO | V91: 71317460 | X91: 6 DV 5 | Z91: MEDELLIN | AA91: JUAN CARLOS ESPINAL URIBE | AB91: 1 PÓLIZA | AC91: 2 CUMPLIMIENTO | AD91: 2017-02-10 | AE91: SEGUROS DEL ESTADO | AF91: 65-44-101142417 | AG91: 2 SUPERVISOR | AN91: 3 CÉDULA DE CIUDADANÍA | AO91: 24582254 | AQ91: 11 NO SE DILIGENCIA INFORMACIÓN PARA ESTE FORMULARIO EN ESTE PERÍODO DE REPORTE | AS91: MONICA MARIA RODRIGUEZ ARIAS | AT91: 300 | AU91: 3 NO PACTADOS | AV91: 0 | AW91: 1 ADICIÓN EN VALOR (DIFERENTE A PRÓRROGAS) | AX91: 10225500 | AY91: 2017-06-30 | BJ91: 2017-02-10 | BK91: 2017-12-09 | BM91: 100 | BN91: 100 | BO91: 100 | BP91: 100 | BQ91: ADICION POR $10225500 Y MODIFICACION A LA CLAUSULA SEGUNDA OBLIGACIONES DEL CONTRATISTA Y CLAUSULA SEPTIMA FORMA DE PAGO EL 30/06/2017 | BR91: POA PLANEACION INTERNA SIIF FORTALECIMIENTO | BS91: NACION | BT91: 13817 | BU91: 20451000 | BV91: 2017-02-01 | BW91: 17917 | BX91: 20451000 | BY91: 2017-02-02 | BZ91: 0 | CA91: 1431570 | CB91: 2045100 | CC91: 2045100 | CD91: 2045100 | CE91: 2045100 | CF91: 3974430 | CG91: 3974430 | CH91: 3974430 | CI91: 3974430 | CJ91: 3974430 | CK91: 1192329 | CL91: 30676449 | CM91: 51 | CP91: CPS | CR91: 2017-12-30
A92: 81 | B92: FILA_81 | C92: 1 SI | E92: 081 | F92: 2017-02-02 | G92: 2 DOS VECES | H92: PRESTACION DE SERVICIOS OPERATIVOS Y DE APOYO A LA GESTION PARA LA IMPLEMENTACION DEL PLAN DE MANEJO DELAREA PROTEGIDA, REALIZAR ACTIVIDADES DE MONITOREO, PREVENCION, CONTROL Y VIGILANCIA Y EDUCACION AMBIENTAL CONTRIBUYENDO A MANTENER LOS ECOSITEMAS Y LA CONECTIVIDAD DEL AREA PROTEGIDA | I92: PNN CVDJC | J92: 2 CONTRATACIÓN DIRECTA | K92: 14 PRESTACIÓN DE SERVICIOS | M92: CONTRATACION DIRECTA | N92: 80161500 Cód. 80161500 - Servicios de apoyo a la gestión | O92: 12240000 | S92: 1224000 | T92: 1 PERSONA NATURAL | U92: 2 RUT - REGISTRO ÚNICO TRIBUTARIO | V92: 98354809 | X92: 8 DV 7 | Z92: EL TABLON | AA92: LEONARDO MARTINEZ ORDOÑEZ | AB92: 1 PÓLIZA | AC92: 2 CUMPLIMIENTO | AD92: 2017-02-03 | AE92: CONFIANZA | AF92: 30 GU138647 | AG92: 2 SUPERVISOR | AN92: 3 CÉDULA DE CIUDADANÍA | AO92: 10537381 | AQ92: 11 NO SE DILIGENCIA INFORMACIÓN PARA ESTE FORMULARIO EN ESTE PERÍODO DE REPORTE | AS92: RICHARD MARINO MUÑOZ MOLANO | AT92: 300 | AU92: 3 NO PACTADOS | AV92: 0 | AW92: 3 ADICIÓN EN VALOR y EN TIEMPO | AX92: 530400 | AY92: 2017-11-16 | AZ92: 13 | BA92: 2017-11-16 | BJ92: 2017-02-03 | BK92: 2017-12-15 | BM92: 100 | BN92: 100 | BO92: 100 | BP92: 100 | BQ92: ADICION Y PRORROGA N|01 AL CPS081/22017 POR EL CUAL SE ADICIONA LA SUMA DE $ 530.400 Y SE PRORROGA EL PLAZO DE EJECUCIÓN POR (13) DIAS MAS EL 16/11/2017 | BR92: POA REGULACION SIIF AUTORIDAD AMBIENTAL | BS92: NACION | BT92: 14017 | BU92: 12240000 | BV92: 2017-02-02 | BW92: 18017 | BX92: 12240000 | BY92: 2017-02-02 | BZ92: 0 | CA92: 1142400 | CB92: 1224000 | CC92: 1224000 | CD92: 1224000 | CE92: 1224000 | CF92: 1224000 | CG92: 1224000 | CH92: 1224000 | CI92: 1224000 | CJ92: 1224000 | CK92: 612000 | CL92: 12770400 | CM92: 0 | CP92: CPS | CR92: 2017-12-30
A93: 82 | B93: FILA_82 | C93: 1 SI | E93: 082 | F93: 2017-02-02 | G93: 2 DOS VECES | H93: PRESTACION DE SERVICIOS ASISTENCIALES U OPERATIVOS Y DE APOYO A LA GESTION ADMINISTRATIVA, DE LA DTAO, PARA REALIZAR LABORES DE CONDUCCION, APOYO EN ACTIVIDADES DE MENSAJERIA Y DE SERVICIOS GENERALES BASICOS ACORDE CON LAS NECESIDADES DE LA DTAO | I93: DTAO | J93: 2 CONTRATACIÓN DIRECTA | K93: 14 PRESTACIÓN DE SERVICIOS | M93: CONTRATACION DIRECTA | N93: 80161500 Cód. 80161500 - Servicios de apoyo a la gestión | O93: 13800600 | S93: 1380060 | T93: 1 PERSONA NATURAL | U93: 2 RUT - REGISTRO ÚNICO TRIBUTARIO | V93: 1020456016 | X93: 10 DV 9 | Z93: BELLO | AA93: JULIAN ANDRES ACEVEDO RAMIREZ | AB93: 1 PÓLIZA | AC93: 2 CUMPLIMIENTO | AD93: 2017-02-03 | AE93: SEGUROS DEL ESTADO | AF93: 65-44-101142112 | AG93: 2 SUPERVISOR | AN93: 3 CÉDULA DE CIUDADANÍA | AO93: 24582254 | AQ93: 11 NO SE DILIGENCIA INFORMACIÓN PARA ESTE FORMULARIO EN ESTE PERÍODO DE REPORTE | AS93: MONICA MARIA RODRIGUEZ ARIAS | AT93: 300 | AU93: 3 NO PACTADOS | AV93: 0 | AW93: 4 NO SE HA ADICIONADO NI EN VALOR y EN TIEMPO | AX93: 0 | BE93: 92004 | BF93: 2 | BG93: 2017-10-17 | BH93: OTRO SI DE MODIFICACIÓN N° 01 DEL CPS082 DE 2017, POR EL CUAL SE REDUCE EL VALOR EN $92.004 MCTE Y EL PLAZO EN (02) DIA, EL 17/10/2017 | BI93: 2017-10-17 | BJ93: 2017-02-03 | BK93: 2017-11-30 | BM93: 100 | BN93: 100 | BO93: 100 | BP93: 100 | BQ93: OTRO SI DE MODIFICACIÓN N° 01 DEL CPS082 DE 2017, POR EL CUAL SE REDUCE EL VALOR EN $92.004 MCTE Y EL PLAZO EN (02) DIA, EL 17/10/2017 | BR93: POA PLANEACION INTERNA SIIF FORTALECIMIENTO | BS93: NACION | BT93: 14117 | BU93: 13800600 | BV93: 2017-02-02 | BW93: 18217 | BX93: 13800600 | BY93: 2017-02-03 | BZ93: 0 | CA93: 1288056 | CB93: 1380060 | CC93: 1380060 | CD93: 1380060 | CE93: 1380060 | CF93: 1380060 | CG93: 1380060 | CH93: 1380060 | CI93: 1380060 | CJ93: 1380060 | CL93: 13708596 | CM93: 0 | CP93: CPS | CR93: 2017-12-30
A94: 83 | B94: FILA_83 | C94: 1 SI | E94: 083 | F94: 2017-02-03 | G94: 2 DOS VECES | H94: PRESTACION DE SERVICIOS PROFESIONALES Y DE APOYO A LA GESTION PARA LA IMPLEMENTACION DEL PLAN LOCAL DE EDUCACION AMBIENTAL Y COMUNICACIÓN COMUNITARIA AL INTERIOR DEL PNN LAS ORQUIDEAS PRINCIPALMENTE, CON ACTORES SOCIALES Y EN LA ZONA CON FUNCION AORTIGUADORA DE LOS MUNICIPIOS URRAP, FRONTINO Y ABRIAQUI | I94: PNN LAS ORQUIDEAS | J94: 2 CONTRATACIÓN DIRECTA | K94: 14 PRESTACIÓN DE SERVICIOS | M94: CONTRATACION DIRECTA | N94: 80161500 Cód. 80161500 - Servicios de apoyo a la gestión | O94: 29172000 | S94: 2917200 | T94: 1 PERSONA NATURAL | U94: 2 RUT - REGISTRO ÚNICO TRIBUTARIO | V94: 1038767511 | X94: 4 DV 3 | Z94: CONCORDIA | AA94: MARICELA PIEDRAHITA BONILLA | AB94: 1 PÓLIZA | AC94: 2 CUMPLIMIENTO | AD94: 2017-02-06 | AE94: SEGUROS DEL ESTADO | AF94: 65-44-101142228 | AG94: 2 SUPERVISOR | AN94: 3 CÉDULA DE CIUDADANÍA | AO94: 71621569 | AQ94: 11 NO SE DILIGENCIA INFORMACIÓN PARA ESTE FORMULARIO EN ESTE PERÍODO DE REPORTE | AS94: JOHN JAIRO RESTREPO SALAZAR | AT94: 300 | AU94: 3 NO PACTADOS | AV94: 0 | AW94: 3 ADICIÓN EN VALOR y EN TIEMPO | AX94: 972400 | AY94: 2017-11-07 | AZ94: 10 | BA94: 2017-11-07 | BJ94: 2017-02-06 | BK94: 2017-12-15 | BM94: 100 | BN94: 100 | BO94: 100 | BP94: 100 | BQ94: ADICION Y PRORROGA N°01 AL CPS083/2017 POR EL CUAL SE ADICIONA LA SUMA DE $972.400 Y SE PRORROGA EL PLAZO DE EJECUCIÓN POR (10) DIAZ MAS EL 07/11/2017 | BR94: POA Y SIIF VALORACION SOCIAL | BS94: NACION | BT94: 14417 | BU94: 29172000 | BV94: 2017-02-03 | BW94: 18617 | BX94: 29172000 | BY94: 2017-02-06 | BZ94: 0 | CA94: 2431000 | CB94: 2917200 | CC94: 2917200 | CD94: 2917200 | CE94: 2917200 | CF94: 2917200 | CG94: 2917200 | CH94: 2917200 | CI94: 2917200 | CJ94: 2917200 | CK94: 1458600 | CL94: 30144400 | CM94: 0 | CP94: CPS | CR94: 2017-12-30
A95: 84 | B95: FILA_84 | C95: 1 SI | E95: 084 | F95: 2017-02-07 | G95: 2 DOS VECES | H95: PRESTACION DE SERVICIOS TECNICOS Y DE APOYO A LA GESTION PARA APOYAR LOS PROCESOS DE REGIMEN ESPECIAL DE MANEJO, CONSULTA PREVIA PARA LA CONSTRUCCION CONJUNTA DEL PLAN DE MANEJO DE AREA TRASLAPADA Y RELACIONAMIENTO CON LAS COMUNIDADES INDIGENAS AL INTERIOR DEL PNN LAS ORQUIDEAS | I95: PNN LAS ORQUIDEAS | J95: 2 CONTRATACIÓN DIRECTA | K95: 14 PRESTACIÓN DE SERVICIOS | M95: CONTRATACION DIRECTA | N95: 80161500 Cód. 80161500 - Servicios de apoyo a la gestión | O95: 20196000 | S95: 2019600 | T95: 1 PERSONA NATURAL | U95: 2 RUT - REGISTRO ÚNICO TRIBUTARIO | V95: 1038335663 | X95: 1 DV 0 | Z95: FROTINO | AA95: FREYDER DOMICO ECHAVARRIA | AB95: 1 PÓLIZA | AC95: 2 CUMPLIMIENTO | AD95: 2017-02-07 | AE95: SEGUROS DEL ESTADO | AF95: 65-44-10142275 | AG95: 2 SUPERVISOR | AN95: 3 CÉDULA DE CIUDADANÍA | AO95: 71621569 | AQ95: 11 NO SE DILIGENCIA INFORMACIÓN PARA ESTE FORMULARIO EN ESTE PERÍODO DE REPORTE | AS95: JOHN JAIRO RESTREPO SALAZAR | AT95: 300 | AU95: 3 NO PACTADOS | AV95: 0 | AW95: 3 ADICIÓN EN VALOR y EN TIEMPO | AX95: 605880 | AY95: 2017-11-07 | AZ95: 9 | BA95: 2017-11-07 | BJ95: 2017-02-07 | BK95: 2017-12-15 | BM95: 100 | BN95: 100 | BO95: 100 | BP95: 100 | BQ95: ADICION Y PRORROGA N°01 AL CPS084/2017 POR EL CUAL SE ADICIONA LA SUMA DE $605.880 Y SE PRORROGA EL PLAZO DE EJECUCIÓN POR (09) DIAZ MAS EL 07/11/2017 | BR95: POA Y SIIF ESTRATEGIAS ESPECIALES DEMANEJO | BS95: NACION | BT95: 15217 | BU95: 20196000 | BV95: 2017-02-07 | BW95: 19417 | BX95: 20196000 | BY95: 2017-02-07 | BZ95: 0 | CA95: 1615680 | CB95: 2019600 | CC95: 2019600 | CD95: 2019600 | CE95: 2019600 | CF95: 2019600 | CG95: 2019600 | CH95: 2019600 | CI95: 2019600 | CJ95: 2019600 | CK95: 1009800 | CL95: 20801880 | CM95: 0 | CP95: CPS | CR95: 2017-12-30
A96: 85 | B96: FILA_85 | C96: 1 SI | E96: 085 | F96: 2017-02-07 | G96: 2 DOS VECES | H96: PRESTACION DE SERVICIOS OPERATIVOS Y DE APOYO A LA GESION, PARA DESARROLLAR ACTIVIDADES RELACIONADAS CON REPARACIONES LOCATIVAS MENORES, ADEMAS DE APOYO A LA IMPLEMENTACION DEL PROTOCOLO DE PREVENCION, VIGILANCIA Y CONTROL EN EL SFF OTUN QUIMBAYA | I96: SFF OTUN QUIMBAYA | J96: 2 CONTRATACIÓN DIRECTA | K96: 14 PRESTACIÓN DE SERVICIOS | M96: CONTRATACION DIRECTA | N96: 80161500 Cód. 80161500 - Servicios de apoyo a la gestión | O96: 12240000 | S96: 1224000 | T96: 1 PERSONA NATURAL | U96: 2 RUT - REGISTRO ÚNICO TRIBUTARIO | V96: 10014298 | X96: 6 DV 5 | Z96: PEREIRA | AA96: CARLOS HUMBERTO VELASQUEZ GARCIA | AB96: 1 PÓLIZA | AC96: 2 CUMPLIMIENTO | AD96: 2017-02-08 | AE96: SEGUROS DEL ESTADO | AF96: 55-44-101046783 | AG96: 2 SUPERVISOR | AN96: 3 CÉDULA DE CIUDADANÍA | AO96: 52110135 | AQ96: 11 NO SE DILIGENCIA INFORMACIÓN PARA ESTE FORMULARIO EN ESTE PERÍODO DE REPORTE | AS96: GLORIA TERESITA SERNA ALZATE | AT96: 300 | AU96: 3 NO PACTADOS | AV96: 0 | AW96: 3 ADICIÓN EN VALOR y EN TIEMPO | AX96: 326400 | AY96: 2017-11-08 | AZ96: 8 | BA96: 2017-11-08 | BJ96: 2017-02-08 | BK96: 2017-12-15 | BM96: 100 | BN96: 100 | BO96: 100 | BP96: 100 | BQ96: ADICION Y PRORROGA N°01 AL CPS085 DE 2017 POR EL CUAL SE ADICIONA LA SUMA DE $326.400 Y EN TIEMPO POR (8) DIAS MAS EL 08/11/2017 | BR96: POA Y SIIF FORTALECIMIENTO | BS96: NACION | BT96: 14517 | BU96: 12240000 | BV96: 2017-02-06 | BW96: 19517 | BX96: 12240000 | BY96: 2017-02-07 | BZ96: 0 | CA96: 938400 | CB96: 1224000 | CC96: 1224000 | CD96: 1224000 | CE96: 1224000 | CF96: 1224000 | CG96: 1224000 | CH96: 1224000 | CI96: 1224000 | CJ96: 1224000 | CK96: 612000 | CL96: 12566400 | CM96: 0 | CP96: CPS | CR96: 2017-12-30
A97: 86 | B97: FILA_86 | C97: 1 SI | E97: 086 | F97: 2017-02-10 | G97: 2 DOS VECES | H97: PRESTACION DE SERVICIOS TECNICOS Y DE APOYO A LA GESTION PARA POSICIONAR EL AREA PROTEGIDA EN EL AMBITO LOCAL, REGIONAL Y NACIONAL A TRAVES DE LA IMPLEMENTACION DE LA ESTRATEGIA DE COMUNICACIONES CONTRIBUYENDO A LA CONSERVACION DEL AREA PROTEGIDA Y SUS CONECTIVIDADES EN EL CONTEXTO DEL MACIZO COLOMBIANO A TRAVES DE LA SENCIBILIZACION DE LAS COMUNIDADES DEL AREA DE INFLUENCIA DEL PNN | I97: PNN CVDJC | J97: 2 CONTRATACIÓN DIRECTA | K97: 14 PRESTACIÓN DE SERVICIOS | M97: CONTRATACION DIRECTA | N97: 80161500 Cód. 80161500 - Servicios de apoyo a la gestión | O97: 16983000 | S97: 1698300 | T97: 1 PERSONA NATURAL | U97: 2 RUT - REGISTRO ÚNICO TRIBUTARIO | V97: 87248300 | X97: 4 DV 3 | Z97: LA CRUZ | AA97: DEIBI JAVIER BENAVIDES LOPEZ | AB97: 1 PÓLIZA | AC97: 2 CUMPLIMIENTO | AD97: 2017-02-13 | AE97: CONFIANZA | AF97: 30 GU139040 | AG97: 2 SUPERVISOR | AN97: 3 CÉDULA DE CIUDADANÍA | AO97: 10537381 | AQ97: 11 NO SE DILIGENCIA INFORMACIÓN PARA ESTE FORMULARIO EN ESTE PERÍODO DE REPORTE | AS97: RICHARD MARINO MUÑOZ MOLANO | AT97: 300 | AU97: 3 NO PACTADOS | AV97: 0 | AW97: 3 ADICIÓN EN VALOR y EN TIEMPO | AX97: 169830 | AY97: 2017-11-16 | AZ97: 3 | BA97: 2017-11-16 | BJ97: 2017-02-13 | BK97: 2017-12-15 | BM97: 100 | BN97: 100 | BO97: 100 | BP97: 100 | BQ97: ADICION Y PRORROGA N°01 AL CPS086/2017 POR EL CUAL SE ADICIONA LA SUMA DE $169.830 Y EN TIEMPO POR (3( DIAS MAS EL 16/11/2017 | BR97: POA Y SIIF ORTALECIMIENTO | BS97: NACION | BT97: 14617 | BU97: 16983000 | BV97: 2017-02-06 | BW97: 20517 | BX97: 16983000 | BY97: 2017-02-13 | BZ97: 0 | CA97: 1018980 | CB97: 1698300 | CC97: 1698300 | CD97: 1698300 | CE97: 1698300 | CF97: 1698300 | CG97: 1698300 | CH97: 1698300 | CI97: 1698300 | CJ97: 1698300 | CK97: 849150 | CL97: 17152830 | CM97: 0 | CP97: CPS | CR97: 2017-12-30
A98: 87 | B98: FILA_87 | C98: 1 SI | E98: 087 | F98: 2017-02-07 | G98: 2 DOS VECES | H98: PRESTACION DE SERVICIOS OPERATIVOS Y DE APOYO A LA GESTION DEL PNN SELVA DE FLORENCIA, PARA LA REALIZACION DE ACTIVIDADES ENCAMINADAS A REGULAR Y CONTROLAR EL USO Y APROVECHAMIENTO DE LOS RECURSOS NATURALES AL INTERIOR DEL PARQUE, Y A LA IMPLEMENTACION DEL PLAN LOCAL DE PREVENCION, VIGILANCIA Y CONTROL, CON LA FINALIDAD DE MEJORAR LA EFECTIVIDAD EN LA ADMINISTRACION Y MANEJO DEL AREA PROTEGIDA | I98: PNN SELVA DE FLORENCIA | J98: 2 CONTRATACIÓN DIRECTA | K98: 14 PRESTACIÓN DE SERVICIOS | M98: CONTRATACION DIRECTA | N98: 80161500 Cód. 80161500 - Servicios de apoyo a la gestión | O98: 12240000 | S98: 1224000 | T98: 1 PERSONA NATURAL | U98: 2 RUT - REGISTRO ÚNICO TRIBUTARIO | V98: 1058843433 | X98: 6 DV 5 | Z98: PENSILVANIA | AA98: RICARDO ANDRES GARCIA ARANGO | AB98: 1 PÓLIZA | AC98: 2 CUMPLIMIENTO | AD98: 2017-02-08 | AE98: ASEGURADORA SOLIDARIA | AF98: 500-47-994000014798 | AG98: 2 SUPERVISOR | AN98: 3 CÉDULA DE CIUDADANÍA | AO98: 10258001 | AQ98: 11 NO SE DILIGENCIA INFORMACIÓN PARA ESTE FORMULARIO EN ESTE PERÍODO DE REPORTE | AS98: HUGO FERNANDO BALLESTEROS BOTERO | AT98: 300 | AU98: 3 NO PACTADOS | AV98: 0 | AW98: 3 ADICIÓN EN VALOR y EN TIEMPO | AX98: 326400 | AY98: 2017-11-03 | AZ98: 8 | BA98: 2017-11-03 | BJ98: 2017-02-08 | BK98: 2017-12-15 | BM98: 100 | BN98: 100 | BO98: 100 | BP98: 100 | BQ98: ADICION Y PRORROGA N °01 AL CPS 087/2017 POR EL CUAL SE ADICIONA LA SUMA DE $326.400 Y SE PRORROGA EL PLAZO DE EJECUCIÓN EN (8) DIAS MAS EL 03/11/2017 | BR98: POA REGULACION SIIF AUTORIDAD AMBIENTAL | BS98: NACION | BT98: 14717 | BU98: 12240000 | BV98: 2017-02-06 | BW98: 20017 | BX98: 12240000 | BY98: 2017-02-08 | BZ98: 0 | CA98: 938400 | CB98: 1224000 | CC98: 1224000 | CD98: 1224000 | CE98: 1224000 | CF98: 1224000 | CG98: 1224000 | CH98: 1224000 | CI98: 1224000 | CJ98: 1224000 | CK98: 612000 | CL98: 12566400 | CM98: 0 | CP98: CPS | CR98: 2017-12-30
A99: 88 | B99: FILA_88 | C99: 1 SI | E99: 088 | F99: 2017-02-07 | G99: 2 DOS VECES | H99: PRESTACION DE SERVICIOS OPERATIVOS Y DE APOYO A LA GESTION PARA REALIZAR ACTIVIDADES RELACIONADAS EN EL PLAN Y PROTOCOLODE PREVENCION, VIGILANCIA Y CONTROL Y PLA DE ORDENAMIENTO ECOTURISTICO DEL PNN LOS NEVADOS, A TRAVES DE ACCIONES ENCAMINADAS A PREVENIR, MITIGAR Y CORREGIR PRESIONES QUE AFECTAN LA INTEGRIDAD ECOLOGICA Y LA REPRESENTATIVIDAD ECOSISTEMICA DEL AREA PROTEGIDA | I99: PNN LOS NEVADOS | J99: 2 CONTRATACIÓN DIRECTA | K99: 14 PRESTACIÓN DE SERVICIOS | M99: CONTRATACION DIRECTA | N99: 80161500 Cód. 80161500 - Servicios de apoyo a la gestión | O99: 12240000 | S99: 1224000 | T99: 1 PERSONA NATURAL | U99: 2 RUT - REGISTRO ÚNICO TRIBUTARIO | V99: 93298119 | X99: 6 DV 5 | Z99: LIBANO | AA99: LUIS CARLOS VILLANUEVA CEBALLOS | AB99: 1 PÓLIZA | AC99: 2 CUMPLIMIENTO | AD99: 2017-02-08 | AE99: SEGUROS DEL ESTADO | AF99: 42-44-101097883 | AG99: 2 SUPERVISOR | AN99: 3 CÉDULA DE CIUDADANÍA | AO99: 79121466 | AQ99: 11 NO SE DILIGENCIA INFORMACIÓN PARA ESTE FORMULARIO EN ESTE PERÍODO DE REPORTE | AS99: EFRAIM AUGUSTO RODRIGUEZ VARON | AT99: 300 | AU99: 3 NO PACTADOS | AV99: 0 | AW99: 3 ADICIÓN EN VALOR y EN TIEMPO | AX99: 326400 | AY99: 2017-11-03 | AZ99: 8 | BA99: 2017-11-03 | BJ99: 2017-02-08 | BK99: 2017-12-15 | BM99: 100 | BN99: 100 | BO99: 100 | BP99: 100 | BQ99: ADICION Y PRORROGA N°01 AL CPS088/2017 POR MEDIO DEL CUAL SE ADICIONA LA SUMA DE $326.400 Y SE PRORROGA EL PLAZO DE EJECUCION POR 8 DIAS MAS EL 03/11/2017 | BR99: POA Y SIIF SANEAMIENTO | BS99: NACION | BT99: 15617 | BU99: 12240000 | BV99: 2017-02-07 | BW99: 19917 | BX99: 12240000 | BY99: 2017-02-08 | BZ99: 0 | CA99: 938400 | CB99: 1224000 | CC99: 1224000 | CD99: 1224000 | CE99: 1224000 | CF99: 1224000 | CG99: 1224000 | CH99: 1224000 | CI99: 1224000 | CJ99: 1224000 | CK99: 612000 | CL99: 12566400 | CM99: 0 | CP99: CPS | CR99: 2017-12-30
A100: 89 | B100: FILA_89 | C100: 1 SI | E100: 089 | F100: 2017-02-07 | G100: 4 CUATRO VECES | H100: PRESTACION DE SERVICIOS OPERARIOS Y DE APOYO A LA GESTION PARA REALIZAR ACTIVIDADES CONCERNIENTES CON LA IMPLEMENTACION DEL PLAN DE MANEJO DEL AREA PROTEGIDA, ESPECIALMENRE LAS RELACIONADAS CON EL PROGRAMA DE PREVENCION, VIGILANCIA Y CONTROL | I100: PNN LAS HERMOSAS | J100: 2 CONTRATACIÓN DIRECTA | K100: 14 PRESTACIÓN DE SERVICIOS | M100: CONTRATACION DIRECTA | N100: 80161500 Cód. 80161500 - Servicios de apoyo a la gestión | O100: 12240000 | S100: 1224000 | T100: 1 PERSONA NATURAL | U100: 2 RUT - REGISTRO ÚNICO TRIBUTARIO | V100: 1106768734 | X100: 2 DV 1 | Z100: CHAPARRAL | AA100: LUIS RICARDO MORALES CARRANZA | AB100: 1 PÓLIZA | AC100: 2 CUMPLIMIENTO | AD100: 2017-02-08 | AE100: SEGUROS DEL ESTADO | AF100: 26-44-101101941 | AG100: 2 SUPERVISOR | AN100: 3 CÉDULA DE CIUDADANÍA | AO100: 79576238 | AQ100: 11 NO SE DILIGENCIA INFORMACIÓN PARA ESTE FORMULARIO EN ESTE PERÍODO DE REPORTE | AS100: GERMAN ALBERTO RODRIGUEZ PENAGOS | AT100: 300 | AU100: 3 NO PACTADOS | AV100: 0 | AW100: 3 ADICIÓN EN VALOR y EN TIEMPO | AX100: 326400 | AY100: 2017-11-07 | AZ100: 8 | BA100: 2017-11-07 | BB100: SUSPENSIÓN DEL CONTRATO POR INCAPACIDAD MEDICA | BC100: 20 | BD100: 2017-04-20 | BJ100: 2017-02-08 | BK100: 2017-12-15 | BL100: 2017-12-15 | BM100: 100 | BN100: 100 | BO100: 100 | BP100: 100 | BQ100: ACTA DE SUSPENSION N° 1 POR INCAPACIDAD MEDICA POR (20) DIAS CONTANDO A PARTIR DEL 19/04/2017 HASTA EL 08/05/2017, ADICION Y PRORROGA N|01 AL CPS 089/2017 POR EL CUAL SE ADICIONA LA SUMA DE $ 326.400 Y SE PRORROGA EL PLAZO DE EJECUCIÓN EN 8 DIAS MAS EL 07/11/2017, ACTA DE TERMINACION ANTICIPADA Y KIQUIDACION BILATERAL DEL CPS089/2017 EL 15/12/2017, SE REPORTA EN ESTE TRIMESTRE TODA VEZ QUE NO SE REPORTO EN EL TRIMESTRE CORRESPONDIENTE | BR100: POA REGULACION SIIF AUTORIDAD AMBIENTAL | BS100: NACION | BT100: 15317 | BU100: 12240000 | BV100: 2017-02-07 | BW100: 19317 | BX100: 12240000 | BY100: 2017-02-07 | BZ100: 0 | CA100: 938400 | CB100: 1224000 | CC100: 734400 | CD100: 897600 | CE100: 1224000 | CF100: 1224000 | CG100: 1224000 | CH100: 1224000 | CI100: 1224000 | CJ100: 1224000 | CK100: 612000 | CL100: 11750400 | CM100: 816000 | CP100: CPS | CR100: 2017-12-30
A101: 90 | B101: FILA_90 | C101: 1 SI | E101: 090 | F101: 2017-02-07 | G101: 2 DOS VECES | H101: PRESTACION DE SERVICIOS OPERARIOS Y DE APOYO A LA GESTION PARA REALIZAR ACTIVIDADES RELACIONADAS CON LA IMPLEMENTACION DEL PLAN DE MANEJO DEL AREA PROTEGIDA, ESPECIALMENTE LAS RELACIONADAS CON EL SUBPROGRAMA DE USO, OCUPACION Y TENENCIA | I101: PNN LAS HERMOSAS | J101: 2 CONTRATACIÓN DIRECTA | K101: 14 PRESTACIÓN DE SERVICIOS | M101: CONTRATACION DIRECTA | N101: 80161500 Cód. 80161500 - Servicios de apoyo a la gestión | O101: 12240000 | S101: 1224000 | T101: 1 PERSONA NATURAL | U101: 2 RUT - REGISTRO ÚNICO TRIBUTARIO | V101: 1143959062 | X101: 4 DV 3 | Z101: CALI | AA101: JHON JAILER IBARBO LEMMOS | AB101: 1 PÓLIZA | AC101: 2 CUMPLIMIENTO | AD101: 2017-02-07 | AE101: SEGUROS DEL ESTADO | AF101: 45-44-101080186 | AG101: 2 SUPERVISOR | AN101: 3 CÉDULA DE CIUDADANÍA | AO101: 79576238 | AQ101: 11 NO SE DILIGENCIA INFORMACIÓN PARA ESTE FORMULARIO EN ESTE PERÍODO DE REPORTE | AS101: GERMAN ALBERTO RODRIGUEZ PENAGOS | AT101: 300 | AU101: 3 NO PACTADOS | AV101: 0 | AW101: 3 ADICIÓN EN VALOR y EN TIEMPO | AX101: 367200 | AY101: 2017-11-07 | AZ101: 9 | BA101: 2017-11-07 | BJ101: 2017-02-07 | BK101: 2017-12-15 | BM101: 100 | BN101: 100 | BO101: 100 | BP101: 100 | BQ101: ADICION Y PRORROGA N°01 AL CPS090/2017 POR EL CUAL SE ADICIONA LA SUMA DE $327.200 Y SE PRORROGA EL PLAZO DE EJECUCIÓN EN (9) DIAS MAS EL 07/11/2017 | BR101: POA REGULACION SIIF AUTORIDAD AMBIENTAL | BS101: NACION | BT101: 15517 | BU101: 12240000 | BV101: 2017-02-07 | BW101: 19217 | BX101: 12240000 | BY101: 2017-02-07 | BZ101: 0 | CA101: 979200 | CB101: 1224000 | CC101: 1224000 | CD101: 1224000 | CE101: 1224000 | CF101: 1224000 | CG101: 1224000 | CH101: 1224000 | CI101: 1224000 | CJ101: 1224000 | CK101: 612000 | CL101: =BZ101+CA101+CB101+CC101+CD101+CE101+CF101+CG101+CH101+CI101+CJ101+CK101 -> 12607200 | CM101: 0 | CP101: CPS | CR101: 2017-12-30
A102: 91 | B102: FILA_91 | C102: 1 SI | E102: 091 | F102: 2017-02-10 | G102: 2 DOS VECES | H102: PRESTACION DE SERVICIOS OPERATIVOS Y DE APOYO A LA GESTION PARA LA IMPLEMENTACION DEL PLAN DE MANEJO DEL PARQUE, REALIZAR ACTIVIDADES DE EDUCACION AMBIENTAL, MONITOREO, PREVENCION, CONTROL Y VIGILANCIA, CONTRIBUYENDO A MANTENER LOS ECOSITEMAS Y LAS AREAS DE INFLUENCIA DEL AREA PROTEGIDA PNN CVDJC | I102: PNN CVDJC | J102: 2 CONTRATACIÓN DIRECTA | K102: 14 PRESTACIÓN DE SERVICIOS | M102: CONTRATACION DIRECTA | N102: 80161500 Cód. 80161500 - Servicios de apoyo a la gestión | O102: 12240000 | S102: 1224000 | T102: 1 PERSONA NATURAL | U102: 2 RUT - REGISTRO ÚNICO TRIBUTARIO | V102: 1088972715 | X102: 10 DV 9 | Z102: LA CRUZ | AA102: MARIBEL REALPE URBANO | AB102: 1 PÓLIZA | AC102: 2 CUMPLIMIENTO | AD102: 2017-02-10 | AE102: CONFIANZA | AF102: 30 GU139009 | AG102: 2 SUPERVISOR | AN102: 3 CÉDULA DE CIUDADANÍA | AO102: 10537381 | AQ102: 11 NO SE DILIGENCIA INFORMACIÓN PARA ESTE FORMULARIO EN ESTE PERÍODO DE REPORTE | AS102: RICHARD MARINO MUÑOZ MOLANO | AT102: 300 | AU102: 3 NO PACTADOS | AV102: 0 | AW102: 3 ADICIÓN EN VALOR y EN TIEMPO | AX102: 244800 | AY102: 2017-11-16 | AZ102: 6 | BA102: 2017-11-16 | BJ102: 2017-02-10 | BK102: 2017-12-15 | BM102: 100 | BN102: 100 | BO102: 100 | BP102: 100 | BQ102: ADICION Y PRORROGA N°01 AL CPS091/2017 POR EL CUAL SE ADICIONA LA SUMA DE $ 244.800 Y SE PRORROGA EL PLAZO DE EJECUCIÓN POR (6) DIAS MAS EL 16/11/2017 | BR102: POA REGULACION SIIF AUTORIDAD AMBIENTAL | BS102: NACION | BT102: 15117 | BU102: 12240000 | BV102: 2017-02-07 | BW102: 20117 | BX102: 12240000 | BY102: 2017-02-10 | BZ102: 0 | CA102: 856800 | CB102: 1224000 | CC102: 1224000 | CD102: 1224000 | CE102: 1224000 | CF102: 1224000 | CG102: 1224000 | CH102: 1224000 | CI102: 1224000 | CJ102: 1224000 | CK102: 612000 | CL102: 12484800 | CM102: 0 | CP102: CPS | CR102: 2017-12-30
A103: 92 | B103: FILA_92 | C103: 1 SI | E103: 092 | F103: 2017-02-14 | G103: 2 DOS VECES | H103: PRESTACION DE SERVICIOS TECNICOS Y DE APOYO A LA GESTION PARA REALIZAR ACTIVIDADES DE RELACIONAMIENTO COMUNITARIO Y APOYO TECNICO EN EL MARCO DEL CONVENIO PNN Y LA COMUNIDAD KOKONUKO DEL RESGUARDO INDIGENA DE PALETARA, RELACIONADAS CON EL SEGUIMIENTO DE LAS ACTIVIDADES QUE SE ENCUENTRAN EN MARCHA EN EL PROCESO DE EJECUCIOON DEL PROYECTO FINANCIADO POR LA UNION EUROPEA Y PNN DE COLOMBIA | I103: PNN PURACE | J103: 2 CONTRATACIÓN DIRECTA | K103: 14 PRESTACIÓN DE SERVICIOS | M103: CONTRATACION DIRECTA | N103: 80161500 Cód. 80161500 - Servicios de apoyo a la gestión | O103: 5944050 | S103: 1698300 | T103: 1 PERSONA NATURAL | U103: 2 RUT - REGISTRO ÚNICO TRIBUTARIO | V103: 76327826 | X103: 9 DV 8 | Z103: POPAYAN | AA103: EIDER ARNULFO ZAMBRANO CHILITO | AB103: 1 PÓLIZA | AC103: 2 CUMPLIMIENTO | AD103: 2017-02-14 | AE103: CONFIANZA | AF103: 30 GU139093 | AG103: 2 SUPERVISOR | AN103: 3 CÉDULA DE CIUDADANÍA | AO103: 10537064 | AQ103: 11 NO SE DILIGENCIA INFORMACIÓN PARA ESTE FORMULARIO EN ESTE PERÍODO DE REPORTE | AS103: ISAAC BEDOYA DORADO | AT103: 105 | AU103: 3 NO PACTADOS | AV103: 0 | AW103: 3 ADICIÓN EN VALOR y EN TIEMPO | AX103: 452880 | AY103: 2017-05-25 | AZ103: 8 | BA103: 2017-05-25 | BJ103: 2017-02-14 | BK103: 2017-06-06 | BM103: 100 | BN103: 100 | BO103: 100 | BP103: 100 | BQ103: ADICION Y PRORROGA N°01 CPS 092/2017 EN VALOR ($455,880) Y DIAS (8) CON FECHA DEL 25/05/2017 | BR103: POA Y SIIF ESTRATEGIAS ESPECIALES DE MANEJO | BS103: NACION | BT103: 16917 | BU103: 5944050 | BV103: 2017-02-14 | BW103: 21317 | BX103: 5944050 | BY103: 2017-02-14 | BZ103: 0 | CA103: 962370 | CB103: 1698300 | CC103: 1698300 | CD103: 1585080 | CE103: 452880 | CF103: 0 | CG103: 0 | CH103: 0 | CI103: 0 | CJ103: 0 | CL103: 6396930 | CM103: 0 | CP103: CPS | CR103: 2017-12-30
A104: 93 | B104: FILA_93 | C104: 1 SI | E104: 093 | F104: 2017-02-15 | G104: 3 TRES VECES | H104: PRESTACION DE SERVICIOS PROFESIONALES Y DE APOYO A LA GESTION, COORDINANDO LA IMPLEMENTACION DE LAS ACTIVIDADES PREVISTAS EN EL PROGRAMA DE MONITOREO PARA LA VIGENCIA 2017 ESTABLECIDO DENTRO DEL PLAN OPERATIVO ANUAL DEL PNN PURACE Y LAS INVESTIGACIONES CIENTIFICAS A EJECUTAR DURANTE EL PRESENTE AÑO | I104: PNN PURACE | J104: 2 CONTRATACIÓN DIRECTA | K104: 14 PRESTACIÓN DE SERVICIOS | M104: CONTRATACION DIRECTA | N104: 80161500 Cód. 80161500 - Servicios de apoyo a la gestión | O104: 29172000 | S104: 2917200 | T104: 1 PERSONA NATURAL | U104: 2 RUT - REGISTRO ÚNICO TRIBUTARIO | V104: 1061727313 | X104: 5 DV 4 | Z104: POPAYAN | AA104: JOSE MANUEL BONILLA VALENCIA | AB104: 1 PÓLIZA | AC104: 2 CUMPLIMIENTO | AD104: 2017-02-15 | AE104: CONFIANZA | AF104: 30 GU139125 | AG104: 2 SUPERVISOR | AN104: 3 CÉDULA DE CIUDADANÍA | AO104: 10537064 | AQ104: 11 NO SE DILIGENCIA INFORMACIÓN PARA ESTE FORMULARIO EN ESTE PERÍODO DE REPORTE | AS104: ISAAC BEDOYA DORADO | AT104: 300 | AU104: 3 NO PACTADOS | AV104: 0 | AW104: 4 NO SE HA ADICIONADO NI EN VALOR y EN TIEMPO | AX104: 0 | BH104: OTRO SI MODIFICATORIO A LA CLAUSULA NOVENA DEL CPS 093 DE 2017 NACION " CUENTA DEL CONTRATISTA | BI104: 2017-08-15 | BJ104: 2017-02-15 | BK104: 2017-12-14 | BM104: 100 | BN104: 100 | BO104: 100 | BP104: 100 | BQ104: OTRO SI MODIFICATORIO A LA CLAUSULA NOVENA DEL CPS 093 DE 2017 NACION " CUENTA DEL CONTRATISTA EL 15/08/2017 | BR104: POA Y SIIF CONOCIMIENTO VOC | BS104: NACION | BT104: 16817 | BU104: 29172000 | BV104: 2017-02-14 | BW104: 21517 | BX104: 29172000 | BY104: 2017-02-15 | BZ104: 0 | CA104: 1555840 | CB104: 2917200 | CC104: 2917200 | CD104: 2917200 | CE104: 2917200 | CF104: 2917200 | CG104: 2917200 | CH104: 2917200 | CI104: 2917200 | CJ104: 2917200 | CK104: 1361360 | CL104: 29172000 | CM104: 0 | CP104: CPS | CR104: 2017-12-30
A105: 94 | B105: FILA_94 | C105: 1 SI | E105: 094 | F105: 2017-02-16 | G105: 2 DOS VECES | H105: PRESTACION DE SERVICIOS OPERATIVOS Y DE APOYO A LA GESTION PARA REALIZAR ACTIVIDADES DE RELACIONAMIENTO Y PARTICIPACION COMUNITARIA ENTRE EL PNN PURACE Y LA COMUNIDAD DEL RESGUARDO INDIGENA DE LA ETNIA YANACONA RIO BLANCO, PARA LA CONSERVACION DE AREAS DE IMPORTANCIA AMBIENTAL COMUNITARIA, EN EL SECTOR DE SOTARA Y APOYAR EL PROCESO DE ARTICULACION CON EL RESGUARDO INDIGENA | I105: PNN PURACE | J105: 2 CONTRATACIÓN DIRECTA | K105: 14 PRESTACIÓN DE SERVICIOS | M105: CONTRATACION DIRECTA | N105: 80161500 Cód. 80161500 - Servicios de apoyo a la gestión | O105: 12240000 | S105: 1224000 | T105: 1 PERSONA NATURAL | U105: 2 RUT - REGISTRO ÚNICO TRIBUTARIO | V105: 7561811 | X105: 10 DV 9 | Z105: ARMENIA | AA105: WILSON DE JESUS JIMENEZ | AB105: 1 PÓLIZA | AC105: 2 CUMPLIMIENTO | AD105: 2017-02-16 | AE105: CONFIANZA | AF105: 30 GU139152 | AG105: 2 SUPERVISOR | AN105: 3 CÉDULA DE CIUDADANÍA | AO105: 10537064 | AQ105: 11 NO SE DILIGENCIA INFORMACIÓN PARA ESTE FORMULARIO EN ESTE PERÍODO DE REPORTE | AS105: ISAAC BEDOYA DORADO | AT105: 300 | AU105: 3 NO PACTADOS | AV105: 0 | AW105: 4 NO SE HA ADICIONADO NI EN VALOR y EN TIEMPO | AX105: 0 | BJ105: 2017-02-16 | BK105: 2017-12-15 | BM105: 100 | BN105: 100 | BO105: 100 | BP105: 100 | BR105: POA REGULACION SIIF AUTORIDAD AMBIENTAL | BS105: NACION | BT105: 17217 | BU105: 12240000 | BV105: 2017-02-15 | BW105: 22217 | BX105: 12240000 | BY105: 2017-02-16 | BZ105: 0 | CA105: 612000 | CB105: 1224000 | CC105: 1224000 | CD105: 1224000 | CE105: 1224000 | CF105: 1224000 | CG105: 1224000 | CH105: 1224000 | CI105: 1224000 | CJ105: 1224000 | CK105: 612000 | CL105: 12240000 | CM105: 0 | CP105: CPS | CR105: 2017-12-30
A106: 95 | B106: FILA_95 | C106: 1 SI | E106: 095 | F106: 2017-02-16 | G106: 2 DOS VECES | H106: PRESTACION DE SERVICIOS TECNICOS Y DE APOYO A LA GESTION PARA REALIZAR EL RECAUDO Y CONTROL DE LO DERECHOS DE INGRESO AL PNN LOS NAVEDOS, APOYO OPERATIVO EN EL SEGUIMIENTO AL CONTRATO DE PRESTACION DE SERVICIOS ECOTURISTICOS COMUNITARIOS ASDEGUIAS, ASI COMO EL APOYO EN EL SEGUIMIENTO, CONTROL Y USO EFICIENTE DE RECURSOS FISICOS Y BIENES ASIGNADOS AL AREA PROTEGIDA | I106: PNN LOS NEVADOS | J106: 2 CONTRATACIÓN DIRECTA | K106: 14 PRESTACIÓN DE SERVICIOS | M106: CONTRATACION DIRECTA | N106: 80161500 Cód. 80161500 - Servicios de apoyo a la gestión | O106: 16983000 | S106: 1698300 | T106: 1 PERSONA NATURAL | U106: 2 RUT - REGISTRO ÚNICO TRIBUTARIO | V106: 34570979 | X106: 4 DV 3 | Z106: POPAYAN | AA106: NARDA LORENA PALTA | AB106: 1 PÓLIZA | AC106: 2 CUMPLIMIENTO | AD106: 2017-02-20 | AE106: CONFIANZA | AF106: 30 GU139276 | AG106: 2 SUPERVISOR | AN106: 3 CÉDULA DE CIUDADANÍA | AO106: 79121466 | AQ106: 11 NO SE DILIGENCIA INFORMACIÓN PARA ESTE FORMULARIO EN ESTE PERÍODO DE REPORTE | AS106: EFRAIM AUGUSTO RODRIGUEZ VARON | AT106: 300 | AU106: 3 NO PACTADOS | AV106: 0 | AW106: 4 NO SE HA ADICIONADO NI EN VALOR y EN TIEMPO | AX106: 0 | BJ106: 2017-02-20 | BK106: 2017-12-19 | BM106: 100 | BN106: 100 | BO106: 100 | BP106: 100 | BR106: POA PLANEACIO INTERNA SIIF FORTALECIMIENTO | BS106: NACION | BT106: 17317 | BU106: 16983000 | BV106: 2017-02-15 | BW106: 23517 | BX106: 16983000 | BY106: 2017-02-17 | BZ106: 0 | CA106: 622710 | CB106: 1698300 | CC106: 1698300 | CD106: 1698300 | CE106: 1698300 | CF106: 1698300 | CG106: 1698300 | CH106: 1698300 | CI106: 1698300 | CJ106: 1698300 | CK106: 1075590 | CL106: 16983000 | CM106: 0 | CP106: CPS | CR106: 2017-12-30
A107: 96 | B107: FILA_96 | C107: 1 SI | E107: 096 | F107: 2017-02-16 | G107: 2 DOS VECES | H107: PRESTACION DE SERVICIOS PROFESIONALES Y DE APOYO A LA GESTION PARA APOYAR TECNICA Y ADMINISTRATIVAMENTE LA IMPLEMENTACION DE LAS ACTIVIDADES DE LAS INICIATIVAS LOCALES DEL PROGRAMA DE APOYO PRESUPIESTARIO FINANCIADO POR LA UNION EUROPEA CON LAS COMUNIDADES INDIGENAS EN EL PNN PURACE | I107: PNN PURACE | J107: 2 CONTRATACIÓN DIRECTA | K107: 14 PRESTACIÓN DE SERVICIOS | M107: CONTRATACION DIRECTA | N107: 80161500 Cód. 80161500 - Servicios de apoyo a la gestión | O107: 12459300 | S107: 3559800 | T107: 1 PERSONA NATURAL | U107: 2 RUT - REGISTRO ÚNICO TRIBUTARIO | V107: 16287971 | X107: 8 DV 7 | Z107: CALI | AA107: CESAR ALFONSO ROSASCO GALLON | AB107: 1 PÓLIZA | AC107: 2 CUMPLIMIENTO | AD107: 2017-02-16 | AE107: CONFIANZA | AF107: 30 GU139189 | AG107: 2 SUPERVISOR | AN107: 3 CÉDULA DE CIUDADANÍA | AO107: 10537064 | AQ107: 11 NO SE DILIGENCIA INFORMACIÓN PARA ESTE FORMULARIO EN ESTE PERÍODO DE REPORTE | AS107: ISAAC BEDOYA DORADO | AT107: 105 | AU107: 3 NO PACTADOS | AV107: 0 | AW107: 3 ADICIÓN EN VALOR y EN TIEMPO | AX107: 3559800 | AY107: 2017-05-25 | AZ107: 30 | BA107: 2017-05-25 | BJ107: 2017-02-16 | BK107: 2017-06-30 | BM107: 100 | BN107: 100 | BO107: 100 | BP107: 100 | BQ107: ADICIÓN Y PRORROGA N° 01 CPS 096 DE 2017, EN VALOR POR ($ 3.559.800) Y (30) DIAS EN PLAZO DE EJECUCIÓN | BR107: POA Y SIIF ESTRATEGIAS ESPECIALES DE MANEJO | BS107: NACION | BT107: 17017 | BU107: 12459300 | BV107: 2017-02-15 | BW107: 22717 | BX107: 12459300 | BY107: 2017-02-16 | BZ107: 0 | CA107: 1779900 | CB107: 3559800 | CC107: 3559800 | CD107: 3559800 | CE107: 3559800 | CF107: 0 | CG107: 0 | CH107: 0 | CI107: 0 | CJ107: 0 | CL107: 16019100 | CM107: 0 | CP107: CPS | CR107: 2017-12-30
A108: 97 | B108: FILA_97 | C108: 1 SI | E108: 097 | F108: 2017-02-17 | G108: 2 DOS VECES | H108: PRESTACION DE SERVICIOS PROFESIONALES PARA ACOMPAÑAR Y LIDERAR PROCESOS DE PARTICIPACION SOCIAL Y RELACIONAMIENTO CON COMUNIDADES Y ORGANIZACIONES SOCIALES INDIGENAS, CAMPESINAS Y AFRODESCENDIENTES, RELACIONADAS CON LA GESTION DE CONSEVACION EN EL MARCO DEL SUBSISTEMA ANDES OCCIDENTALES, CON REFERENCIA EN EL PLAN ESTRATEGICO DE LA DTAO Y LOS PLANES ESTRATEGICOS DE SUS AREAS PROTEGIDAS ADSCRITAS | I108: DTAO | J108: 2 CONTRATACIÓN DIRECTA | K108: 14 PRESTACIÓN DE SERVICIOS | M108: CONTRATACION DIRECTA | N108: 80161500 Cód. 80161500 - Servicios de apoyo a la gestión | O108: 35598000 | S108: 3559800 | T108: 1 PERSONA NATURAL | U108: 2 RUT - REGISTRO ÚNICO TRIBUTARIO | V108: 42730936 | X108: 4 DV 3 | Z108: JARDIN | AA108: NURY ESTELA YAGARI GONZALEZ | AB108: 1 PÓLIZA | AC108: 2 CUMPLIMIENTO | AD108: 2017-02-17 | AE108: SEGUROS DEL ESTADO | AF108: 65-44-101142779 | AG108: 2 SUPERVISOR | AN108: 3 CÉDULA DE CIUDADANÍA | AO108: 10282381 | AQ108: 11 NO SE DILIGENCIA INFORMACIÓN PARA ESTE FORMULARIO EN ESTE PERÍODO DE REPORTE | AS108: JORGE EDUARDO CEBALLOS BETANCUR | AT108: 300 | AU108: 3 NO PACTADOS | AV108: 0 | AW108: 4 NO SE HA ADICIONADO NI EN VALOR y EN TIEMPO | AX108: 0 | BJ108: 2017-02-17 | BK108: 2017-12-16 | BM108: 100 | BN108: 100 | BO108: 100 | BP108: 100 | BR108: POA Y SIIF ESTRATEGIAS ESPECIALES DE MANEJO | BS108: NACION | BT108: 17517 | BU108: 35598000 | BV108: 2017-02-16 | BW108: 23417 | BX108: 35598000 | BY108: 2017-02-17 | BZ108: 0 | CA108: 1423920 | CB108: 3559800 | CC108: 3559800 | CD108: 3559800 | CE108: 3559800 | CF108: 3559800 | CG108: 3559800 | CH108: 3559800 | CI108: 3559800 | CJ108: 3559800 | CK108: 1898560 | CL108: 35360680 | CM108: =O108+AX108-BE108-BZ108-CA108-CB108-CC108-CD108-CE108-CF108-CG108-CH108-CI108-CJ108-CK108 -> 237320 | CP108: CPS | CR108: 2017-12-30
A109: 98 | B109: FILA_98 | C109: 1 SI | E109: 098 | F109: 2017-02-16 | G109: 2 DOS VECES | H109: PRESTACION DE SERVICIOS OPERATIVOS OPERATIVOS Y DE APOYO DE GESTION PARA REALIZAR ACTIVIDADES DE EDUCACION AMBIENTAL, GESTION DE COMUNICACIONES, CONTROL Y VIGILANCIA EN EL PNN PURACE EN EL MARCO DEL PLAN OPERATIVO ANUAL PARA ESTA VIGENCIA, CON EL FIN DE AVANZAR EN EL LOGRO PREVISTO EN EL PLAN DE MANEJO DE AREA PROTEGIDA | I109: PNN PURACE | J109: 2 CONTRATACIÓN DIRECTA | K109: 14 PRESTACIÓN DE SERVICIOS | M109: CONTRATACION DIRECTA | N109: 80161500 Cód. 80161500 - Servicios de apoyo a la gestión | O109: 12240000 | S109: 1224000 | T109: 1 PERSONA NATURAL | U109: 2 RUT - REGISTRO ÚNICO TRIBUTARIO | V109: 94503546 | X109: 1 DV 0 | Z109: CALI | AA109: GUSTAVO ADOLFO PAPAMIJA | AB109: 1 PÓLIZA | AC109: 2 CUMPLIMIENTO | AD109: 2017-02-20 | AE109: CONFIANZA | AF109: 30 GU139273 | AG109: 2 SUPERVISOR | AN109: 3 CÉDULA DE CIUDADANÍA | AO109: 10537064 | AQ109: 11 NO SE DILIGENCIA INFORMACIÓN PARA ESTE FORMULARIO EN ESTE PERÍODO DE REPORTE | AS109: ISAAC BEDOYA DORADO | AT109: 300 | AU109: 3 NO PACTADOS | AV109: 0 | AW109: 4 NO SE HA ADICIONADO NI EN VALOR y EN TIEMPO | AX109: 0 | BJ109: 2017-02-20 | BK109: 2017-12-19 | BM109: 100 | BN109: 100 | BO109: 100 | BP109: 100 | BR109: POA REGULACION SIIF AUTORIDAD AMBIENTAL | BS109: NACION | BT109: 17717 | BU109: 12240000 | BV109: 2017-02-16 | BW109: 23117 | BX109: 12240000 | BY109: 2017-02-17 | BZ109: 0 | CA109: 448800 | CB109: 1224000 | CC109: 1224000 | CD109: 1224000 | CE109: 1224000 | CF109: 1224000 | CG109: 1224000 | CH109: 1224000 | CI109: 1224000 | CJ109: 1224000 | CK109: 775200 | CL109: 12240000 | CM109: 0 | CP109: CPS | CR109: 2017-12-30
A110: 99 | B110: FILA_99 | C110: 1 SI | E110: 099 | F110: 2017-02-22 | G110: 2 DOS VECES | H110: PRESTACION DE SERVICIOS OPERATIVOS Y DE APOYO A LA GESTION PARA REALIZAR ACTIVIDADES DE RELACIONAMIENTO Y COLABORACION COMUNITARIA ENTRE PNN Y LA COMUNIDAD DEL RESGUARDO INDIGENA PAPALLAKTA, MUNICIPIO SAN SEBASTIAN (ALTO CAQUETA) ENCAMINADA A LA PRESERVACION DE AREAS DE INTERES AMBIENTAL COMUNITARIA EN UNION CON EL PNN PURACE, DE ACUERDO A LAS ACTIVIDADES PLANTEADAS EN EL PLAN OPERATIVO ANUAL DE AREA PROTEGIDA Y PLAN DE MANEJO VIGENTE | I110: PNN PURACE | J110: 2 CONTRATACIÓN DIRECTA | K110: 14 PRESTACIÓN DE SERVICIOS | M110: CONTRATACION DIRECTA | N110: 80161500 Cód. 80161500 - Servicios de apoyo a la gestión | O110: 12240000 | S110: 1224000 | T110: 1 PERSONA NATURAL | U110: 2 RUT - REGISTRO ÚNICO TRIBUTARIO | V110: 1065096272 | X110: 7 DV 6 | Z110: SAN SEBASTIAN | AA110: FAVER DIOMAR JIMENEZ ANACONA | AB110: 1 PÓLIZA | AC110: 2 CUMPLIMIENTO | AD110: 2017-02-22 | AE110: CONFIANZA | AF110: 30 GU139377 | AG110: 2 SUPERVISOR | AN110: 3 CÉDULA DE CIUDADANÍA | AO110: 10537064 | AQ110: 11 NO SE DILIGENCIA INFORMACIÓN PARA ESTE FORMULARIO EN ESTE PERÍODO DE REPORTE | AS110: ISAAC BEDOYA DORADO | AT110: 300 | AU110: 3 NO PACTADOS | AV110: 0 | AW110: 4 NO SE HA ADICIONADO NI EN VALOR y EN TIEMPO | AX110: 0 | BJ110: 2017-02-22 | BK110: 2017-12-21 | BM110: 100 | BN110: 100 | BO110: 100 | BP110: 100 | BR110: POA Y SIIF ESTRATEGIAS ESPECIALES DE MANEJO | BS110: NACION | BT110: 18717 | BU110: 12240000 | BV110: 2017-02-21 | BW110: 24717 | BX110: 12240000 | BY110: 2017-02-22 | BZ110: 0 | CA110: 367200 | CB110: 1224000 | CC110: 1224000 | CD110: 1224000 | CE110: 1224000 | CF110: 1224000 | CG110: 1224000 | CH110: 1224000 | CI110: 1224000 | CJ110: 1224000 | CK110: 856800 | CL110: 12240000 | CM110: 0 | CP110: CPS | CR110: 2017-12-30
A111: 100 | B111: FILA_100 | C111: 1 SI | E111: 100 | F111: 2017-02-23 | G111: 2 DOS VECES | H111: PRESTACION DE SERVICIOS OPERATIVOS Y DE APOYO A LA GESTION PARA REALIZAR ACTIVIDADES DE EDUCACION AMBIENTAL, CONTROL Y VIGILANCIA, RELACIONAMIENTO COMUNITARIO A LOS PROCESOS DE RESERVAS NATURALES DE LA SOCIEDAD CIVIL EN EL PNN PURACE EN EL MARCO DEL PLAN OPERATIVO ANUAL PARA ESTA VIGENCIA, CON EL FIN DE AVANZAR EN EL LOGRO PREVISTO EN EL PLAN DE MANEJO DEL AREA PROTEGIDA | I111: PNN PURACE | J111: 2 CONTRATACIÓN DIRECTA | K111: 14 PRESTACIÓN DE SERVICIOS | M111: CONTRATACION DIRECTA | N111: 80161500 Cód. 80161500 - Servicios de apoyo a la gestión | O111: 12240000 | S111: 1224000 | T111: 1 PERSONA NATURAL | U111: 2 RUT - REGISTRO ÚNICO TRIBUTARIO | V111: 76296659 | X111: 2 DV 1 | Z111: TIMBIO | AA111: JUAN BAUTISTA BOLAÑOS NARVAEZ | AB111: 1 PÓLIZA | AC111: 2 CUMPLIMIENTO | AD111: 2017-02-23 | AE111: CONFIANZA | AF111: 30 GU139391 | AG111: 2 SUPERVISOR | AN111: 3 CÉDULA DE CIUDADANÍA | AO111: 10537064 | AQ111: 11 NO SE DILIGENCIA INFORMACIÓN PARA ESTE FORMULARIO EN ESTE PERÍODO DE REPORTE | AS111: ISAAC BEDOYA DORADO | AT111: 300 | AU111: 3 NO PACTADOS | AV111: 0 | AW111: 4 NO SE HA ADICIONADO NI EN VALOR y EN TIEMPO | AX111: 0 | BJ111: 2017-02-23 | BK111: 2017-12-22 | BM111: 100 | BN111: 100 | BO111: 100 | BP111: 100 | BR111: POA REGULACION SIIF AUTORIDAD AMBIENTAL | BS111: NACION | BT111: 18817 | BU111: 12240000 | BV111: 2017-02-23 | BW111: 25317 | BX111: 12240000 | BY111: 2017-02-23 | BZ111: 0 | CA111: 326400 | CB111: 1224000 | CC111: 1224000 | CD111: 1224000 | CE111: 1224000 | CF111: 1224000 | CG111: 1224000 | CH111: 1224000 | CI111: 1224000 | CJ111: 1224000 | CK111: 897600 | CL111: 12240000 | CM111: 0 | CP111: CPS | CR111: 2017-12-30
A112: 101 | B112: FILA_101 | C112: 1 SI | E112: 101 | F112: 2017-03-01 | G112: 2 DOS VECES | H112: PRESTACION DE SERVICIOS TECNICOS Y DE APOYO A LA GESTION PARA DINAMIZAR LA IMPLEMENTACION DEL PLAN DE ORDENAMIENTO ECOTURISTICO, EL PLAN DE PREVENCION, VIGILANCIA Y CONTROL Y LA ESTRATEGIA DE COMUNICACIÓN Y EDUCACION PARA LA CONSERVACION Y EL DESARROLLO (CEPACD), A TRAVES DE ACCIONES ENCAMINADAS A PREVENIR, MITIGAR Y CORREGIR PRESIONES QUE AFECTAN LA INTEGRIDAD ECOLOGICA Y LA REPRESENTATIVIDAD ECOSISTEMICA DEL PNN LOS NEVADOS | I112: PNN LOS NEVADOS | J112: 2 CONTRATACIÓN DIRECTA | K112: 14 PRESTACIÓN DE SERVICIOS | M112: CONTRATACION DIRECTA | N112: 80161500 Cód. 80161500 - Servicios de apoyo a la gestión | O112: 16983000 | S112: 1698300 | T112: 1 PERSONA NATURAL | U112: 2 RUT - REGISTRO ÚNICO TRIBUTARIO | V112: 25120866 | X112: 8 DV 7 | Z112: SALENTO | AA112: MONICA HERNANDEZ CARMONA | AB112: 1 PÓLIZA | AC112: 2 CUMPLIMIENTO | AD112: 2017-03-01 | AE112: SEGUROS DEL ESTADO | AF112: 42-44-101098339 | AG112: 2 SUPERVISOR | AN112: 3 CÉDULA DE CIUDADANÍA | AO112: 79121466 | AQ112: 11 NO SE DILIGENCIA INFORMACIÓN PARA ESTE FORMULARIO EN ESTE PERÍODO DE REPORTE | AS112: EFRAIM AUGUSTO RODRIGUEZ VARON | AT112: 300 | AU112: 3 NO PACTADOS | AV112: 0 | AW112: 4 NO SE HA ADICIONADO NI EN VALOR y EN TIEMPO | AX112: 0 | BJ112: 2017-03-01 | BK112: 2017-12-31 | BM112: 100 | BN112: 100 | BO112: 100 | BP112: 100 | BR112: POA REGULACION SIIF AUTORIDAD AMBIENTAL | BS112: NACION | BT112: 18917 | BU112: 16983000 | BV112: 2017-02-23 | BW112: 27517 | BX112: 16983000 | BY112: 2017-03-01 | BZ112: 0 | CA112: 0 | CB112: 1698300 | CC112: 1698300 | CD112: 1698300 | CE112: 1698300 | CF112: 1698300 | CG112: 1698300 | CH112: 1698300 | CI112: 1698300 | CJ112: 1698300 | CK112: 1698300 | CL112: 16983000 | CM112: 0 | CP112: CPS | CR112: 2017-12-30
A113: 102 | B113: FILA_102 | C113: 1 SI | E113: 102 | F113: 2017-02-24 | G113: 2 DOS VECES | H113: PRESTACION DE SERVICIOS OPERATIVOS Y DE APOYO A LA GESTION PARA REALIZAR ACTIVIDADES DE RELACIONAMIENTO COMUNITARIO, EDUCACION AMBIENTAL Y CONTROL Y VIGILANCIA TERRITORIAL EN EL PNN PURACE Y LAS AREAS DE IMPORTACIA COMUNITARIA AMBIENTAL EN EL RESGUARDO INDIGENA DE PALETARA, DE ACUERDO AL PLAN OPERATIVO ANUAL VIGENCIA 2017 | I113: PNN PURACE | J113: 2 CONTRATACIÓN DIRECTA | K113: 14 PRESTACIÓN DE SERVICIOS | M113: CONTRATACION DIRECTA | N113: 80161500 Cód. 80161500 - Servicios de apoyo a la gestión | O113: 12240000 | S113: 1224000 | T113: 1 PERSONA NATURAL | U113: 2 RUT - REGISTRO ÚNICO TRIBUTARIO | V113: 1061776244 | X113: 4 DV 3 | Z113: POPAYAN | AA113: HUBER YAMID CAMAYO CHALAPU | AB113: 1 PÓLIZA | AC113: 2 CUMPLIMIENTO | AD113: 2017-02-24 | AE113: CONFIANZA | AF113: 30 GU139457 | AG113: 2 SUPERVISOR | AN113: 3 CÉDULA DE CIUDADANÍA | AO113: 10537064 | AQ113: 11 NO SE DILIGENCIA INFORMACIÓN PARA ESTE FORMULARIO EN ESTE PERÍODO DE REPORTE | AS113: ISAAC BEDOYA DORADO | AT113: 300 | AU113: 3 NO PACTADOS | AV113: 0 | AW113: 4 NO SE HA ADICIONADO NI EN VALOR y EN TIEMPO | AX113: 0 | BJ113: 2017-02-24 | BK113: 2017-12-23 | BM113: 100 | BN113: 100 | BO113: 100 | BP113: 100 | BR113: POA Y SIIF ESTRATEGIAS ESPECIALES ED MANEJO | BS113: NACION | BT113: 19317 | BU113: 12240000 | BV113: 2017-02-24 | BW113: 25717 | BX113: 12240000 | BY113: 2017-02-24 | BZ113: 0 | CA113: 285600 | CB113: 1224000 | CC113: 1224000 | CD113: 1224000 | CE113: 1224000 | CF113: 1224000 | CG113: 1224000 | CH113: 1224000 | CI113: 1224000 | CJ113: 1224000 | CK113: 938400 | CL113: 12240000 | CM113: 0 | CP113: CPS | CR113: 2017-12-30
A114: 103 | B114: FILA_103 | C114: 1 SI | E114: 103 | F114: 2017-02-23 | G114: 2 DOS VECES | H114: PRESTACION DE SERVICIOS COMO OPERARIO Y APOYO A LA GESTION, PARA DESARROLLAS ACTIVIDADES RELACIONADAS CON CONTROL Y VIGILANCIA Y DE APOYO EN LAS LINEAS DE TRABAJO DEL REM CON EL RESGUARDO DE GAITANIA (MUNICIPIO DE PLANADAS - TOLIMA), QUE PERMITAN ALCANZAR LAS METAS TRAZADAS EN EL PLAN OPERATIVO ANUAL DEL PNN NEVADO DEL HUILA | I114: PNN NEVADO DEL HUILA | J114: 2 CONTRATACIÓN DIRECTA | K114: 14 PRESTACIÓN DE SERVICIOS | M114: CONTRATACION DIRECTA | N114: 80161500 Cód. 80161500 - Servicios de apoyo a la gestión | O114: 12240000 | S114: 1224000 | T114: 1 PERSONA NATURAL | U114: 2 RUT - REGISTRO ÚNICO TRIBUTARIO | V114: 1109416820 | X114: 7 DV 6 | Z114: PLANADAS | AA114: YEIMY SUGUEY PAYA PEÑA | AB114: 1 PÓLIZA | AC114: 2 CUMPLIMIENTO | AD114: 2017-02-23 | AE114: SEGUROS DEL ESTADO | AF114: 25-44-101102317 | AG114: 2 SUPERVISOR | AN114: 3 CÉDULA DE CIUDADANÍA | AO114: 79144591 | AQ114: 11 NO SE DILIGENCIA INFORMACIÓN PARA ESTE FORMULARIO EN ESTE PERÍODO DE REPORTE | AS114: SANTIAGO FELIPE DUARTE GOMEZ | AT114: 300 | AU114: 3 NO PACTADOS | AV114: 0 | AW114: 4 NO SE HA ADICIONADO NI EN VALOR y EN TIEMPO | AX114: 0 | BJ114: 2017-02-23 | BK114: 2017-12-22 | BM114: 100 | BN114: 100 | BO114: 100 | BP114: 100 | BR114: POA REGULACION SIIF AUTORIDAD AMBIENTAL | BS114: NACION | BT114: 19116 | BU114: 12240000 | BV114: 2017-02-23 | BW114: 25517 | BX114: 12240000 | BY114: 2017-02-23 | BZ114: 0 | CA114: 326400 | CB114: 1224000 | CC114: 1224000 | CD114: 1224000 | CE114: 1224000 | CF114: 1224000 | CG114: 1224000 | CH114: 1224000 | CI114: 1224000 | CJ114: 1224000 | CK114: 897600 | CL114: 12240000 | CM114: 0 | CP114: CPS | CR114: 2017-12-30
A115: 104 | B115: FILA_104 | C115: 1 SI | E115: 104 | F115: 2017-03-01 | G115: 2 DOS VECES | H115: PRESTACION DE SERVICIOS OPERATIVOS Y DE APOYO A LA GESTION DEL PNN TATAMA PARA APOYAR LA IMPLEMENTACION DEL LOCAL DE COMUNICACIÓN Y EDUCACION AMBIENTAK DE ESTA AREA PROTEGIDA COMO ESTRATEGIA PARA EL RECONOCIMIENTO LA VALORACION SOCIAL E INSTITUCIONAL DE LOS BIENES Y SERVICIOS AMBIENTALES PRODUCIDOS EN LAS AREAS PROTEGIDAS , CONTRIBUYENDO ASI A LA REGULACION Y CONTROL DEL USO Y APORVECHAMIENTO DE LOS RECURSOS NATURALES EN LAS AREAS PROTEGIDAS QUE CONFORMAN EL SINAO Y DE AQUELLAS QUE HACEN PARTE DE LAS ESTRATEGIAS COMPLEMENTARIAS PARA LA CONSERVACION | I115: PNN TATAMA | J115: 2 CONTRATACIÓN DIRECTA | K115: 14 PRESTACIÓN DE SERVICIOS | M115: CONTRATACION DIRECTA | N115: 80161500 Cód. 80161500 - Servicios de apoyo a la gestión | O115: 12240000 | S115: 1224000 | T115: 1 PERSONA NATURAL | U115: 2 RUT - REGISTRO ÚNICO TRIBUTARIO | V115: 98516393 | X115: 2 DV 1 | Z115: ITAGUI | AA115: LUIS DELIO ARCILA ECHEVERRY | AB115: 1 PÓLIZA | AC115: 2 CUMPLIMIENTO | AD115: 2017-03-01 | AE115: CONFIANZA | AF115: 23 GU050858 | AG115: 2 SUPERVISOR | AN115: 3 CÉDULA DE CIUDADANÍA | AO115: 79125719 | AQ115: 11 NO SE DILIGENCIA INFORMACIÓN PARA ESTE FORMULARIO EN ESTE PERÍODO DE REPORTE | AS115: JUAN CARLOS TRONCOSO SAAVEDRA | AT115: 300 | AU115: 3 NO PACTADOS | AV115: 0 | AW115: 4 NO SE HA ADICIONADO NI EN VALOR y EN TIEMPO | AX115: 0 | BJ115: 2017-03-01 | BK115: 2017-12-31 | BM115: 100 | BN115: 100 | BO115: 100 | BP115: 100 | BR115: POA REGULACION SIIF AUTORIDAD AMBIENTAL | BS115: NACION | BT115: 16117 | BU115: 12240000 | BV115: 2017-02-10 | BW115: 27417 | BX115: 12240000 | BY115: 2017-03-01 | BZ115: 0 | CA115: 0 | CB115: 1224000 | CC115: 1224000 | CD115: 1224000 | CE115: 1224000 | CF115: 1224000 | CG115: 1224000 | CH115: 1224000 | CI115: 1224000 | CJ115: 1224000 | CK115: 1224000 | CL115: =BZ115+CA115+CB115+CC115+CD115+CE115+CF115+#REF!+CG115+CI115+CJ115+CK115 ->  | CM115: 0 | CP115: CPS | CR115: 2017-12-30
A116: 105 | B116: FILA_105 | C116: 1 SI | E116: 105 | F116: 2017-02-24 | G116: 2 DOS VECES | H116: PRESTACION DE SERVICIOS COMO OPERARIO Y DE APOYO A LA GESTION, PARA ACCIONES DE MONITOREO, PREVENCION, VIGILANCIA Y CONTROL, Y RELACIONAMIENTO CON LOS RESGUARDOS INDIGENAS NASA DEL CAUCA, QUE PERMITAN ALCANZAR LAS METAS TRAZADAS EN EL PLAN OPERATIVO ANUAL DEL PNN NEVADO DEL HUILA | I116: PNN NEVADO DEL HUILA | J116: 2 CONTRATACIÓN DIRECTA | K116: 14 PRESTACIÓN DE SERVICIOS | M116: CONTRATACION DIRECTA | N116: 80161500 Cód. 80161500 - Servicios de apoyo a la gestión | O116: 12240000 | S116: 1224000 | T116: 1 PERSONA NATURAL | U116: 2 RUT - REGISTRO ÚNICO TRIBUTARIO | V116: 4730006 | X116: 1 DV 0 | Z116: PAEZ | AA116: FABIAN POCHE MUMUCUE | AB116: 1 PÓLIZA | AC116: 2 CUMPLIMIENTO | AD116: 2017-03-01 | AE116: SEGUROS DEL ESTADO | AF116: 25-44-101102474 | AG116: 2 SUPERVISOR | AN116: 3 CÉDULA DE CIUDADANÍA | AO116: 79144591 | AQ116: 11 NO SE DILIGENCIA INFORMACIÓN PARA ESTE FORMULARIO EN ESTE PERÍODO DE REPORTE | AS116: SANTIAGO FELIPE DUARTE GOMEZ | AT116: 300 | AU116: 3 NO PACTADOS | AV116: 0 | AW116: 4 NO SE HA ADICIONADO NI EN VALOR y EN TIEMPO | AX116: 0 | BJ116: 2017-03-01 | BK116: 2017-12-31 | BM116: 100 | BN116: 100 | BO116: 100 | BP116: 100 | BR116: POA REGULACION SIIF AUTORIDAD AMBIENTAL | BS116: NACION | BT116: 19517 | BU116: 12240000 | BV116: 2017-02-24 | BW116: 26117 | BX116: 12240000 | BY116: 2017-02-27 | BZ116: 0 | CA116: 0 | CB116: 1224000 | CC116: 1224000 | CD116: 1224000 | CE116: 1224000 | CF116: 1224000 | CG116: 1224000 | CH116: 1224000 | CI116: 1224000 | CJ116: 1224000 | CK116: 1224000 | CL116: 12240000 | CM116: 0 | CP116: CPS | CR116: 2017-12-30
A117: 106 | B117: FILA_106 | C117: 1 SI | E117: 106 | F117: 2017-02-24 | G117: 2 DOS VECES | H117: PRESTAR LOS SERVICIOS TECNICO PARA LA IMPLEMENTACION DE LA ESTRATEGIA DE EDUCACION AMBIENTAL QUE CONTRIBUYA A LA VALORACION SOCIAL DE LOS VALORES OBJETO DE CONSERVACION DEL AREA PROTEGIDA, EN ESCENARIOS FORMALES E INFORMALES EN LA ZONA DE INFLUENCIA DEL PNN CVDJC | I117: PNN CVDJC | J117: 2 CONTRATACIÓN DIRECTA | K117: 14 PRESTACIÓN DE SERVICIOS | M117: CONTRATACION DIRECTA | N117: 80161500 Cód. 80161500 - Servicios de apoyo a la gestión | O117: 16983000 | S117: 1698300 | T117: 1 PERSONA NATURAL | U117: 2 RUT - REGISTRO ÚNICO TRIBUTARIO | V117: 1061711445 | X117: 9 DV 8 | Z117: POPAYAN | AA117: PATRICIA DANYELI CIFUENTES CALVACHE | AB117: 1 PÓLIZA | AC117: 2 CUMPLIMIENTO | AD117: 2017-02-24 | AE117: CONFIANZA | AF117: 30 GU139486 | AG117: 2 SUPERVISOR | AN117: 3 CÉDULA DE CIUDADANÍA | AO117: 10537381 | AQ117: 11 NO SE DILIGENCIA INFORMACIÓN PARA ESTE FORMULARIO EN ESTE PERÍODO DE REPORTE | AS117: RICHARD MARINO MUÑOZ MOLANO | AT117: 300 | AU117: 3 NO PACTADOS | AV117: 0 | AW117: 4 NO SE HA ADICIONADO NI EN VALOR y EN TIEMPO | AX117: 0 | BH117: MODIFICACION CLAUSULA NOVEDA | BI117: 2017-04-25 | BJ117: 2017-02-24 | BK117: 2017-12-23 | BM117: 100 | BN117: 100 | BO117: 100 | BP117: 100 | BQ117: OTROSI MODIFICATORIO N° 1 DEL 25/04/2017 A LA CLAUSULA NOVENA DEL CONTRATO | BR117: POA Y SIIF VALORACION SOCIAL | BS117: NACION | BT117: 19417 | BU117: 16983000 | BV117: 2017-02-24 | BW117: 25817 | BX117: 16983000 | BY117: 2017-02-24 | BZ117: 0 | CA117: 396270 | CB117: 1698300 | CC117: 1698300 | CD117: 1698300 | CE117: 1698300 | CF117: 1698300 | CG117: 1698300 | CH117: 1698300 | CI117: 1698300 | CJ117: 1698300 | CK117: 1302030 | CL117: 16983000 | CM117: 0 | CP117: CPS | CR117: 2017-12-30
A118: 107 | B118: FILA_107 | C118: 1 SI | E118: 107 | F118: 2017-02-28 | G118: 2 DOS VECES | H118: PRESTACION DE SERVICIOS OPERARIOS Y DE APOYO A LA GESTION PARA REALIZAR ACTIVIDADES CONCERNIENTES CON LA IMPLEMENTACION DEL PLAN DE MANEJO DEL AREA PROTEGIDA, ESPECIALMENTE LAS RELACIONADAS CON EL PROGRAMA DE PREVENCION, VIGILANCIA Y CONTROL | I118: PNN LAS HERMOSAS | J118: 2 CONTRATACIÓN DIRECTA | K118: 14 PRESTACIÓN DE SERVICIOS | M118: CONTRATACION DIRECTA | N118: 80161500 Cód. 80161500 - Servicios de apoyo a la gestión | O118: 12240000 | S118: 1224000 | T118: 1 PERSONA NATURAL | U118: 2 RUT - REGISTRO ÚNICO TRIBUTARIO | V118: 1116269940 | X118: 7 DV 6 | Z118: TULUA | AA118: JESUS ANDRES SANCHEZ CASTAÑO | AB118: 1 PÓLIZA | AC118: 2 CUMPLIMIENTO | AD118: 2017-03-02 | AE118: SEGUROS DEL ESTADO | AF118: 45-44-101061026 | AG118: 2 SUPERVISOR | AN118: 3 CÉDULA DE CIUDADANÍA | AO118: 79576238 | AQ118: 11 NO SE DILIGENCIA INFORMACIÓN PARA ESTE FORMULARIO EN ESTE PERÍODO DE REPORTE | AS118: GERMAN ALBERTO RODRIGUEZ PENAGOS | AT118: 300 | AU118: 3 NO PACTADOS | AV118: 0 | AW118: 4 NO SE HA ADICIONADO NI EN VALOR y EN TIEMPO | AX118: 0 | BE118: 40800 | BF118: 1 | BG118: 2017-10-09 | BH118: OTRO SI DE MODIFICACIÓN N° 01 AL TIEMPO Y VALOR DEL DEL CPS107/2017, EL CUAL TIENE POR OBJETO REDUCIR EL VALOR DEL CONTRATO EN EN $40.800 MCTE Y EL PLAZO DE EJECUCIÓN EN (01) DIA, EL 14/09/2017 | BI118: 2017-10-09 | BJ118: 2017-03-02 | BK118: 2017-12-30 | BM118: 100 | BN118: 100 | BO118: 100 | BP118: 100 | BQ118: OTRO SI DE MODIFICACIÓN N° 01 AL TIEMPO Y VALOR DEL DEL CPS107/2017, EL CUAL TIENE POR OBJETO REDUCIR EL VALOR DEL CONTRATO EN EN $40.800 MCTE Y EL PLAZO DE EJECUCIÓN EN (01) DIA, EL 14/09/2017 | BR118: POA REGULACION SIIF AUTORIDAD AMBIENTAL | BS118: NACION | BT118: 20017 | BU118: 12240000 | BV118: 2017-02-28 | BW118: 27317 | BX118: 12240000 | BY118: 2017-03-01 | BZ118: 0 | CA118: 0 | CB118: 1183200 | CC118: 1224000 | CD118: 1224000 | CE118: 1224000 | CF118: 1224000 | CG118: 1224000 | CH118: 1224000 | CI118: 1224000 | CJ118: 1224000 | CK118: 1224000 | CL118: 12199200 | CM118: 0 | CP118: CPS | CR118: 2017-12-30
A119: 108 | B119: FILA_108 | C119: 1 SI | E119: 108 | F119: 2017-03-01 | G119: 2 DOS VECES | H119: PRESTACION DE SERVICIOS OPERATIVOS Y DE APOYO A LA GESTION PARA REALIZAR ACTIVIDADES DE EDUCACION AMBIENTAL, REALIZACION DE RECORRIDOS DE CONTROL Y VIGILANCIA EN EL MARCO DEL PLAN OPERATIVO ANUAL, CON EL FIN DE VANAZAREN EL LOGRO PREVISTO EN EL PLAN DE MANEJO DEL PNN PURACE | I119: PNN PURACE | J119: 2 CONTRATACIÓN DIRECTA | K119: 14 PRESTACIÓN DE SERVICIOS | M119: CONTRATACION DIRECTA | N119: 80161500 Cód. 80161500 - Servicios de apoyo a la gestión | O119: 12240000 | S119: 1224000 | T119: 1 PERSONA NATURAL | U119: 2 RUT - REGISTRO ÚNICO TRIBUTARIO | V119: 19145983 | X119: 8 DV 7 | Z119: BOGOTA | AA119: PABLO ENRIQUE PAEZ DIAZ | AB119: 1 PÓLIZA | AC119: 2 CUMPLIMIENTO | AD119: 2017-03-01 | AE119: CONFIANZA | AF119: 30 GU139570 | AG119: 2 SUPERVISOR | AN119: 3 CÉDULA DE CIUDADANÍA | AO119: 10537064 | AQ119: 11 NO SE DILIGENCIA INFORMACIÓN PARA ESTE FORMULARIO EN ESTE PERÍODO DE REPORTE | AS119: ISAAC BEDOYA DORADO | AT119: 300 | AU119: 3 NO PACTADOS | AV119: 0 | AW119: 4 NO SE HA ADICIONADO NI EN VALOR y EN TIEMPO | AX119: 0 | BJ119: 2017-03-01 | BK119: 2017-12-31 | BM119: 100 | BN119: 100 | BO119: 100 | BP119: 100 | BR119: POA REGULACION SIIF AUTORIDAD AMBIENTAL | BS119: NACION | BT119: 20117 | BU119: 12240000 | BV119: 2017-02-28 | BW119: 27617 | BX119: 12240000 | BY119: 2017-03-01 | BZ119: 0 | CA119: 0 | CB119: 1224000 | CC119: 1224000 | CD119: 1224000 | CE119: 1224000 | CF119: 1224000 | CG119: 1224000 | CH119: 1224000 | CI119: 1224000 | CJ119: 1224000 | CK119: 1224000 | CL119: 12240000 | CM119: 0 | CP119: CPS | CR119: 2017-12-30
A120: 109 | B120: FILA_109 | C120: 1 SI | E120: 109 | F120: 2017-03-02 | G120: 2 DOS VECES | H120: PRESTACION DE SERVICIOS OPERATIVOS Y DE APOYO DE GESTION PARA REALIZAR ACTIVIDADES DE ESTRATEGIAS ESPECIALES DE MANEJO CON LAS COMUNIDADES INDIGENAS, ACOMPAÑAMIENTO A RECORRIDOS DE PREVECION, VIGILANCIA Y CONTROL DEL PNN PURACE Y RELACIONAMIENTO COMUNITARIO EN EL MARCO DE LA IMPLEMENTACION DEL PLAN DE MANEJO OPERATIVO ANUAL VIGENCIA 2017 | I120: PNN PURACE | J120: 2 CONTRATACIÓN DIRECTA | K120: 14 PRESTACIÓN DE SERVICIOS | M120: CONTRATACION DIRECTA | N120: 80161500 Cód. 80161500 - Servicios de apoyo a la gestión | O120: 12240000 | S120: 1224000 | T120: 1 PERSONA NATURAL | U120: 2 RUT - REGISTRO ÚNICO TRIBUTARIO | V120: 36279061 | X120: 10 DV 9 | Z120: PITALITO | AA120: ELSA MARTHA BURBANO ORTIZ | AB120: 1 PÓLIZA | AC120: 2 CUMPLIMIENTO | AD120: 2017-03-02 | AE120: CONFIANZA | AF120: 30 GU139617 | AG120: 2 SUPERVISOR | AN120: 3 CÉDULA DE CIUDADANÍA | AO120: 10537064 | AQ120: 11 NO SE DILIGENCIA INFORMACIÓN PARA ESTE FORMULARIO EN ESTE PERÍODO DE REPORTE | AS120: ISAAC BEDOYA DORADO | AT120: 300 | AU120: 3 NO PACTADOS | AV120: 0 | AW120: 4 NO SE HA ADICIONADO NI EN VALOR y EN TIEMPO | AX120: 0 | BE120: 40800 | BF120: 1 | BG120: 2017-09-14 | BH120: OTRO SI DE MODIFICACIÓN N° 01 DEL CPS109 DE 2017, POR EL CUAL SE REDUCE EL VALOR EN $40.800 MCTE Y EL PLAZO EN (01) DIA, EL 14/09/2017 | BI120: 2017-09-14 | BJ120: 2017-03-02 | BK120: 2017-12-30 | BM120: 100 | BN120: 100 | BO120: 100 | BP120: 100 | BQ120: OTRO SI DE MODIFICACIÓN N° 01 DEL CPS109 DE 2017, POR EL CUAL SE REDUCE EL VALOR EN $40.800 MCTE Y EL PLAZO EN (01) DIA, EL 14/09/2017, SE REPORTA EN EL CUARTO TRIMESTRE POR MODIFICACIÓN TODA VEZ QUE NO SE REPORTO EN EL TERCER TRIMESTRE. | BR120: POA Y SIIF ESTRATEGIAS ESPECIALES DE MANEJO | BS120: NACION | BT120: 20317 | BU120: 12240000 | BV120: 2017-03-01 | BW120: 27817 | BX120: 12240000 | BY120: 2017-03-02 | BZ120: 0 | CA120: 0 | CB120: 1183200 | CC120: 1224000 | CD120: 1224000 | CE120: 1224000 | CF120: 1224000 | CG120: 1224000 | CH120: 1224000 | CI120: 1224000 | CJ120: 1224000 | CK120: 1224000 | CL120: 12199200 | CM120: 0 | CP120: CPS | CR120: 2017-12-30
A121: 110 | B121: FILA_110 | C121: 1 SI | E121: 110 | F121: 2017-03-06 | G121: 2 DOS VECES | H121: PRESTACION DE SERVICIOS TECNICOS Y DE APOYO A LA GESTION EN LOS PROCESOS Y PROCEDIMIENTOS ADMINISTRATIVOS, IMPLEMENTACION DEL SISTEMA DE GESTION DE CALIDAD DEL SISTEMA DE PNN PARA LA VIGENCIA 2017 | I121: PNN CVDJC | J121: 2 CONTRATACIÓN DIRECTA | K121: 14 PRESTACIÓN DE SERVICIOS | M121: CONTRATACION DIRECTA | N121: 80161500 Cód. 80161500 - Servicios de apoyo a la gestión | O121: 14605380 | S121: 1698300 | T121: 1 PERSONA NATURAL | U121: 2 RUT - REGISTRO ÚNICO TRIBUTARIO | V121: 1061763316 | X121: 10 DV 9 | Z121: POPAYAN | AA121: ANGELA MARIA MARTINEZ CABRERA | AB121: 1 PÓLIZA | AC121: 2 CUMPLIMIENTO | AD121: 2017-03-06 | AE121: CONFIANZA | AF121: 30 GU139675 | AG121: 2 SUPERVISOR | AN121: 3 CÉDULA DE CIUDADANÍA | AO121: 10537381 | AQ121: 11 NO SE DILIGENCIA INFORMACIÓN PARA ESTE FORMULARIO EN ESTE PERÍODO DE REPORTE | AS121: RICHARD MARINO MUÑOZ MOLANO | AT121: 258 | AU121: 3 NO PACTADOS | AV121: 0 | AW121: 3 ADICIÓN EN VALOR y EN TIEMPO | AX121: 1245420 | AY121: 2017-11-16 | AZ121: 22 | BA121: 2017-11-16 | BJ121: 2017-03-06 | BK121: 2017-12-15 | BM121: 100 | BN121: 100 | BO121: 100 | BP121: 100 | BQ121: ADICION Y PRORROGA N°01 AL CPS110/2017 POR EL CUAL SE ADICIONA LA SUMA DE $1.245.420 Y EN TIEMPO POR (22) DIAS MAS EL 16/11/2017 | BR121: POA PLANEACION INTERNA SIIF FORTALECIMIENTO | BS121: NACION | BT121: 20617 | BU121: 14605380 | BV121: 2017-03-03 | BW121: 28717 | BX121: 14605380 | BY121: 2017-03-06 | BZ121: 0 | CA121: 0 | CB121: 1415250 | CC121: 1698300 | CD121: 1698300 | CE121: 1698300 | CF121: 1698300 | CG121: 1698300 | CH121: 1698300 | CI121: 1698300 | CJ121: 1698300 | CK121: 849150 | CL121: 15850800 | CM121: 0 | CP121: CPS | CR121: 2017-12-30
A122: 111 | B122: FILA_111 | C122: 1 SI | E122: 111 | F122: 2017-03-07 | G122: 2 DOS VECES | H122: PRESTACION DE SERVICIOS OPERATIVOS Y DE APOYO A LA GESTION PARA REALIAZR ACTIVIDADES CONSIDERADAS EN LA IMPLEMENTACION Y SEGUIMIENTO DEL PLAN DE ORDENAMIENTO ECOTURISTICO Y DEL PROGRAMA DE PREVENCION, VIGILANCIA Y CONTROL; QUE CONTRIBUYAN A OREVENIR Y MITIGAR PRESIONES QUE PUEDAN AFECTAR NEGATIVAMENTE LOS ELEMENTOS NATURALES Y CULTURALES QUE CARACTERIZAN EL PNN LOS NEVADOS | I122: PNN LOS NEVADOS | J122: 2 CONTRATACIÓN DIRECTA | K122: 14 PRESTACIÓN DE SERVICIOS | M122: CONTRATACION DIRECTA | N122: 80161500 Cód. 80161500 - Servicios de apoyo a la gestión | O122: 11791200 | S122: 1224000 | T122: 1 PERSONA NATURAL | U122: 2 RUT - REGISTRO ÚNICO TRIBUTARIO | V122: 1130623796 | X122: 1 DV 0 | Z122: CALI | AA122: ANGELICA RAQUEL CUENCA SALAZAR | AB122: 1 PÓLIZA | AC122: 2 CUMPLIMIENTO | AD122: 2017-03-09 | AE122: SEGUROS DEL ESTADO | AF122: 42-44-101098529 | AG122: 2 SUPERVISOR | AN122: 3 CÉDULA DE CIUDADANÍA | AO122: 79121466 | AQ122: 11 NO SE DILIGENCIA INFORMACIÓN PARA ESTE FORMULARIO EN ESTE PERÍODO DE REPORTE | AS122: EFRAIM AUGUSTO RODRIGUEZ VARON | AT122: 289 | AU122: 3 NO PACTADOS | AV122: 0 | AW122: 3 ADICIÓN EN VALOR y EN TIEMPO | AX122: 448800 | AY122: 2017-11-30 | AZ122: 11 | BA122: 2017-11-30 | BE122: 1101600 | BF122: 27 | BG122: 2017-10-17 | BH122: OTRO SI DE MODIFICACIÓN N°01 AL TIEMPO Y VALOR DEL CPS 111/2017 POR EL CUAL SE REDUCE EL VALOR DEL CONTRATO POR $1.101.600 Y EL PLAZO DE EJECUCIÓN DE 27 DIAS | BI122: 2017-10-17 | BJ122: 2017-03-09 | BK122: 2017-12-11 | BM122: 100 | BN122: 100 | BO122: 100 | BP122: 100 | BQ122: OTRO SI DE MODIFICACIÓN N°01 AL TIEMPO Y VALOR DEL CPS 11/2017 POR EL CUAL SE REDUCE EL VALOR DEL CONTRATO POR $1.101.600 Y EL PLAZO DE EJECUCIÓN DE 27 DIAS;ADICION Y PRORROGA N01 AL CPS111/2017 POR EL CUAL SE ADICIONA LA SUMA DE $448.800 Y SE PRORROGA EL PLAZO DE EJECUCIÓN POR (11) DIAS MAS EL 30/11/2017 | BR122: POA REGULACION SIIF AUTORIDAD AMBIENTAL | BS122: NACION | BT122: 21217 | BU122: 11791200 | BV122: 2017-03-07 | BW122: 29417 | BX122: 11791200 | BY122: 2017-03-08 | BZ122: 0 | CA122: 0 | CB122: 897600 | CC122: 1224000 | CD122: 1224000 | CE122: 1224000 | CF122: 1224000 | CG122: 1224000 | CH122: 1224000 | CI122: 1224000 | CJ122: 1224000 | CK122: 448800 | CL122: 11138400 | CM122: 0 | CP122: CPS | CR122: 2017-12-30
A123: 112 | B123: FILA_112 | C123: 1 SI | E123: 112 | F123: 2017-03-07 | G123: 2 DOS VECES | H123: PRESTACION DE SERVICIOS OPERATIVOS Y DE APOYO A LA GESTION PARA REALIZAR ACTIVIDADES RELACIONADAS EN EL PLAN Y PROTOCOLO DE PREVENCION, VIGILANCIA Y CONTROL Y EN LA ESTRATEGIA DE RESTAURACION ECOLOGICA DEL PNN LOS NEVADOS, A TRAVES DE ACCIONES ENCAMINADAS A PREVENIR, MITIGAR Y CORREGIR PRESIONES QUE AFECTAN LA INTEGRIDAD ECOLOGICA Y LA REPRESENTATIVIDAD ECOSISTEMICA DEL AREA PROTEGIDA | I123: PNN LOS NEVADOS | J123: 2 CONTRATACIÓN DIRECTA | K123: 14 PRESTACIÓN DE SERVICIOS | M123: CONTRATACION DIRECTA | N123: 80161500 Cód. 80161500 - Servicios de apoyo a la gestión | O123: 11791200 | S123: 1224000 | T123: 1 PERSONA NATURAL | U123: 2 RUT - REGISTRO ÚNICO TRIBUTARIO | V123: 1094908154 | X123: 8 DV 7 | Z123: ARMENIA | AA123: JORGE LEONARDO RODRIGUEZ RODRIGUEZ | AB123: 1 PÓLIZA | AC123: 2 CUMPLIMIENTO | AD123: 2017-03-08 | AE123: SEGUROS DEL ESTADO | AF123: 42-44-101098515 | AG123: 2 SUPERVISOR | AN123: 3 CÉDULA DE CIUDADANÍA | AO123: 79121466 | AQ123: 11 NO SE DILIGENCIA INFORMACIÓN PARA ESTE FORMULARIO EN ESTE PERÍODO DE REPORTE | AS123: EFRAIM AUGUSTO RODRIGUEZ VARON | AT123: 289 | AU123: 3 NO PACTADOS | AV123: 0 | AW123: 3 ADICIÓN EN VALOR y EN TIEMPO | AX123: 448800 | AY123: 2017-11-29 | AZ123: 11 | BA123: 2017-11-29 | BE123: 1060800 | BF123: 26 | BG123: 2017-10-17 | BH123: OTRO SI DE MODIFICACIÓN N°01 AL TIEMPO Y VALOR DEL CPS 112/2017 POR EL CUAL SE REDUCE EL VALOR DEL CONTRATO POR $1.060.800 Y EL PLAZO DE EJECUCIÓN DE 26 DIAS | BI123: 2017-10-17 | BJ123: 2017-03-08 | BK123: 2017-12-11 | BM123: 100 | BN123: 100 | BO123: 100 | BP123: 100 | BQ123: OTRO SI DE MODIFICACIÓN N°01 AL TIEMPO Y VALOR DEL CPS 112/2017 POR EL CUAL SE REDUCE EL VALOR DEL CONTRATO POR $1.060.800 Y EL PLAZO DE EJECUCIÓN DE 26 DIAS, ADICION Y PRORROGA N°01 AL CPS112/2017 POR EL CUAL SE ADICION LA SUMA DE $448.800 Y EL PLAZO DE EJECUCIÓN EN (11) DIAS MAS EL 29/11/2017 | BR123: POA REGULACION SIIF AUTORIDAD AMBIENTAL | BS123: NACION | BT123: 21117 | BU123: 11791200 | BV123: 2017-03-07 | BW123: 29317 | BX123: 11791200 | BY123: 2017-03-08 | BZ123: 0 | CA123: 0 | CB123: 938400 | CC123: 1224000 | CD123: 1224000 | CE123: 1224000 | CF123: 1224000 | CG123: 1224000 | CH123: 1224000 | CI123: 1224000 | CJ123: 1224000 | CK123: 448800 | CL123: 11179200 | CM123: 0 | CP123: CPS | CR123: 2017-12-30
A124: 113 | B124: FILA_113 | C124: 1 SI | E124: 113 | F124: 2017-03-10 | G124: 2 DOS VECES | H124: PRESTACION DE SERVICIOS OPERATIVOS Y DE APOYO A LA GESTION PARA REALIZAR ACTIVIDADES RELACIONADAS CON LA IMPLEMENTACION DEL PLAN DE ORDENAMIENTO ECOTURISTICO, EL PLAN DE PREVENCION, VIGILANCIA Y CONTROL Y LA ESTRATEGIA DE COMUNICACIÓN PARA EL DESARROLLO, A TRAVES DE ACCIONES ENCAMINADAS A PREVENIR, MITIGAR Y CORREGIR PRESIONES QUE AFECTAN LA INTEGRIDAD ECOLOGICA Y LA REPRESENTATIVIDAD ECOSISTEMICA DEL PNN LOS NEVADOS | I124: PNN LOS NEVADOS | J124: 2 CONTRATACIÓN DIRECTA | K124: 14 PRESTACIÓN DE SERVICIOS | M124: CONTRATACION DIRECTA | N124: 80161500 Cód. 80161500 - Servicios de apoyo a la gestión | O124: 11016000 | S124: 1224000 | T124: 1 PERSONA NATURAL | U124: 2 RUT - REGISTRO ÚNICO TRIBUTARIO | V124: 1110519653 | X124: 10 DV 9 | Z124: IBAGUE | AA124: JHON JAIRO ORTIZ RIOBO | AB124: 1 PÓLIZA | AC124: 2 CUMPLIMIENTO | AD124: 2017-03-13 | AE124: SEGUROS DEL ESTADO | AF124: 25-44-10110769 | AG124: 2 SUPERVISOR | AN124: 3 CÉDULA DE CIUDADANÍA | AO124: 79121466 | AQ124: 11 NO SE DILIGENCIA INFORMACIÓN PARA ESTE FORMULARIO EN ESTE PERÍODO DE REPORTE | AS124: EFRAIM AUGUSTO RODRIGUEZ VARON | AT124: 270 | AU124: 3 NO PACTADOS | AV124: 0 | AW124: 3 ADICIÓN EN VALOR y EN TIEMPO | AX124: 448800 | AY124: 2017-11-30 | AZ124: 11 | BA124: 2017-11-30 | BE124: 489600 | BF124: 12 | BG124: 2017-10-17 | BH124: OTRO SI DE MODIFICACIÓN N°01 AL TIEMPO Y VALOR DEL CPS 113/2017 POR EL CUAL SE REDUCE EL VALOR DEL CONTRATO POR $489.600Y EL PLAZO DE EJECUCIÓN DE 12 DIAS | BI124: 2017-10-17 | BJ124: 2017-03-13 | BK124: 2017-12-11 | BM124: 100 | BN124: 100 | BO124: 100 | BP124: 100 | BQ124: OTRO SI DE MODIFICACIÓN N°01 AL TIEMPO Y VALOR DEL CPS 113/2017 POR EL CUAL SE REDUCE EL VALOR DEL CONTRATO POR $489.600Y EL PLAZO DE EJECUCIÓN DE 12 DIAS, ADICION Y PRORROGA N°01 AL CPS113/2017 POR EL CUAL SE ADICIONA LA SUMA DE $448.800 Y EL PLAZO DE EJECUCIÓN POR (11) DIAS MAS EL 30/11/2017 | BR124: POA Y SIIF SANEAMIENTO | BS124: NACION | BT124: 21617 | BU124: 11016000 | BV124: 2017-03-10 | BW124: 30217 | BX124: 11016000 | BY124: 2017-03-10 | BZ124: 0 | CA124: 0 | CB124: 734400 | CC124: 1224000 | CD124: 1224000 | CE124: 1224000 | CF124: 1224000 | CG124: 1224000 | CH124: 1224000 | CI124: 1224000 | CJ124: 1224000 | CK124: 448800 | CL124: 10975200 | CM124: 0 | CP124: CPS | CR124: 2017-12-30
A125: 114 | B125: FILA_114 | C125: 1 SI | E125: 114 | F125: 2017-03-22 | G125: 3 TRES VECES | H125: PRESTACION DE SERVICIOS OPERATIVOS Y DE APOYO A LA GESTION, PARA DESARROLLAR ACTIVIDADES RELACIONADAS CON LA IMPLEMENTACION DEL PROTOCOLO DE PREVENCION, VIGILANCIA Y CONTROL DEL SFF OTUN QUIMBAYA Y ACCIONES DE REGULACION EN EL MARCO DE LAS ALIANZAS GENERADAS EN LA CUENCA ALTA DEL RIO OTUN | I125: SFF OTUN QUIMBAYA | J125: 2 CONTRATACIÓN DIRECTA | K125: 14 PRESTACIÓN DE SERVICIOS | M125: CONTRATACION DIRECTA | N125: 80161500 Cód. 80161500 - Servicios de apoyo a la gestión | O125: 11424000 | S125: 1224000 | T125: 1 PERSONA NATURAL | U125: 2 RUT - REGISTRO ÚNICO TRIBUTARIO | V125: 1093221681 | X125: 4 DV 3 | Z125: ROLDANILLO | AA125: CARLOS ALBERTO GIRALDO HERRERA | AB125: 1 PÓLIZA | AC125: 2 CUMPLIMIENTO | AD125: 2017-03-22 | AE125: LIBERTY SEGUROS | AF125: 2782119 | AG125: 2 SUPERVISOR | AN125: 3 CÉDULA DE CIUDADANÍA | AO125: 52110135 | AQ125: 11 NO SE DILIGENCIA INFORMACIÓN PARA ESTE FORMULARIO EN ESTE PERÍODO DE REPORTE | AS125: GLORIA TERESITA SERNA ALZATE | AT125: 280 | AU125: 3 NO PACTADOS | AV125: 0 | AW125: 3 ADICIÓN EN VALOR y EN TIEMPO | AX125: 448800 | AY125: 2017-11-30 | AZ125: 11 | BA125: 2017-11-30 | BE125: 1264800 | BF125: 31 | BG125: 2017-09-15 | BH125: OTRO SI MODIFICATORIO N°01 AL TIEMPO Y VALOR DEL CPS114/2017 POR EL CUAL SE REDUCE EL VALOR DEL CPS 114 EN 1.264.800 Y EL PLAZO DE EJECUCIÓN EN 31 DIAS EL 15/09/2017 | BI125: 2017-09-15 | BJ125: 2017-03-22 | BK125: 2017-12-11 | BM125: 100 | BN125: 100 | BO125: 100 | BP125: 100 | BQ125: OTRO SI MODIFICATORIO N°01 AL TIEMPO Y VALOR DEL CPS114/2017 POR EL CUAL SE REDUCE EL VALOR DEL CONTRATO EN 1.264.800 Y EL PLAZO DE EJECUCIÓN EN 31 DIAS, EL 15/09/2017, ADICION Y PRORROGA N°01 AL CPS114/2017 POR EL CUAL SE ADICIONA LA SUMA DE $448.800 Y EL PLAZO DE EJECUCIÓN POR (11) DIAS MAS EL 30/11/2017 | BR125: REGULACION/ AUTORIDAD AMBIENTAL | BS125: NACION | BT125: 22817 | BU125: 11424000 | BV125: 2017-03-21 | BW125: 33217 | BX125: 11424000 | BY125: 2017-03-22 | BZ125: 0 | CA125: 0 | CB125: 367200 | CC125: 1224000 | CD125: 1224000 | CE125: 1224000 | CF125: 1224000 | CG125: 1224000 | CH125: 1224000 | CI125: 1224000 | CJ125: 1224000 | CK125: 448800 | CL125: 10608000 | CM125: 0 | CP125: CPS | CR125: 2017-12-30
A126: 115 | B126: FILA_115 | C126: 1 SI | E126: 115 | F126: 2017-03-30 | G126: 2 DOS VECES | H126: PRESTACION DE SERVICIOS OPERATIVOS Y DE APOYO A LA GESTION PARA REALIZAR ACTIVIDAES RELACIONADAAS EN EL PLAN Y PROTOCOLO DE PREVENCION, VIGILANCIA Y CONTROL Y EN LA ESTRATEGIA DE RESTAURACION ECOLOGICA DEL PNN LOS NEVADOS, A TRAVES DE ACCIONES ENCAMINADAS A PREVENIR, MITIGAR Y CORREGIR PRESIONES QUE AFECTAN LA INTEGRIDAD ECOLOGICA Y REPRESENTATIVIDAD ECOSISTEMICA DEL AREA PROTEGIDA | I126: PNN NEVADOS | J126: 2 CONTRATACIÓN DIRECTA | K126: 14 PRESTACIÓN DE SERVICIOS | M126: CONTRATACION DIRECTA | N126: 80161500 Cód. 80161500 - Servicios de apoyo a la gestión | O126: 11016000 | S126: 1224000 | T126: 1 PERSONA NATURAL | U126: 2 RUT - REGISTRO ÚNICO TRIBUTARIO | V126: 1058845859 | X126: 9 DV 8 | Z126: PENSILVANIA | AA126: SANTIAGO CARDONA TORO | AB126: 1 PÓLIZA | AC126: 2 CUMPLIMIENTO | AD126: 2017-03-30 | AE126: SEGUROS DEL ESTADO | AF126: 42-44-101098982 | AG126: 2 SUPERVISOR | AN126: 3 CÉDULA DE CIUDADANÍA | AO126: 79121466 | AQ126: 11 NO SE DILIGENCIA INFORMACIÓN PARA ESTE FORMULARIO EN ESTE PERÍODO DE REPORTE | AS126: EFRAIM AUGUSTO RODRIGUEZ VARON | AT126: 270 | AU126: 3 NO PACTADOS | AV126: 0 | AW126: 4 NO SE HA ADICIONADO NI EN VALOR y EN TIEMPO | AX126: 0 | BJ126: 2017-03-30 | BK126: 2017-12-29 | BM126: 100 | BN126: 100 | BO126: 100 | BP126: 100 | BR126: SANEAMIENTO | BS126: NACION | BT126: 24417 | BU126: 11016000 | BV126: 2017-03-30 | BW126: 35417 | BX126: 11016000 | BY126: 2017-03-30 | BZ126: 0 | CA126: 0 | CB126: 40800 | CC126: 1224000 | CD126: 1224000 | CE126: 1224000 | CF126: 1224000 | CG126: 1224000 | CH126: 1224000 | CI126: 1224000 | CJ126: 1224000 | CK126: 1183200 | CL126: 11016000 | CM126: 0 | CP126: CPS | CR126: 2017-12-30
A127: 116 | B127: FILA_116 | C127: 1 SI | E127: 116 | F127: 2017-04-20 | G127: 2 DOS VECES | H127: PRESTACION DE SERVICIOS PARA REALIZAR LA PUBLICACION DE AVISO ANUNCIANDO EL FALLECIMIENTO DE DOS FUNCIONARIOS, PARA LA MANIFESTACION DE SUS BENEFICIARIOS PARA RECLAMAR EL PAGO DE SALARIOS Y PRESTACIONES SOCIALES, EN UN PERIODICO DE AMPLIA CIRCULACION DIARIA NACIONAL EN LA SECCION DE EDICTOSY/O JUDICIAL | I127: DTAO | J127: 5 MÍNIMA CUANTÍA | K127: 14 PRESTACIÓN DE SERVICIOS | M127: CPS 001 NACION DE 2017 | N127: 55111500 Cód. 55111500 - Publicaciones electrónicas y música | O127: 952000 | S127: FACTURA | T127: 2 PERSONA JURÍDICA | U127: 1 NIT | W127: 901017183 | X127: 3 DV 2 | Z127: N/A | AA127: EDITORIAL LA REPUBLICA S.A.S | AB127: 6 NO CONSTITUYÓ GARANTÍAS | AC127: 99999998 NO SE DILIGENCIA INFORMACIÓN PARA ESTE FORMULARIO EN ESTE PERÍODO DE REPORTE | AD127: 1900-01-01 | AE127: N/A | AF127: N/A | AG127: 2 SUPERVISOR | AN127: 3 CÉDULA DE CIUDADANÍA | AO127: 34560607 | AQ127: 11 NO SE DILIGENCIA INFORMACIÓN PARA ESTE FORMULARIO EN ESTE PERÍODO DE REPORTE | AS127: CLAUDIA AMANDA AMAYA GOMEZ | AT127: 90 | AU127: 3 NO PACTADOS | AV127: 0 | AW127: 4 NO SE HA ADICIONADO NI EN VALOR y EN TIEMPO | AX127: 0 | BJ127: 2017-04-21 | BK127: 2017-07-20 | BM127: 100 | BN127: 100 | BO127: 100 | BP127: 100 | BR127: FORTALECIMIENTO | BS127: NACION | BT127: 24317 | BU127: 1098300 | BV127: 2017-03-29 | BW127: 40417 | BX127: 952000 | BY127: 2017-04-21 | BZ127: 0 | CA127: 0 | CB127: 0 | CC127: 0 | CD127: 476000 | CE127: 0 | CF127: 0 | CG127: 476000 | CH127: 0 | CI127: 0 | CJ127: 0 | CK127: 0 | CL127: 952000 | CM127: 0 | CP127: CPS | CR127: 2017-12-30
A128: 117 | B128: FILA_117 | C128: 1 SI | E128: 117 | F128: 2017-04-06 | G128: 2 DOS VECES | H128: PRESTACION DE SERVICIOS COMO OPERARIO DE APOYO A LA GESTION PARA DESARROLLAS ACTIVIDADES DE MANTENIMIENTO APOYO OPERATIVO Y LOGISTICO, PARA GARANTIZAR EL BUEN DESARROLLO Y EL CUMPLIMIENTO DE LAS METAS TRAZADAS EN EL PLAN DE MANEJO OPERATIVO ANUAL PNN NEVADO DEL HUILA | I128: PNN NEVADO DEL HUILA | J128: 2 CONTRATACIÓN DIRECTA | K128: 14 PRESTACIÓN DE SERVICIOS | M128: CONTRATACION DIRECTA | N128: 80161500 Cód. 80161500 - Servicios de apoyo a la gestión | O128: 7140000 | S128: 1224000 | T128: 1 PERSONA NATURAL | U128: 2 RUT - REGISTRO ÚNICO TRIBUTARIO | V128: 36312273 | X128: 5 DV 4 | Z128: NEIVA | AA128: MARTHA LILIANA DIAZ GAVIRIA | AB128: 1 PÓLIZA | AC128: 2 CUMPLIMIENTO | AD128: 2017-04-10 | AE128: SEGUROS DEL ESTADO | AF128: 26-44-101103699 | AG128: 2 SUPERVISOR | AN128: 3 CÉDULA DE CIUDADANÍA | AO128: 79144591 | AQ128: 11 NO SE DILIGENCIA INFORMACIÓN PARA ESTE FORMULARIO EN ESTE PERÍODO DE REPORTE | AS128: SANTIAGO FELIPE DUARTE GOMEZ | AT128: 175 | AU128: 3 NO PACTADOS | AV128: 0 | AW128: 4 NO SE HA ADICIONADO NI EN VALOR y EN TIEMPO | AX128: 0 | BJ128: 2017-04-10 | BK128: 2017-10-04 | BM128: 100 | BN128: 100 | BO128: 100 | BP128: 100 | BR128: FORTALECIMIENTO | BS128: NACION | BT128: 25117 | BU128: 7140000 | BV128: 2017-04-05 | BW128: 36617 | BX128: 7140000 | BY128: 2017-04-06 | BZ128: 0 | CA128: 0 | CB128: 0 | CC128: 856800 | CD128: 1224000 | CE128: 1224000 | CF128: 1224000 | CG128: 1224000 | CH128: 1224000 | CI128: 163200 | CL128: 7140000 | CM128: 0 | CP128: CPS | CR128: 2017-12-30
A129: 118 | B129: FILA_118 | C129: 1 SI | E129: 118 | F129: 2017-04-19 | G129: 2 DOS VECES | H129: PRESTACION DE SERVICIOS Y DE APOYO A LA GESTION, PARA ACOMPAÑAR Y APOYAR LA IMPLEMENTACION LOGISTICA EN LOS DISTINTOS TEMAS PLANIFICADOS EN SU POA 2017 COMO SON INVESTIGACION Y MONITOREO DE LOS VALORES OBJETO DE CONSERVACION VOC, EL PROGRAMA DE PREVENCION, VIGILANCIA Y CONTROL, MANENIMIENTO DE CABAÑAS, EQUIPOS, MULARES, EQUIPOS DEL PNN ORQUIDEAS | I129: PNN ORQUIDEAS | J129: 2 CONTRATACIÓN DIRECTA | K129: 14 PRESTACIÓN DE SERVICIOS | M129: CONTRATACION DIRECTA | N129: 80161500 Cód. 80161500 - Servicios de apoyo a la gestión | O129: 10200000 | S129: 1224000 | T129: 1 PERSONA NATURAL | U129: 2 RUT - REGISTRO ÚNICO TRIBUTARIO | V129: 8027260 | X129: 6 DV 5 | Z129: MEDELLIN | AA129: NESTOR OSVALDO COSSIO | AB129: 1 PÓLIZA | AC129: 2 CUMPLIMIENTO | AD129: 2017-04-20 | AE129: SEGUROS DEL ESTADO | AF129: 65-44-101145100 | AG129: 2 SUPERVISOR | AN129: 3 CÉDULA DE CIUDADANÍA | AO129: 71621569 | AQ129: 11 NO SE DILIGENCIA INFORMACIÓN PARA ESTE FORMULARIO EN ESTE PERÍODO DE REPORTE | AS129: JOHN JAIRO RESTREPO SALAZAR | AT129: 250 | AU129: 3 NO PACTADOS | AV129: 0 | AW129: 4 NO SE HA ADICIONADO NI EN VALOR y EN TIEMPO | AX129: 0 | BJ129: 2017-04-20 | BK129: 2017-12-29 | BM129: 100 | BN129: 100 | BO129: 100 | BP129: 100 | BR129: CONOCIMIENTO VOC | BS129: NACION | BT129: 26417 | BU129: 10200000 | BV129: 2017-04-17 | BW129: 40217 | BX129: 10200000 | BY129: 2017-04-19 | BZ129: 0 | CA129: 0 | CB129: 0 | CC129: 448800 | CD129: 1224000 | CE129: 1224000 | CF129: 1224000 | CG129: 1224000 | CH129: 1224000 | CI129: 1224000 | CJ129: 1224000 | CK129: 1183200 | CL129: 10200000 | CM129: 0 | CP129: CPS | CR129: 2017-12-30
A130: 119 | B130: FILA_119 | C130: 1 SI | E130: 119 | F130: 2017-04-19 | G130: 3 TRES VECES | H130: PRESTACION DE SERVICIOS TECNICOS Y DE APOYO A LA GESTION ADMINISTRATIVA Y FINANCIERA DE LA DTAO PARA LA GESTION, EJECUCION Y CONSTANTE DE ACTIVIDADES PROPIAS DE CONTABILIDAD Y APOYO EN LA ASESORIA TRIBUTARIA | I130: DTAO | J130: 2 CONTRATACIÓN DIRECTA | K130: 14 PRESTACIÓN DE SERVICIOS | M130: CONTRATACION DIRECTA | N130: 80161500 Cód. 80161500 - Servicios de apoyo a la gestión | O130: 12567420 | S130: 1698300 | T130: 1 PERSONA NATURAL | U130: 2 RUT - REGISTRO ÚNICO TRIBUTARIO | V130: 1020462589 | X130: 2 DV 1 | Z130: BELLO | AA130: SUSANA MELISSA MORENO ZAPATA | AB130: 1 PÓLIZA | AC130: 2 CUMPLIMIENTO | AD130: 2017-04-19 | AE130: SEGUROS DEL ESTADO | AF130: 65-44-101145040 | AG130: 2 SUPERVISOR | AN130: 3 CÉDULA DE CIUDADANÍA | AO130: 24582254 | AQ130: 11 NO SE DILIGENCIA INFORMACIÓN PARA ESTE FORMULARIO EN ESTE PERÍODO DE REPORTE | AS130: MONICA MARIA RODRIGUEZ ARIAS | AT130: 222 | AU130: 3 NO PACTADOS | AV130: 0 | AW130: 3 ADICIÓN EN VALOR y EN TIEMPO | AX130: 622710 | AY130: 2017-11-30 | AZ130: 11 | BA130: 2017-11-30 | BJ130: 2017-04-19 | BK130: 2017-12-11 | BL130: 2018-01-29 | BM130: 100 | BN130: 100 | BO130: 100 | BP130: 100 | BQ130: ADICION Y PRORROGA N|01 AL CPS119/2017 POR EL CUAL SE ADICIONA LA SUMA DE $622.710 Y EN TIEMPO POR (11) DIAS MAS EL 30/11/2017, ACTA DE TERMINACION Y LIQUIDACION BILATERAL DEL CPS119/2017 EL 29/01/2018 | BR130: PLANEACION INTERNA/ FORTALECIMIENTO | BS130: NACION | BT130: 26817 | BU130: 12567420 | BV130: 2017-04-19 | BW130: 40117 | BX130: 12567420 | BY130: 2017-04-19 | BZ130: 0 | CA130: 0 | CB130: 0 | CC130: 679320 | CD130: 1698300 | CE130: 1698300 | CF130: 1698300 | CG130: 1698300 | CH130: 1698300 | CI130: 1698300 | CJ130: 1698300 | CK130: 622710 | CL130: 13190130 | CM130: 0 | CP130: CPS | CR130: 2017-12-30
A131: 120 | B131: FILA_120 | C131: 1 SI | E131: 120 | F131: 2017-05-02 | G131: 3 TRES VECES | H131: PRESTAR LOS SERVICIOS TECNICOS Y DE APOYO A LA GESTION DE LA DTAO, EN EL AREA ADMINISTRTIVA Y FINANCIERA, EN EL PROCESO ESTRATEGICO DE ADMINISTRACION DE RECURSOS | I131: DTAO | J131: 2 CONTRATACIÓN DIRECTA | K131: 14 PRESTACIÓN DE SERVICIOS | M131: CONTRATACION DIRECTA | N131: 80161500 Cód. 80161500 - Servicios de apoyo a la gestión | O131: 17064600 | S131: 2437800 | T131: 1 PERSONA NATURAL | U131: 2 RUT - REGISTRO ÚNICO TRIBUTARIO | V131: 51717979 | X131: 10 DV 9 | Z131: BOGOTA | AA131: JULIETA TORRES DE SOLANO | AB131: 1 PÓLIZA | AC131: 2 CUMPLIMIENTO | AD131: 2017-05-02 | AE131: SEGUROS DEL ESTADO S.A | AF131: 65-44-101145384 | AG131: 2 SUPERVISOR | AN131: 3 CÉDULA DE CIUDADANÍA | AO131: 24582254 | AQ131: 11 NO SE DILIGENCIA INFORMACIÓN PARA ESTE FORMULARIO EN ESTE PERÍODO DE REPORTE | AS131: MONICA MARIA RODRIGUEZ ARIAS | AT131: 210 | AU131: 3 NO PACTADOS | AV131: 0 | AW131: 3 ADICIÓN EN VALOR y EN TIEMPO | AX131: 893860 | AY131: 2017-11-30 | AZ131: 11 | BA131: 2017-11-30 | BE131: 81260 | BF131: 1 | BG131: 2017-10-17 | BH131: OTRO SI DE MODIFICACIÓN N°01 AL TIEMPO Y VALOR DEL CPS120/2017 POR EL CUAL SE REDUCE EL VALOR DE $81.260 Y EL PLAZO DE EJECUCIÓN EN 1 DIA EL 17/10/2017 | BI131: 2017-10-17 | BJ131: 2017-05-02 | BK131: 2017-12-11 | BL131: 2018-01-29 | BM131: 100 | BN131: 100 | BO131: 100 | BP131: 100 | BQ131: OTRO SI DE MODIFICACIÓN N°01 AL TIEMPO Y VALOR DEL CPS120/2017 POR EL CUAL SE REDUCE EL VALOR DE $81.260 Y EL PLAZO DE EJECUCIÓN EN 1 DIA EL 17/10/2017ADICION Y PRORROGA N|01 AL CPS120/2017 POR EL CUAL SE ADICIONA LA SUMA DE $893.860 Y EN TIEMPO POR (11) DIAS MAS EL 30/11/2017, ACTA DE TERMINACION Y LIQUIDACION BILATERAL DEL CPS120/2017 EL 29/01/2018 | BR131: PLANEACION INTERNA/ FORTALECIMIENTO | BS131: NACION | BT131: 28117 | BU131: 17064600 | BV131: 2017-04-27 | BW131: 42317 | BX131: 17064600 | BY131: 2017-05-02 | BZ131: 0 | CA131: 0 | CB131: 0 | CC131: 0 | CD131: 2356540 | CE131: 2437800 | CF131: 2437800 | CG131: 2437800 | CH131: 2437800 | CI131: 2437800 | CJ131: 2437800 | CK131: 893860 | CL131: =BZ131+CA131+CB131+CC131+CD131+CE131+CF131+CG131+CH131+CI131+CJ131+CK131 -> 17877200 | CM131: 0 | CP131: CPS | CR131: 2017-12-30
A132: 121 | B132: FILA_121 | C132: 1 SI | E132: 121 | F132: 2017-05-02 | G132: 2 DOS VECES | H132: PRESTAR LOS SERVICIOS PROFESIONALES Y DE APOYO A LA GESTIÓN EN EL AREA JURIDICA DE LA DTAO DE PNN DE COLOMBIA, CON LA FINALIDAD DE DAR CUMPLIMIENTO A LAS METAS Y OBJETIVOS INSTITUCIONALES Y FORTALECER LA GESTION JURIDICA ADMINISTRATIVA DE LA ENTIDAD | I132: DTAO | J132: 2 CONTRATACIÓN DIRECTA | K132: 14 PRESTACIÓN DE SERVICIOS | M132: CONTRATACION DIRECTA | N132: 80161500 Cód. 80161500 - Servicios de apoyo a la gestión | O132: 24918600 | S132: 3559800 | T132: 1 PERSONA NATURAL | U132: 2 RUT - REGISTRO ÚNICO TRIBUTARIO | V132: 1066726202 | X132: 10 DV 9 | Z132: PLANETA RICA | AA132: ANA MILENA FERNANDEZ ALVAREZ | AB132: 1 PÓLIZA | AC132: 2 CUMPLIMIENTO | AD132: 2017-05-02 | AE132: SEGUROS DEL ESTADO S.A | AF132: 65-44-101145382 | AG132: 2 SUPERVISOR | AN132: 3 CÉDULA DE CIUDADANÍA | AO132: 24582254 | AQ132: 11 NO SE DILIGENCIA INFORMACIÓN PARA ESTE FORMULARIO EN ESTE PERÍODO DE REPORTE | AS132: MONICA MARIA RODRIGUEZ ARIAS | AT132: 210 | AU132: 3 NO PACTADOS | AV132: 0 | AW132: 4 NO SE HA ADICIONADO NI EN VALOR y EN TIEMPO | AX132: 0 | BE132: 118660 | BF132: 1 | BG132: 2017-10-17 | BH132: OTRO SI DE MODIFICACIÓN N°01 AL TIEMPO Y VALOR DEL CPS121/2017 POR EL CUAL SE REDUCE EL VALOR DE $118.660 Y EL PLAZO DE EJECUCIÓN EN 1 DIA EL 17/10/2017 | BI132: 2017-10-17 | BJ132: 2017-05-02 | BK132: 2017-11-30 | BM132: 100 | BN132: 100 | BO132: 100 | BP132: 100 | BQ132: OTRO SI DE MODIFICACIÓN N°01 AL TIEMPO Y VALOR DEL CPS121/2017 POR EL CUAL SE REDUCE EL VALOR DE $118.660 Y EL PLAZO DE EJECUCIÓN EN 1 DIA | BR132: PLANEACION INTERNA/ FORTALECIMIENTO | BS132: NACION | BT132: 28017 | BU132: 24918600 | BV132: 2017-04-27 | BW132: 42217 | BX132: 24918600 | BY132: 2017-05-02 | BZ132: 0 | CA132: 0 | CB132: 0 | CC132: 0 | CD132: 3441140 | CE132: 3559800 | CF132: 3559800 | CG132: 3559800 | CH132: 3559800 | CI132: 3559800 | CJ132: 3559800 | CL132: 24799940 | CM132: 0 | CP132: CPS | CR132: 2017-12-30
A133: 122 | B133: FILA_122 | C133: 1 SI | E133: 122 | F133: 2017-05-02 | G133: 2 DOS VECES | H133: PRESTACION DE SERVICIOS TECNICOS Y DE APOYO A LA GESTION DE LA DTAO, PARA ASISTIR, Y APOYAR A LA COORDINACIÓN DEL GRUPO INTERNO DE TRABAJO, EN TODO LO PERTINENTE AL SEGUIMIENTO, GESTIÓN, EJECUCIÓN Y CONTROL EFICAZ DE LOS PROCESOS DEL AREA ADMINISTRATIVA Y FINANCIERA, LABOR TRASVERSAL A TODA LA GESTIÓN DE LA TERRITORIAL EN AREAS DE MEJORAR LA EFICIENCIA INSTITUCIONAL. | I133: DTAO | J133: 2 CONTRATACIÓN DIRECTA | K133: 14 PRESTACIÓN DE SERVICIOS | M133: CONTRATACION DIRECTA | N133: 80161500 Cód. 80161500 - Servicios de apoyo a la gestión | O133: 14137200 | S133: 2019600 | T133: 1 PERSONA NATURAL | U133: 2 RUT - REGISTRO ÚNICO TRIBUTARIO | V133: 1035866293 | X133: 7 DV 6 | Z133: GIRARDOTA | AA133: MARIA ALEJANDRA CASTRO ZABALA | AB133: 1 PÓLIZA | AC133: 2 CUMPLIMIENTO | AD133: 2017-05-02 | AE133: SEGUROS DEL ESTADO S.A | AF133: 65-44-101145383 | AG133: 2 SUPERVISOR | AN133: 3 CÉDULA DE CIUDADANÍA | AO133: 24582254 | AQ133: 11 NO SE DILIGENCIA INFORMACIÓN PARA ESTE FORMULARIO EN ESTE PERÍODO DE REPORTE | AS133: MONICA MARIA RODRIGUEZ ARIAS | AT133: 210 | AU133: 3 NO PACTADOS | AV133: 0 | AW133: 4 NO SE HA ADICIONADO NI EN VALOR y EN TIEMPO | AX133: 0 | BJ133: 2017-05-02 | BK133: 2017-07-04 | BL133: 2017-07-04 | BM133: 100 | BN133: 100 | BO133: 100 | BP133: 100 | BQ133: ACTA DE TERMINACIÓN Y LIQUIDACIÓN ANTICIPADA BILATERAL DEL CPS 122 DEL 02/05/2017 | BR133: PLANEACION INTERNA/ FORTALECIMIENTO | BS133: NACION | BT133: 28317 | BU133: 14137200 | BV133: 2017-04-27 | BW133: 42417 | BX133: 14137200 | BY133: 2017-05-02 | BZ133: 0 | CA133: 0 | CB133: 0 | CC133: 0 | CD133: 1952280 | CE133: 2019600 | CF133: 0 | CG133: 0 | CH133: 0 | CI133: 0 | CJ133: 0 | CL133: 3971880 | CM133: 10165320 | CP133: CPS | CR133: 2017-12-30
A134: 123 | B134: FILA_123 | C134: 1 SI | E134: 123 | F134: 2017-05-02 | G134: 2 DOS VECES | H134: PRESTACION DE SERVICIO PROFESIONALES Y DE APOYO A LA GESTION COMO ABOGADA DE LA DTAO DE PARQUES NACIONALES NATURALES DE COLOMBIA PARA LIDERAR LOS PROCESOS PRE-CONTRACTUALES, CONTRACTUALES Y POSTCONTRACTUALES, ASI COMO EL APOYO JURIDICO DE LOS PROCESOS Y PROCEDIMIENTOS DERIVADOS DE LA GESTION JURIDICA EN LOS TEMA SMISIONALES DE PARQUES NACIONALES NATURALES DE COLOMBIA EN RELACIÓN AL USO, OCUPACIÓN Y TENENCIA DE TIERREAS. | I134: DTAO | J134: 2 CONTRATACIÓN DIRECTA | K134: 14 PRESTACIÓN DE SERVICIOS | M134: CONTRATACION DIRECTA | N134: 80161500 Cód. 80161500 - Servicios de apoyo a la gestión | O134: 28631400 | S134: 4090200 | T134: 1 PERSONA NATURAL | U134: 2 RUT - REGISTRO ÚNICO TRIBUTARIO | V134: 32244313 | X134: 5 DV 4 | Z134: ENVIGADO | AA134: NATALIA GIRALDO RESTREPO | AB134: 1 PÓLIZA | AC134: 2 CUMPLIMIENTO | AD134: 2017-05-02 | AE134: SEGUROS DEL ESTADO S.A | AF134: 65-44-101145381 | AG134: 2 SUPERVISOR | AN134: 3 CÉDULA DE CIUDADANÍA | AO134: 24582254 | AQ134: 11 NO SE DILIGENCIA INFORMACIÓN PARA ESTE FORMULARIO EN ESTE PERÍODO DE REPORTE | AS134: MONICA MARIA RODRIGUEZ ARIAS | AT134: 210 | AU134: 3 NO PACTADOS | AV134: 0 | AW134: 4 NO SE HA ADICIONADO NI EN VALOR y EN TIEMPO | AX134: 0 | BE134: 136340 | BF134: 1 | BG134: 2017-10-17 | BH134: OTRO SI DE MODIFICACIÓN N°01 AL TIEMPO Y VALOR DEL CPS123/2017 POR EL CUAL SE REDUCE EL VALOR DE $136.340 Y EL PLAZO DE EJECUCIÓN EN 1 DIA EL 17/10/2017 | BI134: 2017-10-17 | BJ134: 2017-05-02 | BK134: 2017-11-30 | BL134: 2017-11-30 | BM134: 100 | BN134: 100 | BO134: 100 | BP134: 100 | BQ134: OTRO SI DE MODIFICACIÓN N°01 AL TIEMPO Y VALOR DEL CPS123/2017 POR EL CUAL SE REDUCE EL VALOR DE $136.340 Y EL PLAZO DE EJECUCIÓN EN 1 DIA , ACTA DE TERMINACION Y LIQUIDACION BILATERAL DEL CPS123/2017 EL 30/11/2017 | BR134: SANEAMIENTO | BS134: NACION | BT134: 28717 | BU134: 28631400 | BV134: 2017-04-28 | BW134: 42117 | BX134: 28631400 | BY134: 2017-05-02 | BZ134: 0 | CA134: 0 | CB134: 0 | CC134: 0 | CD134: 3953860 | CE134: 4090200 | CF134: 4090200 | CG134: 4090200 | CH134: 4090200 | CI134: 4090200 | CJ134: 4090200 | CL134: 28495060 | CM134: 0 | CP134: CPS | CR134: 2017-12-30
A135: 124 | B135: FILA_124 | C135: 1 SI | E135: 124 | F135: 2017-05-08 | G135: 2 DOS VECES | H135: PRESTAR LOS SERVICIOS PROFESIONALES Y DE APOYO A LA GESTIÓN EN EL AREA DE CONTRATOS DE LA DTAO DE PNN DE COLOMBIA , CON LA FINALIDAD DE DAR CUMPLIMIENTO A LAS METAS Y OBJETIVOS INSTITUCIONALES Y FORTALECER LA GESTIÓN JURIDICA ADMINISTRTATIVA DE LA ENTIDAD. | I135: DTAO | J135: 2 CONTRATACIÓN DIRECTA | K135: 14 PRESTACION DE SERVICIOS | M135: CONTRATACION DIRECTA | N135: 80161500 Cód. 80161500 - Servicios de apoyo a la gestión | O135: 20300000 | S135: 3000000 | T135: 1 PERSONA NATURAL | U135: 2 RUT - REGISTRO ÚNICO TRIBUTARIO | V135: 1036635430 | X135: 2 DV 1 | Z135: ITAGUI | AA135: JUAN SEBASTIAN CRUZ FLOREZ | AB135: 1 PÓLIZA | AC135: 2 CUMPLIMIENTO | AD135: 2017-05-08 | AE135: SEGUROS DEL ESTADO S.A | AF135: 65-44-101145704 | AG135: 2 SUPERVISOR | AN135: 3 CÉDULA DE CIUDADANÍA | AO135: 24582254 | AQ135: 11 NO SE DILIGENCIA INFORMACIÓN PARA ESTE FORMULARIO EN ESTE PERÍODO DE REPORTE | AS135: MONICA MARIA RODRIGUEZ ARIAS | AT135: 203 | AU135: 3 NO PACTADOS | AV135: 0 | AW135: 4 NO SE HA ADICIONADO NI EN VALOR y EN TIEMPO | AX135: 0 | BJ135: 2017-05-08 | BK135: 2017-10-24 | BL135: 2017-10-24 | BM135: 100 | BN135: 100 | BO135: 100 | BP135: 100 | BQ135: ACTA DE TERMINACIÓN Y LIQUIDACION ANTICIPADA BILATERAL DEL CPS124/2017 EL 24/10/2017 | BR135: SANEAMIENTO | BS135: NACION | BT135: 29417 | BU135: 20300000 | BV135: 2017-05-05 | BW135: 43517 | BX135: 20300000 | BY135: 2017-05-08 | BZ135: 0 | CA135: 0 | CB135: 0 | CC135: 0 | CD135: 2300000 | CE135: 3000000 | CF135: 3000000 | CG135: 3000000 | CH135: 3000000 | CI135: 1300000 | CL135: 15600000 | CM135: 4700000 | CP135: CPS | CR135: 2017-12-30
A136: 125 | B136: FILA_125 | C136: 1 SI | E136: 125 | F136: 2017-05-08 | G136: 3 TRES VECES | H136: PRESTAR LOS SERVICIOS TECNICOS Y DE APOYO A LA GESTIÓN PRESUPUESTAL DE LA DTAO, CON TODO LO PERTINENTE EN EL AREA ADMINISTRATITA Y FINANCIERA, EN EL PROCESO DE APOYO DE ADMINISTRACIÓN DE RECURSOS FINANCIEROS, A TRAVES DEL SISTEMA DE INFORMACIÓN FINANCIERA SIIF NACIÓN II | I136: DTAO | J136: 2 CONTRATACIÓN DIRECTA | K136: 14 PRESTACIÓN DE SERVICIOS | M136: CONTRATACION DIRECTA | N136: 80161500 Cód. 80161500 - Servicios de apoyo a la gestión | O136: 11491830 | S136: 1698300 | T136: 1 PERSONA NATURAL | U136: 2 RUT - REGISTRO ÚNICO TRIBUTARIO | V136: 8126525 | X136: 7 DV 6 | Z136: MEDELLIN | AA136: CARLOS ANDRES GOMEZ HENRIQUEZ | AB136: 1 PÓLIZA | AC136: 2 CUMPLIMIENTO | AD136: 2017-05-08 | AE136: SEGUROS DEL ESTADO S.A | AF136: 65-44-101145703 | AG136: 2 SUPERVISOR | AN136: 3 CÉDULA DE CIUDADANÍA | AO136: 24582254 | AQ136: 11 NO SE DILIGENCIA INFORMACIÓN PARA ESTE FORMULARIO EN ESTE PERÍODO DE REPORTE | AS136: MONICA MARIA RODRIGUEZ ARIAS | AT136: 203 | AU136: 3 NO PACTADOS | AV136: 0 | AW136: 3 ADICIÓN EN VALOR y EN TIEMPO | AX136: 622710 | AY136: 2017-11-30 | AZ136: 11 | BA136: 2017-11-30 | BJ136: 2017-05-08 | BK136: 2017-12-11 | BL136: 2018-01-29 | BM136: 100 | BN136: 100 | BO136: 100 | BP136: 100 | BQ136: ADICION Y PRORROGA N°01 AL CPS125/2017 POR EL CUAL SE ADICIONA LA SUMA DE $622.710 Y SE PRORROGA EL PLAZO DE EJECUCIÓN POR (11) DIAS MAS EL 30/11/2017, ACTA DE LIQUIDACION BILATERAL DEL CPS125/2017 EL 29/01/2018 | BR136: PLANEACION INTERNA/ FORTALECIMIENTO | BS136: NACION | BT136: 29217 | BU136: 11491830 | BV136: 2017-05-05 | BW136: 43317 | BX136: 11491830 | BY136: 2017-05-08 | BZ136: 0 | CA136: 0 | CB136: 0 | CC136: 0 | CD136: 1302030 | CE136: 1698300 | CF136: 1698300 | CG136: 1698300 | CH136: 1698300 | CI136: 1698300 | CJ136: 1698300 | CK136: 622710 | CL136: 12114540 | CM136: 0 | CP136: CPS | CR136: 2017-12-30
A137: 126 | B137: FILA_126 | C137: 1 SI | E137: 126 | F137: 2017-05-08 | G137: 2 DOS VECES | H137: PRESTAR LOS SERVICIOS PROFESIONALES Y DE APOYO A LA GESTIÓN EN EL AREA JURIDIDCA DE LADTAO DE PNN DE COLOMBIA, CON LA FINALIDAD DE DAR CUMPLIMIENTO A LAS METAS Y OBJETIVOS INSTITUCIONALES Y FORTALECER LA GESTIÓN JURIDICA ADMINISTRATIVA DE LA ENTIDAD. | I137: DTAO | J137: 2 CONTRATACIÓN DIRECTA | K137: 14 PRESTACIÓN DE SERVICIOS | M137: CONTRATACION DIRECTA | N137: 80161500 Cód. 80161500 - Servicios de apoyo a la gestión | O137: 24087980 | S137: 3559800 | T137: 1 PERSONA NATURAL | U137: 2 RUT - REGISTRO ÚNICO TRIBUTARIO | V137: 8028715 | X137: 10 DV 9 | Z137: MEDELLIN | AA137: RAFAEL ISAZA PEREZ | AB137: 1 PÓLIZA | AC137: 2 CUMPLIMIENTO | AD137: 2017-05-08 | AE137: SEGUROS DEL ESTADO S.A | AF137: 65-44-101145702 | AG137: 2 SUPERVISOR | AN137: 3 CÉDULA DE CIUDADANÍA | AO137: 24582254 | AQ137: 11 NO SE DILIGENCIA INFORMACIÓN PARA ESTE FORMULARIO EN ESTE PERÍODO DE REPORTE | AS137: MONICA MARIA RODRIGUEZ ARIAS | AT137: 203 | AU137: 3 NO PACTADOS | AV137: 0 | AW137: 3 ADICIÓN EN VALOR y EN TIEMPO | AX137: 1305260 | AY137: 2017-11-30 | AZ137: 11 | BA137: 2017-11-30 | BJ137: 2017-05-08 | BK137: 2017-12-11 | BL137: 2017-12-18 | BM137: 100 | BN137: 100 | BO137: 100 | BP137: 100 | BQ137: ACTA DE LIQUIDACION BILATERAL DEL CPS126/2017 EL 18/12/2017 | BR137: PLANEACION INTERNA/ FORTALECIMIENTO | BS137: NACION | BT137: 29317 | BU137: 24087980 | BV137: 2017-05-05 | BW137: 43417 | BX137: 24087980 | BY137: 2017-05-08 | BZ137: 0 | CA137: 0 | CB137: 0 | CC137: 0 | CD137: 2729180 | CE137: 3559800 | CF137: 3559800 | CG137: 3559800 | CH137: 3559800 | CI137: 3559800 | CJ137: 3559800 | CK137: 1305260 | CL137: 25393240 | CM137: 0 | CP137: CPS | CR137: 2017-12-30
A138: 127 | B138: FILA_127 | C138: 1 SI | E138: 127 | F138: 2017-05-09 | G138: 2 DOS VECES | H138: PRESTAR LOS SERVICIOS TECNICOS Y DE APOYO A LA GESTIÓN ADMINISTRATIVA Y FINANCIERA EN TODO LO RELACIONADO CON EL AREA DE PAGADURIA DE LA DTAO | I138: DTAO | J138: 2 CONTRATACIÓN DIRECTA | K138: 14 PRESTACIÓN DE SERVICIOS | M138: CONTRATACION DIRECTA | N138: 80161500 Cód. 80161500 - Servicios de apoyo a la gestión | O138: 8491500 | S138: 1698300 | T138: 1 PERSONA NATURAL | U138: 2 RUT - REGISTRO ÚNICO TRIBUTARIO | V138: 1128422640 | X138: 1 DV 0 | Z138: MEDELLIN | AA138: STEPHANIE RUA MARTINEZ | AB138: 1 PÓLIZA | AC138: 2 CUMPLIMIENTO | AD138: 2017-05-09 | AE138: SEGUROS DEL ESTADO S.A | AF138: 65-44-101145762 | AG138: 2 SUPERVISOR | AN138: 3 CÉDULA DE CIUDADANÍA | AO138: 24582254 | AQ138: 11 NO SE DILIGENCIA INFORMACIÓN PARA ESTE FORMULARIO EN ESTE PERÍODO DE REPORTE | AS138: MONICA MARIA RODRIGUEZ ARIAS | AT138: 150 | AU138: 3 NO PACTADOS | AV138: 0 | AW138: 4 NO SE HA ADICIONADO NI EN VALOR y EN TIEMPO | AX138: 0 | BJ138: 2017-05-09 | BK138: 2017-10-08 | BL138: 2017-10-26 | BM138: 100 | BN138: 100 | BO138: 100 | BP138: 100 | BQ138: ACTA DE LIQUIDACION BILATERAL DEL CPS127/2017 EL 26/10/2017 | BR138: PLANEACION INTERNA/ FORTALECIMIENTO | BS138: NACION | BT138: 29717 | BU138: 8491500 | BV138: 2017-05-09 | BW138: 44117 | BX138: 8491500 | BY138: 2017-05-09 | BZ138: 0 | CA138: 0 | CB138: 0 | CC138: 0 | CD138: 1245420 | CE138: 1698300 | CF138: 1698300 | CG138: 1698300 | CH138: 1698300 | CI138: 452880 | CL138: 8491500 | CM138: 0 | CP138: CPS | CR138: 2017-12-30
A139: 128 | B139: FILA_128 | C139: 1 SI | E139: 128 | F139: 2017-05-11 | G139: 2 DOS VECES | H139: PRESTAR LOS SERVICIOS PROFESIONALES Y DE APOYO A LA GESTIÓN EN EL AREA JURIDICA DE LA DTAO DE PNN DE COLOMBIA, CON LA FINALIDAD DE DAR CUMPLIMIENTO A LAS METAS Y OBJETIVOS INSTITUCIONALES Y FORTALECER LA GESTIÓN JURIDICA ADMINISTRATIVA COMO TAMBIEN APOYAR EN LOSPROCESO SMISIONALES DE LA ENTIDAD. | I139: DTAO | J139: 2 CONTRATACIÓN DIRECTA | K139: 14 PRESTACIÓN DE SERVICIOS | M139: CONTRATACION DIRECTA | N139: 80161500 Cód. 80161500 - Servicios de apoyo a la gestión | O139: 13598640 | S139: 2019600 | T139: 1 PERSONA NATURAL | U139: 2 RUT - REGISTRO ÚNICO TRIBUTARIO | V139: 1037572737 | X139: 10 DV 9 | Z139: ENVIGADO | AA139: JUAN ESTEBAN RODRIGUEZ GARZON | AB139: 1 PÓLIZA | AC139: 2 CUMPLIMIENTO | AD139: 2017-05-11 | AE139: SEGUROS DEL ESTADO S.A | AF139: 65-44-101145842 | AG139: 2 SUPERVISOR | AN139: 3 CÉDULA DE CIUDADANÍA | AO139: 24582254 | AQ139: 11 NO SE DILIGENCIA INFORMACIÓN PARA ESTE FORMULARIO EN ESTE PERÍODO DE REPORTE | AS139: MONICA MARIA RODRIGUEZ ARIAS | AT139: 202 | AU139: 3 NO PACTADOS | AV139: 0 | AW139: 4 NO SE HA ADICIONADO NI EN VALOR y EN TIEMPO | AX139: 0 | BJ139: 2017-05-11 | BK139: 2017-11-30 | BL139: 2017-11-30 | BM139: 100 | BN139: 100 | BO139: 100 | BP139: 100 | BQ139: ACTA DE LIQUIDACION ANTICIPADA Y BILATERAL DEL CPS128/2017 EL 30/11/2017 | BR139: SANEAMIENTO | BS139: NACION | BT139: 29917 | BU139: 13598640 | BV139: 2017-05-10 | BW139: 44717 | BX139: 13598640 | BY139: 2017-05-11 | BZ139: 0 | CA139: 0 | CB139: 0 | CC139: 0 | CD139: 1346400 | CE139: 2019600 | CF139: 2019600 | CG139: 2019600 | CH139: 2019600 | CI139: 2019600 | CJ139: 2019600 | CL139: 13464000 | CM139: 134640 | CP139: CPS | CR139: 2017-12-30
A140: 129 | B140: FILA_129 | C140: 1 SI | E140: 129 | F140: 2017-05-12 | G140: 2 DOS VECES | H140: PRESTACION DE SERVICIOS OPERATIVOS Y DE APOYO A LA GESTIÓN , PARA DESARROLLAR ACTIVIDADES DE RELACIONAMIENTO ENTRE EL PNN NEVADO DE HUILA CON LOS RESGUARDOS INDIGENAS DEL AREA DE INFLUENCIA, COMO TAMBIEN APOYO EN EL PROCESO DE CONTROL, VIGILANCIA Y COOPERACION QUE PERMITA ALCANZAR LAS METAS TRAZADAS EN EL PLAN OPERATIVO ANUAL | I140: PNN NEVADO DEL HUILA | J140: 2 CONTRATACIÓN DIRECTA | K140: 14 PRESTACIÓN DE SERVICIOS | M140: CONTRATACION DIRECTA | N140: 80161500 Cód. 80161500 - Servicios de apoyo a la gestión | O140: 8568000 | S140: 1224000 | T140: 1 PERSONA NATURAL | U140: 2 RUT - REGISTRO ÚNICO TRIBUTARIO | V140: 10346803 | X140: 2 DV 1 | Z140: MIRANDA | AA140: JUAN CARLOS LARGO NOSCUE | AB140: 1 PÓLIZA | AC140: 2 CUMPLIMIENTO | AD140: 2017-05-15 | AE140: SEGUROS DEL ESTADO S.A | AF140: 25-44-101104370 | AG140: 2 SUPERVISOR | AN140: 3 CÉDULA DE CIUDADANÍA | AO140: 79144591 | AQ140: 11 NO SE DILIGENCIA INFORMACIÓN PARA ESTE FORMULARIO EN ESTE PERÍODO DE REPORTE | AS140: SANTIAGO FELIPE DUARTE GOMEZ | AT140: 210 | AU140: 3 NO PACTADOS | AV140: 0 | AW140: 4 NO SE HA ADICIONADO NI EN VALOR y EN TIEMPO | AX140: 0 | BJ140: 2017-05-15 | BK140: 2017-12-14 | BM140: 100 | BN140: 100 | BO140: 100 | BP140: 100 | BR140: ESTRATEGIAS ESPECIALES DE MANEJO/ESTRATEGIAS ESPECIALES DE MANEJO | BS140: NACION | BT140: 30117 | BU140: 8568000 | BV140: 2017-05-12 | BW140: 45217 | BX140: 8568000 | BY140: 2017-05-12 | BZ140: 0 | CA140: 0 | CB140: 0 | CC140: 0 | CD140: 652800 | CE140: 1224000 | CF140: 1224000 | CG140: 1224000 | CH140: 1224000 | CI140: 1224000 | CJ140: 1224000 | CK140: 571200 | CL140: 8568000 | CM140: =O140+AX140-BE140-BZ140-CA140-CB140-CC140-CD140-CE140-CF140-CG140-CH140-CI140-CJ140-CK140 -> 0 | CP140: CPS | CR140: 2017-12-30
A141: 130 | B141: FILA_130 | C141: 1 SI | E141: 130 | F141: 2017-05-16 | G141: 2 DOS VECES | H141: PRESTACION DE SERVICIOS TECNICOS Y DE APOYO A LA GESTION DEL AREA JURIDICA Y FINANCIERA DE LA DTAO DE PNN DE COLOMBIA | I141: DTAO | J141: 2 CONTRATACIÓN DIRECTA | K141: 14 PRESTACIÓN DE SERVICIOS | M141: CONTRATACION DIRECTA | N141: 80161500 Cód. 80161500 - Servicios de apoyo a la gestión | O141: 8491500 | S141: 1698300 | T141: 1 PERSONA NATURAL | U141: 2 RUT - REGISTRO ÚNICO TRIBUTARIO | V141: 1045080175 | X141: 8 DV 7 | Z141: VALDIVIA | AA141: YESSICA CORREA ZAPATA | AB141: 1 PÓLIZA | AC141: 2 CUMPLIMIENTO | AD141: 2017-05-16 | AE141: SEGUROS DEL ESTADO S.A | AF141: 65-44-101145949 | AG141: 2 SUPERVISOR | AN141: 3 CÉDULA DE CIUDADANÍA | AO141: 24582254 | AQ141: 11 NO SE DILIGENCIA INFORMACIÓN PARA ESTE FORMULARIO EN ESTE PERÍODO DE REPORTE | AS141: MONICA MARIA RODRIGUEZ ARIAS | AT141: 150 | AU141: 3 NO PACTADOS | AV141: 0 | AW141: 4 NO SE HA ADICIONADO NI EN VALOR y EN TIEMPO | AX141: 3170160 | AY141: 12/10/2017-30/11/2017 | AZ141: 56 | BA141: 12/10/2017-30/11/2017 | BJ141: 2017-05-16 | BK141: 2017-12-11 | BM141: 100 | BN141: 100 | BO141: 100 | BP141: 100 | BQ141: ADICIÓN Y PRORROGA N°01 AL CPS130/2017 POR EL CUAL SE ADICIONALA SUMA DE $2.547450 Y PRORROGA POR 45 DIAS MAS EL 12/10/2017,ADICION Y PRORROGA N°02 AL CPS130/2017 POR EL CUAL SE ADICIONA LA SUMA DE $622.710 Y SE PRORROGA EL PLAZO DE EJECUCIÓN POR (11) DIAS MAS EL 30/11/2017 | BR141: PLANEACION INTERNA/ FORTALECIMIENTO | BS141: NACION | BT141: 33017 | BU141: 8491500 | BV141: 2017-05-15 | BW141: 45317 | BX141: 8491500 | BY141: 2017-05-16 | BZ141: 0 | CA141: 0 | CB141: 0 | CC141: 0 | CD141: 849150 | CE141: 1698300 | CF141: 1698300 | CG141: 1698300 | CH141: 1698300 | CI141: 1698300 | CJ141: 1698300 | CK141: 622710 | CL141: =BZ141+CA141+CB141+CC141+CD141+CE141+CF141+CG141+CH141+CI141+CJ141+CK141 -> 11661660 | CM141: 0 | CP141: CPS | CR141: 2017-12-30
A142: 131 | B142: FILA_131 | C142: 1 SI | E142: 131 | F142: 2017-06-12 | G142: 2 DOS VECES | H142: PRESTACIÓN DE SERVICIOS OPERATIVOS Y DE APOYO A LA GESTIÓN EN EL PNN LAS ORQUIDEAS, PARA ACOMPAÑAR, APOYAR LOGISTICA Y OPERATIVAMNETE LOS PROCESOS QUE FAVOREZCAN LA CONSTRUCCIÓN DEL REGIMEN ESPECIAL DE MANEJO, CONSULTA PREVIA PREVISTA EN EL PLAN DE MANEJO Y RELACIONAMIENTO CON LAS COMUNIDADES INDIGENAS EN EL AREA TRASLAPADA | I142: PNN LAS ORQUIDEAS | J142: 2 CONTRATACIÓN DIRECTA | K142: 14 PRESTACIÓN DE SERVICIOS | M142: CONTRATACIÓN DIRECTA | N142: 80161500 Cód. 80161500 - Servicios de apoyo a la gestión | O142: 8160000 | S142: 1224000 | T142: 1 PERSONA NATURAL | U142: 2 RUT - REGISTRO ÚNICO TRIBUTARIO | V142: 1038332909 | X142: 4 DV 3 | Z142: FRONTINO | AA142: LUIS CARLOS BAILARIN BAILARIN | AB142: 1 PÓLIZA | AC142: 2 CUMPLIMIENTO | AD142: 2017-06-23 | AE142: SEGUROS DEL ESTADO S.A | AF142: 21-44-101249254 | AG142: 2 SUPERVISOR | AN142: 3 CÉDULA DE CIUDADANÍA | AO142: 71621569 | AQ142: 11 NO SE DILIGENCIA INFORMACIÓN PARA ESTE FORMULARIO EN ESTE PERÍODO DE REPORTE | AS142: JOHN JAIRO RESTREPO SALAZAR | AT142: 200 | AU142: 3 NO PACTADOS | AV142: 0 | AW142: 4 NO SE HA ADICIONADO NI EN VALOR y EN TIEMPO | AX142: 0 | BJ142: 2017-06-23 | BK142: 2017-12-31 | BM142: 100 | BN142: 100 | BO142: 100 | BP142: 100 | BQ142: SE REPORTA ENE LE TERCER TRIMESTRE TODA VEZ QU ENO SE REPORTO EN EL SEGUNDO | BR142: ESTRATEGIAS ESPECIALES DE MANEJO/ESTRATEGIAS ESPECIALES DE MANEJO | BS142: NACIÓN | BT142: 32417 | BU142: 8160000 | BV142: 2017-06-07 | BW142: 51617 | BX142: 8160000 | BY142: 2017-06-12 | BZ142: 0 | CA142: 0 | CB142: 0 | CC142: 0 | CD142: 0 | CE142: 326400 | CF142: 1224000 | CG142: 1224000 | CH142: 1224000 | CI142: 1224000 | CJ142: 1224000 | CK142: 1224000 | CL142: 7670400 | CM142: 489600 | CP142: CPS | CR142: 2017-12-30
A143: 132 | B143: FILA_132 | C143: 1 SI | E143: 132 | F143: 2017-06-28 | G143: 3 TRES VECES | H143: PRESTACIÓN DE SERVICIOS TECNICOS PARA EL LEVANTAMIENTO, VALIDACIÓN, ANALISIS DE INFORMACIÓN CARTOGRAFICA TEMATICA, RELACIONADA CON EL ESTADO-PRESIÓN DE LAS COBERTURAS DE LA TIERRA, ASI COMO EL APOYO EN LA PRECISIÓN DE LIMITES Y AMOJONAMIENTOS DE LAS AREAS PROTEGIDAS A ESCALA 1:25000 DE LA DTAO, DENTRO DE LA ESTRATEGIA DE USO, OCUPACIÓN Y TENENCIA QUE ADELNATA LA ENTIDAD EN EL MARCO DEL SUBSISTEMA ANDES OCCIDENTALES, CON REFERENCIA EN EL PLAN ESTRATEGICO DE LA DTAOY LOS PLANES ESTRATEGICOS DE SUS AREAS ADSCRITAS | I143: DTAO | J143: 2 CONTRATACIÓN DIRECTA | K143: 14 PRESTACIÓN DE SERVICIOS | M143: CONTRATACIÓN DIRECTA | N143: 80161500 Cód. 80161500 - Servicios de apoyo a la gestión | O143: 12386880 | S143: 2019600 | T143: 1 PERSONA NATURAL | U143: 2 RUT - REGISTRO ÚNICO TRIBUTARIO | V143: 1053767945 | X143: 1 DV 0 | Z143: MANIZALES | AA143: SEBASTIAN OSORIO MARULANDA | AB143: 1 PÓLIZA | AC143: 2 CUMPLIMIENTO | AD143: 2017-06-30 | AE143: SEGUROS DEL ESTADO S.A | AF143: 65-44-101147517 | AG143: 2 SUPERVISOR | AN143: 3 CÉDULA DE CIUDADANÍA | AO143: 10282381 | AQ143: 11 NO SE DILIGENCIA INFORMACIÓN PARA ESTE FORMULARIO EN ESTE PERÍODO DE REPORTE | AS143: JORGE EDUARDO CEBALLOS BETANCUR | AT143: 184 | AU143: 3 NO PACTADOS | AV143: 0 | AW143: 4 NO SE HA ADICIONADO NI EN VALOR y EN TIEMPO | AX143: 0 | BE143: 201960 | BF143: 3 | BG143: 2017-09-26 | BH143: OTRO SI DE MODIFICACIÓN N°01 AL TIEMPO Y VALOR DEL CPS 132 DE 2017 POR EL CUAL SE REDUCE EL VALOR DEL CONTRATO EN $ 201.960 Y EL PLAZO DE EJECUCIÓN EN (03) DIAS EL 26/09/2017 | BI143: 2017-09-26 | BJ143: 2017-06-30 | BK143: 2017-12-31 | BM143: 100 | BN143: 100 | BO143: 100 | BP143: 100 | BQ143: OTRO SI DE MODIFICACIÓN N°01 AL TIEMPO Y VALOR DEL CPS 132 DE 2017 POR EL CUAL SE REDUCE EL VALOR DEL CONTRATO EN $ 201.960 Y EL PLAZO DE EJECUCIÓN EN (03) DIAS EL 26/09/2017, SE REPORTA EN EL CUARTO TRIMESTRE POR MODIFIACCIÓN TODA VEZ QUE NO SE REPORTO EN EL TERCER TRIMESTRE | BR143: SANEAMIENTO | BS143: NACIÓN | BT143: 34417 | BU143: 12386880 | BV143: 2017-06-23 | BW143: 55317 | BX143: 12386880 | BY143: 2017-06-30 | BZ143: 0 | CA143: 0 | CB143: 0 | CC143: 0 | CD143: 0 | CE143: 67320 | CF143: 2019600 | CG143: 2019600 | CH143: 2019600 | CI143: 2019600 | CJ143: 2019600 | CK143: 2019600 | CL143: 12184920 | CM143: 0 | CP143: CPS | CR143: 2017-12-30
A144: 133 | B144: FILA_133 | C144: 1 SI | E144: 133 | F144: 2017-07-04 | G144: 2 DOS VECES | H144: PRESTACIÓN DE SERVICIOS TÉCNICOS Y DE APOYO A LA GESTIÓN PARA LA IMPLEMENTACIÓN DE PROCESOS ADMINISTRATIVOS, RECEPCIÓN Y CONTROL DOCUMENTAL, QUE CONTRIBUYAN AL FORTALECIMIENTO DE LOS PROCESOS EN DESARROLLO EN EL CORREDOR DE COORDILLERAS CENTRAL CONFORMADO POR LOS PARQUES NACIONALES NATURALES LOS NEVADOS, LAS HERMOSAS Y NEVADO DEL HUILA | I144: PNN LOS NEVADOS, LAS HERMOSAS Y NEVADO DEL HUILA | J144: 2 CONTRATACIÓN DIRECTA | K144: 14 PRESTACIÓN DE SERVICIOS | M144: CONTRATACIÓN DIRECTA | N144: 80161500 Cód. 80161500 - Servicios de apoyo a la gestión | O144: 9963360 | S144: 1698300 | T144: 1 PERSONA NATURAL | U144: 2 RUT - REGISTRO ÚNICO TRIBUTARIO | V144: 1082772237 | X144: 2 DV 1 | Z144: SAN AGUSTIN | AA144: MAURA ALEJANDRA SAMBONI | AB144: 1 PÓLIZA | AC144: 2 CUMPLIMIENTO | AD144: 2017-07-04 | AE144: SEGUROS DEL ESTADO S.A | AF144: 25-44-101105596 | AG144: 2 SUPERVISOR | AN144: 3 CÉDULA DE CIUDADANÍA | AO144: 79121466 | AQ144: 11 NO SE DILIGENCIA INFORMACIÓN PARA ESTE FORMULARIO EN ESTE PERÍODO DE REPORTE | AS144: EFRAIM AUGUSTO RODRIGUEZ VARON | AT144: 176 | AU144: 3 NO PACTADOS | AV144: 0 | AW144: 4 NO SE HA ADICIONADO NI EN VALOR y EN TIEMPO | AX144: 0 | BJ144: 2017-07-04 | BK144: 2017-12-29 | BM144: 100 | BN144: 100 | BO144: 100 | BP144: 100 | BR144: FORTALECIMIENTO | BS144: NACIÓN | BT144: 34817 | BU144: 9963360 | BV144: 2017-06-30 | BW144: 55417 | BX144: 9963360 | BY144: 2017-07-04 | BZ144: 0 | CA144: 0 | CB144: 0 | CC144: 0 | CD144: 0 | CE144: 0 | CF144: 1528470 | CG144: 1698300 | CH144: 1698300 | CI144: 1698300 | CJ144: 1698300 | CK144: 1641690 | CL144: 9963360 | CM144: 0 | CP144: CPS | CR144: 2017-12-30
A145: 134 | B145: FILA_134 | C145: 1 SI | E145: 134 | F145: 2017-07-04 | G145: 2 DOS VECES | H145: PRESTACIÓN DE SERVICIOS TECNICOS Y DE APOYO A LA GESTIÓN DE LA TERRITORIAL ANDES OCCIDENTALES, PARA ASISTIR, Y APOYAR A LA COORDINACIÓN DEL GRUPO INTERNO DE TRABAJO, EN TODO LO PERTINENTE AL SEGUIMIENTO, GESTIÓN, EJECUCIÓN Y CONTROL EFICAZ DE LOS PROCESOS DEL AREA ADMINISTRATIVA Y FINANCIERA , LABOR TRASVERSAL A TODA LA GESTIÓN DE LA TERRITORIAL EN ARAS DE MEJORAR LA EFICIENCIA INSTITUCIONAL. | I145: DTAO | J145: 2 CONTRATACIÓN DIRECTA | K145: 14 PRESTACIÓN DE SERVICIOS | M145: CONTRATACIÓN DIRECTA | N145: 80161500 Cód. 80161500 - Servicios de apoyo a la gestión | O145: 10098000 | S145: 2019600 | T145: 1 PERSONA NATURAL | U145: 2 RUT - REGISTRO ÚNICO TRIBUTARIO | V145: 1017186190 | X145: 3 DV 2 | Z145: MEDELLIN | AA145: TATIANA STEPHANY PARRA HERRERA | AB145: 1 PÓLIZA | AC145: 2 CUMPLIMIENTO | AD145: 2017-07-04 | AE145: SEGUROS DEL ESTADO S.A | AF145: 65-44-101147598 | AG145: 2 SUPERVISOR | AN145: 3 CÉDULA DE CIUDADANÍA | AO145: 24582254 | AQ145: 11 NO SE DILIGENCIA INFORMACIÓN PARA ESTE FORMULARIO EN ESTE PERÍODO DE REPORTE | AS145: MONICA MARIA RODRIGUEZ ARIAS | AT145: 150 | AU145: 3 NO PACTADOS | AV145: 0 | AW145: 3 ADICIÓN EN VALOR y EN TIEMPO | AX145: 740520 | AY145: 2017-11-30 | AZ145: 11 | BA145: 2017-11-30 | BE145: 201960 | BF145: 3 | BG145: 2017-10-17 | BH145: OTRO SI DE MODIFICACIÓN N°01 AL TIEMPO Y VALOR DEL CPS 134 DE 2017 POR EL CUAL SE REDUCE EL VALOR DEL CONTRATO EN $ 201.960 Y EL PLAZO DE EJECUCIÓN EN (03) DIAS EL 17/10/2017/09/2017 | BI145: 2017-10-17 | BJ145: 2017-07-04 | BK145: 2017-12-11 | BM145: 100 | BN145: 100 | BO145: 100 | BP145: 100 | BQ145: OTRO SI DE MODIFICACIÓN N°01 AL TIEMPO Y VALOR DEL CPS 134 DE 2017 POR EL CUAL SE REDUCE EL VALOR DEL CONTRATO EN $ 201.960 Y EL PLAZO DE EJECUCIÓN EN (03) DIAS EL 17/10/2017/09/2017, ADICION Y PRORROGA N°01 AL CPS134/2017 POR EL CUAL SE ADICIONA LA SUMA DE $740.520 Y EL PLAZO DE EJECUCIÓN POR 11 DIAS MAS EL 30/11/2017 | BR145: PLANEACIÓN INTERNA/FORTALECIMIENTO | BS145: NACIÓN | BT145: 34917 | BU145: 10098000 | BV145: 2017-07-04 | BW145: 56017 | BX145: 10098000 | BY145: 2017-07-04 | BZ145: 0 | CA145: 0 | CB145: 0 | CC145: 0 | CD145: 0 | CE145: 0 | CF145: 1817640 | CG145: 2019600 | CH145: 2019600 | CI145: 2019600 | CJ145: 2019600 | CK145: 740520 | CL145: 10636560 | CM145: 0 | CP145: CPS | CR145: 2017-12-30
A146: 135 | B146: FILA_135 | C146: 1 SI | E146: 135 | F146: 2017-07-10 | G146: 2 DOS VECES | H146: CONTRATO DE PRESTACION DE SERVICIOS PROFESIONALES Y DE APOYO A LA GESTIÓN PARA ADELANTAR PROCESOS QUE FACILITEN LA ACTUALIZACIÓN E IMPLEMENTACIÓN DEL PLAN DE MANJEO DE PNN LAS HERMOSAS- GLORIA VALENCIA DE CASTAÑO | I146: PNN LAS HERMOSAS | J146: 2 CONTRATACIÓN DIRECTA | K146: 14 PRESTACIÓN DE SERVICIOS | M146: CONTRATACIÓN DIRECTA | N146: 80161500 Cód. 80161500 - Servicios de apoyo a la gestión | O146: 14586000 | S146: 2917200 | T146: 1 PERSONA NATURAL | U146: 2 RUT - REGISTRO ÚNICO TRIBUTARIO | V146: 1113642271 | X146: 6 DV 5 | Z146: PALMIRA | AA146: IVETHH CRISTINA JIMENEZ DELGADO | AB146: 1 PÓLIZA | AC146: 2 CUMPLIMIENTO | AD146: 2017-07-11 | AE146: SEGUROS DEL ESTADO S.A | AF146: 45-44-101084895 | AG146: 2 SUPERVISOR | AN146: 3 CÉDULA DE CIUDADANÍA | AO146: 79576238 | AQ146: 11 NO SE DILIGENCIA INFORMACIÓN PARA ESTE FORMULARIO EN ESTE PERÍODO DE REPORTE | AS146: GERMAN ALBERTO RODRIGUEZ PENAGOS | AT146: 150 | AU146: 3 NO PACTADOS | AV146: 0 | AW146: 3 ADICIÓN EN VALOR y EN TIEMPO | AX146: 486200 | AY146: 2017-11-07 | AZ146: 4 | BA146: 2017-11-07 | BH146: OTRO SI MOFIFICATORIO N°01 AL CPS135/2017 POR EL CUAL SE MODIFICA EL PARAGRAFO 2° DE LA CLAUSULA SEPTIMA: FORMA DE PAGO | BI146: 2017-11-14 | BJ146: 2017-07-11 | BK146: 2017-12-15 | BM146: 100 | BN146: 100 | BO146: 100 | BP146: 100 | BQ146: OTRO SI MOFIFICATORIO N°01 AL CPS135/2017 POR EL CUAL SE MODIFICA EL PARAGRAFO 2° DE LA CLAUSULA SEPTIMA: FORMA DE PAGO EL 14/11/2017, ADICION Y PRORROGA N|01 AL CPS135/2017 POR EL CUAL SE ADICIONA LA SUMA DE $ 486.200 Y SE PRORROGA EL PLAZO DE EJECUCIÓN EN 4 DIAS MAS EL 07/11/2017 | BR146: SANEAMIENTO | BS146: NACION | BT146: 35717 | BU146: 14586000 | BV146: 2017-07-10 | BW146: 57117 | BX146: 14586000 | BY146: 2017-07-11 | BZ146: 0 | CA146: 0 | CB146: 0 | CC146: 0 | CD146: 0 | CE146: 0 | CF146: 1944800 | CG146: 2917200 | CH146: 2917200 | CI146: 2917200 | CJ146: 2917200 | CK146: 1458600 | CL146: 15072200 | CM146: 0 | CP146: CPS | CR146: 2017-12-30
A147: 136 | B147: FILA_136 | C147: 1 SI | E147: 136 | F147: 2017-07-12 | G147: 2 DOS VECES | H147: PRESTACION DE SERVICIOS PROFESIONALES Y DE APOYO A LA GESTION PARA APOYAR TECNICA Y ADMINISTRATIVAMENTE LA IMPLEMENTACION DE LAS ACTIVIDADES DE LAS INICIATIVAS LOCALES DEL PROGRAMA DE APOYO PRESUPUESTARIO FINANCIADO POR LA UNION EUROPEA CON LAS COMUNIDADES INDIGENAS EN EL PNN PURACE | I147: PNN PURACE | J147: 2 CONTRATACIÓN DIRECTA | K147: 14 PRESTACIÓN DE SERVICIOS | M147: CONTRATACIÓN DIRECTA | N147: 80161500 Cód. 80161500 - Servicios de apoyo a la gestión | O147: 23723160 | S147: 4090200 | T147: 1 PERSONA NATURAL | U147: 2 RUT - REGISTRO ÚNICO TRIBUTARIO | V147: 16287971 | X147: 8 DV 7 | Z147: CALI | AA147: CESAR ALFONSO ROSASCO GALLON | AB147: 1 PÓLIZA | AC147: 2 CUMPLIMIENTO | AD147: 2017-07-17 | AE147: CONFIANZA | AF147: GU142666 | AG147: 2 SUPERVISOR | AN147: 3 CÉDULA DE CIUDADANÍA | AO147: 10537063 | AQ147: 10 NO SE DILIGENCIA INFORMACIÓN PARA ESTE FORMULARIO EN ESTE PERÍODO DE REPORTE | AS147: ISAAC BEDOYA DORADO | AT147: 174 | AU147: 3 NO PACTADOS | AV147: 0 | AW147: 4 NO SE HA ADICIONADO NI EN VALOR y EN TIEMPO | AX147: 0 | BJ147: 2017-07-17 | BK147: 2017-12-31 | BM147: 100 | BN147: 100 | BO147: 100 | BP147: 100 | BR147: ESTRATEGIA ESPECIAL DE MANEJO | BS147: NACION | BT147: 35317 | BU147: 23723160 | BV147: 2017-07-05 | BW147: 59417 | BX147: 23723160 | BY147: 2017-07-17 | BZ147: 0 | CA147: 0 | CB147: 0 | CC147: 0 | CD147: 0 | CE147: 0 | CF147: 1908317 | CG147: 4090200 | CH147: 4090200 | CI147: 4090200 | CJ147: 4090200 | CK147: 4090200 | CL147: 22359317 | CM147: 1363843 | CP147: CPS | CR147: 2017-12-30
A148: 137 | B148: FILA_137 | C148: 1 SI | E148: 137 | F148: 2017-07-18 | G148: 2 DOS VECES | H148: PRESTACION DE SERVICIOS TECNICOS Y DE APOYO A LA GESTION PARA REALIZAR ACTIVIDADES DE RELACIONAMIENTO COMUNITARIO Y APOYO TECNICO EN EL MARCO DEL CONVENIO PNN Y LA COMUNIDAD KOKONUKO DEL RESGUARDO INDIGENA DE PALETARA, RELACIONADAS CON EL SEGUIMIENTO DE LAS ACTIVIADES QUE SE ENCUENTRAN EN MARCHA EN EL PROCESO DE EJECUCIÓN DEL PROYECTO FINANCIADO POR LA UNIÓN EUROPEA Y PNN DE COLOMBIA | I148: PNN PURACE | J148: 2 CONTRATACIÓN DIRECTA | K148: 14 PRESTACIÓN DE SERVICIOS | M148: CONTRATACIÓN DIRECTA | N148: 80161500 Cód. 80161500 - Servicios de apoyo a la gestión | O148: 9340650 | S148: 1698300 | T148: 1 PERSONA NATURAL | U148: 2 RUT - REGISTRO ÚNICO TRIBUTARIO | V148: 76327826 | X148: 9 DV 8 | Z148: POPAYAN | AA148: EIDER ARNULFO ZAMBRANO CHILITO | AB148: 1 PÓLIZA | AC148: 2 CUMPLIMIENTO | AD148: 2017-07-19 | AE148: CONFIANZA | AF148: GU142753 | AG148: 2 SUPERVISOR | AN148: 3 CÉDULA DE CIUDADANÍA | AO148: 10537064 | AQ148: 11 NO SE DILIGENCIA INFORMACIÓN PARA ESTE FORMULARIO EN ESTE PERÍODO DE REPORTE | AS148: ISAAC BEDOYA DORADO | AT148: 165 | AU148: 3 NO PACTADOS | AV148: 0 | AW148: 4 NO SE HA ADICIONADO NI EN VALOR y EN TIEMPO | AX148: 0 | BJ148: 2017-07-19 | BK148: 2017-12-31 | BM148: 100 | BN148: 100 | BO148: 100 | BP148: 100 | BR148: ESTRATEGIA ESPECIAL DE MANEJO | BS148: NACION | BT148: 36817 | BU148: 9340650 | BV148: 2017-07-14 | BW148: 60217 | BX148: 9340650 | BY148: 2017-07-19 | BZ148: 0 | CA148: 0 | CB148: 0 | CC148: 0 | CD148: 0 | CE148: 0 | CF148: 679320 | CG148: 1698300 | CH148: 1698300 | CI148: 1698300 | CJ148: 1698300 | CK148: 1698300 | CL148: 9170820 | CM148: 169830 | CP148: CPS | CR148: 2017-12-30
A149: 138 | B149: FILA_138 | C149: 1 SI | E149: 138 | F149: 2017-07-21 | G149: 2 DOS VECES | H149: PRESTACIÓN DE SERVICIOS TECNICOS Y DE APOYO A LA GESTIÓN PARA REALIZAR ACTIVIDADES DE RELACIONAMIENTO Y PARTICIPACIÓN COMUNITARIA ENTRE PNN Y LA COMUNIDAD YANACONA DEL RESGUARDO INDIGENA DE RIOBLANCO RELACIONADAS CON EL FORTALECIMIENNTO DE INICIATIVAS DE DESARROLLO LOCAL SOSTENIBLE EN EL MARCO DEL PROYECTO FINANCIADO POR LA UNIÓN EUROPEA Y PNN DE COLOMBIA | I149: PNN PURACE | J149: 2 CONTRATACIÓN DIRECTA | K149: 14 PRESTACIÓN DE SERVICIOS | M149: CONTRATACIÓN DIRECTA | N149: 80161500 Cód. 80161500 - Servicios de apoyo a la gestión | O149: 9340650 | S149: 1698300 | T149: 1 PERSONA NATURAL | U149: 2 RUT - REGISTRO ÚNICO TRIBUTARIO | V149: 76328872 | X149: 2 DV 1 | Z149: POPAYAN | AA149: ROGER PAZ JIMENEZ | AB149: 1 PÓLIZA | AC149: 2 CUMPLIMIENTO | AD149: 2017-07-25 | AE149: CONFIANZA | AF149: GU142866 | AG149: 2 SUPERVISOR | AN149: 3 CÉDULA DE CIUDADANÍA | AO149: 10537064 | AQ149: 11 NO SE DILIGENCIA INFORMACIÓN PARA ESTE FORMULARIO EN ESTE PERÍODO DE REPORTE | AS149: ISAAC BEDOYA DORADO | AT149: 165 | AU149: 3 NO PACTADOS | AV149: 0 | AW149: 4 NO SE HA ADICIONADO NI EN VALOR y EN TIEMPO | AX149: 0 | BJ149: 2017-07-25 | BK149: 2017-12-31 | BM149: 100 | BN149: 100 | BO149: 100 | BP149: 100 | BR149: ESTRATEGIA ESPECIAL DE MANEJO | BS149: NACION | BT149: 37017 | BU149: 9340650 | BV149: 2017-07-14 | BW149: 61317 | BX149: 9340650 | BY149: 2017-07-25 | BZ149: 0 | CA149: 0 | CB149: 0 | CC149: 0 | CD149: 0 | CE149: 0 | CF149: 339660 | CG149: 1698300 | CH149: 1698300 | CI149: 1698300 | CJ149: 1698300 | CK149: 1698300 | CL149: 8831160 | CM149: 509490 | CP149: CPS | CR149: 2017-12-30
A150: 139 | B150: FILA_139 | C150: 1 SI | E150: 139 | F150: 2017-08-04 | G150: 2 DOS VECES | H150: PRESTACIÓN DE SERVICIOS PROFESIONALES Y DE APOYO A LA GESTIÓN PARA APOYAR TECNICA Y ADMINISTRATIVAMENTE EL FORTALECIMIENTO DE LAS INICIATIVAS DE DESARROLLO LOCAL SOSTENIBLE EN EL PNN NEVADO DEL HUILA, CON FAMILIAS INDIGENAS EN EL MARCO DEL REM | I150: PNN NEVADO DEL HUILA | J150: 2 CONTRATACIÓN DIRECTA | K150: 14 PRESTACIÓN DE SERVICIOS | M150: CONTRATACION DIRECTA | N150: 80161500 Cód. 80161500 - Servicios de apoyo a la gestión | O150: 19769300 | S150: 4090200 | T150: 1 PERSONA NATURAL | U150: 2 RUT - REGISTRO ÚNICO TRIBUTARIO | V150: 46385876 | X150: 5 DV 4 | Z150: SOGAMOSO | AA150: VERONICA TIBADUIZA ROA | AB150: 1 PÓLIZA | AC150: 2 CUMPLIMIENTO | AD150: 2017-08-04 | AE150: SEGUROS DEL ESTADO S.A | AF150: 25-44-101106527 | AG150: 2 SUPERVISOR | AN150: 3 CÉDULA DE CIUDADANÍA | AO150: 79144591 | AQ150: 11 NO SE DILIGENCIA INFORMACIÓN PARA ESTE FORMULARIO EN ESTE PERÍODO DE REPORTE | AS150: SANTIAGO FELIPE DUARTE GOMEZ | AT150: 145 | AU150: 3 NO PACTADOS | AV150: 0 | AW150: 4 NO SE HA ADICIONADO NI EN VALOR y EN TIEMPO | AX150: 0 | BJ150: 2017-08-04 | BK150: 2017-12-28 | BM150: 100 | BN150: 100 | BO150: 100 | BP150: 100 | BR150: ESTRATEGIAS ESPECIALES DE MANEJO | BS150: NACION-UNION EUROPEA | BT150: 39217 | BU150: 19769300 | BV150: 2017-08-03 | BW150: 63017 | BX150: 19769300 | BY150: 2017-08-04 | BZ150: 0 | CA150: 0 | CB150: 0 | CC150: 0 | CD150: 0 | CE150: 0 | CF150: 0 | CG150: 3681180 | CH150: 4090200 | CI150: 4090200 | CJ150: 4090200 | CK150: 3817520 | CL150: 19769300 | CM150: 0 | CP150: CPS | CR150: 2017-12-30
A151: 140 | B151: FILA_140 | C151: 1 SI | E151: 140 | F151: 2017-08-04 | G151: 2 DOS VECES | H151: PRESTACION DE SERVICIOS OPERATIVOS Y DE APOYO A LA GESTIÓN, PARA DESARROLLAR ACTIVIDADES DE ACTUALIZACIÓN DEL REM Y RELACIONAMIENTO ENTRE EL PNN NEVADO DEL HUILA CON LOS RESGUARDOS INDIGENAS DEL AREA DE INFLUENCIA , QUE PERMITA LACANZAR LAS METAS TRAZADAS EN EL PLAN OPERATIVO ANUAL | I151: PNN NEVADO DEL HUILA | J151: 2 CONTRATACIÓN DIRECTA | K151: 14 PRESTACIÓN DE SERVICIOS | M151: CONTRATACION DIRECTA | N151: 80161500 Cód. 80161500 - Servicios de apoyo a la gestión | O151: 5916000 | S151: 1224000 | T151: 1 PERSONA NATURAL | U151: 2 RUT - REGISTRO ÚNICO TRIBUTARIO | V151: 1135939256 | X151: 1 DV 0 | Z151: PLANADAS | AA151: LIDA ESPERANZA ATILLO PAYA | AB151: 1 PÓLIZA | AC151: 2 CUMPLIMIENTO | AD151: 2017-08-04 | AE151: SEGUROS DEL ESTADO S.A | AF151: 25-44-101106523 | AG151: 2 SUPERVISOR | AN151: 3 CÉDULA DE CIUDADANÍA | AO151: 79144591 | AQ151: 11 NO SE DILIGENCIA INFORMACIÓN PARA ESTE FORMULARIO EN ESTE PERÍODO DE REPORTE | AS151: SANTIAGO FELIPE DUARTE GOMEZ | AT151: 145 | AU151: 3 NO PACTADOS | AV151: 0 | AW151: 4 NO SE HA ADICIONADO NI EN VALOR y EN TIEMPO | AX151: 0 | BJ151: 2017-08-04 | BK151: 2017-12-28 | BM151: 100 | BN151: 100 | BO151: 100 | BP151: 100 | BR151: ESTRATEGIAS ESPECIALES DE MANEJO | BS151: NACION-UNION EUROPEA | BT151: 39717 | BU151: 5916000 | BV151: 2017-08-03 | BW151: 62917 | BX151: 5916000 | BY151: 2017-08-04 | BZ151: 0 | CA151: 0 | CB151: 0 | CC151: 0 | CD151: 0 | CE151: 0 | CF151: 0 | CG151: 1101600 | CH151: 1224000 | CI151: 1224000 | CJ151: 1224000 | CK151: 1142400 | CL151: 5916000 | CM151: 0 | CP151: CPS | CR151: 2017-12-30
A152: 141 | B152: FILA_141 | C152: 1 SI | E152: 141 | F152: 2017-08-04 | G152: 2 DOS VECES | H152: PRESTACIÓN DE SERVICIOS PROFESIONALES Y DE APOYO A LA GESTIÓN PARA DINAMIZAR LOS PROCESOS DE RELACIONAMIENTO CON INSTITUCIONES Y AUTORIDADES GUBERNAMENTALES EN EL DEPARTAMENTO DEL TOLIMA, ASI COMO LA FORULACIÓN Y GESTIÓN DE PROYECTOS QUE PROMUEVAN LA CONSOLIDACIÓN DEL CORREDOR DE CORDILLERA CENTRAL, CONFORMADO POR LOS PNN LAS HERMOSAS, NEVADO DEL HUILA Y LOS NEVADOS, AREAS ADSCRITAS A LA DTAO | I152: PNN LAS HERMOSAS, NEVADO DEL HUILA Y LOS NEVADOS | J152: 2 CONTRATACIÓN DIRECTA | K152: 14 PRESTACIÓN DE SERVICIOS | M152: CONTRATACION DIRECTA | N152: 80161500 Cód. 80161500 - Servicios de apoyo a la gestión | O152: 22287000 | S152: 4457400 | T152: 1 PERSONA NATURAL | U152: 2 RUT - REGISTRO ÚNICO TRIBUTARIO | V152: 38600096 | X152: 2 DV 1 | Z152: CALI | AA152: ELISA MARIA MORENO ORTIZ | AB152: 1 PÓLIZA | AC152: 2 CUMPLIMIENTO | AD152: 2017-08-04 | AE152: SEGUROS DEL ESTADO S.A | AF152: 42-44-101102070 | AG152: 2 SUPERVISOR | AN152: 3 CÉDULA DE CIUDADANÍA | AO152: 79121466 | AQ152: 11 NO SE DILIGENCIA INFORMACIÓN PARA ESTE FORMULARIO EN ESTE PERÍODO DE REPORTE | AS152: EFRAIM AUGUSTO RODRIGUEZ VARON | AT152: 150 | AU152: 3 NO PACTADOS | AV152: 0 | AW152: 4 NO SE HA ADICIONADO NI EN VALOR y EN TIEMPO | AX152: 0 | BE152: 445740 | BF152: 3 | BG152: 2017-09-26 | BH152: OTRO SI DE MODIFICACIÓN N°01 AL TIEMPO Y VAOR DEL CPS141 DE 2017 POR EL CUAL SE REDUCE EL VALOR DE $ 445,740MCTE Y SE REDUCE EL PLAZO DE EJECUCIÓN EN (03) DIAS, EL 26/09/2017 | BJ152: 2017-08-04 | BK152: 2017-12-28 | BM152: 100 | BN152: 100 | BO152: 100 | BP152: 100 | BQ152: OTRO SI DE MODIFICACIÓN N°01 AL TIEMPO Y VAOR DEL CPS141 DE 2017 POR EL CUAL SE REDUCE EL VALOR DE $ 445,740MCTE Y SE REDUCE EL PLAZO DE EJECUCIÓN EN (03) DIAS EL 26/09/2017 SE REPORTA EN EL CUARTO TRIMESTRE POR MODIFICACIÓN TODA VEZ QUE NO SE REPORTO EN EL TERCER TRIMESTRE | BR152: ACTORES SINAP/COORDINACION SINAP | BS152: NACION | BT152: 38817 | BU152: 22287000 | BV152: 2017-07-31 | BW152: 63217 | BX152: 22287000 | BY152: 2017-08-04 | BZ152: 0 | CA152: 0 | CB152: 0 | CC152: 0 | CD152: 0 | CE152: 0 | CF152: 0 | CG152: 4011660 | CH152: 4457400 | CI152: 4457400 | CJ152: 4457400 | CK152: 4457400 | CL152: 21841260 | CM152: 0 | CP152: CPS | CR152: 2017-12-30
A153: 142 | B153: FILA_142 | C153: 1 SI | E153: 142 | F153: 2017-08-04 | G153: 2 DOS VECES | H153: PRESTACIÓN DE SERVICIOS TECNICOS Y DE APOYO A LA GESTIÓN, PARA DESARROLLAR ACTIVIDADES DE ACTUALIZACIÓN DEL REGIMEN ESPECIAL DE MANEJO Y APOYO EN EL RELACIONAMIENTO ENTRE EL PNN NEVADO DEL HUILA CON LOS RESGUARDOS INDIGENAS DEL AREA DE INFLUENCIA | I153: PNN NEVADO DEL HUILA | J153: 2 CONTRATACIÓN DIRECTA | K153: 14 PRESTACIÓN DE SERVICIOS | M153: CONTRATACION DIRECTA | N153: 80161500 Cód. 80161500 - Servicios de apoyo a la gestión | O153: 9761400 | S153: 2019600 | T153: 1 PERSONA NATURAL | U153: 2 RUT - REGISTRO ÚNICO TRIBUTARIO | V153: 1109415951 | X153: 9 DV 8 | Z153: PLANADAS | AA153: JORGE PAYA APIO | AB153: 1 PÓLIZA | AC153: 2 CUMPLIMIENTO | AD153: 2017-08-08 | AE153: SEGUROS DEL ESTADO S.A | AF153: 25-44-101106558 | AG153: 2 SUPERVISOR | AN153: 3 CÉDULA DE CIUDADANÍA | AO153: 79144591 | AQ153: 11 NO SE DILIGENCIA INFORMACIÓN PARA ESTE FORMULARIO EN ESTE PERÍODO DE REPORTE | AS153: SANTIAGO FELIPE DUARTE GOMEZ | AT153: 145 | AU153: 3 NO PACTADOS | AV153: 0 | AW153: 4 NO SE HA ADICIONADO NI EN VALOR y EN TIEMPO | AX153: 0 | BJ153: 2017-08-08 | BK153: 2017-12-31 | BM153: 100 | BN153: 100 | BO153: 100 | BP153: 100 | BR153: ESTRATEGIAS ESPECIALES DE MANEJO | BS153: NACION | BT153: 40117 | BU153: 9761400 | BV153: 2017-08-04 | BW153: 63117 | BX153: 9761400 | BY153: 2017-08-04 | BZ153: 0 | CA153: 0 | CB153: 0 | CC153: 0 | CD153: 0 | CE153: 0 | CF153: 0 | CG153: 1548360 | CH153: 2019600 | CI153: 2019600 | CJ153: 2019600 | CK153: 2019600 | CL153: 9626760 | CM153: 134640 | CP153: CPS | CR153: 2017-12-30
A154: 143 | B154: FILA_143 | C154: 1 SI | E154: 143 | F154: 2017-08-17 | G154: 2 DOS VECES | H154: PRESTACIÓN DE SERVICIOS OPERATIVOS Y DE APOYO ALA GESTIÓN EN LA EJECUCIÓN DE ACTIVIDADES DE PREVENCIÓN, CONTROL Y VIGILANCIA,ASI COMO REALIZACIÓN DE ACTIVIDADES QUE FORTALEZCAN LA PRESENCIA INSTITUCIONAL EN EL SFF GALERAS Y SU AREA DE INFLUENCIA | I154: SFF GALERAS | J154: 2 CONTRATACIÓN DIRECTA | K154: 14 PRESTACIÓN DE SERVICIOS | M154: CONTRATACION DIRECTA | N154: 80161500 Cód. 80161500 - Servicios de apoyo a la gestión | O154: 3223200 | S154: 1224000 | T154: 1 PERSONA NATURAL | U154: 2 RUT - REGISTRO ÚNICO TRIBUTARIO | V154: 87490574 | X154: 4 DV 3 | Z154: CONSACA | AA154: FRANCIS BERNEL GOMEZ ORDOÑEZ | AB154: 1 PÓLIZA | AC154: 2 CUMPLIMIENTO | AD154: 2017-08-23 | AE154: SEGUROS DEL ESTADO S.A | AF154: 41-44-101192217 | AG154: 2 SUPERVISOR | AN154: 3 CÉDULA DE CIUDADANÍA | AO154: 30705143 | AQ154: 11 NO SE DILIGENCIA INFORMACIÓN PARA ESTE FORMULARIO EN ESTE PERÍODO DE REPORTE | AS154: NANCY LOPEZ DE VILES | AT154: 79 | AU154: 3 NO PACTADOS | AV154: 0 | AW154: 3 ADICIÓN EN VALOR y EN TIEMPO | AX154: 1387200 | AY154: 2017-11-07 | AZ154: 34 | BA154: 2017-11-07 | BJ154: 2017-08-23 | BK154: 2017-12-15 | BM154: 100 | BN154: 100 | BO154: 100 | BP154: 100 | BQ154: ADICION Y PRORROGA N°01 AL CPS143/2017 POR EL CUAL SE ADICIONA LA SUMA DE $1.387.200 Y SE PRORROGA EL PLAZO DE EJECUCIÓN POR 1 MES Y 4 DIAS EL 07/11/2017 | BR154: AUTORIDAD AMBIENTAL | BS154: NACION | BT154: 41517 | BU154: 3223200 | BV154: 2017-08-16 | BW154: 68017 | BX154: 3223200 | BY154: 2017-08-22 | BZ154: 0 | CA154: 0 | CB154: 0 | CC154: 0 | CD154: 0 | CE154: 0 | CF154: 0 | CG154: 326400 | CH154: 1224000 | CI154: 1224000 | CJ154: 1224000 | CK154: 612000 | CL154: 4610400 | CM154: 0 | CP154: CPS | CR154: 2017-12-30
A155: 144 | B155: FILA_144 | C155: 1 SI | E155: 144 | F155: 2017-08-23 | G155: 2 DOS VECES | H155: CONTRATO DE PRESTACIÓN DE SERVICIOS PROFESIONALES Y DE APOYO A LA GESTIÓN PARA ADELANTAR PROCESOS QUE FACILITEN LA ACTUALIZACIÓN E IMPLEMENTACIÓN DEL PLAN DE MANEJO DE PNN LAS HERMOSAS- GLORIA VALENCIA, ESPECIALMENTE EN LA LINEA ESTRATEGICA DE SINAP | I155: PNN LAS HERMOSAS | J155: 2 CONTRATACIÓN DIRECTA | K155: 14 PRESTACIÓN DE SERVICIOS | M155: CONTRATACION DIRECTA | N155: 80161500 Cód. 80161500 - Servicios de apoyo a la gestión | O155: 15265080 | S155: 4090200 | T155: 1 PERSONA NATURAL | U155: 2 RUT - REGISTRO ÚNICO TRIBUTARIO | V155: 1113630740 | X155: 7 DV 6 | Z155: PALMIRA | AA155: YULY CAROLINA RAMIREZ MANCILLA | AB155: 1 PÓLIZA | AC155: 2 CUMPLIMIENTO | AD155: 2017-08-23 | AE155: SEGUROS DEL ESTADO S.A | AF155: 45-44-101086014 | AG155: 2 SUPERVISOR | AN155: 3 CÉDULA DE CIUDADANÍA | AO155: 79576238 | AQ155: 11 NO SE DILIGENCIA INFORMACIÓN PARA ESTE FORMULARIO EN ESTE PERÍODO DE REPORTE | AS155: GERMAN ALBERTO RODRIGUEZ PENAGOS | AT155: 112 | AU155: 3 NO PACTADOS | AV155: 0 | AW155: 4 NO SE HA ADICIONADO NI EN VALOR y EN TIEMPO | AX155: 0 | BJ155: 2017-08-23 | BK155: 2017-12-14 | BM155: 100 | BN155: 100 | BO155: 100 | BP155: 100 | BR155: ACTORES SINAP/COORDINACION SINAP | BS155: NACION | BT155: 40017 | BU155: 15265080 | BV155: 2017-08-04 | BW155: 68717 | BX155: 15265080 | BY155: 2017-08-23 | BZ155: 0 | CA155: 0 | CB155: 0 | CC155: 0 | CD155: 0 | CE155: 0 | CF155: 0 | CG155: 1090720 | CH155: 4090200 | CI155: 4090200 | CJ155: 4090200 | CK155: 1903760 | CL155: 15265080 | CM155: 0 | CP155: CPS | CR155: 2017-12-30
A156: 145 | B156: FILA_145 | C156: 1 SI | E156: 145 | F156: 2017-09-01 | G156: 2 DOS VECES | H156: PRESTACION DE SERVICIOS PROFESIONALES Y DE APOYO A LA GESTIÓN PARA EL BUEN FUNCIONAMEINTO Y DESARROLLO DE ACCIONES QUE CONTRIBUYAN A LA CONSERVACIÓN DEL PNNNHU, A TRAVES DE ESTRATEGIAS ESPECIALES DE MANEJO CON LA COMUNIDAD INDIGENA DE GAITANIA-TOLIMA | I156: PNN NEVADO DEL HUILA | J156: 2 CONTRATACIÓN DIRECTA | K156: 14 PRESTACIÓN DE SERVICIOS | M156: CONTRATACION DIRECTA | N156: 80161500 Cód. 80161500 - Servicios de apoyo a la gestión | O156: 11531100 | S156: 3294600 | T156: 1 PERSONA NATURAL | U156: 2 RUT - REGISTRO ÚNICO TRIBUTARIO | V156: 53080988 | X156: 7 DV 6 | Z156: BOGOTA | AA156: VIVIANA MARCELA GOMEZ ANGARITA | AB156: 1 PÓLIZA | AC156: 2 CUMPLIMIENTO | AD156: 2017-09-05 | AE156: SEGUROS DEL ESTADO | AF156: 25-44-101107252 | AG156: 2 SUPERVISOR | AN156: 3 CÉDULA DE CIUDADANÍA | AO156: 79144591 | AQ156: 11 NO SE DILIGENCIA INFORMACIÓN PARA ESTE FORMULARIO EN ESTE PERÍODO DE REPORTE | AS156: SANTIAGO FELIPE DUARTE GOMEZ | AT156: 105 | AU156: 3 NO PACTADOS | AV156: 0 | AW156: 4 NO SE HA ADICIONADO NI EN VALOR y EN TIEMPO | AX156: 0 | BJ156: 2017-09-05 | BK156: 2017-12-19 | BM156: 100 | BN156: 100 | BO156: 100 | BP156: 100 | BR156: ESTRATEGIAS ESPECIALES DE MANEJO | BS156: NACION | BT156: 43917 | BU156: 11531100 | BV156: 2017-09-01 | BW156: 71117 | BX156: 11531100 | BY156: 2017-09-01 | BZ156: 0 | CA156: 0 | CB156: 0 | CC156: 0 | CD156: 0 | CE156: 0 | CF156: 0 | CG156: 0 | CH156: 2855320 | CI156: 3294600 | CJ156: 3294600 | CK156: 2086580 | CL156: 11531100 | CM156: 0 | CP156: CPS | CR156: 2017-12-30
A157: 146 | B157: FILA_146 | C157: 1 SI | E157: 146 | F157: 2017-09-25 | G157: 2 DOS VECES | H157: PRESTACION DE SERVICIOS PROFESIONALES Y DE APOYO COMO PROFESIONAL PARA REALIZAR EL ANALISIS DIAGNOSTICO DE LAS SITUACIONES DE MANEJO, AMANEZAS Y PRESIONES ASOCIADAS AL USO, OCUPACIÓN Y LA ATENENCIA EN ARTICULACIÓN CON LAS AREAS PROTEGIDAS Y ESTRATEGIAS NACIONALE SY REGIONALES DE CONSERVACIÓN, LOS SUBSISTEMAS REGIONALES DE AREAS PROTEGIDAS DE LA REGIÓN ANDES OCCIDENTALES Y LOS PROCEOSO TERRITORIALES DE ORDENAMIENTO AMBIENTAL INTEGRADOS AL SINAP, IMPLEMENTANDO ACCIONES DE MANEJO ENTRE LAS QUE SE INCLUYEN LA RESTAURACIÓN ECOLOGICA, PROPUESTAS ENTORNO A LOS SISTEMAS SOSTENIBLES PARA LA CONSERVCAIÓN, Y ACCIONES PARA LA PREVENCIÓN A NUEVAS OCUPACIONES | I157: DTAO | J157: 2 CONTRATACIÓN DIRECTA | K157: 14 PRESTACIÓN DE SERVICIOS | M157: CONTRATACION DIRECTA | N157: 80161500 Cód. 80161500 - Servicios de apoyo a la gestión | O157: 13300800 | S157: 4987800 | T157: 1 PERSONA NATURAL | U157: 2 RUT - REGISTRO ÚNICO TRIBUTARIO | V157: 75087833 | X157: 6 DV 5 | Z157: MANIZALES | AA157: JORGE IVAN BEDOYA ZULUAGA | AB157: 1 PÓLIZA | AC157: 2 CUMPLIMIENTO | AD157: 2017-09-27 | AE157: SEGUROS DEL ESTADO S.A.S | AF157: 65-44-101150761 | AG157: 2 SUPERVISOR | AN157: 3 CÉDULA DE CIUDADANÍA | AO157: 10282381 | AQ157: 11 NO SE DILIGENCIA INFORMACIÓN PARA ESTE FORMULARIO EN ESTE PERÍODO DE REPORTE | AS157: JORGE EDUARDO CEBALLOS BETANCUR | AT157: 82 | AU157: 3 NO PACTADOS | AV157: 0 | AW157: 4 NO SE HA ADICIONADO NI EN VALOR y EN TIEMPO | AX157: 0 | BJ157: 2017-09-27 | BK157: 2017-12-16 | BM157: 100 | BN157: 100 | BO157: 100 | BP157: 100 | BR157: ACTORES SINAP/COORDINACIÓN SINAP | BS157: NACION | BT157: 47017 | BU157: 13300800 | BV157: 2017-09-25 | BW157: 77317 | BX157: 13300800 | BY157: 2017-09-27 | BZ157: 0 | CA157: 0 | CB157: 0 | CC157: 0 | CD157: 0 | CE157: 0 | CF157: 0 | CG157: 0 | CH157: 665040 | CI157: 4987800 | CJ157: 4987800 | CK157: 2660160 | CL157: 13300800 | CM157: 0 | CP157: CPS | CR157: 2017-12-30
A158: 147 | B158: FILA_147 | C158: 1 SI | E158: 147 | F158: 2017-10-10 | G158: 1 PRIMER VEZ | H158: PRESTAR LOS SERVICIOS TECNICOS Y DE APOYO A LA GESTIÓN ADMINISTRATIVA Y FINANCIERA EN TODO LO RELACIONADO CON EL AREA DE PAGADURIA DE LA DTAO | I158: DTAO | J158: 2 CONTRATACIÓN DIRECTA | K158: 14 PRESTACIÓN DE SERVICIOS | M158: CONTRATACION DIRECTA | N158: 80161500 Cód. 80161500 - Servicios de apoyo a la gestión | O158: 2830500 | S158: 1698300 | T158: 1 PERSONA NATURAL | U158: 2 RUT - REGISTRO ÚNICO TRIBUTARIO | V158: 1128422640 | X158: 1 DV 0 | Z158: MEDELLIN | AA158: STEPHANIE RUA MARTINEZ | AB158: 1 PÓLIZA | AC158: 2 CUMPLIMIENTO | AD158: 2017-10-11 | AE158: SEGUROS DEL ESTADO | AF158: 65-44-101151230 | AG158: 2 SUPERVISOR | AN158: 3 CÉDULA DE CIUDADANÍA | AO158: 24582254 | AQ158: 11 NO SE DILIGENCIA INFORMACIÓN PARA ESTE FORMULARIO EN ESTE PERÍODO DE REPORTE | AS158: MONICA MARIA RODRIGUEZ ARIAS | AT158: 50 | AU158: 3 NO PACTADOS | AV158: 0 | AW158: 3 ADICIÓN EN VALOR y EN TIEMPO | AX158: 622710 | AY158: 2017-11-30 | AZ158: 11 | BA158: 2017-11-30 | BJ158: 2017-10-11 | BK158: 2017-12-11 | BM158: 100 | BN158: 100 | BO158: 100 | BP158: 100 | BQ158: ADICION Y PRORROGA #01 AL CPS147/2017 POR EL CUAL SE ADICIONA LA SUMA DE $622.710 Y SE PRORROGA EL PLAZO DE EJECUCIÓN POR (11) DIAS MAS EL 30/11/2017 | BR158: PLANEACION INTERNA/FORTALECIMIENTO | BS158: NACION | BT158: 48217 | BU158: 2830500 | BV158: 2017-10-10 | BW158: 79817 | BX158: 2830500 | BY158: 2017-10-10 | BZ158: 0 | CA158: 0 | CB158: 0 | CC158: 0 | CD158: 0 | CE158: 0 | CF158: 0 | CG158: 0 | CH158: 0 | CI158: 1132200 | CJ158: 1698300 | CK158: 622710 | CL158: 3453210 | CM158: 0 | CP158: CPS | CR158: 2017-12-30
A159: 148 | B159: FILA_148 | C159: 1 SI | E159: 148 | F159: 2017-10-20 | G159: 1 PRIMER VEZ | H159: PRESTACION DE SERVICIOS OPERATIVOS Y DE APOYO A LA GESTION DEL PNN SELVA DE FLORENCIA, PARA LA REALIZACIÓN DE ACTIVIDADES ENCAMINADAS AL MONITOREO DEL ESTADO Y PRESIONES SOBRE LOS VALORES OBJETO DE CONSERVACIÓN DEFINIDOS AL INTERIOR DEL PARQUE Y A LA IMPLEMENTACIÓN DEL PLAN LOCAL DE PREVENCIÓN, VIGILANCIA Y CONTROL, CON LA FINALIDAD DE MEJORAR LA EFECTIVIDAD EN LA ADMINISTRACIÓN Y MANEJO DEL AREA PROTEGIDA. | I159: PNN SELVA DE FLORENCIA | J159: 2 CONTRATACIÓN DIRECTA | K159: 14 PRESTACIÓN DE SERVICIOS | M159: CONTRATACION DIRECTA | N159: 80161500 Cód. 80161500 - Servicios de apoyo a la gestión | O159: 2448000 | S159: 1224000 | T159: 1 PERSONA NATURAL | U159: 2 RUT - REGISTRO ÚNICO TRIBUTARIO | V159: 1058842842 | X159: 2 DV 1 | Z159: PENSILVANIA | AA159: ASMID BERNAL GUZMAN | AB159: 1 PÓLIZA | AC159: 2 CUMPLIMIENTO | AD159: 2017-10-23 | AE159: LIBERTY SEGUROS | AF159: 2853344 | AG159: 2 SUPERVISOR | AN159: 3 CÉDULA DE CIUDADANÍA | AO159: 10258001 | AQ159: 11 NO SE DILIGENCIA INFORMACIÓN PARA ESTE FORMULARIO EN ESTE PERÍODO DE REPORTE | AS159: HUGO FERNANDO BALLESTEROS BOTERO | AT159: 60 | AU159: 3 NO PACTADOS | AV159: 0 | AW159: 4 NO SE HA ADICIONADO NI EN VALOR y EN TIEMPO | AX159: 0 | BJ159: 2017-10-23 | BK159: 2017-12-22 | BM159: 100 | BN159: 100 | BO159: 100 | BP159: 100 | BR159: CONOCIMIENTO VOC | BS159: NACION | BT159: 49917 | BU159: 2448000 | BV159: 2017-10-20 | BW159: 83217 | BX159: 2448000 | BY159: 2017-10-23 | BZ159: 0 | CA159: 0 | CB159: 0 | CC159: 0 | CD159: 0 | CE159: 0 | CF159: 0 | CG159: 0 | CH159: 0 | CI159: 326400 | CJ159: 1224000 | CK159: 897600 | CL159: 2448000 | CM159: =O159+AX159-BE159-BZ159-CA159-CB159-CC159-CD159-CE159-CF159-CG159-CH159-CI159-CJ159-CK159 -> 0 | CP159: CPS | CR159: 2017-12-30
A160: 149 | B160: FILA_149 | C160: 1 SI | E160: 149 | F160: 2017-10-23 | G160: 1 PRIMER VEZ | H160: PRESTAR LOS SERVICIOS PROFESIONALES Y DE APOYO A LA GESTION ENE L AREA DE CONTRATOS DE LA DTAO DE PNN DE COLOMBIA CON LA FINALIDAD DE DAR CUMPLIMIENTO A LAS METAS Y OBJETIVOS INSTITUCIONALES Y FORTALECER LA GESTIÓN JURIDICA ADMINISTRATIVA DE LA NETIDAD | I160: DTAO | J160: 2 CONTRATACIÓN DIRECTA | K160: 14 PRESTACIÓN DE SERVICIOS | M160: CONTRATACION DIRECTA | N160: 80161500 Cód. 80161500 - Servicios de apoyo a la gestión | O160: 3800000 | S160: 3000000 | T160: 1 PERSONA NATURAL | U160: 2 RUT - REGISTRO ÚNICO TRIBUTARIO | V160: 1152688208 | X160: 1 DV 0 | Z160: MEDELLIN | AA160: CRISTINA OROZCO CANTOR | AB160: 1 PÓLIZA | AC160: 2 CUMPLIMIENTO | AD160: 2017-10-23 | AE160: SEGUROS DEL ESTADO | AF160: 65-44-101151464 | AG160: 2 SUPERVISOR | AN160: 3 CÉDULA DE CIUDADANÍA | AO160: 24582254 | AQ160: 11 NO SE DILIGENCIA INFORMACIÓN PARA ESTE FORMULARIO EN ESTE PERÍODO DE REPORTE | AS160: MONICA MARIA RODRIGUEZ ARIAS | AT160: 38 | AU160: 3 NO PACTADOS | AV160: 0 | AW160: 3 ADICIÓN EN VALOR y EN TIEMPO | AX160: 1100000 | AY160: 2017-11-30 | AZ160: 11 | BA160: 2017-11-30 | BJ160: 2017-10-23 | BK160: 2017-12-11 | BM160: 100 | BN160: 100 | BO160: 100 | BP160: 100 | BQ160: ADICION Y PRORROGA #01 AL COS149/2017 POR EL CUAL SE ADICIONA LA SUMA DE $1.100.000 Y EN TIEMPO POR (11) DIAS MAS EL 30/11/2017 | BR160: PLANEACIÓN INTERNA/FORTALECIMIENTO | BS160: NACION | BT160: 50517 | BU160: 3800000 | BV160: 2017-10-23 | BW160: 83517 | BX160: 3800000 | BY160: 2017-10-23 | BZ160: 0 | CA160: 0 | CB160: 0 | CC160: 0 | CD160: 0 | CE160: 0 | CF160: 0 | CG160: 0 | CH160: 0 | CI160: 800000 | CJ160: 3000000 | CK160: 1100000 | CL160: 4900000 | CM160: 0 | CP160: CPS | CR160: 2017-12-30
A161: 150 | B161: FILA_150 | C161: 1 SI | E161: 150 | F161: 2017-11-27 | G161: 1 PRIMER VEZ | H161: PRESTACION DE SERVICIOS PROFESIONALES Y DE PAOYO A LA GESTION TECNICA PARA LA RESOLUCION DE CONFLICTOS POR USO, OCUPACION Y TENENCIA CON FAMILIAS CAMPESINAS RELACIONADAS CON EL PNN NEVADO DEL HUILA, ELABORANDO LA CARACTERIZACION Y ZONIFICACION DE USOS DE LOS PREDIOS DEL SECTOR TOLIMA EN EL MUNICIPIO DE PLANADAS EN EL MARCO DEL INDICADOR 1 DEL APOYO PRESUPUESTRAIO DE LA UE | I161: PNN NEVADO DEL HUILA | J161: 2 CONTRATACIÓN DIRECTA | K161: 14 PRESTACIÓN DE SERVICIOS | M161: CONTRATACION DIRECTA | N161: 80161500 Cód. 80161500 - Servicios de apoyo a la gestión | O161: 3306160 | S161: 2917200 | T161: 1 PERSONA NATURAL | U161: 2 RUT - REGISTRO ÚNICO TRIBUTARIO | V161: 1077841945 | X161: 5 DV 4 | Z161: GARZON | AA161: DIANA MARIBEL OVIEDO VEGA | AB161: 1 PÓLIZA | AC161: 2 CUMPLIMIENTO | AD161: 2017-11-28 | AE161: ASEGURADORA SOLIDARIA | AF161: 480-47-994000033978 | AG161: 2 SUPERVISOR | AN161: 3 CÉDULA DE CIUDADANÍA | AO161: 79144591 | AQ161: 11 NO SE DILIGENCIA INFORMACIÓN PARA ESTE FORMULARIO EN ESTE PERÍODO DE REPORTE | AS161: SANTIAGO FELIPE DUARTE GOMEZ | AT161: 34 | AU161: 3 NO PACTADOS | AV161: 0 | AW161: 4 NO SE HA ADICIONADO NI EN VALOR y EN TIEMPO | AX161: 0 | BJ161: 2017-11-28 | BK161: 2017-12-31 | BM161: 100 | BN161: 100 | BO161: 100 | BP161: 100 | BR161: SANEAMIENTO | BS161: NACION-UNION EUROPEA | BT161: 54117 | BU161: 4375800 | BV161: 2017-11-16 | BW161: 92417 | BX161: 3306160 | BY161: 2017-11-28 | BZ161: 0 | CA161: 0 | CB161: 0 | CC161: 0 | CD161: 0 | CE161: 0 | CF161: 0 | CG161: 0 | CH161: 0 | CI161: 0 | CJ161: 291720 | CK161: 2917200 | CL161: 3208920 | CM161: 97240 | CP161: CPS | CR161: 2017-12-30
A162: 151 | B162: FILA_151 | C162: 1 SI | E162: 151 | F162: 2017-11-28 | G162: 1 PRIMER VEZ | H162: PRESTACION DE SERVICIOS OPERATIVOS PARA LA RESOLUCION DE CONFLICTOS POER USO, OCUPACION Y TENENCIA CON FAMILIAS CAMPESINAS DEL PNN NEVADO DEL HUILA, REALIZANDO ACOMPAÑAMIENTO A LOS ESCENARIOS DE DIALOGO Y CONCERTACIÓN; Y ELABORANDO LA CARACTERIZACIÓN ZONIFICACION GEOREFERENCIADA DE LOS PREDIOS DEL SECTOR JERUSALEN, EN EL MUNICIPIO DE SANTA MARIA HUILA EN EL MARCO DEL INDICADOR 1 DEL APOYO PRESUPUESTARIO DE LA UE | I162: PNN NEVADO DEL HUILA | J162: 2 CONTRATACIÓN DIRECTA | K162: 14 PRESTACIÓN DE SERVICIOS | M162: CONTRATACION DIRECTA | N162: 80161500 Cód. 80161500 - Servicios de apoyo a la gestión | O162: 1387200 | S162: 1224000 | T162: 1 PERSONA NATURAL | U162: 2 RUT - REGISTRO ÚNICO TRIBUTARIO | V162: 1079607270 | X162: 8 DV 7 | Z162: SANTA MARIA | AA162: DILAN ARBEY SAENZ BENAVIDES | AB162: 1 PÓLIZA | AC162: 2 CUMPLIMIENTO | AD162: 2017-11-29 | AE162: COMPAÑÍA MUNDIAL DE SEGUROS S.A | AF162: NV-100008548 | AG162: 2 SUPERVISOR | AN162: 3 CÉDULA DE CIUDADANÍA | AO162: 79144591 | AQ162: 11 NO SE DILIGENCIA INFORMACIÓN PARA ESTE FORMULARIO EN ESTE PERÍODO DE REPORTE | AS162: SANTIAGO FELIPE DUARTE GOMEZ | AT162: 34 | AU162: 3 NO PACTADOS | AV162: 0 | AW162: 4 NO SE HA ADICIONADO NI EN VALOR y EN TIEMPO | AX162: 0 | BJ162: 2017-11-29 | BK162: 2017-12-31 | BM162: 100 | BN162: 100 | BO162: 100 | BP162: 100 | BR162: SANEAMIENTO | BS162: NACION-UE | BT162: 55717 | BU162: 1387200 | BV162: 2017-11-23 | BW162: 92517 | BX162: 1387200 | BY162: 2017-11-28 | BZ162: 0 | CA162: 0 | CB162: 0 | CC162: 0 | CD162: 0 | CE162: 0 | CF162: 0 | CG162: 0 | CH162: 0 | CI162: 0 | CJ162: 81600 | CK162: 1224000 | CL162: 1305600 | CM162: 81600 | CP162: CPS | CR162: 2017-12-30
A163: 152 | B163: FILA_152 | C163: 1 SI | E163: 152 | F163: 2017-11-28 | G163: 1 PRIMER VEZ | H163: PRESTACION DE SERVICIOS TECNICOS PARA APOYAR LOS PROCESOS DE RESOLUCIÓN DE CONFLICTOS POR USO, OCUPACION Y TENENCIA CON FAMILIAS CAMPESINAS RELACIONADAS CON EL PNN NEVADO DEL HUILA EN EL MARCO DEL INDICADOOR 1 DEL APOYO PRESUPUESTRAIO DE LA UE | I163: PNN NEVADO DEL HUILA | J163: 2 CONTRATACIÓN DIRECTA | K163: 14 PRESTACIÓN DE SERVICIOS | M163: CONTRATACION DIRECTA | N163: 80161500 Cód. 80161500 - Servicios de apoyo a la gestión | O163: 1924740 | S163: 1698300 | T163: 1 PERSONA NATURAL | U163: 2 RUT - REGISTRO ÚNICO TRIBUTARIO | V163: 1079605917 | X163: 5 DV 4 | Z163: SANTA MARIA | AA163: JOSE FERNEY RUIZ SOLANO | AB163: 1 PÓLIZA | AC163: 2 CUMPLIMIENTO | AD163: 2017-11-29 | AE163: COMPAÑÍA MUNDIAL DE SEGUROS S.A | AF163: NV-100008550 | AG163: 2 SUPERVISOR | AN163: 3 CÉDULA DE CIUDADANÍA | AO163: 79144591 | AQ163: 11 NO SE DILIGENCIA INFORMACIÓN PARA ESTE FORMULARIO EN ESTE PERÍODO DE REPORTE | AS163: SANTIAGO FELIPE DUARTE GOMEZ | AT163: 34 | AU163: 3 NO PACTADOS | AV163: 0 | AW163: 4 NO SE HA ADICIONADO NI EN VALOR y EN TIEMPO | AX163: 0 | BJ163: 2017-11-29 | BK163: 2017-12-31 | BM163: 100 | BN163: 100 | BO163: 100 | BP163: 100 | BR163: SANEAMIENTO | BS163: NACION-UE | BT163: 55917 | BU163: 1924740 | BV163: 2017-11-23 | BW163: 92717 | BX163: 1924740 | BY163: 2017-11-29 | BZ163: 0 | CA163: 0 | CB163: 0 | CC163: 0 | CD163: 0 | CE163: 0 | CF163: 0 | CG163: 0 | CH163: 0 | CI163: 0 | CJ163: 113220 | CK163: 1698300 | CL163: 1811520 | CM163: 113220 | CP163: CPS | CR163: 2017-12-30
A164: 153 | B164: FILA_153 | C164: 1 SI | E164: 153 | F164: 2017-11-28 | G164: 1 PRIMER VEZ | H164: PRESTACION DE SERVICIOS OPERTAIVOS Y DE APOYO PARA LA RESOLUCION DE CONFLICTOS POR USO, OCUPACION Y TENENCIA CON FAMILIAS CAMPESINAS RELACIONADAS CON EL PNN NEVADO DEL HUILA REALIZANDO ACOMPAÑAMIENTO A LOS ESCENARIOS DE DIALOGO Y CONCERTACIÓN ; Y ELABORANDO LA CARACTERIZACION Y ZONIFICACION GEOREFERENCIADA DE LOS PREDIOS DEL SECTOR SAN FRANCISCO, EN EL MUNICIPIO DE SANTA MARIA HUILA EN EL MARCO DEL INDICADOR 1 DEL APOYO PRESUPUESTARIO DE LA UE | I164: PNN NEVADO DEL HUILA | J164: 2 CONTRATACIÓN DIRECTA | K164: 14 PRESTACIÓN DE SERVICIOS | M164: CONTRATACION DIRECTA | N164: 80161500 Cód. 80161500 - Servicios de apoyo a la gestión | O164: 1387200 | S164: 1224000 | T164: 1 PERSONA NATURAL | U164: 2 RUT - REGISTRO ÚNICO TRIBUTARIO | V164: 1079608355 | X164: 10 DV 9 | Z164: SANTA MARIA | AA164: ELIANA LORENA MANJARREZ CASTRO | AB164: 1 PÓLIZA | AC164: 2 CUMPLIMIENTO | AD164: 2017-11-29 | AE164: COMPAÑÍA MUNDIAL DE SEGUROS S.A | AF164: NV-100008549 | AG164: 2 SUPERVISOR | AN164: 3 CÉDULA DE CIUDADANÍA | AO164: 79144591 | AQ164: 11 NO SE DILIGENCIA INFORMACIÓN PARA ESTE FORMULARIO EN ESTE PERÍODO DE REPORTE | AS164: SANTIAGO FELIPE DUARTE GOMEZ | AT164: 34 | AU164: 3 NO PACTADOS | AV164: 0 | AW164: 4 NO SE HA ADICIONADO NI EN VALOR y EN TIEMPO | AX164: 0 | BJ164: 2017-11-29 | BK164: 2017-12-31 | BM164: 100 | BN164: 100 | BO164: 100 | BP164: 100 | BR164: SANEAMIENTO | BS164: NACION-UE | BT164: 56017 | BU164: 1387200 | BV164: 2017-11-23 | BW164: 93617 | BX164: 1387200 | BY164: 2017-11-30 | BZ164: 0 | CA164: 0 | CB164: 0 | CC164: 0 | CD164: 0 | CE164: 0 | CF164: 0 | CG164: 0 | CH164: 0 | CI164: 0 | CJ164: 81600 | CK164: 1224000 | CL164: 1305600 | CM164: 81600 | CP164: CPS | CR164: 2017-12-30
A165: 154 | B165: FILA_154 | C165: 1 SI | E165: 154 | F165: 2017-11-28 | G165: 1 PRIMER VEZ | H165: PRESTACION DE SERVICIOS PROFESIONALES Y DE APOYO A LA GESTIÓN PARA LA RESOLUCION DE CONFLICTOS POR USO, OCUPACION Y TENENCIA CON FAMILIAS CAMPESINAS RELACIONADAS AL PNN NEVADO DEL HUILA , ELABORANDO LA ZONIFICACION DE USOS Y ESTUDIO BIOFISICO DE PREDIOS DEL SECTOR HUILA, EN EL MUNICIPIO DE SANTA MARIA EN EL MARCO DEL INDICADOR 1 DEL APOYO PRESUPUESTRAIO DE LA UE | I165: PNN NEVADO DEL HUILA | J165: 2 CONTRATACIÓN DIRECTA | K165: 14 PRESTACIÓN DE SERVICIOS | M165: CONTRATACION DIRECTA | N165: 80161500 Cód. 80161500 - Servicios de apoyo a la gestión | O165: 3306160 | S165: 2917200 | T165: 1 PERSONA NATURAL | U165: 2 RUT - REGISTRO ÚNICO TRIBUTARIO | V165: 1079604725 | X165: 3 DV 2 | Z165: SANTA MARIA | AA165: MAYA ALEXANDRA ANDRADE BELTRAN | AB165: 1 PÓLIZA | AC165: 2 CUMPLIMIENTO | AD165: 2017-11-29 | AE165: COMPAÑÍA MUNDIAL DE SEGUROS S.A | AF165: NV-100008554 | AG165: 2 SUPERVISOR | AN165: 3 CÉDULA DE CIUDADANÍA | AO165: 79144591 | AQ165: 11 NO SE DILIGENCIA INFORMACIÓN PARA ESTE FORMULARIO EN ESTE PERÍODO DE REPORTE | AS165: SANTIAGO FELIPE DUARTE GOMEZ | AT165: 34 | AU165: 3 NO PACTADOS | AV165: 0 | AW165: 4 NO SE HA ADICIONADO NI EN VALOR y EN TIEMPO | AX165: 0 | BJ165: 2017-11-29 | BK165: 2017-12-31 | BM165: 100 | BN165: 100 | BO165: 100 | BP165: 100 | BR165: SANEAMIENTO | BS165: NACION-UNION EUROPEA | BT165: 56117 | BU165: 3306160 | BV165: 2017-11-23 | BW165: 92917 | BX165: 3306160 | BY165: 2017-11-29 | BZ165: 0 | CA165: 0 | CB165: 0 | CC165: 0 | CD165: 0 | CE165: 0 | CF165: 0 | CG165: 0 | CH165: 0 | CI165: 0 | CJ165: 194480 | CK165: 2917200 | CL165: 3111680 | CM165: 194480 | CP165: CPS | CR165: 2017-12-30
A166: 155 | B166: FILA_155 | C166: 1 SI | E166: 155 | F166: 2017-11-28 | G166: 1 PRIMER VEZ | H166: PRESTACION DE SERVICIOS OPERATIVOS PARA APORTAR A LA RESOLUCION DE CONFLICTOS POR USO, OCUPACION Y TENENCIA RELACIONADAS CON EL PNN NEVADO DEL HUILA, REALIZANDO ACOMPAÑAMIENTO A LOS ESCENARIOS DE DIALOGO Y CONCERTACION; ELABORANDO LA CARACTERIZACION Y ZONIFICACION GEOREFERENCIADA DE LOS PREDIOS DEL SECTOR BACHECITO EN EL MUNICIPIO DE SANTA MARIA HUILA EN EL MARCO DEL INDICADOR 1 DEL APOYO | I166: PNN NEVADO DEL HUILA | J166: 2 CONTRATACIÓN DIRECTA | K166: 14 PRESTACIÓN DE SERVICIOS | M166: CONTRATACION DIRECTA | N166: 80161500 Cód. 80161500 - Servicios de apoyo a la gestión | O166: 1387200 | S166: 1224000 | T166: 1 PERSONA NATURAL | U166: 2 RUT - REGISTRO ÚNICO TRIBUTARIO | V166: 83117111 | X166: 6 DV 5 | Z166: SANTA MARIA | AA166: EUCLIDES RAMIREZ BARRERO | AB166: 1 PÓLIZA | AC166: 2 CUMPLIMIENTO | AD166: 2017-11-29 | AE166: COMPAÑÍA MUNDIAL DE SEGUROS S.A | AF166: NV-100008552 | AG166: 2 SUPERVISOR | AN166: 3 CÉDULA DE CIUDADANÍA | AO166: 79144591 | AQ166: 11 NO SE DILIGENCIA INFORMACIÓN PARA ESTE FORMULARIO EN ESTE PERÍODO DE REPORTE | AS166: SANTIAGO FELIPE DUARTE GOMEZ | AT166: 34 | AU166: 3 NO PACTADOS | AV166: 0 | AW166: 4 NO SE HA ADICIONADO NI EN VALOR y EN TIEMPO | AX166: 0 | BJ166: 2017-11-29 | BK166: 2017-12-31 | BM166: 100 | BN166: 100 | BO166: 100 | BP166: 100 | BR166: SANEAMIENTO | BS166: NACION-UNION EUROPEA | BT166: 56217 | BU166: 1387200 | BV166: 2017-11-23 | BW166: 93017 | BX166: 1387200 | BY166: 2017-11-29 | BZ166: 0 | CA166: 0 | CB166: 0 | CC166: 0 | CD166: 0 | CE166: 0 | CF166: 0 | CG166: 0 | CH166: 0 | CI166: 0 | CJ166: 81600 | CK166: 1224000 | CL166: 1305600 | CM166: 81600 | CP166: CPS | CR166: 2017-12-30
